Workbook

Sheet Ex_FuelMatrix (hidden)
A1: FUEL COST SENSITIVITIES
N5: =IF(#REF!<>0,"UPDATE MATRIX","ok") -> 
C6: CPVRR Net Cost/(Net Benefit) of Transaction (millions, 2015$)
E8: Gas Cost
E9: Low | F9: Base | G9: High
C10: Environmental Cost | D10: Low
D11: Base
D12: High

Sheet RESPONSE
A1: FPL 001171 Indiantown Cogen
A3: ESTIMATED RESIDENTIAL BILL
B4: $ PER KWH
A5: YEAR | B5: 1,000 KWH | C5: 1,200 KWH
A6: 2017 | B6: =DETAIL!E26 -> -0.09725778392 | C6: =DETAIL!E40 -> -0.1167093407
A7: 2018 | B7: =DETAIL!E27 -> -0.1190359834 | C7: =DETAIL!E41 -> -0.14284318
A8: 2019 | B8: =DETAIL!E28 -> -0.2161259075 | C8: =DETAIL!E42 -> -0.259351089
A9: 2020 | B9: =DETAIL!E29 -> -0.1900761851 | C9: =DETAIL!E43 -> -0.2280914221
A10: 2021 | B10: =DETAIL!E30 -> -0.2495597311 | C10: =DETAIL!E44 -> -0.2994716773
A11: 2022 | B11: =DETAIL!E31 -> -0.2786267012 | C11: =DETAIL!E45 -> -0.3343520414
A12: 2023 | B12: =DETAIL!E32 -> -0.2635450823 | C12: =DETAIL!E46 -> -0.3162540988
A13: 2024 | B13: =DETAIL!E33 -> -0.3363582919 | C13: =DETAIL!E47 -> -0.4036299503
A14: 2025 | B14: =DETAIL!E34 -> -0.3633331918 | C14: =DETAIL!E48 -> -0.4359998302

Sheet DETAIL
A1: FPL 001172 Indiantown Cogen | B1: (dollars in millions)
C2: 2017 | D2: =C2+1 -> 2018 | E2: 2019 | F2: 2020 | G2: 2021 | H2: 2022 | I2: 2023 | J2: 2024 | K2: 2025 | L2: Nominal Total
B5: Total Capacity | C5: =AllSources!E38 -> -8.442996292 | D5: =AllSources!F38 -> 9.767309692 | E5: =AllSources!G38 -> -5.988828047 | F5: =AllSources!H38 -> -10.69944619 | G5: =AllSources!I38 -> -18.79850264 | H5: =AllSources!J38 -> -23.25602485 | I5: =AllSources!K38 -> -27.8615873 | J5: =AllSources!L38 -> -32.39773721 | K5: =AllSources!M38 -> -36.9519487 | L5: =SUM(C5:K5) -> -154.6297616
B6: Fuel | C6: =AllSources!E39 -> -22.22 | D6: =AllSources!F39 -> -23.71 | E6: =AllSources!G39 -> -17.82 | F6: =AllSources!H39 -> -10.38 | G6: =AllSources!I39 -> -8.07 | H6: =AllSources!J39 -> -6.72 | I6: =AllSources!K39 -> -0.0604 | J6: =AllSources!L39 -> -3.69 | K6: =AllSources!M39 -> -3.29 | L6: =AllSources!N39 -> -95.9604
B7: Environmental | C7: =AllSources!E40 -> -0.01 | D7: =AllSources!F40 -> 0.02 | E7: =AllSources!G40 -> 0.02 | F7: =AllSources!H40 -> 0 | G7: =AllSources!I40 -> 0.02 | H7: =AllSources!J40 -> -0.1 | I7: =AllSources!K40 -> -0.36 | J7: =AllSources!L40 -> -0.65 | K7: =AllSources!M40 -> -0.73 | L7: =SUM(C7:K7) -> -1.79
B8: Total Impact | C8: =SUM(C5:C7) -> -30.67299629 | D8: =SUM(D5:D7) -> -13.92269031 | E8: -23.78882805 | F8: -21.07944619 | G8: -26.84850264 | H8: -30.07602485 | I8: -28.2819873 | J8: -36.73773721 | K8: -40.9719487 | L8: -252.3801616
B11: FACTORS
A12: YEAR | B12: CAPACITY | C12: ECRC | D12: FUEL
A13: 2017 | B13: 0.0001 | C13: -8.863017506e-08 | D13: =FUEL!L6 -> -0.0001971691537
A14: 2018 | B14: 9e-05 | C14: 1.762546775e-07 | D14: =FUEL!L7 -> -0.000209212238
A15: 2019 | B15: -6e-05 | C15: 1.752589114e-07 | D15: =FUEL!L8 -> -0.0001563011664
A16: 2020 | B16: -0.0001 | C16: 0 | D16: =FUEL!L9 -> -9.007618509e-05
A17: 2021 | B17: -0.00018 | C17: 1.718345209e-07 | D17: =FUEL!L10 -> -6.973156558e-05
A18: 2022 | B18: -0.00022 | C18: -8.512106071e-07 | D18: =FUEL!L11 -> -5.777549059e-05
A19: 2023 | B19: -0.00026 | C19: -3.031450779e-06 | D19: =FUEL!L12 -> -5.136315262e-07
A20: 2024 | B20: -0.0003 | C20: -5.400232124e-06 | D20: =FUEL!L13 -> -3.095805979e-05
A21: 2025 | B21: -0.00033 | C21: -6.005751164e-06 | D21: =FUEL!L14 -> -2.732744063e-05
B24: 1,000 KWH
A25: YEAR | B25: CAPACITY | C25: ECRC | D25: FUEL | E25: TOTAL
A26: 2017 | B26: =B13*$B$36 -> 0.1 | C26: =C13*$B$36 -> -8.863017506e-05 | D26: =D13*$B$36 -> -0.1971691537 | E26: =SUM(B26:D26) -> -0.09725778392
A27: 2018 | B27: =B14*$B$36 -> 0.09 | C27: 0.0001762546775 | D27: -0.209212238 | E27: =SUM(B27:D27) -> -0.1190359834
A28: 2019 | B28: -0.06 | C28: 0.0001752589114 | D28: -0.1563011664 | E28: -0.2161259075
A29: 2020 | B29: -0.1 | C29: 0 | D29: -0.09007618509 | E29: -0.1900761851
A30: 2021 | B30: -0.18 | C30: 0.0001718345209 | D30: -0.06973156558 | E30: -0.2495597311
A31: 2022 | B31: -0.22 | C31: -0.0008512106071 | D31: -0.05777549059 | E31: -0.2786267012
A32: 2023 | B32: -0.26 | C32: -0.003031450779 | D32: -0.0005136315262 | E32: -0.2635450823
A33: 2024 | B33: -0.3 | C33: -0.005400232124 | D33: -0.03095805979 | E33: -0.3363582919
A34: 2025 | B34: -0.33 | C34: -0.006005751164 | D34: -0.02732744063 | E34: -0.3633331918
B36: 1000
B38: 1,200 KWH
A39: YEAR | B39: CAPACITY | C39: ECRC | D39: FUEL | E39: TOTAL
A40: 2017 | B40: =B13*$B$50 -> 0.12 | C40: =C13*$B$50 -> -0.0001063562101 | D40: =D13*$B$50 -> -0.2366029845 | E40: =SUM(B40:D40) -> -0.1167093407
A41: 2018 | B41: =B14*$B$50 -> 0.108 | C41: 0.0002115056131 | D41: -0.2510546857 | E41: =SUM(B41:D41) -> -0.14284318
A42: 2019 | B42: -0.072 | C42: 0.0002103106936 | D42: -0.1875613997 | E42: -0.259351089
A43: 2020 | B43: -0.12 | C43: 0 | D43: -0.1080914221 | E43: -0.2280914221
A44: 2021 | B44: -0.216 | C44: 0.0002062014251 | D44: -0.08367787869 | E44: -0.2994716773
A45: 2022 | B45: -0.264 | C45: -0.001021452729 | D45: -0.06933058871 | E45: -0.3343520414
A46: 2023 | B46: -0.312 | C46: -0.003637740935 | D46: -0.0006163578314 | E46: -0.3162540988
A47: 2024 | B47: -0.36 | C47: -0.006480278549 | D47: -0.03714967174 | E47: -0.4036299503
A48: 2025 | B48: -0.396 | C48: -0.007206901397 | D48: -0.03279292876 | E48: -0.4359998302
B50: 1200

Sheet FUEL
A1: FPL 001173 Indiantown Cogen | B1: FUEL
B3: (1) | C3: (2) | D3: (3) | E3: (4) | F3: (5) | G3: (6) | H3: (7) | I3: (8) | J3: (9) | K3: (10) | L3: (11) | M3: (12) | N3: (13)
C4: SYSTEM | D4: JURISDICTIONAL | E4: RETAIL | H4: JURISDICTIONAL | I4: FACTOR ADJ FOR | J4: FACTORS INCL | K4: RS-1 | L4: RS-1 | M4: 1,000 KWH | N4: 1,200 KWH
B5: YEAR | C5: FUEL REV REQ | D5: SEPARATION | E5: FUEL REV REQ | F5: RETAIL KWH SALES | G5: AVG FACTOR | H5: LOSS FACTOR | I5: JURISD LOSSES | J5: RAF (0.00072) | K5: LOSS FACTOR | L5: FUEL FACTOR | M5: IMPACT | N5: IMPACT
B6: 2017 | C6: =DETAIL!C$6*1000000 -> -22220000 | D6: 0.9471226598 | E6: =D6*C6 -> -21045065.5 | F6: 107246477186 | G6: =E6/F6 -> -0.0001962308325 | H6: 1.001533788 | I6: =G6*H6 -> -0.0001965318091 | J6: =I6*$E$17 -> -0.000196673312 | K6: 1.002521144 | L6: =K6*J6 -> -0.0001971691537 | M6: =L6*1000 -> -0.1971691537 | N6: =L6*1200 -> -0.2366029845
B7: 2018 | C7: =DETAIL!D$6*1000000 -> -23710000 | D7: 0.9471956528 | E7: -22458008.93 | F7: 107858876175 | G7: -0.0002082166042 | H7: 1.001533788 | I7: =G7*H7 -> -0.0002085359644 | J7: =I7*$E$17 -> -0.0002086861103 | K7: 1.002521144 | L7: =K7*J7 -> -0.000209212238 | M7: =L7*1000 -> -0.209212238 | N7: =L7*1200 -> -0.2510546857
B8: 2019 | C8: =DETAIL!E$6*1000000 -> -17820000 | D8: 0.9468915147 | E8: -16873606.79 | F8: 108471946007 | G8: -0.0001555573345 | H8: 1.001533788 | I8: -0.0001557959266 | J8: -0.0001559080996 | K8: 1.002521144 | L8: -0.0001563011664 | M8: -0.1563011664 | N8: -0.1875613997
B9: 2020 | C9: =DETAIL!F$6*1000000 -> -10380000 | D9: 0.9468303248 | E9: -9828098.771 | F9: 109630464426 | G9: -8.964751561e-05 | H9: 1.001533788 | I9: -8.978501593e-05 | J9: -8.984966115e-05 | K9: 1.002521144 | L9: -9.007618509e-05 | M9: -0.09007618509 | N9: -0.1080914221
B10: 2021 | C10: =DETAIL!G$6*1000000 -> -8070000 | D10: 0.951399846 | E10: -7677796.757 | F10: 110631530806 | G10: -6.939971545e-05 | H10: 1.001533788 | I10: -6.950615993e-05 | J10: -6.955620436e-05 | K10: 1.002521144 | L10: -6.973156558e-05 | M10: -0.06973156558 | N10: -0.08367787869
B11: 2022 | C11: =DETAIL!H$6*1000000 -> -6720000 | D11: 0.9554873868 | E11: -6420875.239 | F11: 1.116663487e+11 | G11: -5.750053901e-05 | H11: 1.001533788 | I11: -5.758873267e-05 | J11: -5.763019656e-05 | K11: 1.002521144 | L11: -5.777549059e-05 | M11: -0.05777549059 | N11: -0.06933058871
B12: 2023 | C12: =DETAIL!I$6*1000000 -> -60400 | D12: 0.9553320102 | E12: -57702.05342 | F12: 1.128785241e+11 | G12: -5.111871714e-07 | H12: 1.001533788 | I12: -5.119712243e-07 | J12: -5.123398436e-07 | K12: 1.002521144 | L12: -5.136315262e-07 | M12: -0.0005136315262 | N12: -0.0006163578314
B13: 2024 | C13: =DETAIL!J$6*1000000 -> -3690000 | D13: 0.9552914999 | E13: -3525025.635 | F13: 1.144090215e+11 | G13: -3.081073144e-05 | H13: 1.001533788 | I13: -3.085798858e-05 | J13: -3.088020634e-05 | K13: 1.002521144 | L13: -3.095805979e-05 | M13: -0.03095805979 | N13: -0.03714967174
B14: 2025 | C14: =DETAIL!K$6*1000000 -> -3290000 | D14: 0.9550941914 | E14: -3142259.89 | F14: 1.155353458e+11 | G14: -2.719739028e-05 | H14: 1.001533788 | I14: -2.723910532e-05 | J14: -2.725871747e-05 | K14: 1.002521144 | L14: -2.732744063e-05 | M14: -0.02732744063 | N14: -0.03279292876
B15: TOTAL | C15: =SUM(C6:C14) -> -95960400 | E15: =SUM(E6:E14) -> -91028439.57
B17: Regulatory Assessment Fee | E17: 1.00072

Sheet AllSources
A1: FPL 001174 Indiantown Cogen
D4: Opening
C5: Ending Balances | D5: 2017-01-01 | E5: 2017-12-31 | F5: =EOMONTH(E5,12) -> 2018-12-31 | G5: =EOMONTH(F5,12) -> 2019-12-31 | H5: 2020-12-31 | I5: 2021-12-31 | J5: 2022-12-31 | K5: 2023-12-31 | L5: 2024-12-31 | M5: 2025-12-31
C7: Regulatory Asset | D7: =MonthlyBalances!I13 -> 451500 | E7: =ROUND(SUMIF(MonthlyBalances!$K$4:$EY$4,E$5,MonthlyBalances!$K$15:$EY$15),3) -> 401333.333 | F7: =ROUND(SUMIF(MonthlyBalances!$K$4:$EY$4,F$5,MonthlyBalances!$K$15:$EY$15),3) -> 351166.667 | G7: =ROUND(SUMIF(MonthlyBalances!$K$4:$EY$4,G$5,MonthlyBalances!$K$15:$EY$15),3) -> 301000 | H7: =ROUND(SUMIF(MonthlyBalances!$K$4:$EY$4,H$5,MonthlyBalances!$K$15:$EY$15),3) -> 250833.333 | I7: =ROUND(SUMIF(MonthlyBalances!$K$4:$EY$4,I$5,MonthlyBalances!$K$15:$EY$15),3) -> 200666.667 | J7: =ROUND(SUMIF(MonthlyBalances!$K$4:$EY$4,J$5,MonthlyBalances!$K$15:$EY$15),3) -> 150500 | K7: =ROUND(SUMIF(MonthlyBalances!$K$4:$EY$4,K$5,MonthlyBalances!$K$15:$EY$15),3) -> 100333.333 | L7: =ROUND(SUMIF(MonthlyBalances!$K$4:$EY$4,L$5,MonthlyBalances!$K$15:$EY$15),3) -> 50166.667 | M7: =ROUND(SUMIF(MonthlyBalances!$K$4:$EY$4,M$5,MonthlyBalances!$K$15:$EY$15),3) -> 0
C8: Land | D8: =MonthlyBalances!I21 -> 8500 | E8: =SUMIF(MonthlyBalances!$K$4:$EY$4,E$5,MonthlyBalances!$K$23:$EY$23) -> 8500 | F8: =SUMIF(MonthlyBalances!$K$4:$EY$4,F$5,MonthlyBalances!$K$23:$EY$23) -> 8500 | G8: =SUMIF(MonthlyBalances!$K$4:$EY$4,G$5,MonthlyBalances!$K$23:$EY$23) -> 8500 | H8: =SUMIF(MonthlyBalances!$K$4:$EY$4,H$5,MonthlyBalances!$K$23:$EY$23) -> 0 | I8: =SUMIF(MonthlyBalances!$K$4:$EY$4,I$5,MonthlyBalances!$K$23:$EY$23) -> 0 | J8: =SUMIF(MonthlyBalances!$K$4:$EY$4,J$5,MonthlyBalances!$K$23:$EY$23) -> 0 | K8: =SUMIF(MonthlyBalances!$K$4:$EY$4,K$5,MonthlyBalances!$K$23:$EY$23) -> 0 | L8: =SUMIF(MonthlyBalances!$K$4:$EY$4,L$5,MonthlyBalances!$K$23:$EY$23) -> 0 | M8: =SUMIF(MonthlyBalances!$K$4:$EY$4,M$5,MonthlyBalances!$K$23:$EY$23) -> 0
C9: Deferred Tax Asset/(Liability)
C10: ARO Asset | D10: =MonthlyBalances!I45 -> 9940 | E10: =ROUND(SUMIF(MonthlyBalances!$K$4:$EY$4,E$5,MonthlyBalances!$K$47:$EY$47),3) -> 7455 | F10: =ROUND(SUMIF(MonthlyBalances!$K$4:$EY$4,F$5,MonthlyBalances!$K$47:$EY$47),3) -> 4970 | G10: =ROUND(SUMIF(MonthlyBalances!$K$4:$EY$4,G$5,MonthlyBalances!$K$47:$EY$47),3) -> 2485 | H10: =ROUND(SUMIF(MonthlyBalances!$K$4:$EY$4,H$5,MonthlyBalances!$K$47:$EY$47),3) -> 0 | I10: =ROUND(SUMIF(MonthlyBalances!$K$4:$EY$4,I$5,MonthlyBalances!$K$47:$EY$47),3) -> 0 | J10: =ROUND(SUMIF(MonthlyBalances!$K$4:$EY$4,J$5,MonthlyBalances!$K$47:$EY$47),3) -> 0 | K10: =ROUND(SUMIF(MonthlyBalances!$K$4:$EY$4,K$5,MonthlyBalances!$K$47:$EY$47),3) -> 0 | L10: =ROUND(SUMIF(MonthlyBalances!$K$4:$EY$4,L$5,MonthlyBalances!$K$47:$EY$47),3) -> 0 | M10: =ROUND(SUMIF(MonthlyBalances!$K$4:$EY$4,M$5,MonthlyBalances!$K$47:$EY$47),3) -> 0
C11: ARO Liability | D11: =MonthlyBalances!I52 -> -9940 | E11: =SUMIF(MonthlyBalances!$K$4:$EY$4,E$5,MonthlyBalances!$K$55:$EY$55) -> -10140.6325 | F11: =SUMIF(MonthlyBalances!$K$4:$EY$4,F$5,MonthlyBalances!$K$55:$EY$55) -> -10345.31463 | G11: =SUMIF(MonthlyBalances!$K$4:$EY$4,G$5,MonthlyBalances!$K$55:$EY$55) -> -10554.12814 | H11: =SUMIF(MonthlyBalances!$K$4:$EY$4,H$5,MonthlyBalances!$K$55:$EY$55) -> 0 | I11: =SUMIF(MonthlyBalances!$K$4:$EY$4,I$5,MonthlyBalances!$K$55:$EY$55) -> 0 | J11: =SUMIF(MonthlyBalances!$K$4:$EY$4,J$5,MonthlyBalances!$K$55:$EY$55) -> 0 | K11: =SUMIF(MonthlyBalances!$K$4:$EY$4,K$5,MonthlyBalances!$K$55:$EY$55) -> 0 | L11: =SUMIF(MonthlyBalances!$K$4:$EY$4,L$5,MonthlyBalances!$K$55:$EY$55) -> 0 | M11: =SUMIF(MonthlyBalances!$K$4:$EY$4,M$5,MonthlyBalances!$K$55:$EY$55) -> 0
C12: Rail Car Lease Liability | D12: =MonthlyBalances!I60 -> -9000 | E12: =ROUND(SUMIF(MonthlyBalances!$K$4:$EY$4,E$5,MonthlyBalances!$K$62:$EY$62),3) -> -8000 | F12: =ROUND(SUMIF(MonthlyBalances!$K$4:$EY$4,F$5,MonthlyBalances!$K$62:$EY$62),3) -> -7000 | G12: =ROUND(SUMIF(MonthlyBalances!$K$4:$EY$4,G$5,MonthlyBalances!$K$62:$EY$62),3) -> -6000 | H12: =ROUND(SUMIF(MonthlyBalances!$K$4:$EY$4,H$5,MonthlyBalances!$K$62:$EY$62),3) -> -5000 | I12: =ROUND(SUMIF(MonthlyBalances!$K$4:$EY$4,I$5,MonthlyBalances!$K$62:$EY$62),3) -> -4000 | J12: =ROUND(SUMIF(MonthlyBalances!$K$4:$EY$4,J$5,MonthlyBalances!$K$62:$EY$62),3) -> -3000 | K12: =ROUND(SUMIF(MonthlyBalances!$K$4:$EY$4,K$5,MonthlyBalances!$K$62:$EY$62),3) -> -2000 | L12: =ROUND(SUMIF(MonthlyBalances!$K$4:$EY$4,L$5,MonthlyBalances!$K$62:$EY$62),3) -> -1000 | M12: =ROUND(SUMIF(MonthlyBalances!$K$4:$EY$4,M$5,MonthlyBalances!$K$62:$EY$62),3) -> 0
C13: Rate Base | D13: =SUM(D7:D12) -> 451000 | E13: =SUM(E7:E12) -> 399147.7005 | F13: 347291.3524 | G13: 295430.8719 | H13: 245833.333 | I13: 196666.667 | J13: 147500 | K13: 98333.333 | L13: 49166.667 | M13: 0
E15: Average | F15: Average | G15: Average | H15: Average | I15: Average | J15: Average | K15: Average | L15: Average | M15: Average
C16: Average Balances | E16: =YEAR(E5) -> 2017 | F16: =YEAR(F5) -> 2018 | G16: 2019 | H16: 2020 | I16: 2021 | J16: 2022 | K16: 2023 | L16: 2024 | M16: 2025
C17: Regulatory Asset | E17: =SUMIF(MonthlyBalances!$K$3:$EY$3,E$16,MonthlyBalances!$K$16:$EY$16)/12 -> 215995.3704 | F17: =SUMIF(MonthlyBalances!$K$3:$EY$3,F$16,MonthlyBalances!$K$15:$EY$15)/12 -> 374159.7222 | G17: =SUMIF(MonthlyBalances!$K$3:$EY$3,G$16,MonthlyBalances!$K$15:$EY$15)/12 -> 323993.0556 | H17: =SUMIF(MonthlyBalances!$K$3:$EY$3,H$16,MonthlyBalances!$K$15:$EY$15)/12 -> 273826.3889 | I17: =SUMIF(MonthlyBalances!$K$3:$EY$3,I$16,MonthlyBalances!$K$15:$EY$15)/12 -> 223659.7222 | J17: =SUMIF(MonthlyBalances!$K$3:$EY$3,J$16,MonthlyBalances!$K$15:$EY$15)/12 -> 173493.0556 | K17: =SUMIF(MonthlyBalances!$K$3:$EY$3,K$16,MonthlyBalances!$K$15:$EY$15)/12 -> 123326.3889 | L17: =SUMIF(MonthlyBalances!$K$3:$EY$3,L$16,MonthlyBalances!$K$15:$EY$15)/12 -> 73159.72222 | M17: =SUMIF(MonthlyBalances!$K$3:$EY$3,M$16,MonthlyBalances!$K$15:$EY$15)/12 -> 22993.05556
C18: Land | E18: =SUMIF(MonthlyBalances!$K$3:$EY$3,E$16,MonthlyBalances!$K$24:$EY$24)/12 -> 4250 | F18: =SUMIF(MonthlyBalances!$K$3:$EY$3,F$16,MonthlyBalances!$K$23:$EY$23)/12 -> 8500 | G18: =SUMIF(MonthlyBalances!$K$3:$EY$3,G$16,MonthlyBalances!$K$23:$EY$23)/12 -> 8500 | H18: =SUMIF(MonthlyBalances!$K$3:$EY$3,H$16,MonthlyBalances!$K$23:$EY$23)/12 -> 7791.666667 | I18: =SUMIF(MonthlyBalances!$K$3:$EY$3,I$16,MonthlyBalances!$K$23:$EY$23)/12 -> 0 | J18: =SUMIF(MonthlyBalances!$K$3:$EY$3,J$16,MonthlyBalances!$K$23:$EY$23)/12 -> 0 | K18: =SUMIF(MonthlyBalances!$K$3:$EY$3,K$16,MonthlyBalances!$K$23:$EY$23)/12 -> 0 | L18: =SUMIF(MonthlyBalances!$K$3:$EY$3,L$16,MonthlyBalances!$K$23:$EY$23)/12 -> 0 | M18: =SUMIF(MonthlyBalances!$K$3:$EY$3,M$16,MonthlyBalances!$K$23:$EY$23)/12 -> 0
C19: Deferred Tax Asset/(Liability)
C20: ARO Asset | E20: =SUMIF(MonthlyBalances!$K$3:$EY$3,E$16,MonthlyBalances!$K$48:$EY$48)/12 -> 4486.805556 | F20: =ROUND(SUMIF(MonthlyBalances!$K$3:$EY$3,F$16,MonthlyBalances!$K$47:$EY$47)/12,3) -> 6108.958 | G20: =ROUND(SUMIF(MonthlyBalances!$K$3:$EY$3,G$16,MonthlyBalances!$K$47:$EY$47)/12,3) -> 3623.958 | H20: =ROUND(SUMIF(MonthlyBalances!$K$3:$EY$3,H$16,MonthlyBalances!$K$47:$EY$47)/12,3) -> 1138.958 | I20: =ROUND(SUMIF(MonthlyBalances!$K$3:$EY$3,I$16,MonthlyBalances!$K$47:$EY$47)/12,3) -> 0 | J20: =ROUND(SUMIF(MonthlyBalances!$K$3:$EY$3,J$16,MonthlyBalances!$K$47:$EY$47)/12,3) -> 0 | K20: =ROUND(SUMIF(MonthlyBalances!$K$3:$EY$3,K$16,MonthlyBalances!$K$47:$EY$47)/12,3) -> 0 | L20: =ROUND(SUMIF(MonthlyBalances!$K$3:$EY$3,L$16,MonthlyBalances!$K$47:$EY$47)/12,3) -> 0 | M20: =ROUND(SUMIF(MonthlyBalances!$K$3:$EY$3,M$16,MonthlyBalances!$K$47:$EY$47)/12,3) -> 0
C21: ARO Liability | E21: =SUMIF(MonthlyBalances!$K$3:$EY$3,E$16,MonthlyBalances!$K$56:$EY$56)/12 -> -5008.833319 | F21: =SUMIF(MonthlyBalances!$K$3:$EY$3,F$16,MonthlyBalances!$K$55:$EY$55)/12 -> -10251.1635 | G21: =SUMIF(MonthlyBalances!$K$3:$EY$3,G$16,MonthlyBalances!$K$55:$EY$55)/12 -> -10458.07663 | H21: =SUMIF(MonthlyBalances!$K$3:$EY$3,H$16,MonthlyBalances!$K$55:$EY$55)/12 -> -9771.903135 | I21: =SUMIF(MonthlyBalances!$K$3:$EY$3,I$16,MonthlyBalances!$K$55:$EY$55)/12 -> 0 | J21: =SUMIF(MonthlyBalances!$K$3:$EY$3,J$16,MonthlyBalances!$K$55:$EY$55)/12 -> 0 | K21: =SUMIF(MonthlyBalances!$K$3:$EY$3,K$16,MonthlyBalances!$K$55:$EY$55)/12 -> 0 | L21: =SUMIF(MonthlyBalances!$K$3:$EY$3,L$16,MonthlyBalances!$K$55:$EY$55)/12 -> 0 | M21: =SUMIF(MonthlyBalances!$K$3:$EY$3,M$16,MonthlyBalances!$K$55:$EY$55)/12 -> 0
C22: Rail Car Lease Liability | E22: =SUMIF(MonthlyBalances!$K$3:$EY$3,E$16,MonthlyBalances!$K$63:$EY$63)/12 -> -4305.555556 | F22: =SUMIF(MonthlyBalances!$K$3:$EY$3,F$16,MonthlyBalances!$K$62:$EY$62)/12 -> -7458.333333 | G22: =SUMIF(MonthlyBalances!$K$3:$EY$3,G$16,MonthlyBalances!$K$62:$EY$62)/12 -> -6458.333333 | H22: =SUMIF(MonthlyBalances!$K$3:$EY$3,H$16,MonthlyBalances!$K$62:$EY$62)/12 -> -5458.333333 | I22: =SUMIF(MonthlyBalances!$K$3:$EY$3,I$16,MonthlyBalances!$K$62:$EY$62)/12 -> -4458.333333 | J22: =SUMIF(MonthlyBalances!$K$3:$EY$3,J$16,MonthlyBalances!$K$62:$EY$62)/12 -> -3458.333333 | K22: =SUMIF(MonthlyBalances!$K$3:$EY$3,K$16,MonthlyBalances!$K$62:$EY$62)/12 -> -2458.333333 | L22: =SUMIF(MonthlyBalances!$K$3:$EY$3,L$16,MonthlyBalances!$K$62:$EY$62)/12 -> -1458.333333 | M22: =SUMIF(MonthlyBalances!$K$3:$EY$3,M$16,MonthlyBalances!$K$62:$EY$62)/12 -> -458.3333333
C23: Rate Base | E23: =SUM(E17:E22) -> 215417.7871 | F23: =SUM(F17:F22) -> 371059.1834 | G23: 319200.6036 | H23: 267526.7771 | I23: 219201.3889 | J23: 170034.7222 | K23: 120868.0556 | L23: 71701.38889 | M23: 22534.72222
C25: Pre-Tax WACC (All Sources) | E25: 0.0987 | F25: 0.0987 | G25: 0.0987 | H25: 0.0987 | I25: 0.0987 | J25: 0.0987 | K25: 0.0987 | L25: 0.0987 | M25: 0.0987
C27: Return on Capital | E27: =E23*E25 -> 21261.73558 | F27: =F23*F25 -> 36623.5414 | G27: 31505.09957 | H27: 26404.8929 | I27: 21635.17708 | J27: 16782.42708 | K27: 11929.67708 | L27: 7076.927083 | M27: 2224.177083
C28: Regulatory Asset Amortization | E28: =RevReq!L36 -> 50166.66667 | F28: =RevReq!M36 -> 50166.66667 | G28: =RevReq!N36 -> 50166.66667 | H28: =RevReq!O36 -> 50166.66667 | I28: =RevReq!P36 -> 50166.66667 | J28: =RevReq!Q36 -> 50166.66667 | K28: =RevReq!R36 -> 50166.66667 | L28: =RevReq!S36 -> 50166.66667 | M28: =RevReq!T36 -> 50166.66667
C29: O&M and Rail Lease Expense | E29: =RevReq!L38 -> 10768.74436 | F29: =RevReq!M38 -> 13195.424 | G29: =RevReq!N38 -> 2195.424 | H29: =RevReq!O38 -> 2195.424 | I29: =RevReq!P38 -> 1195.424 | J29: =RevReq!Q38 -> 1195.424 | K29: =RevReq!R38 -> 1195.424 | L29: =RevReq!S38 -> 1195.424 | M29: =RevReq!T38 -> 1195.424
C30: ARO Asset Amortization | E30: =RevReq!L39 -> 2485 | F30: =RevReq!M39 -> 2485 | G30: =RevReq!N39 -> 2485 | H30: =RevReq!O39 -> 2485 | I30: =RevReq!P39 -> 0 | J30: =RevReq!Q39 -> 0 | K30: =RevReq!R39 -> 0 | L30: =RevReq!S39 -> 0 | M30: =RevReq!T39 -> 0
C31: ARO Liability Accretion | E31: =RevReq!L40 -> 200.6324955 | F31: =RevReq!M40 -> 204.6821331 | G31: =RevReq!N40 -> 208.8135101 | H31: =RevReq!O40 -> 213.0282763 | I31: =RevReq!P40 -> 0 | J31: =RevReq!Q40 -> 0 | K31: =RevReq!R40 -> 0 | L31: =RevReq!S40 -> 0 | M31: =RevReq!T40 -> 0
C32: Avoided Cost of Terminating PPA | E32: =RevReq!L54 -> -93325.7754 | F32: =RevReq!M54 -> -92908.00451 | G32: =RevReq!N54 -> -92549.8318 | H32: =RevReq!O54 -> -92164.45803 | I32: =RevReq!P54 -> -91795.77039 | J32: =RevReq!Q54 -> -91400.5426 | K32: =RevReq!R54 -> -91153.35505 | L32: =RevReq!S54 -> -90836.75496 | M32: =RevReq!T54 -> -90538.21645
C33: System Impact | E33: =RevReq!L57 -> -22230 | F33: =RevReq!M57 -> -23690 | G33: =RevReq!N57 -> -17800 | H33: =RevReq!O57 -> -10380 | I33: =RevReq!P57 -> -8050 | J33: =RevReq!Q57 -> -6820 | K33: =RevReq!R57 -> -420.4 | L33: =RevReq!S57 -> -4340 | M33: =RevReq!T57 -> -4020
C35: Revenue Requirement | E35: =SUM(E27:E34) -> -30672.99629 | F35: =SUM(F27:F34) -> -13922.69031 | G35: -23788.82805 | H35: -21079.44619 | I35: -26848.50264 | J35: -30076.02485 | K35: -28281.9873 | L35: -36737.73721 | M35: -40971.9487 | N35: =SUM(E35:M35) -> -252380.1616
C38: CAPACITY | E38: =(+E27+E28+E29+E30+E31+E32)/1000 -> -8.442996292 | F38: 9.767309692 | G38: -5.988828047 | H38: -10.69944619 | I38: -18.79850264 | J38: -23.25602485 | K38: -27.8615873 | L38: -32.39773721 | M38: -36.9519487 | N38: =SUM(E38:M38) -> -154.6297616
C39: FUEL | E39: =(E33/1000)-E40 -> -22.22 | F39: -23.71 | G39: -17.82 | H39: -10.38 | I39: -8.07 | J39: -6.72 | K39: -0.0604 | L39: -3.69 | M39: -3.29 | N39: =SUM(E39:M39) -> -95.9604
C40: ENVIRONMENTAL | E40: =SystemImpact!G11 -> -0.01 | F40: =SystemImpact!G12 -> 0.02 | G40: =SystemImpact!G13 -> 0.02 | H40: =SystemImpact!G14 -> 0 | I40: =SystemImpact!G15 -> 0.02 | J40: =SystemImpact!G16 -> -0.1 | K40: =SystemImpact!G17 -> -0.36 | L40: =SystemImpact!G18 -> -0.65 | M40: =SystemImpact!G19 -> -0.73 | N40: =SUM(E40:M40) -> -1.79
C42: TOTAL | E42: =SUM(E38:E40) -> -30.67299629 | F42: =SUM(F38:F40) -> -13.92269031 | G42: -23.78882805 | H42: -21.07944619 | I42: -26.84850264 | J42: -30.07602485 | K42: -28.2819873 | L42: -36.73773721 | M42: -40.9719487 | N42: -252.3801616
E44: =+E39+E40 -> -22.23 | F44: =+F39+F40 -> -23.69 | G44: -17.8 | H44: -10.38 | I44: -8.05 | J44: -6.82 | K44: -0.4204 | L44: -4.34 | M44: -4.02

Sheet Ex_Economics
B1: FPL 001175 Indiantown Cogen | S1: =VBA_TerminationDate -> 2020-12-31
C3: ="Indiantown Cogeneration "&TEXT((Price)/1000,"$0")&" MM Enterprise Value" -> Indiantown Cogeneration $451 MM Enterprise Value
C4: Results of FPL's Economic Evaluation(1)
C6: (dollars in millions) | D6: 2017 | E6: =D6+1 -> 2018 | F6: 2019 | G6: 2020 | H6: 2021 | I6: 2022 | J6: 2023 | K6: 2024 | L6: 2025 | N6: Nominal Total | P6: Present Value(9)
B8: A | C8: Discount Factor(2) | D8: =SUMIF(RevReq!$K$3:$AO$3,D$6,RevReq!$K$5:$AO$5) -> 0.9621054002 | E8: =SUMIF(RevReq!$K$3:$AO$3,E$6,RevReq!$K$5:$AO$5) -> 0.8896146363 | F8: =SUMIF(RevReq!$K$3:$AO$3,F$6,RevReq!$K$5:$AO$5) -> 0.8225857592 | G8: =SUMIF(RevReq!$K$3:$AO$3,G$6,RevReq!$K$5:$AO$5) -> 0.7604440153 | H8: =SUMIF(RevReq!$K$3:$AO$3,H$6,RevReq!$K$5:$AO$5) -> 0.7031476239 | I8: =SUMIF(RevReq!$K$3:$AO$3,I$6,RevReq!$K$5:$AO$5) -> 0.6501682846 | J8: =SUMIF(RevReq!$K$3:$AO$3,J$6,RevReq!$K$5:$AO$5) -> 0.601180725 | K8: =SUMIF(RevReq!$K$3:$AO$3,K$6,RevReq!$K$5:$AO$5) -> 0.5557648905 | L8: =SUMIF(RevReq!$K$3:$AO$3,L$6,RevReq!$K$5:$AO$5) -> 0.5138902462
B10: B | C10: Amortization(3) | D10: =SUM(RevReq!L36:L37)/1000 -> 50.16666667 | E10: =SUM(RevReq!M36:M37)/1000 -> 50.16666667 | F10: =SUM(RevReq!N36:N37)/1000 -> 50.16666667 | G10: =SUM(RevReq!O36:O37)/1000 -> 50.16666667 | H10: =SUM(RevReq!P36:P37)/1000 -> 50.16666667 | I10: =SUM(RevReq!Q36:Q37)/1000 -> 50.16666667 | J10: =SUM(RevReq!R36:R37)/1000 -> 50.16666667 | K10: =SUM(RevReq!S36:S37)/1000 -> 50.16666667 | L10: =SUM(RevReq!T36:T37)/1000 -> 50.16666667 | N10: =SUM(D10:L10) -> 451.5 | P10: =SUMPRODUCT($D$8:$L$8,D10:L10) -> 324.0215627
B11: C | C11: Operating Expenses(4) | D11: =SUM(RevReq!L38:L38)/1000 -> 10.76874436 | E11: =SUM(RevReq!M38:M38)/1000 -> 13.195424 | F11: =SUM(RevReq!N38:N38)/1000 -> 2.195424 | G11: =SUM(RevReq!O38:O38)/1000 -> 2.195424 | H11: =SUM(RevReq!P38:P38)/1000 -> 1.195424 | I11: =SUM(RevReq!Q38:Q38)/1000 -> 1.195424 | J11: =SUM(RevReq!R38:R38)/1000 -> 1.195424 | K11: =SUM(RevReq!S38:S38)/1000 -> 1.195424 | L11: =SUM(RevReq!T38:T38)/1000 -> 1.195424 | N11: 34.33213636 | P11: 29.19007459
B12: D | C12: Asset Retirement Obligation(5) | D12: =SUM(RevReq!L39:L40)/1000 -> 2.685632495 | E12: =SUM(RevReq!M39:M40)/1000 -> 2.689682133 | F12: =SUM(RevReq!N39:N40)/1000 -> 2.69381351 | G12: =SUM(RevReq!O39:O40)/1000 -> 2.698028276 | H12: =SUM(RevReq!P39:P40)/1000 -> 0 | I12: =SUM(RevReq!Q39:Q40)/1000 -> 0 | J12: =SUM(RevReq!R39:R40)/1000 -> 0 | K12: =SUM(RevReq!S39:S40)/1000 -> 0 | L12: =SUM(RevReq!T39:T40)/1000 -> 0 | N12: 10.76715641 | P12: 9.244234207
B13: E | C13: Interest Expense(6) | D13: =SUM(RevReq!L41:L42)/1000 -> 4.000891128 | E13: =SUM(RevReq!M41:M42)/1000 -> 3.693476184 | F13: =SUM(RevReq!N41:N42)/1000 -> 3.395808586 | G13: =SUM(RevReq!O41:O42)/1000 -> 1.337716773 | H13: =SUM(RevReq!P41:P42)/1000 -> 2.832647309 | I13: =SUM(RevReq!Q41:Q42)/1000 -> 2.197287165 | J13: =SUM(RevReq!R41:R42)/1000 -> 1.56192702 | K13: =SUM(RevReq!S41:S42)/1000 -> 0.9265668751 | L13: =SUM(RevReq!T41:T42)/1000 -> 0.2912067304 | N13: 20.23752777 | P13: 15.96962964
B14: F | C14: Return on Equity(7) | D14: =SUM(RevReq!L43)/1000 -> 29.46287268 | E14: =SUM(RevReq!M43)/1000 -> 26.54915759 | F14: =SUM(RevReq!N43)/1000 -> 23.48344292 | G14: =SUM(RevReq!O43)/1000 -> 19.74822859 | H14: =SUM(RevReq!P43)/1000 -> 9.231627631 | I14: =SUM(RevReq!Q43)/1000 -> 7.160982179 | J14: =SUM(RevReq!R43)/1000 -> 5.090336727 | K14: =SUM(RevReq!S43)/1000 -> 3.019691275 | L14: =SUM(RevReq!T43)/1000 -> 0.9490458235 | N14: 124.6953854 | P14: 102.6726727
B15: G | C15: Income Tax | D15: =SUM(RevReq!L44)/1000 -> 18.50273201 | E15: =SUM(RevReq!M44)/1000 -> 16.67291419 | F15: =SUM(RevReq!N44)/1000 -> 14.74764039 | G15: =SUM(RevReq!O44)/1000 -> 12.4019197 | H15: =SUM(RevReq!P44)/1000 -> 5.797477181 | I15: =SUM(RevReq!Q44)/1000 -> 4.497108467 | J15: =SUM(RevReq!R44)/1000 -> 3.196739752 | K15: =SUM(RevReq!S44)/1000 -> 1.896371037 | L15: =SUM(RevReq!T44)/1000 -> 0.5960023222 | N15: 78.30890505 | P15: 64.4786056
B16: H | C16: Cost of Transaction | D16: =SUM(D10:D15) -> 115.5875393 | E16: 112.9673208 | F16: 96.68279607 | G16: 88.54798401 | H16: 69.22384279 | I16: 65.21746848 | J16: 61.21109417 | K16: 57.20471985 | L16: 53.19834554 | N16: 719.841111 | P16: 545.5767794
B18: I | C18: FPL System Impact(8) | D18: =RevReq!L57/1000 -> -22.23 | E18: =RevReq!M57/1000 -> -23.69 | F18: =RevReq!N57/1000 -> -17.8 | G18: =RevReq!O57/1000 -> -10.38 | H18: =RevReq!P57/1000 -> -8.05 | I18: =RevReq!Q57/1000 -> -6.82 | J18: =RevReq!R57/1000 -> -0.4204 | K18: =RevReq!S57/1000 -> -4.34 | L18: =RevReq!T57/1000 -> -4.02 | N18: =SUM(D18:L18) -> -97.7504 | P18: =SUMPRODUCT($D$8:$L$8,D18:L18) -> -79.82309004
B20: J | C20: Capacity Payment and Bonus | D20: =SUM(RevReq!L51,RevReq!L53)/1000 -> -56.8753614 | E20: =SUM(RevReq!M51,RevReq!M53)/1000 -> -55.72858223 | F20: =SUM(RevReq!N51,RevReq!N53)/1000 -> -54.62682107 | G20: =SUM(RevReq!O51,RevReq!O53)/1000 -> -53.48298709 | H20: =SUM(RevReq!P51,RevReq!P53)/1000 -> -52.34067004 | I20: =SUM(RevReq!Q51,RevReq!Q53)/1000 -> -51.15634024 | J20: =SUM(RevReq!R51,RevReq!R53)/1000 -> -50.10426864 | K20: =SUM(RevReq!S51,RevReq!S53)/1000 -> -48.96668681 | L20: =SUM(RevReq!T51,RevReq!T53)/1000 -> -47.83074695 | N20: =SUM(D20:L20) -> -471.1124645 | P20: =SUMPRODUCT($D$8:$L$8,D20:L20) -> -341.8820053
B21: K | C21: O&M Payment | D21: =RevReq!L52/1000 -> -36.450414 | E21: =RevReq!M52/1000 -> -37.17942228 | F21: =RevReq!N52/1000 -> -37.92301073 | G21: =RevReq!O52/1000 -> -38.68147094 | H21: =RevReq!P52/1000 -> -39.45510036 | I21: =RevReq!Q52/1000 -> -40.24420237 | J21: =RevReq!R52/1000 -> -41.04908641 | K21: =RevReq!S52/1000 -> -41.87006814 | L21: =RevReq!T52/1000 -> -42.7074695 | N21: =SUM(D21:L21) -> -355.5602447 | P21: =SUMPRODUCT($D$8:$L$8,D21:L21) -> -252.5575695
B22: L | C22: Total Avoided Costs of PPA | D22: =SUM(D20:D21) -> -93.3257754 | E22: -92.90800451 | F22: -92.5498318 | G22: -92.16445803 | H22: -91.79577039 | I22: -91.4005426 | J22: -91.15335505 | K22: -90.83675496 | L22: -90.53821645 | N22: -826.6727092 | P22: -594.4395747
B24: M | C24: Net Customer Costs/(Savings) | D24: =ROUND(D16+D18+D22,0) -> 0 | E24: =E16+E18+E22 -> -3.630683745 | F24: -13.66703573 | G24: -13.99647402 | H24: -30.62192761 | I24: -33.00307413 | J24: -30.36266089 | K24: -37.9720351 | L24: -41.35987091 | N24: =N16+N18+N22 -> -204.5819982 | P24: =P16+P18+P22 -> -128.6858854
B26: 1 | C26: =TEXT(Price/1000,"$0")&" MM acquisition value includes "&TEXT(Control!I21/1000,"$0")&" MM equity price and "&TEXT(Control!I19/1000,"$0")&" MM of acquired debt" -> $451 MM acquisition value includes $233 MM equity price and $218 MM of acquired debt
B27: =B26+1 -> 2 | C27: ="Discount Factor is based on weighted average cost of capital of "&TEXT(Control!$D$28,"0.00%")&" discounted to January 1, 2017" -> Discount Factor is based on weighted average cost of capital of 8.15% discounted to January 1, 2017
B28: 3 | C28: Reflects amortization of regulatory asset
B29: 4 | C29: Operating Expenses include operations and maintenance and expensed portion of rail lease. Estimates of Net Working Capital are not reflected in the model.
B30: 5 | C30: Reflects amortization of ARO Asset and accretion of ARO Liability
B31: 6 | C31: ="Interest expense assumes "&TEXT('LTD Schedule'!D181,"0.00%")&" market rate on acquired debt and "&TEXT(Control!$D$25,"0.00%")&" on incremental FPL debt, and 40.4% debt to capital ratio" -> Interest expense assumes 2.90% market rate on acquired debt and 5.21% on incremental FPL debt, and 40.4% debt to capital ratio
B32: 7 | C32: Assumes after-tax return on equity of 11.5% and 59.6% equity to capital ratio
B33: 8 | C33: Includes incremental system fuel costs, start-up costs, variable O&M, environmental compliance costs, and short-term purchases
B34: 9 | C34: Present value is calculated as the sum the annual values multiplied by the respective discount factor

Sheet Ex_Economics (wo system impact) (hidden)
T1: =VBA_TerminationDate -> 2020-12-31
C2: =Control!C4 -> Indiantown Cogeneration, LP
C3: Indiantown Cogeneration $451 MM Enterprise Value
C4: Results of FPL's Economic Evaluation(1)
C6: (dollars in millions) | D6: 2016 | E6: =D6+1 -> 2017 | F6: 2018 | G6: 2019 | H6: 2020 | I6: 2021 | J6: 2022 | K6: 2023 | L6: 2024 | M6: 2025 | O6: Nominal Total | Q6: Present Value(9)
B8: A | C8: Discount Factor(2) | D8: =SUMIF(RevReq!$K$3:$AO$3,D$6,RevReq!$K$5:$AO$5) -> 1.000214641 | E8: =SUMIF(RevReq!$K$3:$AO$3,E$6,RevReq!$K$5:$AO$5) -> 0.9621054002 | F8: =SUMIF(RevReq!$K$3:$AO$3,F$6,RevReq!$K$5:$AO$5) -> 0.8896146363 | G8: =SUMIF(RevReq!$K$3:$AO$3,G$6,RevReq!$K$5:$AO$5) -> 0.8225857592 | H8: =SUMIF(RevReq!$K$3:$AO$3,H$6,RevReq!$K$5:$AO$5) -> 0.7604440153 | I8: =SUMIF(RevReq!$K$3:$AO$3,I$6,RevReq!$K$5:$AO$5) -> 0.7031476239 | J8: =SUMIF(RevReq!$K$3:$AO$3,J$6,RevReq!$K$5:$AO$5) -> 0.6501682846 | K8: =SUMIF(RevReq!$K$3:$AO$3,K$6,RevReq!$K$5:$AO$5) -> 0.601180725 | L8: =SUMIF(RevReq!$K$3:$AO$3,L$6,RevReq!$K$5:$AO$5) -> 0.5557648905 | M8: =SUMIF(RevReq!$K$3:$AO$3,M$6,RevReq!$K$5:$AO$5) -> 0.5138902462
B10: B | C10: Amortization(3) | D10: =SUM(RevReq!K36:K37)/1000 -> 0 | E10: =SUM(RevReq!L36:L37)/1000 -> 50.16666667 | F10: =SUM(RevReq!M36:M37)/1000 -> 50.16666667 | G10: =SUM(RevReq!N36:N37)/1000 -> 50.16666667 | H10: =SUM(RevReq!O36:O37)/1000 -> 50.16666667 | I10: =SUM(RevReq!P36:P37)/1000 -> 50.16666667 | J10: =SUM(RevReq!Q36:Q37)/1000 -> 50.16666667 | K10: =SUM(RevReq!R36:R37)/1000 -> 50.16666667 | L10: =SUM(RevReq!S36:S37)/1000 -> 50.16666667 | M10: =SUM(RevReq!T36:T37)/1000 -> 50.16666667 | O10: =SUM(D10:M10) -> 451.5 | Q10: =SUMPRODUCT($D$8:$M$8,D10:M10) -> 324.0215627
B11: C | C11: Operating Expenses(4) | D11: =SUM(RevReq!K38:K38)/1000 -> 0 | E11: =SUM(RevReq!L38:L38)/1000 -> 10.76874436 | F11: =SUM(RevReq!M38:M38)/1000 -> 13.195424 | G11: =SUM(RevReq!N38:N38)/1000 -> 2.195424 | H11: =SUM(RevReq!O38:O38)/1000 -> 2.195424 | I11: =SUM(RevReq!P38:P38)/1000 -> 1.195424 | J11: =SUM(RevReq!Q38:Q38)/1000 -> 1.195424 | K11: =SUM(RevReq!R38:R38)/1000 -> 1.195424 | L11: =SUM(RevReq!S38:S38)/1000 -> 1.195424 | M11: =SUM(RevReq!T38:T38)/1000 -> 1.195424 | O11: 34.33213636 | Q11: 29.19007459
B12: D | C12: Asset Retirement Obligation(5) | D12: =SUM(RevReq!K39:K40)/1000 -> 0 | E12: =SUM(RevReq!L39:L40)/1000 -> 2.685632495 | F12: =SUM(RevReq!M39:M40)/1000 -> 2.689682133 | G12: =SUM(RevReq!N39:N40)/1000 -> 2.69381351 | H12: =SUM(RevReq!O39:O40)/1000 -> 2.698028276 | I12: =SUM(RevReq!P39:P40)/1000 -> 0 | J12: =SUM(RevReq!Q39:Q40)/1000 -> 0 | K12: =SUM(RevReq!R39:R40)/1000 -> 0 | L12: =SUM(RevReq!S39:S40)/1000 -> 0 | M12: =SUM(RevReq!T39:T40)/1000 -> 0 | O12: 10.76715641 | Q12: 9.244234207
B13: E | C13: Interest Expense(6) | D13: =SUM(RevReq!K41:K42)/1000 -> 0 | E13: =SUM(RevReq!L41:L42)/1000 -> 4.000891128 | F13: =SUM(RevReq!M41:M42)/1000 -> 3.693476184 | G13: =SUM(RevReq!N41:N42)/1000 -> 3.395808586 | H13: =SUM(RevReq!O41:O42)/1000 -> 1.337716773 | I13: =SUM(RevReq!P41:P42)/1000 -> 2.832647309 | J13: =SUM(RevReq!Q41:Q42)/1000 -> 2.197287165 | K13: =SUM(RevReq!R41:R42)/1000 -> 1.56192702 | L13: =SUM(RevReq!S41:S42)/1000 -> 0.9265668751 | M13: =SUM(RevReq!T41:T42)/1000 -> 0.2912067304 | O13: 20.23752777 | Q13: 15.96962964
B14: F | C14: Return on Equity(7) | D14: =SUM(RevReq!K43)/1000 -> 0 | E14: =SUM(RevReq!L43)/1000 -> 29.46287268 | F14: =SUM(RevReq!M43)/1000 -> 26.54915759 | G14: =SUM(RevReq!N43)/1000 -> 23.48344292 | H14: =SUM(RevReq!O43)/1000 -> 19.74822859 | I14: =SUM(RevReq!P43)/1000 -> 9.231627631 | J14: =SUM(RevReq!Q43)/1000 -> 7.160982179 | K14: =SUM(RevReq!R43)/1000 -> 5.090336727 | L14: =SUM(RevReq!S43)/1000 -> 3.019691275 | M14: =SUM(RevReq!T43)/1000 -> 0.9490458235 | O14: 124.6953854 | Q14: 102.6726727
B15: G | C15: Income Tax | D15: =SUM(RevReq!K44)/1000 -> 0 | E15: =SUM(RevReq!L44)/1000 -> 18.50273201 | F15: =SUM(RevReq!M44)/1000 -> 16.67291419 | G15: =SUM(RevReq!N44)/1000 -> 14.74764039 | H15: =SUM(RevReq!O44)/1000 -> 12.4019197 | I15: =SUM(RevReq!P44)/1000 -> 5.797477181 | J15: =SUM(RevReq!Q44)/1000 -> 4.497108467 | K15: =SUM(RevReq!R44)/1000 -> 3.196739752 | L15: =SUM(RevReq!S44)/1000 -> 1.896371037 | M15: =SUM(RevReq!T44)/1000 -> 0.5960023222 | O15: 78.30890505 | Q15: 64.4786056
B16: H | C16: Cost of Transaction | D16: =SUM(D10:D15) -> 0 | E16: =SUM(E10:E15) -> 115.5875393 | F16: 112.9673208 | G16: 96.68279607 | H16: 88.54798401 | I16: 69.22384279 | J16: 65.21746848 | K16: 61.21109417 | L16: 57.20471985 | M16: 53.19834554 | O16: 719.841111 | Q16: 545.5767794
B18: I | C18: Capacity Payment and Bonus | D18: =SUM(RevReq!K51,RevReq!K53)/1000 -> 0 | E18: =SUM(RevReq!L51,RevReq!L53)/1000 -> -56.8753614 | F18: =SUM(RevReq!M51,RevReq!M53)/1000 -> -55.72858223 | G18: =SUM(RevReq!N51,RevReq!N53)/1000 -> -54.62682107 | H18: =SUM(RevReq!O51,RevReq!O53)/1000 -> -53.48298709 | I18: =SUM(RevReq!P51,RevReq!P53)/1000 -> -52.34067004 | J18: =SUM(RevReq!Q51,RevReq!Q53)/1000 -> -51.15634024 | K18: =SUM(RevReq!R51,RevReq!R53)/1000 -> -50.10426864 | L18: =SUM(RevReq!S51,RevReq!S53)/1000 -> -48.96668681 | M18: =SUM(RevReq!T51,RevReq!T53)/1000 -> -47.83074695 | O18: =SUM(D18:M18) -> -471.1124645 | Q18: =SUMPRODUCT($D$8:$M$8,D18:M18) -> -341.8820053
B19: J | C19: O&M Payment | D19: =RevReq!K52/1000 -> 0 | E19: =RevReq!L52/1000 -> -36.450414 | F19: =RevReq!M52/1000 -> -37.17942228 | G19: =RevReq!N52/1000 -> -37.92301073 | H19: =RevReq!O52/1000 -> -38.68147094 | I19: =RevReq!P52/1000 -> -39.45510036 | J19: =RevReq!Q52/1000 -> -40.24420237 | K19: =RevReq!R52/1000 -> -41.04908641 | L19: =RevReq!S52/1000 -> -41.87006814 | M19: =RevReq!T52/1000 -> -42.7074695 | O19: =SUM(D19:M19) -> -355.5602447 | Q19: =SUMPRODUCT($D$8:$M$8,D19:M19) -> -252.5575695
B20: K | C20: Total Avoided Costs of PPA | D20: =SUM(D18:D19) -> 0 | E20: -93.3257754 | F20: -92.90800451 | G20: -92.5498318 | H20: -92.16445803 | I20: -91.79577039 | J20: -91.4005426 | K20: -91.15335505 | L20: -90.83675496 | M20: -90.53821645 | O20: -826.6727092 | Q20: -594.4395747
B22: L | C22: Net Customer Costs/(Savings) | D22: =D16+D20 -> 0 | E22: =E16+E20 -> 22.26176395 | F22: 20.05931626 | G22: 4.132964271 | H22: -3.616474025 | I22: -22.57192761 | J22: -26.18307413 | K22: -29.94226089 | L22: -33.6320351 | M22: -37.33987091 | O22: -106.8315982 | Q22: -48.86279536
B24: 1 | C24: =TEXT(Price/1000,"$0")&" MM acquisition value includes "&TEXT(Control!I21/1000,"$0")&" MM equity price and "&TEXT(Control!I19/1000,"$0")&" MM of acquired debt" -> $451 MM acquisition value includes $233 MM equity price and $218 MM of acquired debt
B25: =B24+1 -> 2 | C25: ="Discount Factor is based on weighted average cost of capital of "&TEXT(Control!$D$28,"0.00%")&" discounted to January 1, 2017" -> Discount Factor is based on weighted average cost of capital of 8.15% discounted to January 1, 2017
B26: 3 | C26: Reflects amortization of regulatory asset
B27: 4 | C27: Operating Expenses include operations and maintenance, land lease, rail lease, and change in net working capital
B28: 5 | C28: Reflects amortization of ARO Asset and accretion of ARO Liability
B29: 6 | C29: Interest expense assumes 3.1% market rate on acquired debt and 5.05% on incremental FPL debt, and 40.4% debt to capital ratio
B30: 7 | C30: Assumes after-tax return on equity of 11.5% and 59.6% equity to capital ratio
B31: 8 | C31: Includes incremental system fuel costs, start-up costs, variable O&M, environmental compliance costs, and short-term purchases
B32: 9 | C32: Present value is calculated as the sum the annual values multiplied by the respective discount factor

Sheet Ex_FuelCO2_matrix
B1: FPL 001176 Indiantown Cogen | O1: =VBA_TerminationDate -> 2020-12-31
C3: ="Indiantown Cogeneration "&TEXT((Price)/1000,"$0")&" MM Enterprise Value" -> Indiantown Cogeneration $451 MM Enterprise Value
D4: Fuel and CO2 Sensitivities
D6: Net Customer Costs/(Savings)
E8: Low Fuel | F8: Base Fuel | G8: High Fuel
D9: Low CO2 | E9: -150.7962443 | F9: -128.8523151 | G9: -101.0163071 | O9: =RevReq!H60/1000 -> -128.6858854
D10: Base CO2 | E10: -150.4991174 | F10: -128.6858854 | G10: -100.7011443
D11: High CO2 | E11: -150.1555705 | F11: -128.4266155 | G11: -100.2931413

Sheet Control
A1: FPL 001177 Indiantown Cogen | B1: CONTROL
B3: Global Assumptions | F3: Summary
B4: Project | C4: Indiantown Cogeneration, LP
F5: CPVRR (Favorable) / Unfavorable | I5: CPVRR
B6: Capacity (MW) | C6: 330 | F6: Status Quo Cost to Customers | I6: =RevReq!H54 -> -594439.5747
B7: Buyout Date | C7: 2017-01-01 | F7: Reg. Asset | I7: =RevReq!H46 -> 545576.7794
B8: Contract Termination Date | C8: 2025-12-31 | F8: Subtotal, excl System Impact | I8: =SUM(I6:I7) -> -48862.79536
B9: Plant Termination Date | C9: 2020-12-31 | D9: << changes Decomm./Hold Case | F9: System Costs | I9: =RevReq!$H$57 -> -79823.09004
B10: Remaining Amortization Term (Months) | C10: =ROUND(YEARFRAC(C8,C7)*12,0) -> 108 | F10: TOTAL CPVRR | I10: =RevReq!H60 -> -128685.8854
B11: Remaining PPA Term (Years) | C11: =YEARFRAC(C7,C8) -> 9 | F11: check | I11: =ROUND(I10-SUM(I6:I7,I9),0) -> 0
B12: Remaining Plant Operations (Months) | C12: =ROUNDUP(YEARFRAC(C9,C7)*12,0) -> 48
B13: Remaining Plant Operations (Years) | C13: =YEARFRAC(C7,C9) -> 4 | F13: Equity Value | I13: =RevReq!H43 -> 102672.6727
F14: CPVRR vs equity value | I14: =I10+I13 -> -26013.2127
B15: Structure | C15: Equity Step-up
B16: Assume Existing Debt | C16: TRUE
B17: Tax Exempt Bond 1 Early Payoff Date | C17: None
B18: Tax Exempt Bond 2 Early Payoff Date | C18: None | F18: Enterprise Value ($000) | I18: 451000
F19: Acquired Debt ($000) | I19: ='LTD Schedule'!$G$170*($C$16=TRUE) -> 217761.7988 | J19: ='LTD Schedule'!D181 -> 0.029
B20: Blended Income Tax Rate | C20: 0.38575
F21: Equity Price ($000) | I21: =I18-I19 -> 233238.2012
F23: Land Asset | I23: 8500
B24: Cost of Capital | C24: Target Ratio | D24: Cost | F24: Net Working Capital ($000) | I24: 0
B25: Debt | C25: 0.4038 | D25: 0.0521 | F25: Rail Car Lease Liability | I25: 9000
B26: Equity | C26: 0.5962 | D26: 0.115
B28: Weighted Average Cost of Capital | D28: =C26*D26+C25*D25*(1-C20) -> 0.08148557921 | F28: Decommissioning Cost | I28: =9940*(1+0.02/12)^C12 -> 10767.15641
D29: =D28/(1-C20) -> 0.1326586556
F30: Asset Retirement Obligation ($000) | I30: =(I28)*(1+$I$31/12)^-C12 -> 9940 | J30: =MonthlyBalances!I54 -> 10767.15641
F31: ARO Accretion Rate | I31: =ROUND(AVERAGE(2.27%,1.72%),4) -> 0.02
B35: Annual Inputs
N37: System Impact ($000)
A38: Year | B38: Capacity Payment ($/MW-mo) | C38: Maximum Capacity Bonus | D38: O&M (escalated at 2.0%) | E38: Total ($/kW-Mo) | G38: Months of Operation | I38: Capacity Payment ($000/year) | J38: O&M (estimate) ($000/year) | K38: Capacity Bonus at 98% C.F. | L38: Maximum Capacity& O&M Payment ($) | N38: Base Case | P38: Low Fuel Low CO2 | Q38: Low Fuel Base CO2 | R38: Low Fuel High CO2 | S38: Base Fuel Low CO2 | T38: Base Case | U38: Base Fuel High CO2 | V38: High Fuel Low CO2 | W38: High Fuel Base CO2 | X38: High Fuel High CO2
A39: 2016 | B39: 12500 | C39: =0.1*(B39+D39) -> 2152.416667 | D39: 9024.166667 | E39: =(B39+C39+D39)/1000 -> 23.67658333 | G39: =B58 -> 0 | I39: =330*$G39*B39/1000 -> 0 | J39: =330*$G39*D39/1000 -> 0 | K39: =IFERROR(330*$G39*C39/1000,0) -> 0 | L39: =SUM(I39:K39) -> 0
A40: =A39+1 -> 2017 | B40: 12220 | C40: =0.1*(B40+D40) -> 2142.465 | D40: =1.02*D39 -> 9204.65 | E40: =(B40+C40+D40)/1000 -> 23.567115 | G40: 12 | I40: =330*$G40*B40/1000 -> 48391.2 | J40: =330*$G40*D40/1000 -> 36450.414 | K40: =IFERROR(330*$G40*C40/1000,0) -> 8484.1614 | L40: =SUM(I40:K40) -> 93325.7754 | N40: =INDEX(P40:X40,1,MATCH($N$38,$P$38:$X$38,0)) -> -22230 | P40: =-SystemImpact!H60*1000 -> -23930 | Q40: =-SystemImpact!H30*1000 -> -23930 | R40: =-SystemImpact!H75*1000 -> -23930 | S40: =-SystemImpact!H45*1000 -> -22230 | T40: =-SystemImpact!H11*1000 -> -22230 | U40: =-SystemImpact!P45*1000 -> -22230 | V40: =-SystemImpact!P75*1000 -> -17610 | W40: =-SystemImpact!P30*1000 -> -17610 | X40: =-SystemImpact!P60*1000 -> -17610
A41: =A40+1 -> 2018 | B41: 11940 | C41: 2132.8743 | D41: =1.02*D40 -> 9388.743 | E41: 23.4616173 | G41: 12 | I41: 47282.4 | J41: 37179.42228 | K41: 8446.182228 | L41: 92908.00451 | N41: -23690 | P41: =-SystemImpact!H61*1000 -> -26410 | Q41: =-SystemImpact!H31*1000 -> -26410 | R41: =-SystemImpact!H76*1000 -> -26410 | S41: =-SystemImpact!H46*1000 -> -23690 | T41: =-SystemImpact!H12*1000 -> -23690 | U41: =-SystemImpact!P46*1000 -> -23690 | V41: =-SystemImpact!P76*1000 -> -18400 | W41: =-SystemImpact!P31*1000 -> -18400 | X41: =-SystemImpact!P61*1000 -> -18400
A42: 2019 | B42: 11670 | C42: 2124.651786 | D42: 9576.51786 | E42: 23.37116965 | G42: 12 | I42: 46213.2 | J42: 37923.01073 | K42: 8413.621073 | L42: 92549.8318 | N42: -17800 | P42: =-SystemImpact!H62*1000 -> -22580 | Q42: =-SystemImpact!H32*1000 -> -22580 | R42: =-SystemImpact!H77*1000 -> -22580 | S42: =-SystemImpact!H47*1000 -> -17800 | T42: =-SystemImpact!H13*1000 -> -17800 | U42: =-SystemImpact!P47*1000 -> -17800 | V42: =-SystemImpact!P77*1000 -> -12930 | W42: =-SystemImpact!P32*1000 -> -12930 | X42: =-SystemImpact!P62*1000 -> -12930
A43: 2020 | B43: 11390 | C43: 2115.804822 | D43: 9768.048217 | E43: 23.27385304 | G43: 12 | I43: 45104.4 | J43: 38681.47094 | K43: 8378.587094 | L43: 92164.45803 | N43: -10380 | P43: =-SystemImpact!H63*1000 -> -12830 | Q43: =-SystemImpact!H33*1000 -> -12830 | R43: =-SystemImpact!H78*1000 -> -12830 | S43: =-SystemImpact!H48*1000 -> -10380 | T43: =-SystemImpact!H14*1000 -> -10380 | U43: =-SystemImpact!P48*1000 -> -10380 | V43: =-SystemImpact!P78*1000 -> -6720 | W43: =-SystemImpact!P33*1000 -> -6720 | X43: =-SystemImpact!P63*1000 -> -6720
A44: 2021 | B44: 11110 | C44: 2107.340918 | D44: 9963.409182 | E44: 23.1807501 | G44: 12 | I44: 43995.6 | J44: 39455.10036 | K44: 8345.070036 | L44: 91795.77039 | N44: -8050 | P44: =-SystemImpact!H64*1000 -> -11840 | Q44: =-SystemImpact!H34*1000 -> -11840 | R44: =-SystemImpact!H79*1000 -> -11840 | S44: =-SystemImpact!H49*1000 -> -8050 | T44: =-SystemImpact!H15*1000 -> -8050 | U44: =-SystemImpact!P49*1000 -> -8050 | V44: =-SystemImpact!P79*1000 -> -4520 | W44: =-SystemImpact!P34*1000 -> -4520 | X44: =-SystemImpact!P64*1000 -> -4520
A45: 2022 | B45: 10820 | C45: 2098.267737 | D45: 10162.67737 | E45: 23.0809451 | G45: 12 | I45: 42847.2 | J45: 40244.20237 | K45: 8309.140237 | L45: 91400.5426 | N45: -6820 | P45: =-SystemImpact!H65*1000 -> -10392 | Q45: =-SystemImpact!H35*1000 -> -10350 | R45: =-SystemImpact!H80*1000 -> -10288 | S45: =-SystemImpact!H50*1000 -> -6824 | T45: =-SystemImpact!H16*1000 -> -6820 | U45: =-SystemImpact!P50*1000 -> -6776 | V45: =-SystemImpact!P80*1000 -> -2272 | W45: =-SystemImpact!P35*1000 -> -2230 | X45: =-SystemImpact!P65*1000 -> -2148
A46: 2023 | B46: 10560 | C46: 2092.593091 | D46: 10365.93091 | E46: 23.018524 | G46: 12 | I46: 41817.6 | J46: 41049.08641 | K46: 8286.668641 | L46: 91153.35505 | N46: -420.4 | P46: =-SystemImpact!H66*1000 -> -4864.4 | Q46: =-SystemImpact!H36*1000 -> -4720.4 | R46: =-SystemImpact!H81*1000 -> -4556.4 | S46: =-SystemImpact!H51*1000 -> -476.4 | T46: =-SystemImpact!H17*1000 -> -420.4 | U46: =-SystemImpact!P51*1000 -> -324.4 | V46: =-SystemImpact!P81*1000 -> 3525.6 | W46: =-SystemImpact!P36*1000 -> 3639.6 | X46: =-SystemImpact!P66*1000 -> 3793.6
A47: 2024 | B47: 10280 | C47: 2085.324953 | D47: 10573.24953 | E47: 22.93857448 | G47: 12 | I47: 40708.8 | J47: 41870.06814 | K47: 8257.886814 | L47: 90836.75496 | N47: -4340 | P47: =-SystemImpact!H67*1000 -> -8970 | Q47: =-SystemImpact!H37*1000 -> -8840 | R47: =-SystemImpact!H82*1000 -> -8690 | S47: =-SystemImpact!H52*1000 -> -4454 | T47: =-SystemImpact!H18*1000 -> -4340 | U47: =-SystemImpact!P52*1000 -> -4186 | V47: =-SystemImpact!P82*1000 -> -606 | W47: =-SystemImpact!P37*1000 -> -400 | X47: =-SystemImpact!P67*1000 -> -154
A48: 2025 | B48: 10000 | C48: 2078.471452 | D48: 10784.71452 | E48: 22.86318597 | G48: 12 | I48: 39600 | J48: 42707.4695 | K48: 8230.74695 | L48: 90538.21645 | N48: -4020 | P48: =-SystemImpact!H68*1000 -> -7966 | Q48: =-SystemImpact!H38*1000 -> -7750 | R48: =-SystemImpact!H83*1000 -> -7514 | S48: =-SystemImpact!H53*1000 -> -4150 | T48: =-SystemImpact!H19*1000 -> -4020 | U48: =-SystemImpact!P53*1000 -> -3850 | V48: =-SystemImpact!P83*1000 -> -434 | W48: =-SystemImpact!P38*1000 -> -230 | X48: =-SystemImpact!P68*1000 -> 14
B56: Months of Operation after Purchase
A57: Year | C57: O&M ($000) | D57: Rail Lease ($000) | E57: Total Incre. O&M ($000)
A58: =A39 -> 2016 | B58: 0 | C58: =760*B58/12 -> 0 | D58: 0 | E58: =SUM(C58:D58) -> 0
A59: =A58+1 -> 2017 | B59: =ROUNDUP(YEARFRAC(C7,MIN(DATE(A59,12,31),C9))*12,0) -> 12 | C59: 9573.320364 | D59: =2195.424 -> 2195.424 | E59: 11768.74436
A60: =A59+1 -> 2018 | B60: =MIN(12,$C$12-SUM(B$58:B59)) -> 12 | C60: 12000 | D60: =2195.424 -> 2195.424 | E60: 14195.424
A61: 2019 | B61: =MIN(12,$C$12-SUM(B$58:B60)) -> 12 | C61: =1000*B61/12 -> 1000 | D61: 2195.424 | E61: 3195.424
A62: 2020 | B62: =MIN(12,$C$12-SUM(B$58:B61)) -> 12 | C62: =1000*B62/12 -> 1000 | D62: 2195.424 | E62: 3195.424
A63: 2021 | B63: =MIN(12,$C$12-SUM(B$58:B62)) -> 0 | C63: =C$55*B63/12 -> 0 | D63: 2195.424 | E63: 2195.424
A64: =A63+1 -> 2022 | B64: =MIN(12,$C$12-SUM(B$58:B63)) -> 0 | C64: 0 | D64: 2195.424 | E64: 2195.424
A65: 2023 | B65: =MIN(12,$C$12-SUM(B$58:B64)) -> 0 | C65: 0 | D65: 2195.424 | E65: 2195.424
A66: 2024 | B66: =MIN(12,$C$12-SUM(B$58:B65)) -> 0 | C66: 0 | D66: 2195.424 | E66: 2195.424
A67: =A66+1 -> 2025 | B67: =MIN(12,$C$12-SUM(B$58:B66)) -> 0 | C67: 0 | D67: 2195.424 | E67: 2195.424
A68: =A67+1 -> 2026 | B68: =MIN(12,$C$12-SUM(B$58:B67)) -> 0 | C68: 0 | D68: 0 | E68: 0
A69: =A68+1 -> 2027 | B69: =MIN(12,$C$12-SUM(B$58:B68)) -> 0 | C69: =J50*B69/12 -> 0 | D69: 0 | E69: 0
C74: 20-yr MACRS
B75: =YEAR(C7) -> 2017 | C75: 0.0375
B76: =B75+1 -> 2018 | C76: 0.07219
B77: =B76+1 -> 2019 | C77: 0.06677
B78: 2020 | C78: 0.06177
B79: 2021 | C79: 0.05713
B80: 2022 | C80: 0.05285
B81: 2023 | C81: 0.04888
B82: 2024 | C82: 0.04522
B83: 2025 | C83: 0.04462
B84: 2026 | C84: 0.04461
B85: 2027 | C85: 0.04462
B86: 2028 | C86: 0.04461
B87: 2029 | C87: 0.04462
B88: 2030 | C88: 0.04461
B89: 2031 | C89: 0.04462
B90: 2032 | C90: 0.04461
B91: 2033 | C91: 0.04462
B92: 2034 | C92: 0.04461
B93: 2035 | C93: 0.04462
B94: 2036 | C94: 0.04461
B95: 2037 | C95: 0.02231
B96: 2038
B97: 2039
B98: 2040
B99: 2041
B100: 2042
B101: 2043
B102: 2044
B103: 2045
B104: 2046
B105: 2047
B106: 2048
B107: 2049
B108: 2050

Sheet RevReq
D1: REVENUE REQUIREMENT ($000) | H1: =H60 -> -128685.8854
A2: FPL 001178 Indiantown Cogen | D2: =Control!$C$15 -> Equity Step-up | K2: 0 | L2: =K2+1 -> 1 | M2: =L2+1 -> 2 | N2: 3 | O2: 4 | P2: 5 | Q2: 6 | R2: 7 | S2: 8 | T2: 9 | U2: 10 | V2: 11 | W2: 12 | X2: 13 | Y2: 14 | Z2: 15 | AA2: 16 | AB2: 17 | AC2: 18 | AD2: 19 | AE2: 20 | AF2: 21 | AG2: 22 | AH2: 23 | AI2: 24 | AJ2: 25 | AK2: 26 | AL2: 27 | AM2: 28 | AN2: 29 | AO2: 30
D3: Year | F3: Input | H3: PV | I3: Sum | K3: 2016 | L3: =K3+1 -> 2017 | M3: 2018 | N3: 2019 | O3: 2020 | P3: 2021 | Q3: 2022 | R3: 2023 | S3: 2024 | T3: 2025 | U3: 2026 | V3: 2027 | W3: 2028 | X3: 2029 | Y3: 2030 | Z3: 2031 | AA3: 2032 | AB3: 2033 | AC3: 2034 | AD3: 2035 | AE3: 2036 | AF3: 2037 | AG3: 2038 | AH3: 2039 | AI3: 2040 | AJ3: 2041 | AK3: 2042 | AL3: 2043 | AM3: 2044 | AN3: 2045 | AO3: 2046
D4: Discount Date | F4: =Control!C7 -> 2017-01-01 | K4: =DATE(K3,12,31) -> 2016-12-31 | L4: =DATE(L3,6,30) -> 2017-06-30 | M4: =DATE(M3,6,30) -> 2018-06-30 | N4: =DATE(N3,6,30) -> 2019-06-30 | O4: 2020-06-30 | P4: 2021-06-30 | Q4: 2022-06-30 | R4: 2023-06-30 | S4: 2024-06-30 | T4: 2025-06-30 | U4: 2026-06-30 | V4: 2027-06-30 | W4: 2028-06-30 | X4: 2029-06-30 | Y4: 2030-06-30 | Z4: 2031-06-30 | AA4: 2032-06-30 | AB4: 2033-06-30 | AC4: 2034-06-30 | AD4: 2035-06-30 | AE4: 2036-06-30 | AF4: 2037-06-30 | AG4: 2038-06-30 | AH4: 2039-06-30 | AI4: 2040-06-30 | AJ4: 2041-06-30 | AK4: 2042-06-30 | AL4: 2043-06-30 | AM4: 2044-06-30 | AN4: 2045-06-30 | AO4: 2046-06-30
D5: Discount Factor | F5: =Control!$D$28 -> 0.08148557921 | K5: =(1+$F5)^(($F4-K4)/365) -> 1.000214641 | L5: 0.9621054002 | M5: 0.8896146363 | N5: 0.8225857592 | O5: 0.7604440153 | P5: 0.7031476239 | Q5: 0.6501682846 | R5: 0.601180725 | S5: 0.5557648905 | T5: 0.5138902462 | U5: 0.4751706875 | V5: 0.4393684915 | W5: 0.4061766644 | X5: 0.3755728899 | Y5: 0.3472749865 | Z5: 0.321109216 | AA5: 0.2968512144 | AB5: 0.2744846719 | AC5: 0.2538033583 | AD5: 0.2346802982 | AE5: 0.216951517 | AF5: 0.2006050946 | AG5: 0.1854903093 | AH5: 0.1715143622 | AI5: 0.1585574134 | AJ5: 0.1466107514 | AK5: 0.1355642222 | AL5: 0.1253500045 | AM5: 0.1158805142 | AN5: 0.1071493845 | AO5: 0.09907611028
D7: RATE BASE of INCREMENTAL INVESTMENT
D9: Average Rate Base | K9: =ROUND(SUMIF(MonthlyBalances!$K$3:$EY$3,K$3,MonthlyBalances!$K$69:$EY$69)/12,3) -> 0 | L9: =ROUND(SUMIF(MonthlyBalances!$K$3:$EY$3,L$3,MonthlyBalances!$K$69:$EY$69)/12,3) -> 429719.713 | M9: =ROUND(SUMIF(MonthlyBalances!$K$3:$EY$3,M$3,MonthlyBalances!$K$69:$EY$69)/12,3) -> 387222.811 | N9: =ROUND(SUMIF(MonthlyBalances!$K$3:$EY$3,N$3,MonthlyBalances!$K$69:$EY$69)/12,3) -> 342508.976 | O9: =ROUND(SUMIF(MonthlyBalances!$K$3:$EY$3,O$3,MonthlyBalances!$K$69:$EY$69)/12,3) -> 288030.404 | P9: =ROUND(SUMIF(MonthlyBalances!$K$3:$EY$3,P$3,MonthlyBalances!$K$69:$EY$69)/12,3) -> 134644.453 | Q9: =ROUND(SUMIF(MonthlyBalances!$K$3:$EY$3,Q$3,MonthlyBalances!$K$69:$EY$69)/12,3) -> 104443.828 | R9: =ROUND(SUMIF(MonthlyBalances!$K$3:$EY$3,R$3,MonthlyBalances!$K$69:$EY$69)/12,3) -> 74243.203 | S9: =ROUND(SUMIF(MonthlyBalances!$K$3:$EY$3,S$3,MonthlyBalances!$K$69:$EY$69)/12,3) -> 44042.578 | T9: =ROUND(SUMIF(MonthlyBalances!$K$3:$EY$3,T$3,MonthlyBalances!$K$69:$EY$69)/12,3) -> 13841.953 | U9: =ROUND(SUMIF(MonthlyBalances!$K$3:$EY$3,U$3,MonthlyBalances!$K$69:$EY$69)/12,3) -> 0 | V9: =ROUND(SUMIF(MonthlyBalances!$K$3:$EY$3,V$3,MonthlyBalances!$K$69:$EY$69)/12,3) -> 0 | W9: =ROUND(SUMIF(MonthlyBalances!$K$3:$EY$3,W$3,MonthlyBalances!$K$69:$EY$69)/12,3) -> 0 | X9: =ROUND(SUMIF(MonthlyBalances!$K$3:$EY$3,X$3,MonthlyBalances!$K$69:$EY$69)/12,3) -> 0 | Y9: =ROUND(SUMIF(MonthlyBalances!$K$3:$EY$3,Y$3,MonthlyBalances!$K$69:$EY$69)/12,3) -> 0 | Z9: =ROUND(SUMIF(MonthlyBalances!$K$3:$EY$3,Z$3,MonthlyBalances!$K$69:$EY$69)/12,3) -> 0 | AA9: =ROUND(SUMIF(MonthlyBalances!$K$3:$EY$3,AA$3,MonthlyBalances!$K$69:$EY$69)/12,3) -> 0 | AB9: =ROUND(SUMIF(MonthlyBalances!$K$3:$EY$3,AB$3,MonthlyBalances!$K$69:$EY$69)/12,3) -> 0 | AC9: =ROUND(SUMIF(MonthlyBalances!$K$3:$EY$3,AC$3,MonthlyBalances!$K$69:$EY$69)/12,3) -> 0 | AD9: =ROUND(SUMIF(MonthlyBalances!$K$3:$EY$3,AD$3,MonthlyBalances!$K$69:$EY$69)/12,3) -> 0 | AE9: =ROUND(SUMIF(MonthlyBalances!$K$3:$EY$3,AE$3,MonthlyBalances!$K$69:$EY$69)/12,3) -> 0 | AF9: =ROUND(SUMIF(MonthlyBalances!$K$3:$EY$3,AF$3,MonthlyBalances!$K$69:$EY$69)/12,3) -> 0 | AG9: =ROUND(SUMIF(MonthlyBalances!$K$3:$EY$3,AG$3,MonthlyBalances!$K$69:$EY$69)/12,3) -> 0 | AH9: =ROUND(SUMIF(MonthlyBalances!$K$3:$EY$3,AH$3,MonthlyBalances!$K$69:$EY$69)/12,3) -> 0 | AI9: =ROUND(SUMIF(MonthlyBalances!$K$3:$EY$3,AI$3,MonthlyBalances!$K$69:$EY$69)/12,3) -> 0 | AJ9: =ROUND(SUMIF(MonthlyBalances!$K$3:$EY$3,AJ$3,MonthlyBalances!$K$69:$EY$69)/12,3) -> 0 | AK9: =ROUND(SUMIF(MonthlyBalances!$K$3:$EY$3,AK$3,MonthlyBalances!$K$69:$EY$69)/12,3) -> 0 | AL9: =ROUND(SUMIF(MonthlyBalances!$K$3:$EY$3,AL$3,MonthlyBalances!$K$69:$EY$69)/12,3) -> 0 | AM9: =ROUND(SUMIF(MonthlyBalances!$K$3:$EY$3,AM$3,MonthlyBalances!$K$69:$EY$69)/12,3) -> 0 | AN9: =ROUND(SUMIF(MonthlyBalances!$K$3:$EY$3,AN$3,MonthlyBalances!$K$69:$EY$69)/12,3) -> 0 | AO9: =ROUND(SUMIF(MonthlyBalances!$K$3:$EY$3,AO$3,MonthlyBalances!$K$69:$EY$69)/12,3) -> 0
D11: Acquired Debt
D12: Acquired Debt | K12: =ROUND(SUMIF(MonthlyBalances!$K$3:$EY$3,K$3,MonthlyBalances!$K$96:$EY$96)/12,3) -> 0 | L12: =ROUND(SUMIF(MonthlyBalances!$K$3:$EY$3,L$3,MonthlyBalances!$K$96:$EY$96)/12,3) -> 210853.644 | M12: =ROUND(SUMIF(MonthlyBalances!$K$3:$EY$3,M$3,MonthlyBalances!$K$96:$EY$96)/12,3) -> 189151.827 | N12: =ROUND(SUMIF(MonthlyBalances!$K$3:$EY$3,N$3,MonthlyBalances!$K$96:$EY$96)/12,3) -> 165111.933 | O12: =ROUND(SUMIF(MonthlyBalances!$K$3:$EY$3,O$3,MonthlyBalances!$K$96:$EY$96)/12,3) -> 132219.474 | P12: =ROUND(SUMIF(MonthlyBalances!$K$3:$EY$3,P$3,MonthlyBalances!$K$96:$EY$96)/12,3) -> 0 | Q12: =ROUND(SUMIF(MonthlyBalances!$K$3:$EY$3,Q$3,MonthlyBalances!$K$96:$EY$96)/12,3) -> 0 | R12: =ROUND(SUMIF(MonthlyBalances!$K$3:$EY$3,R$3,MonthlyBalances!$K$96:$EY$96)/12,3) -> 0 | S12: =ROUND(SUMIF(MonthlyBalances!$K$3:$EY$3,S$3,MonthlyBalances!$K$96:$EY$96)/12,3) -> 0 | T12: =ROUND(SUMIF(MonthlyBalances!$K$3:$EY$3,T$3,MonthlyBalances!$K$96:$EY$96)/12,3) -> 0 | U12: =ROUND(SUMIF(MonthlyBalances!$K$3:$EY$3,U$3,MonthlyBalances!$K$96:$EY$96)/12,3) -> 0 | V12: =ROUND(SUMIF(MonthlyBalances!$K$3:$EY$3,V$3,MonthlyBalances!$K$96:$EY$96)/12,3) -> 0 | W12: =ROUND(SUMIF(MonthlyBalances!$K$3:$EY$3,W$3,MonthlyBalances!$K$96:$EY$96)/12,3) -> 0 | X12: =ROUND(SUMIF(MonthlyBalances!$K$3:$EY$3,X$3,MonthlyBalances!$K$96:$EY$96)/12,3) -> 0 | Y12: =ROUND(SUMIF(MonthlyBalances!$K$3:$EY$3,Y$3,MonthlyBalances!$K$96:$EY$96)/12,3) -> 0 | Z12: =ROUND(SUMIF(MonthlyBalances!$K$3:$EY$3,Z$3,MonthlyBalances!$K$96:$EY$96)/12,3) -> 0 | AA12: =ROUND(SUMIF(MonthlyBalances!$K$3:$EY$3,AA$3,MonthlyBalances!$K$96:$EY$96)/12,3) -> 0 | AB12: =ROUND(SUMIF(MonthlyBalances!$K$3:$EY$3,AB$3,MonthlyBalances!$K$96:$EY$96)/12,3) -> 0 | AC12: =ROUND(SUMIF(MonthlyBalances!$K$3:$EY$3,AC$3,MonthlyBalances!$K$96:$EY$96)/12,3) -> 0 | AD12: =ROUND(SUMIF(MonthlyBalances!$K$3:$EY$3,AD$3,MonthlyBalances!$K$96:$EY$96)/12,3) -> 0 | AE12: =ROUND(SUMIF(MonthlyBalances!$K$3:$EY$3,AE$3,MonthlyBalances!$K$96:$EY$96)/12,3) -> 0 | AF12: =ROUND(SUMIF(MonthlyBalances!$K$3:$EY$3,AF$3,MonthlyBalances!$K$96:$EY$96)/12,3) -> 0 | AG12: =ROUND(SUMIF(MonthlyBalances!$K$3:$EY$3,AG$3,MonthlyBalances!$K$96:$EY$96)/12,3) -> 0 | AH12: =ROUND(SUMIF(MonthlyBalances!$K$3:$EY$3,AH$3,MonthlyBalances!$K$96:$EY$96)/12,3) -> 0 | AI12: =ROUND(SUMIF(MonthlyBalances!$K$3:$EY$3,AI$3,MonthlyBalances!$K$96:$EY$96)/12,3) -> 0 | AJ12: =ROUND(SUMIF(MonthlyBalances!$K$3:$EY$3,AJ$3,MonthlyBalances!$K$96:$EY$96)/12,3) -> 0 | AK12: =ROUND(SUMIF(MonthlyBalances!$K$3:$EY$3,AK$3,MonthlyBalances!$K$96:$EY$96)/12,3) -> 0 | AL12: =ROUND(SUMIF(MonthlyBalances!$K$3:$EY$3,AL$3,MonthlyBalances!$K$96:$EY$96)/12,3) -> 0 | AM12: =ROUND(SUMIF(MonthlyBalances!$K$3:$EY$3,AM$3,MonthlyBalances!$K$96:$EY$96)/12,3) -> 0 | AN12: =ROUND(SUMIF(MonthlyBalances!$K$3:$EY$3,AN$3,MonthlyBalances!$K$96:$EY$96)/12,3) -> 0 | AO12: =ROUND(SUMIF(MonthlyBalances!$K$3:$EY$3,AO$3,MonthlyBalances!$K$96:$EY$96)/12,3) -> 0
D13: Cost of Debt | F13: =Control!$D$25 -> 0.0521 | K13: =IFERROR(K14/K12,0) -> 0 | L13: =IFERROR(L14/L12,0) -> 0.02819932888 | M13: 0.02855854317 | N13: 0.02902542064 | O13: 0.01638770314 | P13: 0 | Q13: 0 | R13: 0 | S13: 0 | T13: 0 | U13: 0 | V13: =IFERROR(V14/V12,0) -> 0 | W13: =IFERROR(W14/W12,0) -> 0 | X13: =IFERROR(X14/X12,0) -> 0 | Y13: =IFERROR(Y14/Y12,0) -> 0 | Z13: 0 | AA13: 0 | AB13: 0 | AC13: 0 | AD13: 0 | AE13: 0 | AF13: 0 | AG13: 0 | AH13: 0 | AI13: 0 | AJ13: 0 | AK13: 0 | AL13: 0 | AM13: 0 | AN13: 0 | AO13: 0
D14: Interest Expense | H14: =SUMPRODUCT($K14:$AO14,$K$5:$AO$5) -> 16116.12797 | I14: =SUM(K14:AO14) -> 18307.04867 | K14: =SUMIF(MonthlyBalances!$K$3:$EY$3,K$3,MonthlyBalances!$K$99:$EY$99) -> 0 | L14: =SUMIF(MonthlyBalances!$K$3:$EY$3,L$3,MonthlyBalances!$K$99:$EY$99) -> 5945.931253 | M14: =SUMIF(MonthlyBalances!$K$3:$EY$3,M$3,MonthlyBalances!$K$99:$EY$99) -> 5401.900617 | N14: =SUMIF(MonthlyBalances!$K$3:$EY$3,N$3,MonthlyBalances!$K$99:$EY$99) -> 4792.443308 | O14: =SUMIF(MonthlyBalances!$K$3:$EY$3,O$3,MonthlyBalances!$K$99:$EY$99) -> 2166.773489 | P14: =SUMIF(MonthlyBalances!$K$3:$EY$3,P$3,MonthlyBalances!$K$99:$EY$99) -> 0 | Q14: =SUMIF(MonthlyBalances!$K$3:$EY$3,Q$3,MonthlyBalances!$K$99:$EY$99) -> 0 | R14: =SUMIF(MonthlyBalances!$K$3:$EY$3,R$3,MonthlyBalances!$K$99:$EY$99) -> 0 | S14: =SUMIF(MonthlyBalances!$K$3:$EY$3,S$3,MonthlyBalances!$K$99:$EY$99) -> 0 | T14: =SUMIF(MonthlyBalances!$K$3:$EY$3,T$3,MonthlyBalances!$K$99:$EY$99) -> 0 | U14: =SUMIF(MonthlyBalances!$K$3:$EY$3,U$3,MonthlyBalances!$K$99:$EY$99) -> 0 | V14: =SUMIF(MonthlyBalances!$K$3:$EY$3,V$3,MonthlyBalances!$K$99:$EY$99) -> 0 | W14: =SUMIF(MonthlyBalances!$K$3:$EY$3,W$3,MonthlyBalances!$K$99:$EY$99) -> 0 | X14: =SUMIF(MonthlyBalances!$K$3:$EY$3,X$3,MonthlyBalances!$K$99:$EY$99) -> 0 | Y14: =SUMIF(MonthlyBalances!$K$3:$EY$3,Y$3,MonthlyBalances!$K$99:$EY$99) -> 0 | Z14: =SUMIF(MonthlyBalances!$K$3:$EY$3,Z$3,MonthlyBalances!$K$99:$EY$99) -> 0 | AA14: =SUMIF(MonthlyBalances!$K$3:$EY$3,AA$3,MonthlyBalances!$K$99:$EY$99) -> 0 | AB14: =SUMIF(MonthlyBalances!$K$3:$EY$3,AB$3,MonthlyBalances!$K$99:$EY$99) -> 0 | AC14: =SUMIF(MonthlyBalances!$K$3:$EY$3,AC$3,MonthlyBalances!$K$99:$EY$99) -> 0 | AD14: =SUMIF(MonthlyBalances!$K$3:$EY$3,AD$3,MonthlyBalances!$K$99:$EY$99) -> 0 | AE14: =SUMIF(MonthlyBalances!$K$3:$EY$3,AE$3,MonthlyBalances!$K$99:$EY$99) -> 0 | AF14: =SUMIF(MonthlyBalances!$K$3:$EY$3,AF$3,MonthlyBalances!$K$99:$EY$99) -> 0 | AG14: =SUMIF(MonthlyBalances!$K$3:$EY$3,AG$3,MonthlyBalances!$K$99:$EY$99) -> 0 | AH14: =SUMIF(MonthlyBalances!$K$3:$EY$3,AH$3,MonthlyBalances!$K$99:$EY$99) -> 0 | AI14: =SUMIF(MonthlyBalances!$K$3:$EY$3,AI$3,MonthlyBalances!$K$99:$EY$99) -> 0 | AJ14: =SUMIF(MonthlyBalances!$K$3:$EY$3,AJ$3,MonthlyBalances!$K$99:$EY$99) -> 0 | AK14: =SUMIF(MonthlyBalances!$K$3:$EY$3,AK$3,MonthlyBalances!$K$99:$EY$99) -> 0 | AL14: =SUMIF(MonthlyBalances!$K$3:$EY$3,AL$3,MonthlyBalances!$K$99:$EY$99) -> 0 | AM14: =SUMIF(MonthlyBalances!$K$3:$EY$3,AM$3,MonthlyBalances!$K$99:$EY$99) -> 0 | AN14: =SUMIF(MonthlyBalances!$K$3:$EY$3,AN$3,MonthlyBalances!$K$99:$EY$99) -> 0 | AO14: =SUMIF(MonthlyBalances!$K$3:$EY$3,AO$3,MonthlyBalances!$K$99:$EY$99) -> 0
D17: FPL Debt
D18: Debt Ratio with Project | F18: =Control!$C$25 -> 0.4038 | K18: =$F18 -> 0.4038 | L18: =$F18 -> 0.4038 | M18: 0.4038 | N18: 0.4038 | O18: 0.4038 | P18: 0.4038 | Q18: 0.4038 | R18: 0.4038 | S18: 0.4038 | T18: 0.4038 | U18: 0.4038 | V18: 0.4038 | W18: 0.4038 | X18: 0.4038 | Y18: 0.4038 | Z18: 0.4038 | AA18: 0.4038 | AB18: 0.4038 | AC18: 0.4038 | AD18: 0.4038 | AE18: 0.4038 | AF18: 0.4038 | AG18: 0.4038 | AH18: 0.4038 | AI18: 0.4038 | AJ18: 0.4038 | AK18: 0.4038 | AL18: 0.4038 | AM18: 0.4038 | AN18: 0.4038 | AO18: 0.4038
D19: Debt portion of Rate Base | K19: =K9*K18-K12 -> 0 | L19: =L9*L18-L12 -> -37332.82389 | M19: -32791.25592 | N19: -26806.80849 | O19: -15912.79686 | P19: 54369.43012 | Q19: 42174.41775 | R19: 29979.40537 | S19: 17784.393 | T19: 5589.380621 | U19: 0 | V19: =V9*V18-V12 -> 0 | W19: =W9*W18-W12 -> 0 | X19: =X9*X18-X12 -> 0 | Y19: =Y9*Y18-Y12 -> 0 | Z19: 0 | AA19: 0 | AB19: 0 | AC19: 0 | AD19: 0 | AE19: 0 | AF19: 0 | AG19: 0 | AH19: 0 | AI19: 0 | AJ19: 0 | AK19: 0 | AL19: 0 | AM19: 0 | AN19: 0 | AO19: 0
D20: Cost of Debt | F20: =Control!$D$25 -> 0.0521 | K20: =$F20 -> 0.0521 | L20: =$F20 -> 0.0521 | M20: 0.0521 | N20: 0.0521 | O20: 0.0521 | P20: 0.0521 | Q20: 0.0521 | R20: 0.0521 | S20: 0.0521 | T20: 0.0521 | U20: 0.0521 | V20: 0.0521 | W20: 0.0521 | X20: 0.0521 | Y20: 0.0521 | Z20: 0.0521 | AA20: 0.0521 | AB20: 0.0521 | AC20: 0.0521 | AD20: 0.0521 | AE20: 0.0521 | AF20: 0.0521 | AG20: 0.0521 | AH20: 0.0521 | AI20: 0.0521 | AJ20: 0.0521 | AK20: 0.0521 | AL20: 0.0521 | AM20: 0.0521 | AN20: 0.0521 | AO20: 0.0521
D21: Interest Expense | H21: =SUMPRODUCT($K21:$AO21,$K$5:$AO$5) -> -146.4983345 | I21: =SUM(K21:AO21) -> 1930.479102 | K21: =K19*K20 -> 0 | L21: =L19*L20 -> -1945.040125 | M21: -1708.424433 | N21: -1396.634722 | O21: -829.0567167 | P21: 2832.647309 | Q21: 2197.287165 | R21: 1561.92702 | S21: 926.5668751 | T21: 291.2067304 | U21: 0 | V21: =V19*V20 -> 0 | W21: =W19*W20 -> 0 | X21: =X19*X20 -> 0 | Y21: =Y19*Y20 -> 0 | Z21: 0 | AA21: 0 | AB21: 0 | AC21: 0 | AD21: 0 | AE21: 0 | AF21: 0 | AG21: 0 | AH21: 0 | AI21: 0 | AJ21: 0 | AK21: 0 | AL21: 0 | AM21: 0 | AN21: 0 | AO21: 0
D24: Equity
D25: Equity Ratio with Project | F25: =Control!$C$26 -> 0.5962 | K25: =$F25 -> 0.5962 | L25: =$F25 -> 0.5962 | M25: 0.5962 | N25: 0.5962 | O25: 0.5962 | P25: 0.5962 | Q25: 0.5962 | R25: 0.5962 | S25: 0.5962 | T25: 0.5962 | U25: 0.5962 | V25: 0.5962 | W25: 0.5962 | X25: 0.5962 | Y25: 0.5962 | Z25: 0.5962 | AA25: 0.5962 | AB25: 0.5962 | AC25: 0.5962 | AD25: 0.5962 | AE25: 0.5962 | AF25: 0.5962 | AG25: 0.5962 | AH25: 0.5962 | AI25: 0.5962 | AJ25: 0.5962 | AK25: 0.5962 | AL25: 0.5962 | AM25: 0.5962 | AN25: 0.5962 | AO25: 0.5962
D26: Equity portion of Rate Base | K26: =K9*K25 -> 0 | L26: 256198.8929 | M26: 230862.2399 | N26: 204203.8515 | O26: 171723.7269 | P26: 80275.02288 | Q26: 62269.41025 | R26: 44263.79763 | S26: 26258.185 | T26: 8252.572379 | U26: 0 | V26: =V9*V25 -> 0 | W26: =W9*W25 -> 0 | X26: =X9*X25 -> 0 | Y26: =Y9*Y25 -> 0 | Z26: 0 | AA26: 0 | AB26: 0 | AC26: 0 | AD26: 0 | AE26: 0 | AF26: 0 | AG26: 0 | AH26: 0 | AI26: 0 | AJ26: 0 | AK26: 0 | AL26: 0 | AM26: 0 | AN26: 0 | AO26: 0
D27: After-Tax Return on Equity | F27: =Control!$D$26 -> 0.115 | K27: =$F27 -> 0.115 | L27: =$F27 -> 0.115 | M27: 0.115 | N27: 0.115 | O27: 0.115 | P27: 0.115 | Q27: 0.115 | R27: 0.115 | S27: 0.115 | T27: 0.115 | U27: 0.115 | V27: 0.115 | W27: 0.115 | X27: 0.115 | Y27: 0.115 | Z27: 0.115 | AA27: 0.115 | AB27: 0.115 | AC27: 0.115 | AD27: 0.115 | AE27: 0.115 | AF27: 0.115 | AG27: 0.115 | AH27: 0.115 | AI27: 0.115 | AJ27: 0.115 | AK27: 0.115 | AL27: 0.115 | AM27: 0.115 | AN27: 0.115 | AO27: 0.115
D28: After-Tax Equity Return | H28: =SUMPRODUCT($K28:$AO28,$K$5:$AO$5) -> 102672.6727 | I28: =SUM(K28:AO28) -> 124695.3854 | K28: =K26*K27 -> 0 | L28: =L26*L27 -> 29462.87268 | M28: 26549.15759 | N28: 23483.44292 | O28: 19748.22859 | P28: 9231.627631 | Q28: 7160.982179 | R28: 5090.336727 | S28: 3019.691275 | T28: 949.0458235 | U28: 0 | V28: =V26*V27 -> 0 | W28: =W26*W27 -> 0 | X28: =X26*X27 -> 0 | Y28: =Y26*Y27 -> 0 | Z28: 0 | AA28: 0 | AB28: 0 | AC28: 0 | AD28: 0 | AE28: 0 | AF28: 0 | AG28: 0 | AH28: 0 | AI28: 0 | AJ28: 0 | AK28: 0 | AL28: 0 | AM28: 0 | AN28: 0 | AO28: 0
D29: Gross-up for Taxes | F29: =Control!$C$20 -> 0.38575 | H29: =SUMPRODUCT($K29:$AO29,$K$5:$AO$5) -> 64478.6056 | I29: =SUM(K29:AO29) -> 78308.90505 | K29: =K28*((1/(1-$F29))-1) -> 0 | L29: =L28*((1/(1-$F29))-1) -> 18502.73201 | M29: 16672.91419 | N29: 14747.64039 | O29: 12401.9197 | P29: 5797.477181 | Q29: 4497.108467 | R29: 3196.739752 | S29: 1896.371037 | T29: 596.0023222 | U29: 0 | V29: =V28*((1/(1-$F29))-1) -> 0 | W29: =W28*((1/(1-$F29))-1) -> 0 | X29: =X28*((1/(1-$F29))-1) -> 0 | Y29: =Y28*((1/(1-$F29))-1) -> 0 | Z29: 0 | AA29: 0 | AB29: 0 | AC29: 0 | AD29: 0 | AE29: 0 | AF29: 0 | AG29: 0 | AH29: 0 | AI29: 0 | AJ29: 0 | AK29: 0 | AL29: 0 | AM29: 0 | AN29: 0 | AO29: 0
D30: Pre-Tax Equity Return | H30: =SUMPRODUCT($K30:$AO30,$K$5:$AO$5) -> 167151.2783 | I30: =SUM(K30:AO30) -> 203004.2905 | K30: =SUM(K28:K29) -> 0 | L30: =SUM(L28:L29) -> 47965.60469 | M30: 43222.07178 | N30: 38231.08331 | O30: 32150.14829 | P30: 15029.10481 | Q30: 11658.09065 | R30: 8287.076479 | S30: 4916.062312 | T30: 1545.048146 | U30: 0 | V30: =SUM(V28:V29) -> 0 | W30: =SUM(W28:W29) -> 0 | X30: =SUM(X28:X29) -> 0 | Y30: =SUM(Y28:Y29) -> 0 | Z30: 0 | AA30: 0 | AB30: 0 | AC30: 0 | AD30: 0 | AE30: 0 | AF30: 0 | AG30: 0 | AH30: 0 | AI30: 0 | AJ30: 0 | AK30: 0 | AL30: 0 | AM30: 0 | AN30: 0 | AO30: 0
D33: REVENUE REQUIREMENT
D36: Regulatory Asset Amortization | H36: =SUMPRODUCT($K36:$AO36,$K$5:$AO$5) -> 324021.5627 | I36: =SUM(K36:AO36) -> 451500 | K36: =-SUMIF(MonthlyBalances!$K$3:$EY$3, K$3,MonthlyBalances!$K$14:$EY$14) -> 0 | L36: =-SUMIF(MonthlyBalances!$K$3:$EY$3, L$3,MonthlyBalances!$K$14:$EY$14) -> 50166.66667 | M36: =-SUMIF(MonthlyBalances!$K$3:$EY$3, M$3,MonthlyBalances!$K$14:$EY$14) -> 50166.66667 | N36: =-SUMIF(MonthlyBalances!$K$3:$EY$3, N$3,MonthlyBalances!$K$14:$EY$14) -> 50166.66667 | O36: =-SUMIF(MonthlyBalances!$K$3:$EY$3, O$3,MonthlyBalances!$K$14:$EY$14) -> 50166.66667 | P36: =-SUMIF(MonthlyBalances!$K$3:$EY$3, P$3,MonthlyBalances!$K$14:$EY$14) -> 50166.66667 | Q36: =-SUMIF(MonthlyBalances!$K$3:$EY$3, Q$3,MonthlyBalances!$K$14:$EY$14) -> 50166.66667 | R36: =-SUMIF(MonthlyBalances!$K$3:$EY$3, R$3,MonthlyBalances!$K$14:$EY$14) -> 50166.66667 | S36: =-SUMIF(MonthlyBalances!$K$3:$EY$3, S$3,MonthlyBalances!$K$14:$EY$14) -> 50166.66667 | T36: =-SUMIF(MonthlyBalances!$K$3:$EY$3, T$3,MonthlyBalances!$K$14:$EY$14) -> 50166.66667 | U36: =-SUMIF(MonthlyBalances!$K$3:$EY$3, U$3,MonthlyBalances!$K$14:$EY$14) -> 0 | V36: =-SUMIF(MonthlyBalances!$K$3:$EY$3, V$3,MonthlyBalances!$K$14:$EY$14) -> 0 | W36: =-SUMIF(MonthlyBalances!$K$3:$EY$3, W$3,MonthlyBalances!$K$14:$EY$14) -> 0 | X36: =-SUMIF(MonthlyBalances!$K$3:$EY$3, X$3,MonthlyBalances!$K$14:$EY$14) -> 0 | Y36: =-SUMIF(MonthlyBalances!$K$3:$EY$3, Y$3,MonthlyBalances!$K$14:$EY$14) -> 0 | Z36: =-SUMIF(MonthlyBalances!$K$3:$EY$3, Z$3,MonthlyBalances!$K$14:$EY$14) -> 0 | AA36: =-SUMIF(MonthlyBalances!$K$3:$EY$3, AA$3,MonthlyBalances!$K$14:$EY$14) -> 0 | AB36: =-SUMIF(MonthlyBalances!$K$3:$EY$3, AB$3,MonthlyBalances!$K$14:$EY$14) -> 0 | AC36: =-SUMIF(MonthlyBalances!$K$3:$EY$3, AC$3,MonthlyBalances!$K$14:$EY$14) -> 0 | AD36: =-SUMIF(MonthlyBalances!$K$3:$EY$3, AD$3,MonthlyBalances!$K$14:$EY$14) -> 0 | AE36: =-SUMIF(MonthlyBalances!$K$3:$EY$3, AE$3,MonthlyBalances!$K$14:$EY$14) -> 0 | AF36: =-SUMIF(MonthlyBalances!$K$3:$EY$3, AF$3,MonthlyBalances!$K$14:$EY$14) -> 0 | AG36: =-SUMIF(MonthlyBalances!$K$3:$EY$3, AG$3,MonthlyBalances!$K$14:$EY$14) -> 0 | AH36: =-SUMIF(MonthlyBalances!$K$3:$EY$3, AH$3,MonthlyBalances!$K$14:$EY$14) -> 0 | AI36: =-SUMIF(MonthlyBalances!$K$3:$EY$3, AI$3,MonthlyBalances!$K$14:$EY$14) -> 0 | AJ36: =-SUMIF(MonthlyBalances!$K$3:$EY$3, AJ$3,MonthlyBalances!$K$14:$EY$14) -> 0 | AK36: =-SUMIF(MonthlyBalances!$K$3:$EY$3, AK$3,MonthlyBalances!$K$14:$EY$14) -> 0 | AL36: =-SUMIF(MonthlyBalances!$K$3:$EY$3, AL$3,MonthlyBalances!$K$14:$EY$14) -> 0 | AM36: =-SUMIF(MonthlyBalances!$K$3:$EY$3, AM$3,MonthlyBalances!$K$14:$EY$14) -> 0 | AN36: =-SUMIF(MonthlyBalances!$K$3:$EY$3, AN$3,MonthlyBalances!$K$14:$EY$14) -> 0 | AO36: =-SUMIF(MonthlyBalances!$K$3:$EY$3, AO$3,MonthlyBalances!$K$14:$EY$14) -> 0
D37: Permanent Tax Difference (grossed up pre-tax) | F37: =Control!$C$20 -> 0.38575 | H37: 0 | I37: 0 | K37: =K36*((1/(1-$F37))-1)*($D$2="Equity No Step-up") -> 0 | L37: 0 | M37: 0 | N37: 0 | O37: 0 | P37: 0 | Q37: 0 | R37: 0 | S37: 0 | T37: 0 | U37: 0 | V37: 0 | W37: 0 | X37: 0 | Y37: 0 | Z37: 0 | AA37: 0 | AB37: 0 | AC37: 0 | AD37: 0 | AE37: 0 | AF37: 0 | AG37: 0 | AH37: 0 | AI37: 0 | AJ37: 0 | AK37: 0 | AL37: 0 | AM37: 0 | AN37: 0 | AO37: 0
D38: O&M and Rail Lease Expense | H38: 29190.07459 | I38: 34332.13636 | K38: =SUMIF(Control!$A$58:$A$69,K$3,Control!$E$58:$E$69)*($D$2<>"PPA Buyout")-SUMIF(MonthlyBalances!$K$3:$EY$3,K$3,MonthlyBalances!$K$61:$EY$61) -> 0 | L38: =SUMIF(Control!$A$58:$A$69,L$3,Control!$E$58:$E$69)*($D$2<>"PPA Buyout")-SUMIF(MonthlyBalances!$K$3:$EY$3,L$3,MonthlyBalances!$K$61:$EY$61) -> 10768.74436 | M38: =SUMIF(Control!$A$58:$A$69,M$3,Control!$E$58:$E$69)*($D$2<>"PPA Buyout")-SUMIF(MonthlyBalances!$K$3:$EY$3,M$3,MonthlyBalances!$K$61:$EY$61) -> 13195.424 | N38: =SUMIF(Control!$A$58:$A$69,N$3,Control!$E$58:$E$69)*($D$2<>"PPA Buyout")-SUMIF(MonthlyBalances!$K$3:$EY$3,N$3,MonthlyBalances!$K$61:$EY$61) -> 2195.424 | O38: =SUMIF(Control!$A$58:$A$69,O$3,Control!$E$58:$E$69)*($D$2<>"PPA Buyout")-SUMIF(MonthlyBalances!$K$3:$EY$3,O$3,MonthlyBalances!$K$61:$EY$61) -> 2195.424 | P38: =SUMIF(Control!$A$58:$A$69,P$3,Control!$E$58:$E$69)*($D$2<>"PPA Buyout")-SUMIF(MonthlyBalances!$K$3:$EY$3,P$3,MonthlyBalances!$K$61:$EY$61) -> 1195.424 | Q38: =SUMIF(Control!$A$58:$A$69,Q$3,Control!$E$58:$E$69)*($D$2<>"PPA Buyout")-SUMIF(MonthlyBalances!$K$3:$EY$3,Q$3,MonthlyBalances!$K$61:$EY$61) -> 1195.424 | R38: =SUMIF(Control!$A$58:$A$69,R$3,Control!$E$58:$E$69)*($D$2<>"PPA Buyout")-SUMIF(MonthlyBalances!$K$3:$EY$3,R$3,MonthlyBalances!$K$61:$EY$61) -> 1195.424 | S38: =SUMIF(Control!$A$58:$A$69,S$3,Control!$E$58:$E$69)*($D$2<>"PPA Buyout")-SUMIF(MonthlyBalances!$K$3:$EY$3,S$3,MonthlyBalances!$K$61:$EY$61) -> 1195.424 | T38: =SUMIF(Control!$A$58:$A$69,T$3,Control!$E$58:$E$69)*($D$2<>"PPA Buyout")-SUMIF(MonthlyBalances!$K$3:$EY$3,T$3,MonthlyBalances!$K$61:$EY$61) -> 1195.424 | U38: =SUMIF(Control!$A$58:$A$69,U$3,Control!$E$58:$E$69)*($D$2<>"PPA Buyout")-SUMIF(MonthlyBalances!$K$3:$EY$3,U$3,MonthlyBalances!$K$61:$EY$61) -> -5.456968211e-12 | V38: =SUMIF(Control!$A$58:$A$69,V$3,Control!$E$58:$E$69)*($D$2<>"PPA Buyout")-SUMIF(MonthlyBalances!$K$3:$EY$3,V$3,MonthlyBalances!$K$61:$EY$61) -> 0 | W38: =SUMIF(Control!$A$58:$A$69,W$3,Control!$E$58:$E$69)*($D$2<>"PPA Buyout")-SUMIF(MonthlyBalances!$K$3:$EY$3,W$3,MonthlyBalances!$K$61:$EY$61) -> 0 | X38: =SUMIF(Control!$A$58:$A$69,X$3,Control!$E$58:$E$69)*($D$2<>"PPA Buyout")-SUMIF(MonthlyBalances!$K$3:$EY$3,X$3,MonthlyBalances!$K$61:$EY$61) -> 0 | Y38: =SUMIF(Control!$A$58:$A$69,Y$3,Control!$E$58:$E$69)*($D$2<>"PPA Buyout")-SUMIF(MonthlyBalances!$K$3:$EY$3,Y$3,MonthlyBalances!$K$61:$EY$61) -> 0 | Z38: =SUMIF(Control!$A$58:$A$69,Z$3,Control!$E$58:$E$69)*($D$2<>"PPA Buyout")-SUMIF(MonthlyBalances!$K$3:$EY$3,Z$3,MonthlyBalances!$K$61:$EY$61) -> 0 | AA38: =SUMIF(Control!$A$58:$A$69,AA$3,Control!$E$58:$E$69)*($D$2<>"PPA Buyout")-SUMIF(MonthlyBalances!$K$3:$EY$3,AA$3,MonthlyBalances!$K$61:$EY$61) -> 0 | AB38: =SUMIF(Control!$A$58:$A$69,AB$3,Control!$E$58:$E$69)*($D$2<>"PPA Buyout")-SUMIF(MonthlyBalances!$K$3:$EY$3,AB$3,MonthlyBalances!$K$61:$EY$61) -> 0 | AC38: =SUMIF(Control!$A$58:$A$69,AC$3,Control!$E$58:$E$69)*($D$2<>"PPA Buyout")-SUMIF(MonthlyBalances!$K$3:$EY$3,AC$3,MonthlyBalances!$K$61:$EY$61) -> 0 | AD38: =SUMIF(Control!$A$58:$A$69,AD$3,Control!$E$58:$E$69)*($D$2<>"PPA Buyout")-SUMIF(MonthlyBalances!$K$3:$EY$3,AD$3,MonthlyBalances!$K$61:$EY$61) -> 0 | AE38: =SUMIF(Control!$A$58:$A$69,AE$3,Control!$E$58:$E$69)*($D$2<>"PPA Buyout")-SUMIF(MonthlyBalances!$K$3:$EY$3,AE$3,MonthlyBalances!$K$61:$EY$61) -> 0 | AF38: =SUMIF(Control!$A$58:$A$69,AF$3,Control!$E$58:$E$69)*($D$2<>"PPA Buyout")-SUMIF(MonthlyBalances!$K$3:$EY$3,AF$3,MonthlyBalances!$K$61:$EY$61) -> 0 | AG38: =SUMIF(Control!$A$58:$A$69,AG$3,Control!$E$58:$E$69)*($D$2<>"PPA Buyout")-SUMIF(MonthlyBalances!$K$3:$EY$3,AG$3,MonthlyBalances!$K$61:$EY$61) -> 0 | AH38: =SUMIF(Control!$A$58:$A$69,AH$3,Control!$E$58:$E$69)*($D$2<>"PPA Buyout")-SUMIF(MonthlyBalances!$K$3:$EY$3,AH$3,MonthlyBalances!$K$61:$EY$61) -> 0 | AI38: =SUMIF(Control!$A$58:$A$69,AI$3,Control!$E$58:$E$69)*($D$2<>"PPA Buyout")-SUMIF(MonthlyBalances!$K$3:$EY$3,AI$3,MonthlyBalances!$K$61:$EY$61) -> 0 | AJ38: =SUMIF(Control!$A$58:$A$69,AJ$3,Control!$E$58:$E$69)*($D$2<>"PPA Buyout")-SUMIF(MonthlyBalances!$K$3:$EY$3,AJ$3,MonthlyBalances!$K$61:$EY$61) -> 0 | AK38: =SUMIF(Control!$A$58:$A$69,AK$3,Control!$E$58:$E$69)*($D$2<>"PPA Buyout")-SUMIF(MonthlyBalances!$K$3:$EY$3,AK$3,MonthlyBalances!$K$61:$EY$61) -> 0 | AL38: =SUMIF(Control!$A$58:$A$69,AL$3,Control!$E$58:$E$69)*($D$2<>"PPA Buyout")-SUMIF(MonthlyBalances!$K$3:$EY$3,AL$3,MonthlyBalances!$K$61:$EY$61) -> 0 | AM38: =SUMIF(Control!$A$58:$A$69,AM$3,Control!$E$58:$E$69)*($D$2<>"PPA Buyout")-SUMIF(MonthlyBalances!$K$3:$EY$3,AM$3,MonthlyBalances!$K$61:$EY$61) -> 0 | AN38: =SUMIF(Control!$A$58:$A$69,AN$3,Control!$E$58:$E$69)*($D$2<>"PPA Buyout")-SUMIF(MonthlyBalances!$K$3:$EY$3,AN$3,MonthlyBalances!$K$61:$EY$61) -> 0 | AO38: =SUMIF(Control!$A$58:$A$69,AO$3,Control!$E$58:$E$69)*($D$2<>"PPA Buyout")-SUMIF(MonthlyBalances!$K$3:$EY$3,AO$3,MonthlyBalances!$K$61:$EY$61) -> 0
D39: ARO Asset Amortization | H39: 8535.35328 | I39: 9940 | K39: =-SUMIF(MonthlyBalances!$K$3:$EY$3, K$3,MonthlyBalances!$K$46:$EY$46) -> 0 | L39: =-SUMIF(MonthlyBalances!$K$3:$EY$3, L$3,MonthlyBalances!$K$46:$EY$46) -> 2485 | M39: =-SUMIF(MonthlyBalances!$K$3:$EY$3, M$3,MonthlyBalances!$K$46:$EY$46) -> 2485 | N39: =-SUMIF(MonthlyBalances!$K$3:$EY$3, N$3,MonthlyBalances!$K$46:$EY$46) -> 2485 | O39: =-SUMIF(MonthlyBalances!$K$3:$EY$3, O$3,MonthlyBalances!$K$46:$EY$46) -> 2485 | P39: =-SUMIF(MonthlyBalances!$K$3:$EY$3, P$3,MonthlyBalances!$K$46:$EY$46) -> 0 | Q39: =-SUMIF(MonthlyBalances!$K$3:$EY$3, Q$3,MonthlyBalances!$K$46:$EY$46) -> 0 | R39: =-SUMIF(MonthlyBalances!$K$3:$EY$3, R$3,MonthlyBalances!$K$46:$EY$46) -> 0 | S39: =-SUMIF(MonthlyBalances!$K$3:$EY$3, S$3,MonthlyBalances!$K$46:$EY$46) -> 0 | T39: =-SUMIF(MonthlyBalances!$K$3:$EY$3, T$3,MonthlyBalances!$K$46:$EY$46) -> 0 | U39: =-SUMIF(MonthlyBalances!$K$3:$EY$3, U$3,MonthlyBalances!$K$46:$EY$46) -> 0 | V39: =-SUMIF(MonthlyBalances!$K$3:$EY$3, V$3,MonthlyBalances!$K$46:$EY$46) -> 0 | W39: =-SUMIF(MonthlyBalances!$K$3:$EY$3, W$3,MonthlyBalances!$K$46:$EY$46) -> 0 | X39: =-SUMIF(MonthlyBalances!$K$3:$EY$3, X$3,MonthlyBalances!$K$46:$EY$46) -> 0 | Y39: =-SUMIF(MonthlyBalances!$K$3:$EY$3, Y$3,MonthlyBalances!$K$46:$EY$46) -> 0 | Z39: =-SUMIF(MonthlyBalances!$K$3:$EY$3, Z$3,MonthlyBalances!$K$46:$EY$46) -> 0 | AA39: =-SUMIF(MonthlyBalances!$K$3:$EY$3, AA$3,MonthlyBalances!$K$46:$EY$46) -> 0 | AB39: =-SUMIF(MonthlyBalances!$K$3:$EY$3, AB$3,MonthlyBalances!$K$46:$EY$46) -> 0 | AC39: =-SUMIF(MonthlyBalances!$K$3:$EY$3, AC$3,MonthlyBalances!$K$46:$EY$46) -> 0 | AD39: =-SUMIF(MonthlyBalances!$K$3:$EY$3, AD$3,MonthlyBalances!$K$46:$EY$46) -> 0 | AE39: =-SUMIF(MonthlyBalances!$K$3:$EY$3, AE$3,MonthlyBalances!$K$46:$EY$46) -> 0 | AF39: =-SUMIF(MonthlyBalances!$K$3:$EY$3, AF$3,MonthlyBalances!$K$46:$EY$46) -> 0 | AG39: =-SUMIF(MonthlyBalances!$K$3:$EY$3, AG$3,MonthlyBalances!$K$46:$EY$46) -> 0 | AH39: =-SUMIF(MonthlyBalances!$K$3:$EY$3, AH$3,MonthlyBalances!$K$46:$EY$46) -> 0 | AI39: =-SUMIF(MonthlyBalances!$K$3:$EY$3, AI$3,MonthlyBalances!$K$46:$EY$46) -> 0 | AJ39: =-SUMIF(MonthlyBalances!$K$3:$EY$3, AJ$3,MonthlyBalances!$K$46:$EY$46) -> 0 | AK39: =-SUMIF(MonthlyBalances!$K$3:$EY$3, AK$3,MonthlyBalances!$K$46:$EY$46) -> 0 | AL39: =-SUMIF(MonthlyBalances!$K$3:$EY$3, AL$3,MonthlyBalances!$K$46:$EY$46) -> 0 | AM39: =-SUMIF(MonthlyBalances!$K$3:$EY$3, AM$3,MonthlyBalances!$K$46:$EY$46) -> 0 | AN39: =-SUMIF(MonthlyBalances!$K$3:$EY$3, AN$3,MonthlyBalances!$K$46:$EY$46) -> 0 | AO39: =-SUMIF(MonthlyBalances!$K$3:$EY$3, AO$3,MonthlyBalances!$K$46:$EY$46) -> 0
D40: ARO Liability Accretion | H40: 708.8809263 | I40: 827.156415 | K40: =-SUMIF(MonthlyBalances!$K$3:$EY$3, K$3,MonthlyBalances!$K$53:$EY$53) -> 0 | L40: =-SUMIF(MonthlyBalances!$K$3:$EY$3, L$3,MonthlyBalances!$K$53:$EY$53) -> 200.6324955 | M40: =-SUMIF(MonthlyBalances!$K$3:$EY$3, M$3,MonthlyBalances!$K$53:$EY$53) -> 204.6821331 | N40: =-SUMIF(MonthlyBalances!$K$3:$EY$3, N$3,MonthlyBalances!$K$53:$EY$53) -> 208.8135101 | O40: =-SUMIF(MonthlyBalances!$K$3:$EY$3, O$3,MonthlyBalances!$K$53:$EY$53) -> 213.0282763 | P40: =-SUMIF(MonthlyBalances!$K$3:$EY$3, P$3,MonthlyBalances!$K$53:$EY$53) -> 0 | Q40: =-SUMIF(MonthlyBalances!$K$3:$EY$3, Q$3,MonthlyBalances!$K$53:$EY$53) -> 0 | R40: =-SUMIF(MonthlyBalances!$K$3:$EY$3, R$3,MonthlyBalances!$K$53:$EY$53) -> 0 | S40: =-SUMIF(MonthlyBalances!$K$3:$EY$3, S$3,MonthlyBalances!$K$53:$EY$53) -> 0 | T40: =-SUMIF(MonthlyBalances!$K$3:$EY$3, T$3,MonthlyBalances!$K$53:$EY$53) -> 0 | U40: =-SUMIF(MonthlyBalances!$K$3:$EY$3, U$3,MonthlyBalances!$K$53:$EY$53) -> 0 | V40: =-SUMIF(MonthlyBalances!$K$3:$EY$3, V$3,MonthlyBalances!$K$53:$EY$53) -> 0 | W40: =-SUMIF(MonthlyBalances!$K$3:$EY$3, W$3,MonthlyBalances!$K$53:$EY$53) -> 0 | X40: =-SUMIF(MonthlyBalances!$K$3:$EY$3, X$3,MonthlyBalances!$K$53:$EY$53) -> 0 | Y40: =-SUMIF(MonthlyBalances!$K$3:$EY$3, Y$3,MonthlyBalances!$K$53:$EY$53) -> 0 | Z40: =-SUMIF(MonthlyBalances!$K$3:$EY$3, Z$3,MonthlyBalances!$K$53:$EY$53) -> 0 | AA40: =-SUMIF(MonthlyBalances!$K$3:$EY$3, AA$3,MonthlyBalances!$K$53:$EY$53) -> 0 | AB40: =-SUMIF(MonthlyBalances!$K$3:$EY$3, AB$3,MonthlyBalances!$K$53:$EY$53) -> 0 | AC40: =-SUMIF(MonthlyBalances!$K$3:$EY$3, AC$3,MonthlyBalances!$K$53:$EY$53) -> 0 | AD40: =-SUMIF(MonthlyBalances!$K$3:$EY$3, AD$3,MonthlyBalances!$K$53:$EY$53) -> 0 | AE40: =-SUMIF(MonthlyBalances!$K$3:$EY$3, AE$3,MonthlyBalances!$K$53:$EY$53) -> 0 | AF40: =-SUMIF(MonthlyBalances!$K$3:$EY$3, AF$3,MonthlyBalances!$K$53:$EY$53) -> 0 | AG40: =-SUMIF(MonthlyBalances!$K$3:$EY$3, AG$3,MonthlyBalances!$K$53:$EY$53) -> 0 | AH40: =-SUMIF(MonthlyBalances!$K$3:$EY$3, AH$3,MonthlyBalances!$K$53:$EY$53) -> 0 | AI40: =-SUMIF(MonthlyBalances!$K$3:$EY$3, AI$3,MonthlyBalances!$K$53:$EY$53) -> 0 | AJ40: =-SUMIF(MonthlyBalances!$K$3:$EY$3, AJ$3,MonthlyBalances!$K$53:$EY$53) -> 0 | AK40: =-SUMIF(MonthlyBalances!$K$3:$EY$3, AK$3,MonthlyBalances!$K$53:$EY$53) -> 0 | AL40: =-SUMIF(MonthlyBalances!$K$3:$EY$3, AL$3,MonthlyBalances!$K$53:$EY$53) -> 0 | AM40: =-SUMIF(MonthlyBalances!$K$3:$EY$3, AM$3,MonthlyBalances!$K$53:$EY$53) -> 0 | AN40: =-SUMIF(MonthlyBalances!$K$3:$EY$3, AN$3,MonthlyBalances!$K$53:$EY$53) -> 0 | AO40: =-SUMIF(MonthlyBalances!$K$3:$EY$3, AO$3,MonthlyBalances!$K$53:$EY$53) -> 0
D41: Interest Expense on Acquired Debt | H41: 16116.12797 | I41: 18307.04867 | K41: =K14 -> 0 | L41: 5945.931253 | M41: 5401.900617 | N41: 4792.443308 | O41: 2166.773489 | P41: 0 | Q41: 0 | R41: 0 | S41: 0 | T41: 0 | U41: 0 | V41: 0 | W41: 0 | X41: 0 | Y41: 0 | Z41: 0 | AA41: 0 | AB41: 0 | AC41: 0 | AD41: 0 | AE41: 0 | AF41: 0 | AG41: 0 | AH41: 0 | AI41: 0 | AJ41: 0 | AK41: 0 | AL41: 0 | AM41: 0 | AN41: 0 | AO41: 0
D42: Interest Expense on FPL Debt | H42: -146.4983345 | I42: 1930.479102 | K42: =K21 -> 0 | L42: -1945.040125 | M42: -1708.424433 | N42: -1396.634722 | O42: -829.0567167 | P42: 2832.647309 | Q42: 2197.287165 | R42: 1561.92702 | S42: 926.5668751 | T42: 291.2067304 | U42: 0 | V42: 0 | W42: 0 | X42: 0 | Y42: 0 | Z42: 0 | AA42: 0 | AB42: 0 | AC42: 0 | AD42: 0 | AE42: 0 | AF42: 0 | AG42: 0 | AH42: 0 | AI42: 0 | AJ42: 0 | AK42: 0 | AL42: 0 | AM42: 0 | AN42: 0 | AO42: 0
D43: After-Tax Equity Return | H43: 102672.6727 | I43: 124695.3854 | K43: =K28 -> 0 | L43: 29462.87268 | M43: 26549.15759 | N43: 23483.44292 | O43: 19748.22859 | P43: 9231.627631 | Q43: 7160.982179 | R43: 5090.336727 | S43: 3019.691275 | T43: 949.0458235 | U43: 0 | V43: 0 | W43: 0 | X43: 0 | Y43: 0 | Z43: 0 | AA43: 0 | AB43: 0 | AC43: 0 | AD43: 0 | AE43: 0 | AF43: 0 | AG43: 0 | AH43: 0 | AI43: 0 | AJ43: 0 | AK43: 0 | AL43: 0 | AM43: 0 | AN43: 0 | AO43: 0
D44: Income Tax on Equity Return | H44: 64478.6056 | I44: 78308.90505 | K44: =K29 -> 0 | L44: 18502.73201 | M44: 16672.91419 | N44: 14747.64039 | O44: 12401.9197 | P44: 5797.477181 | Q44: 4497.108467 | R44: 3196.739752 | S44: 1896.371037 | T44: 596.0023222 | U44: 0 | V44: 0 | W44: 0 | X44: 0 | Y44: 0 | Z44: 0 | AA44: 0 | AB44: 0 | AC44: 0 | AD44: 0 | AE44: 0 | AF44: 0 | AG44: 0 | AH44: 0 | AI44: 0 | AJ44: 0 | AK44: 0 | AL44: 0 | AM44: 0 | AN44: 0 | AO44: 0
D46: Subtotal | H46: =SUMPRODUCT($K46:$AO46,$K$5:$AO$5) -> 545576.7794 | I46: =SUM(K46:AO46) -> 719841.111 | K46: =SUM(K36:K45) -> 0 | L46: 115587.5393 | M46: 112967.3208 | N46: 96682.79607 | O46: 88547.98401 | P46: 69223.84279 | Q46: 65217.46848 | R46: 61211.09417 | S46: 57204.71985 | T46: 53198.34554 | U46: -5.456968211e-12 | V46: 0 | W46: 0 | X46: 0 | Y46: 0 | Z46: 0 | AA46: 0 | AB46: 0 | AC46: 0 | AD46: 0 | AE46: 0 | AF46: 0 | AG46: 0 | AH46: 0 | AI46: 0 | AJ46: 0 | AK46: 0 | AL46: 0 | AM46: 0 | AN46: 0 | AO46: 0
D49: Avoided Cost from Terminating PPA
D51: Capacity Payment ($000/year) | H51: =SUMPRODUCT($K51:$AO51,$K$5:$AO$5) -> -287842.0439 | I51: =SUM(K51:AO51) -> -395960.4 | K51: =-SUMIF(Control!$A$39:$A$48, K$3,Control!$I$39:$I$48) -> 0 | L51: =-SUMIF(Control!$A$39:$A$48, L$3,Control!$I$39:$I$48) -> -48391.2 | M51: =-SUMIF(Control!$A$39:$A$48, M$3,Control!$I$39:$I$48) -> -47282.4 | N51: =-SUMIF(Control!$A$39:$A$48, N$3,Control!$I$39:$I$48) -> -46213.2 | O51: =-SUMIF(Control!$A$39:$A$48, O$3,Control!$I$39:$I$48) -> -45104.4 | P51: =-SUMIF(Control!$A$39:$A$48, P$3,Control!$I$39:$I$48) -> -43995.6 | Q51: =-SUMIF(Control!$A$39:$A$48, Q$3,Control!$I$39:$I$48) -> -42847.2 | R51: =-SUMIF(Control!$A$39:$A$48, R$3,Control!$I$39:$I$48) -> -41817.6 | S51: =-SUMIF(Control!$A$39:$A$48, S$3,Control!$I$39:$I$48) -> -40708.8 | T51: =-SUMIF(Control!$A$39:$A$48, T$3,Control!$I$39:$I$48) -> -39600 | U51: =-SUMIF(Control!$A$39:$A$48, U$3,Control!$I$39:$I$48) -> 0 | V51: =-SUMIF(Control!$A$39:$A$48, V$3,Control!$I$39:$I$48) -> 0 | W51: =-SUMIF(Control!$A$39:$A$48, W$3,Control!$I$39:$I$48) -> 0 | X51: =-SUMIF(Control!$A$39:$A$48, X$3,Control!$I$39:$I$48) -> 0 | Y51: =-SUMIF(Control!$A$39:$A$48, Y$3,Control!$I$39:$I$48) -> 0 | Z51: =-SUMIF(Control!$A$39:$A$48, Z$3,Control!$I$39:$I$48) -> 0 | AA51: =-SUMIF(Control!$A$39:$A$48, AA$3,Control!$I$39:$I$48) -> 0 | AB51: =-SUMIF(Control!$A$39:$A$48, AB$3,Control!$I$39:$I$48) -> 0 | AC51: =-SUMIF(Control!$A$39:$A$48, AC$3,Control!$I$39:$I$48) -> 0 | AD51: =-SUMIF(Control!$A$39:$A$48, AD$3,Control!$I$39:$I$48) -> 0 | AE51: =-SUMIF(Control!$A$39:$A$48, AE$3,Control!$I$39:$I$48) -> 0 | AF51: =-SUMIF(Control!$A$39:$A$48, AF$3,Control!$I$39:$I$48) -> 0 | AG51: =-SUMIF(Control!$A$39:$A$48, AG$3,Control!$I$39:$I$48) -> 0 | AH51: =-SUMIF(Control!$A$39:$A$48, AH$3,Control!$I$39:$I$48) -> 0 | AI51: =-SUMIF(Control!$A$39:$A$48, AI$3,Control!$I$39:$I$48) -> 0 | AJ51: =-SUMIF(Control!$A$39:$A$48, AJ$3,Control!$I$39:$I$48) -> 0 | AK51: =-SUMIF(Control!$A$39:$A$48, AK$3,Control!$I$39:$I$48) -> 0 | AL51: =-SUMIF(Control!$A$39:$A$48, AL$3,Control!$I$39:$I$48) -> 0 | AM51: =-SUMIF(Control!$A$39:$A$48, AM$3,Control!$I$39:$I$48) -> 0 | AN51: =-SUMIF(Control!$A$39:$A$48, AN$3,Control!$I$39:$I$48) -> 0 | AO51: =-SUMIF(Control!$A$39:$A$48, AO$3,Control!$I$39:$I$48) -> 0
D52: O&M (contract) ($000/year) | H52: =SUMPRODUCT($K52:$AO52,$K$5:$AO$5) -> -252557.5695 | I52: =SUM(K52:AO52) -> -355560.2447 | K52: =-SUMIF(Control!$A$39:$A$48, K$3,Control!$J$39:$J$48) -> 0 | L52: =-SUMIF(Control!$A$39:$A$48, L$3,Control!$J$39:$J$48) -> -36450.414 | M52: =-SUMIF(Control!$A$39:$A$48, M$3,Control!$J$39:$J$48) -> -37179.42228 | N52: =-SUMIF(Control!$A$39:$A$48, N$3,Control!$J$39:$J$48) -> -37923.01073 | O52: =-SUMIF(Control!$A$39:$A$48, O$3,Control!$J$39:$J$48) -> -38681.47094 | P52: =-SUMIF(Control!$A$39:$A$48, P$3,Control!$J$39:$J$48) -> -39455.10036 | Q52: =-SUMIF(Control!$A$39:$A$48, Q$3,Control!$J$39:$J$48) -> -40244.20237 | R52: =-SUMIF(Control!$A$39:$A$48, R$3,Control!$J$39:$J$48) -> -41049.08641 | S52: =-SUMIF(Control!$A$39:$A$48, S$3,Control!$J$39:$J$48) -> -41870.06814 | T52: =-SUMIF(Control!$A$39:$A$48, T$3,Control!$J$39:$J$48) -> -42707.4695 | U52: =-SUMIF(Control!$A$39:$A$48, U$3,Control!$J$39:$J$48) -> 0 | V52: =-SUMIF(Control!$A$39:$A$48, V$3,Control!$J$39:$J$48) -> 0 | W52: =-SUMIF(Control!$A$39:$A$48, W$3,Control!$J$39:$J$48) -> 0 | X52: =-SUMIF(Control!$A$39:$A$48, X$3,Control!$J$39:$J$48) -> 0 | Y52: =-SUMIF(Control!$A$39:$A$48, Y$3,Control!$J$39:$J$48) -> 0 | Z52: =-SUMIF(Control!$A$39:$A$48, Z$3,Control!$J$39:$J$48) -> 0 | AA52: =-SUMIF(Control!$A$39:$A$48, AA$3,Control!$J$39:$J$48) -> 0 | AB52: =-SUMIF(Control!$A$39:$A$48, AB$3,Control!$J$39:$J$48) -> 0 | AC52: =-SUMIF(Control!$A$39:$A$48, AC$3,Control!$J$39:$J$48) -> 0 | AD52: =-SUMIF(Control!$A$39:$A$48, AD$3,Control!$J$39:$J$48) -> 0 | AE52: =-SUMIF(Control!$A$39:$A$48, AE$3,Control!$J$39:$J$48) -> 0 | AF52: =-SUMIF(Control!$A$39:$A$48, AF$3,Control!$J$39:$J$48) -> 0 | AG52: =-SUMIF(Control!$A$39:$A$48, AG$3,Control!$J$39:$J$48) -> 0 | AH52: =-SUMIF(Control!$A$39:$A$48, AH$3,Control!$J$39:$J$48) -> 0 | AI52: =-SUMIF(Control!$A$39:$A$48, AI$3,Control!$J$39:$J$48) -> 0 | AJ52: =-SUMIF(Control!$A$39:$A$48, AJ$3,Control!$J$39:$J$48) -> 0 | AK52: =-SUMIF(Control!$A$39:$A$48, AK$3,Control!$J$39:$J$48) -> 0 | AL52: =-SUMIF(Control!$A$39:$A$48, AL$3,Control!$J$39:$J$48) -> 0 | AM52: =-SUMIF(Control!$A$39:$A$48, AM$3,Control!$J$39:$J$48) -> 0 | AN52: =-SUMIF(Control!$A$39:$A$48, AN$3,Control!$J$39:$J$48) -> 0 | AO52: =-SUMIF(Control!$A$39:$A$48, AO$3,Control!$J$39:$J$48) -> 0
D53: Capacity Bonus at 98% C.F. | H53: =SUMPRODUCT($K53:$AO53,$K$5:$AO$5) -> -54039.96134 | I53: =SUM(K53:AO53) -> -75152.06447 | K53: =-SUMIF(Control!$A$39:$A$48, K$3,Control!$K$39:$K$48) -> 0 | L53: =-SUMIF(Control!$A$39:$A$48, L$3,Control!$K$39:$K$48) -> -8484.1614 | M53: =-SUMIF(Control!$A$39:$A$48, M$3,Control!$K$39:$K$48) -> -8446.182228 | N53: =-SUMIF(Control!$A$39:$A$48, N$3,Control!$K$39:$K$48) -> -8413.621073 | O53: =-SUMIF(Control!$A$39:$A$48, O$3,Control!$K$39:$K$48) -> -8378.587094 | P53: =-SUMIF(Control!$A$39:$A$48, P$3,Control!$K$39:$K$48) -> -8345.070036 | Q53: =-SUMIF(Control!$A$39:$A$48, Q$3,Control!$K$39:$K$48) -> -8309.140237 | R53: =-SUMIF(Control!$A$39:$A$48, R$3,Control!$K$39:$K$48) -> -8286.668641 | S53: =-SUMIF(Control!$A$39:$A$48, S$3,Control!$K$39:$K$48) -> -8257.886814 | T53: =-SUMIF(Control!$A$39:$A$48, T$3,Control!$K$39:$K$48) -> -8230.74695 | U53: =-SUMIF(Control!$A$39:$A$48, U$3,Control!$K$39:$K$48) -> 0 | V53: =-SUMIF(Control!$A$39:$A$48, V$3,Control!$K$39:$K$48) -> 0 | W53: =-SUMIF(Control!$A$39:$A$48, W$3,Control!$K$39:$K$48) -> 0 | X53: =-SUMIF(Control!$A$39:$A$48, X$3,Control!$K$39:$K$48) -> 0 | Y53: =-SUMIF(Control!$A$39:$A$48, Y$3,Control!$K$39:$K$48) -> 0 | Z53: =-SUMIF(Control!$A$39:$A$48, Z$3,Control!$K$39:$K$48) -> 0 | AA53: =-SUMIF(Control!$A$39:$A$48, AA$3,Control!$K$39:$K$48) -> 0 | AB53: =-SUMIF(Control!$A$39:$A$48, AB$3,Control!$K$39:$K$48) -> 0 | AC53: =-SUMIF(Control!$A$39:$A$48, AC$3,Control!$K$39:$K$48) -> 0 | AD53: =-SUMIF(Control!$A$39:$A$48, AD$3,Control!$K$39:$K$48) -> 0 | AE53: =-SUMIF(Control!$A$39:$A$48, AE$3,Control!$K$39:$K$48) -> 0 | AF53: =-SUMIF(Control!$A$39:$A$48, AF$3,Control!$K$39:$K$48) -> 0 | AG53: =-SUMIF(Control!$A$39:$A$48, AG$3,Control!$K$39:$K$48) -> 0 | AH53: =-SUMIF(Control!$A$39:$A$48, AH$3,Control!$K$39:$K$48) -> 0 | AI53: =-SUMIF(Control!$A$39:$A$48, AI$3,Control!$K$39:$K$48) -> 0 | AJ53: =-SUMIF(Control!$A$39:$A$48, AJ$3,Control!$K$39:$K$48) -> 0 | AK53: =-SUMIF(Control!$A$39:$A$48, AK$3,Control!$K$39:$K$48) -> 0 | AL53: =-SUMIF(Control!$A$39:$A$48, AL$3,Control!$K$39:$K$48) -> 0 | AM53: =-SUMIF(Control!$A$39:$A$48, AM$3,Control!$K$39:$K$48) -> 0 | AN53: =-SUMIF(Control!$A$39:$A$48, AN$3,Control!$K$39:$K$48) -> 0 | AO53: =-SUMIF(Control!$A$39:$A$48, AO$3,Control!$K$39:$K$48) -> 0
D54: Total Avoided Cost from Terminating PPA | H54: =SUMPRODUCT($K54:$AO54,$K$5:$AO$5) -> -594439.5747 | I54: =SUM(K54:AO54) -> -826672.7092 | K54: =SUM(K51:K53) -> 0 | L54: =SUM(L51:L53) -> -93325.7754 | M54: -92908.00451 | N54: -92549.8318 | O54: -92164.45803 | P54: -91795.77039 | Q54: -91400.5426 | R54: -91153.35505 | S54: -90836.75496 | T54: -90538.21645 | U54: 0 | V54: 0 | W54: 0 | X54: 0 | Y54: 0 | Z54: 0 | AA54: 0 | AB54: 0 | AC54: 0 | AD54: 0 | AE54: 0 | AF54: 0 | AG54: 0 | AH54: 0 | AI54: 0 | AJ54: 0 | AK54: 0 | AL54: 0 | AM54: 0 | AN54: 0 | AO54: 0
D57: System Impact | H57: =SUMPRODUCT($K57:$AO57,$K$5:$AO$5) -> -79823.09004 | I57: =SUM(K57:AO57) -> -97750.4 | K57: =SUMIF(Control!$A$58:$A$69,K$3,Control!$N$39:$N$50) -> 0 | L57: =SUMIF(Control!$A$58:$A$69,L$3,Control!$N$39:$N$50) -> -22230 | M57: =SUMIF(Control!$A$58:$A$69,M$3,Control!$N$39:$N$50) -> -23690 | N57: =SUMIF(Control!$A$58:$A$69,N$3,Control!$N$39:$N$50) -> -17800 | O57: =SUMIF(Control!$A$58:$A$69,O$3,Control!$N$39:$N$50) -> -10380 | P57: =SUMIF(Control!$A$58:$A$69,P$3,Control!$N$39:$N$50) -> -8050 | Q57: =SUMIF(Control!$A$58:$A$69,Q$3,Control!$N$39:$N$50) -> -6820 | R57: =SUMIF(Control!$A$58:$A$69,R$3,Control!$N$39:$N$50) -> -420.4 | S57: =SUMIF(Control!$A$58:$A$69,S$3,Control!$N$39:$N$50) -> -4340 | T57: =SUMIF(Control!$A$58:$A$69,T$3,Control!$N$39:$N$50) -> -4020 | U57: =SUMIF(Control!$A$58:$A$69,U$3,Control!$N$39:$N$50) -> 0 | V57: =SUMIF(Control!$A$58:$A$69,V$3,Control!$N$39:$N$50) -> 0 | W57: =SUMIF(Control!$A$58:$A$69,W$3,Control!$N$39:$N$50) -> 0 | X57: =SUMIF(Control!$A$58:$A$69,X$3,Control!$N$39:$N$50) -> 0 | Y57: =SUMIF(Control!$A$58:$A$69,Y$3,Control!$N$39:$N$50) -> 0 | Z57: =SUMIF(Control!$A$58:$A$69,Z$3,Control!$N$39:$N$50) -> 0 | AA57: =SUMIF(Control!$A$58:$A$69,AA$3,Control!$N$39:$N$50) -> 0 | AB57: =SUMIF(Control!$A$58:$A$69,AB$3,Control!$N$39:$N$50) -> 0 | AC57: =SUMIF(Control!$A$58:$A$69,AC$3,Control!$N$39:$N$50) -> 0 | AD57: =SUMIF(Control!$A$58:$A$69,AD$3,Control!$N$39:$N$50) -> 0 | AE57: =SUMIF(Control!$A$58:$A$69,AE$3,Control!$N$39:$N$50) -> 0 | AF57: =SUMIF(Control!$A$58:$A$69,AF$3,Control!$N$39:$N$50) -> 0 | AG57: =SUMIF(Control!$A$58:$A$69,AG$3,Control!$N$39:$N$50) -> 0 | AH57: =SUMIF(Control!$A$58:$A$69,AH$3,Control!$N$39:$N$50) -> 0 | AI57: =SUMIF(Control!$A$58:$A$69,AI$3,Control!$N$39:$N$50) -> 0 | AJ57: =SUMIF(Control!$A$58:$A$69,AJ$3,Control!$N$39:$N$50) -> 0 | AK57: =SUMIF(Control!$A$58:$A$69,AK$3,Control!$N$39:$N$50) -> 0 | AL57: =SUMIF(Control!$A$58:$A$69,AL$3,Control!$N$39:$N$50) -> 0 | AM57: =SUMIF(Control!$A$58:$A$69,AM$3,Control!$N$39:$N$50) -> 0 | AN57: =SUMIF(Control!$A$58:$A$69,AN$3,Control!$N$39:$N$50) -> 0 | AO57: =SUMIF(Control!$A$58:$A$69,AO$3,Control!$N$39:$N$50) -> 0
D60: TOTAL INCREMENTAL REVENUE REQUIREMENT | H60: =SUMPRODUCT($K60:$AO60,$K$5:$AO$5) -> -128685.8854 | I60: =SUM(K60:AO60) -> -204581.9982 | K60: =K46+K54+K57 -> 0 | L60: 31.76394753 | M60: -3630.683745 | N60: -13667.03573 | O60: -13996.47402 | P60: -30621.92761 | Q60: -33003.07413 | R60: -30362.66089 | S60: -37972.0351 | T60: -41359.87091 | U60: -5.456968211e-12 | V60: 0 | W60: 0 | X60: 0 | Y60: 0 | Z60: 0 | AA60: 0 | AB60: 0 | AC60: 0 | AD60: 0 | AE60: 0 | AF60: 0 | AG60: 0 | AH60: 0 | AI60: 0 | AJ60: 0 | AK60: 0 | AL60: 0 | AM60: 0 | AN60: 0 | AO60: 0
D63: Incremental Income Statement (Clause / Base Retail)
D65: Revenue | K65: =K46 -> 0 | L65: 115587.5393 | M65: 112967.3208 | N65: 96682.79607 | O65: 88547.98401 | P65: 69223.84279 | Q65: 65217.46848 | R65: 61211.09417 | S65: 57204.71985 | T65: 53198.34554 | U65: -5.456968211e-12 | V65: 0 | W65: 0 | X65: 0 | Y65: 0 | Z65: 0 | AA65: 0 | AB65: 0 | AC65: 0 | AD65: 0 | AE65: 0 | AF65: 0 | AG65: 0 | AH65: 0 | AI65: 0 | AJ65: 0 | AK65: 0 | AL65: 0 | AM65: 0 | AN65: 0 | AO65: 0
D66: O&M | K66: =-K38 -> 0 | L66: -10768.74436 | M66: -13195.424 | N66: -2195.424 | O66: -2195.424 | P66: -1195.424 | Q66: -1195.424 | R66: -1195.424 | S66: -1195.424 | T66: -1195.424 | U66: 5.456968211e-12 | V66: 0 | W66: 0 | X66: 0 | Y66: 0 | Z66: 0 | AA66: 0 | AB66: 0 | AC66: 0 | AD66: 0 | AE66: 0 | AF66: 0 | AG66: 0 | AH66: 0 | AI66: 0 | AJ66: 0 | AK66: 0 | AL66: 0 | AM66: 0 | AN66: 0 | AO66: 0
D67: Amortization of Regulatory Asset | K67: =-K36 -> 0 | L67: -50166.66667 | M67: -50166.66667 | N67: -50166.66667 | O67: -50166.66667 | P67: -50166.66667 | Q67: -50166.66667 | R67: -50166.66667 | S67: -50166.66667 | T67: -50166.66667 | U67: 0 | V67: 0 | W67: 0 | X67: 0 | Y67: 0 | Z67: 0 | AA67: 0 | AB67: 0 | AC67: 0 | AD67: 0 | AE67: 0 | AF67: 0 | AG67: 0 | AH67: 0 | AI67: 0 | AJ67: 0 | AK67: 0 | AL67: 0 | AM67: 0 | AN67: 0 | AO67: 0
D68: ARO Asset Amortization | K68: =-K39 -> 0 | L68: -2485 | M68: -2485 | N68: -2485 | O68: -2485 | P68: 0 | Q68: 0 | R68: 0 | S68: 0 | T68: 0 | U68: 0 | V68: 0 | W68: 0 | X68: 0 | Y68: 0 | Z68: 0 | AA68: 0 | AB68: 0 | AC68: 0 | AD68: 0 | AE68: 0 | AF68: 0 | AG68: 0 | AH68: 0 | AI68: 0 | AJ68: 0 | AK68: 0 | AL68: 0 | AM68: 0 | AN68: 0 | AO68: 0
D69: ARO Liability Accretion | K69: =-K40 -> 0 | L69: -200.6324955 | M69: -204.6821331 | N69: -208.8135101 | O69: -213.0282763 | P69: 0 | Q69: 0 | R69: 0 | S69: 0 | T69: 0 | U69: 0 | V69: 0 | W69: 0 | X69: 0 | Y69: 0 | Z69: 0 | AA69: 0 | AB69: 0 | AC69: 0 | AD69: 0 | AE69: 0 | AF69: 0 | AG69: 0 | AH69: 0 | AI69: 0 | AJ69: 0 | AK69: 0 | AL69: 0 | AM69: 0 | AN69: 0 | AO69: 0
D70: EBIT | K70: =SUM(K65:K69) -> 0 | L70: 51966.49582 | M70: 46915.54796 | N70: 41626.89189 | O70: 33487.86507 | P70: 17861.75212 | Q70: 13855.37781 | R70: 9849.003499 | S70: 5842.629188 | T70: 1836.254876 | U70: 0 | V70: 0 | W70: 0 | X70: 0 | Y70: 0 | Z70: 0 | AA70: 0 | AB70: 0 | AC70: 0 | AD70: 0 | AE70: 0 | AF70: 0 | AG70: 0 | AH70: 0 | AI70: 0 | AJ70: 0 | AK70: 0 | AL70: 0 | AM70: 0 | AN70: 0 | AO70: 0
D71: Interest (Return on Debt Capital) | K71: =-K42-K41 -> 0 | L71: -4000.891128 | M71: -3693.476184 | N71: -3395.808586 | O71: -1337.716773 | P71: -2832.647309 | Q71: -2197.287165 | R71: -1561.92702 | S71: -926.5668751 | T71: -291.2067304 | U71: 0 | V71: 0 | W71: 0 | X71: 0 | Y71: 0 | Z71: 0 | AA71: 0 | AB71: 0 | AC71: 0 | AD71: 0 | AE71: 0 | AF71: 0 | AG71: 0 | AH71: 0 | AI71: 0 | AJ71: 0 | AK71: 0 | AL71: 0 | AM71: 0 | AN71: 0 | AO71: 0
D72: Earnings Before Taxes | K72: =SUM(K70:K71) -> 0 | L72: =SUM(L70:L71) -> 47965.60469 | M72: 43222.07178 | N72: 38231.08331 | O72: 32150.14829 | P72: 15029.10481 | Q72: 11658.09065 | R72: 8287.076479 | S72: 4916.062312 | T72: 1545.048146 | U72: 0 | V72: 0 | W72: 0 | X72: 0 | Y72: 0 | Z72: 0 | AA72: 0 | AB72: 0 | AC72: 0 | AD72: 0 | AE72: 0 | AF72: 0 | AG72: 0 | AH72: 0 | AI72: 0 | AJ72: 0 | AK72: 0 | AL72: 0 | AM72: 0 | AN72: 0 | AO72: 0
D73: Taxes | F73: =Control!$C$20 -> 0.38575 | K73: =-(K72)*$F$73 -> 0 | L73: -18502.73201 | M73: -16672.91419 | N73: -14747.64039 | O73: -12401.9197 | P73: -5797.477181 | Q73: -4497.108467 | R73: -3196.739752 | S73: -1896.371037 | T73: -596.0023222 | U73: 0 | V73: 0 | W73: 0 | X73: 0 | Y73: 0 | Z73: 0 | AA73: 0 | AB73: 0 | AC73: 0 | AD73: 0 | AE73: 0 | AF73: 0 | AG73: 0 | AH73: 0 | AI73: 0 | AJ73: 0 | AK73: 0 | AL73: 0 | AM73: 0 | AN73: =-(AN72)*$F$73 -> 0 | AO73: =-(AO72)*$F$73 -> 0
D74: Net Income | K74: =SUM(K72:K73) -> 0 | L74: =SUM(L72:L73) -> 29462.87268 | M74: 26549.15759 | N74: 23483.44292 | O74: 19748.22859 | P74: 9231.627631 | Q74: 7160.982179 | R74: 5090.336727 | S74: 3019.691275 | T74: 949.0458235 | U74: 0 | V74: 0 | W74: 0 | X74: 0 | Y74: 0 | Z74: 0 | AA74: 0 | AB74: 0 | AC74: 0 | AD74: 0 | AE74: 0 | AF74: 0 | AG74: 0 | AH74: 0 | AI74: 0 | AJ74: 0 | AK74: 0 | AL74: 0 | AM74: 0 | AN74: 0 | AO74: 0
D75: Equity Portion of Rate Base (Incl. Average Incremental AFUDC) | K75: =K26 -> 0 | L75: 256198.8929 | M75: 230862.2399 | N75: 204203.8515 | O75: 171723.7269 | P75: 80275.02288 | Q75: 62269.41025 | R75: 44263.79763 | S75: 26258.185 | T75: 8252.572379 | U75: 0 | V75: 0 | W75: 0 | X75: 0 | Y75: 0 | Z75: 0 | AA75: 0 | AB75: 0 | AC75: 0 | AD75: 0 | AE75: 0 | AF75: 0 | AG75: 0 | AH75: 0 | AI75: 0 | AJ75: 0 | AK75: 0 | AL75: 0 | AM75: 0 | AN75: 0 | AO75: 0
D76: Blended ROE | K76: =IFERROR(K74/K75,0) -> 0 | L76: =IFERROR(L74/L75,0) -> 0.115 | M76: 0.115 | N76: 0.115 | O76: 0.115 | P76: 0.115 | Q76: 0.115 | R76: 0.115 | S76: 0.115 | T76: 0.115 | U76: 0 | V76: 0 | W76: 0 | X76: 0 | Y76: 0 | Z76: 0 | AA76: 0 | AB76: 0 | AC76: 0 | AD76: 0 | AE76: 0 | AF76: 0 | AG76: 0 | AH76: 0 | AI76: 0 | AJ76: 0 | AK76: 0 | AL76: 0 | AM76: 0 | AN76: 0 | AO76: 0

Sheet MonthlyBalances
D1: MONTHLY BALANCES
A2: FPL 001179 Indiantown Cogen | D2: =Control!$C$15 -> Equity Step-up | K2: 0 | L2: =K2+1 -> 1 | M2: =L2+1 -> 2 | N2: 3 | O2: 4 | P2: 5 | Q2: 6 | R2: 7 | S2: 8 | T2: 9 | U2: 10 | V2: 11 | W2: 12 | X2: 13 | Y2: 14 | Z2: 15 | AA2: 16 | AB2: 17 | AC2: 18 | AD2: 19 | AE2: 20 | AF2: 21 | AG2: 22 | AH2: 23 | AI2: 24 | AJ2: 25 | AK2: 26 | AL2: 27 | AM2: 28 | AN2: 29 | AO2: 30 | AP2: =AO2+1 -> 31 | AQ2: 32 | AR2: 33 | AS2: 34 | AT2: 35 | AU2: 36 | AV2: 37 | AW2: 38 | AX2: 39 | AY2: 40 | AZ2: 41 | BA2: 42 | BB2: 43 | BC2: 44 | BD2: 45 | BE2: 46 | BF2: 47 | BG2: 48 | BH2: 49 | BI2: 50 | BJ2: 51 | BK2: 52 | BL2: 53 | BM2: 54 | BN2: 55 | BO2: 56 | BP2: 57 | BQ2: 58 | BR2: 59 | BS2: 60 | BT2: 61 | BU2: 62 | BV2: 63 | BW2: 64 | BX2: 65 | BY2: 66 | BZ2: 67 | CA2: 68 | CB2: 69 | CC2: 70 | CD2: 71 | CE2: 72 | CF2: 73 | CG2: 74 | CH2: 75 | CI2: 76 | CJ2: 77 | CK2: 78 | CL2: 79 | CM2: 80 | CN2: 81 | CO2: 82 | CP2: 83 | CQ2: 84 | CR2: 85 | CS2: 86 | CT2: 87 | CU2: 88 | CV2: 89 | CW2: 90 | CX2: 91 | CY2: 92 | CZ2: 93 | DA2: 94 | DB2: =DA2+1 -> 95 | DC2: 96 | DD2: 97 | DE2: 98 | DF2: 99 | DG2: 100 | DH2: 101 | DI2: 102 | DJ2: 103 | DK2: 104 | DL2: 105 | DM2: 106 | DN2: 107 | DO2: 108 | DP2: 109 | DQ2: 110 | DR2: 111 | DS2: 112 | DT2: 113 | DU2: 114 | DV2: 115 | DW2: 116 | DX2: 117 | DY2: 118 | DZ2: 119 | EA2: 120 | EB2: 121 | EC2: 122 | ED2: 123 | EE2: 124 | EF2: 125 | EG2: 126 | EH2: 127 | EI2: 128 | EJ2: 129 | EK2: 130 | EL2: 131 | EM2: 132 | EN2: 133 | EO2: 134 | EP2: 135 | EQ2: 136 | ER2: 137 | ES2: 138 | ET2: 139 | EU2: =ET2+1 -> 140 | EV2: =EU2+1 -> 141 | EW2: =EV2+1 -> 142 | EX2: =EW2+1 -> 143 | EY2: =EX2+1 -> 144
D3: Year | F3: Input | H3: PV | I3: Sum | K3: =YEAR(K4) -> 2015 | L3: =YEAR(L4) -> 2015 | M3: 2015 | N3: 2015 | O3: 2015 | P3: 2015 | Q3: 2015 | R3: 2015 | S3: 2015 | T3: 2015 | U3: 2015 | V3: 2015 | W3: 2016 | X3: 2016 | Y3: 2016 | Z3: 2016 | AA3: 2016 | AB3: 2016 | AC3: 2016 | AD3: 2016 | AE3: 2016 | AF3: 2016 | AG3: 2016 | AH3: 2016 | AI3: 2017 | AJ3: 2017 | AK3: 2017 | AL3: 2017 | AM3: 2017 | AN3: 2017 | AO3: 2017 | AP3: =YEAR(AP4) -> 2017 | AQ3: 2017 | AR3: 2017 | AS3: 2017 | AT3: 2017 | AU3: 2018 | AV3: 2018 | AW3: 2018 | AX3: 2018 | AY3: 2018 | AZ3: 2018 | BA3: 2018 | BB3: 2018 | BC3: 2018 | BD3: 2018 | BE3: 2018 | BF3: 2018 | BG3: 2019 | BH3: 2019 | BI3: 2019 | BJ3: 2019 | BK3: 2019 | BL3: 2019 | BM3: 2019 | BN3: 2019 | BO3: 2019 | BP3: 2019 | BQ3: 2019 | BR3: 2019 | BS3: 2020 | BT3: 2020 | BU3: 2020 | BV3: =YEAR(BV4) -> 2020 | BW3: 2020 | BX3: 2020 | BY3: 2020 | BZ3: 2020 | CA3: 2020 | CB3: 2020 | CC3: 2020 | CD3: 2020 | CE3: 2021 | CF3: 2021 | CG3: 2021 | CH3: 2021 | CI3: 2021 | CJ3: 2021 | CK3: 2021 | CL3: 2021 | CM3: 2021 | CN3: 2021 | CO3: 2021 | CP3: 2021 | CQ3: 2022 | CR3: 2022 | CS3: 2022 | CT3: 2022 | CU3: 2022 | CV3: 2022 | CW3: 2022 | CX3: 2022 | CY3: 2022 | CZ3: 2022 | DA3: 2022 | DB3: =YEAR(DB4) -> 2022 | DC3: 2023 | DD3: 2023 | DE3: 2023 | DF3: 2023 | DG3: 2023 | DH3: 2023 | DI3: 2023 | DJ3: 2023 | DK3: 2023 | DL3: 2023 | DM3: 2023 | DN3: 2023 | DO3: 2024 | DP3: 2024 | DQ3: 2024 | DR3: 2024 | DS3: 2024 | DT3: 2024 | DU3: 2024 | DV3: 2024 | DW3: 2024 | DX3: 2024 | DY3: 2024 | DZ3: 2024 | EA3: 2025 | EB3: 2025 | EC3: 2025 | ED3: 2025 | EE3: 2025 | EF3: 2025 | EG3: 2025 | EH3: =YEAR(EH4) -> 2025 | EI3: 2025 | EJ3: 2025 | EK3: 2025 | EL3: 2025 | EM3: 2026 | EN3: 2026 | EO3: 2026 | EP3: 2026 | EQ3: 2026 | ER3: 2026 | ES3: 2026 | ET3: 2026 | EU3: 2026 | EV3: 2026 | EW3: 2026 | EX3: 2026 | EY3: 2027
D4: Month | K4: 2015-01-31 | L4: =EOMONTH(K4,1) -> 2015-02-28 | M4: =EOMONTH(L4,1) -> 2015-03-31 | N4: 2015-04-30 | O4: 2015-05-31 | P4: 2015-06-30 | Q4: 2015-07-31 | R4: 2015-08-31 | S4: 2015-09-30 | T4: 2015-10-31 | U4: 2015-11-30 | V4: 2015-12-31 | W4: 2016-01-31 | X4: 2016-02-29 | Y4: 2016-03-31 | Z4: 2016-04-30 | AA4: 2016-05-31 | AB4: 2016-06-30 | AC4: 2016-07-31 | AD4: 2016-08-31 | AE4: 2016-09-30 | AF4: 2016-10-31 | AG4: 2016-11-30 | AH4: 2016-12-31 | AI4: 2017-01-31 | AJ4: 2017-02-28 | AK4: 2017-03-31 | AL4: 2017-04-30 | AM4: 2017-05-31 | AN4: 2017-06-30 | AO4: 2017-07-31 | AP4: =EOMONTH(AO4,1) -> 2017-08-31 | AQ4: 2017-09-30 | AR4: 2017-10-31 | AS4: 2017-11-30 | AT4: 2017-12-31 | AU4: 2018-01-31 | AV4: 2018-02-28 | AW4: 2018-03-31 | AX4: 2018-04-30 | AY4: 2018-05-31 | AZ4: 2018-06-30 | BA4: 2018-07-31 | BB4: 2018-08-31 | BC4: 2018-09-30 | BD4: 2018-10-31 | BE4: 2018-11-30 | BF4: 2018-12-31 | BG4: 2019-01-31 | BH4: 2019-02-28 | BI4: 2019-03-31 | BJ4: 2019-04-30 | BK4: 2019-05-31 | BL4: 2019-06-30 | BM4: 2019-07-31 | BN4: 2019-08-31 | BO4: 2019-09-30 | BP4: 2019-10-31 | BQ4: 2019-11-30 | BR4: 2019-12-31 | BS4: 2020-01-31 | BT4: 2020-02-29 | BU4: 2020-03-31 | BV4: 2020-04-30 | BW4: 2020-05-31 | BX4: 2020-06-30 | BY4: 2020-07-31 | BZ4: 2020-08-31 | CA4: 2020-09-30 | CB4: 2020-10-31 | CC4: 2020-11-30 | CD4: 2020-12-31 | CE4: 2021-01-31 | CF4: 2021-02-28 | CG4: 2021-03-31 | CH4: 2021-04-30 | CI4: 2021-05-31 | CJ4: 2021-06-30 | CK4: 2021-07-31 | CL4: 2021-08-31 | CM4: 2021-09-30 | CN4: 2021-10-31 | CO4: 2021-11-30 | CP4: 2021-12-31 | CQ4: 2022-01-31 | CR4: 2022-02-28 | CS4: 2022-03-31 | CT4: 2022-04-30 | CU4: 2022-05-31 | CV4: 2022-06-30 | CW4: 2022-07-31 | CX4: 2022-08-31 | CY4: 2022-09-30 | CZ4: 2022-10-31 | DA4: 2022-11-30 | DB4: =EOMONTH(DA4,1) -> 2022-12-31 | DC4: 2023-01-31 | DD4: 2023-02-28 | DE4: 2023-03-31 | DF4: 2023-04-30 | DG4: 2023-05-31 | DH4: 2023-06-30 | DI4: 2023-07-31 | DJ4: 2023-08-31 | DK4: 2023-09-30 | DL4: 2023-10-31 | DM4: 2023-11-30 | DN4: 2023-12-31 | DO4: 2024-01-31 | DP4: 2024-02-29 | DQ4: 2024-03-31 | DR4: 2024-04-30 | DS4: 2024-05-31 | DT4: 2024-06-30 | DU4: 2024-07-31 | DV4: 2024-08-31 | DW4: 2024-09-30 | DX4: 2024-10-31 | DY4: 2024-11-30 | DZ4: 2024-12-31 | EA4: 2025-01-31 | EB4: 2025-02-28 | EC4: 2025-03-31 | ED4: 2025-04-30 | EE4: 2025-05-31 | EF4: 2025-06-30 | EG4: 2025-07-31 | EH4: 2025-08-31 | EI4: 2025-09-30 | EJ4: 2025-10-31 | EK4: 2025-11-30 | EL4: 2025-12-31 | EM4: 2026-01-31 | EN4: 2026-02-28 | EO4: 2026-03-31 | EP4: 2026-04-30 | EQ4: 2026-05-31 | ER4: 2026-06-30 | ES4: 2026-07-31 | ET4: 2026-08-31 | EU4: =EOMONTH(ET4,1) -> 2026-09-30 | EV4: =EOMONTH(EU4,1) -> 2026-10-31 | EW4: =EOMONTH(EV4,1) -> 2026-11-30 | EX4: =EOMONTH(EW4,1) -> 2026-12-31 | EY4: =EOMONTH(EX4,1) -> 2027-01-31
D5: Flag after COD | K5: =IF(K$4>=$F$12,1,0)*(K$4<=Control!$C$8) -> 0 | L5: =IF(L$4>=$F$12,1,0)*(L$4<=Control!$C$8) -> 0 | M5: =IF(M$4>=$F$12,1,0)*(M$4<=Control!$C$8) -> 0 | N5: =IF(N$4>=$F$12,1,0)*(N$4<=Control!$C$8) -> 0 | O5: =IF(O$4>=$F$12,1,0)*(O$4<=Control!$C$8) -> 0 | P5: =IF(P$4>=$F$12,1,0)*(P$4<=Control!$C$8) -> 0 | Q5: =IF(Q$4>=$F$12,1,0)*(Q$4<=Control!$C$8) -> 0 | R5: =IF(R$4>=$F$12,1,0)*(R$4<=Control!$C$8) -> 0 | S5: =IF(S$4>=$F$12,1,0)*(S$4<=Control!$C$8) -> 0 | T5: =IF(T$4>=$F$12,1,0)*(T$4<=Control!$C$8) -> 0 | U5: =IF(U$4>=$F$12,1,0)*(U$4<=Control!$C$8) -> 0 | V5: =IF(V$4>=$F$12,1,0)*(V$4<=Control!$C$8) -> 0 | W5: =IF(W$4>=$F$12,1,0)*(W$4<=Control!$C$8) -> 0 | X5: =IF(X$4>=$F$12,1,0)*(X$4<=Control!$C$8) -> 0 | Y5: =IF(Y$4>=$F$12,1,0)*(Y$4<=Control!$C$8) -> 0 | Z5: =IF(Z$4>=$F$12,1,0)*(Z$4<=Control!$C$8) -> 0 | AA5: =IF(AA$4>=$F$12,1,0)*(AA$4<=Control!$C$8) -> 0 | AB5: =IF(AB$4>=$F$12,1,0)*(AB$4<=Control!$C$8) -> 0 | AC5: =IF(AC$4>=$F$12,1,0)*(AC$4<=Control!$C$8) -> 0 | AD5: =IF(AD$4>=$F$12,1,0)*(AD$4<=Control!$C$8) -> 0 | AE5: =IF(AE$4>=$F$12,1,0)*(AE$4<=Control!$C$8) -> 0 | AF5: =IF(AF$4>=$F$12,1,0)*(AF$4<=Control!$C$8) -> 0 | AG5: =IF(AG$4>=$F$12,1,0)*(AG$4<=Control!$C$8) -> 0 | AH5: =IF(AH$4>=$F$12,1,0)*(AH$4<=Control!$C$8) -> 0 | AI5: =IF(AI$4>=$F$12,1,0)*(AI$4<=Control!$C$8) -> 1 | AJ5: =IF(AJ$4>=$F$12,1,0)*(AJ$4<=Control!$C$8) -> 1 | AK5: =IF(AK$4>=$F$12,1,0)*(AK$4<=Control!$C$8) -> 1 | AL5: =IF(AL$4>=$F$12,1,0)*(AL$4<=Control!$C$8) -> 1 | AM5: =IF(AM$4>=$F$12,1,0)*(AM$4<=Control!$C$8) -> 1 | AN5: =IF(AN$4>=$F$12,1,0)*(AN$4<=Control!$C$8) -> 1 | AO5: =IF(AO$4>=$F$12,1,0)*(AO$4<=Control!$C$8) -> 1 | AP5: =IF(AP$4>=$F$12,1,0)*(AP$4<=Control!$C$8) -> 1 | AQ5: =IF(AQ$4>=$F$12,1,0)*(AQ$4<=Control!$C$8) -> 1 | AR5: =IF(AR$4>=$F$12,1,0)*(AR$4<=Control!$C$8) -> 1 | AS5: =IF(AS$4>=$F$12,1,0)*(AS$4<=Control!$C$8) -> 1 | AT5: =IF(AT$4>=$F$12,1,0)*(AT$4<=Control!$C$8) -> 1 | AU5: =IF(AU$4>=$F$12,1,0)*(AU$4<=Control!$C$8) -> 1 | AV5: =IF(AV$4>=$F$12,1,0)*(AV$4<=Control!$C$8) -> 1 | AW5: =IF(AW$4>=$F$12,1,0)*(AW$4<=Control!$C$8) -> 1 | AX5: =IF(AX$4>=$F$12,1,0)*(AX$4<=Control!$C$8) -> 1 | AY5: =IF(AY$4>=$F$12,1,0)*(AY$4<=Control!$C$8) -> 1 | AZ5: =IF(AZ$4>=$F$12,1,0)*(AZ$4<=Control!$C$8) -> 1 | BA5: =IF(BA$4>=$F$12,1,0)*(BA$4<=Control!$C$8) -> 1 | BB5: =IF(BB$4>=$F$12,1,0)*(BB$4<=Control!$C$8) -> 1 | BC5: =IF(BC$4>=$F$12,1,0)*(BC$4<=Control!$C$8) -> 1 | BD5: =IF(BD$4>=$F$12,1,0)*(BD$4<=Control!$C$8) -> 1 | BE5: =IF(BE$4>=$F$12,1,0)*(BE$4<=Control!$C$8) -> 1 | BF5: =IF(BF$4>=$F$12,1,0)*(BF$4<=Control!$C$8) -> 1 | BG5: =IF(BG$4>=$F$12,1,0)*(BG$4<=Control!$C$8) -> 1 | BH5: =IF(BH$4>=$F$12,1,0)*(BH$4<=Control!$C$8) -> 1 | BI5: =IF(BI$4>=$F$12,1,0)*(BI$4<=Control!$C$8) -> 1 | BJ5: =IF(BJ$4>=$F$12,1,0)*(BJ$4<=Control!$C$8) -> 1 | BK5: =IF(BK$4>=$F$12,1,0)*(BK$4<=Control!$C$8) -> 1 | BL5: =IF(BL$4>=$F$12,1,0)*(BL$4<=Control!$C$8) -> 1 | BM5: =IF(BM$4>=$F$12,1,0)*(BM$4<=Control!$C$8) -> 1 | BN5: =IF(BN$4>=$F$12,1,0)*(BN$4<=Control!$C$8) -> 1 | BO5: =IF(BO$4>=$F$12,1,0)*(BO$4<=Control!$C$8) -> 1 | BP5: =IF(BP$4>=$F$12,1,0)*(BP$4<=Control!$C$8) -> 1 | BQ5: =IF(BQ$4>=$F$12,1,0)*(BQ$4<=Control!$C$8) -> 1 | BR5: =IF(BR$4>=$F$12,1,0)*(BR$4<=Control!$C$8) -> 1 | BS5: =IF(BS$4>=$F$12,1,0)*(BS$4<=Control!$C$8) -> 1 | BT5: =IF(BT$4>=$F$12,1,0)*(BT$4<=Control!$C$8) -> 1 | BU5: =IF(BU$4>=$F$12,1,0)*(BU$4<=Control!$C$8) -> 1 | BV5: =IF(BV$4>=$F$12,1,0)*(BV$4<=Control!$C$8) -> 1 | BW5: =IF(BW$4>=$F$12,1,0)*(BW$4<=Control!$C$8) -> 1 | BX5: =IF(BX$4>=$F$12,1,0)*(BX$4<=Control!$C$8) -> 1 | BY5: =IF(BY$4>=$F$12,1,0)*(BY$4<=Control!$C$8) -> 1 | BZ5: =IF(BZ$4>=$F$12,1,0)*(BZ$4<=Control!$C$8) -> 1 | CA5: =IF(CA$4>=$F$12,1,0)*(CA$4<=Control!$C$8) -> 1 | CB5: =IF(CB$4>=$F$12,1,0)*(CB$4<=Control!$C$8) -> 1 | CC5: =IF(CC$4>=$F$12,1,0)*(CC$4<=Control!$C$8) -> 1 | CD5: =IF(CD$4>=$F$12,1,0)*(CD$4<=Control!$C$8) -> 1 | CE5: =IF(CE$4>=$F$12,1,0)*(CE$4<=Control!$C$8) -> 1 | CF5: =IF(CF$4>=$F$12,1,0)*(CF$4<=Control!$C$8) -> 1 | CG5: =IF(CG$4>=$F$12,1,0)*(CG$4<=Control!$C$8) -> 1 | CH5: =IF(CH$4>=$F$12,1,0)*(CH$4<=Control!$C$8) -> 1 | CI5: =IF(CI$4>=$F$12,1,0)*(CI$4<=Control!$C$8) -> 1 | CJ5: =IF(CJ$4>=$F$12,1,0)*(CJ$4<=Control!$C$8) -> 1 | CK5: =IF(CK$4>=$F$12,1,0)*(CK$4<=Control!$C$8) -> 1 | CL5: =IF(CL$4>=$F$12,1,0)*(CL$4<=Control!$C$8) -> 1 | CM5: =IF(CM$4>=$F$12,1,0)*(CM$4<=Control!$C$8) -> 1 | CN5: =IF(CN$4>=$F$12,1,0)*(CN$4<=Control!$C$8) -> 1 | CO5: =IF(CO$4>=$F$12,1,0)*(CO$4<=Control!$C$8) -> 1 | CP5: =IF(CP$4>=$F$12,1,0)*(CP$4<=Control!$C$8) -> 1 | CQ5: =IF(CQ$4>=$F$12,1,0)*(CQ$4<=Control!$C$8) -> 1 | CR5: =IF(CR$4>=$F$12,1,0)*(CR$4<=Control!$C$8) -> 1 | CS5: =IF(CS$4>=$F$12,1,0)*(CS$4<=Control!$C$8) -> 1 | CT5: =IF(CT$4>=$F$12,1,0)*(CT$4<=Control!$C$8) -> 1 | CU5: =IF(CU$4>=$F$12,1,0)*(CU$4<=Control!$C$8) -> 1 | CV5: =IF(CV$4>=$F$12,1,0)*(CV$4<=Control!$C$8) -> 1 | CW5: =IF(CW$4>=$F$12,1,0)*(CW$4<=Control!$C$8) -> 1 | CX5: =IF(CX$4>=$F$12,1,0)*(CX$4<=Control!$C$8) -> 1 | CY5: =IF(CY$4>=$F$12,1,0)*(CY$4<=Control!$C$8) -> 1 | CZ5: =IF(CZ$4>=$F$12,1,0)*(CZ$4<=Control!$C$8) -> 1 | DA5: =IF(DA$4>=$F$12,1,0)*(DA$4<=Control!$C$8) -> 1 | DB5: =IF(DB$4>=$F$12,1,0)*(DB$4<=Control!$C$8) -> 1 | DC5: =IF(DC$4>=$F$12,1,0)*(DC$4<=Control!$C$8) -> 1 | DD5: =IF(DD$4>=$F$12,1,0)*(DD$4<=Control!$C$8) -> 1 | DE5: =IF(DE$4>=$F$12,1,0)*(DE$4<=Control!$C$8) -> 1 | DF5: =IF(DF$4>=$F$12,1,0)*(DF$4<=Control!$C$8) -> 1 | DG5: =IF(DG$4>=$F$12,1,0)*(DG$4<=Control!$C$8) -> 1 | DH5: =IF(DH$4>=$F$12,1,0)*(DH$4<=Control!$C$8) -> 1 | DI5: =IF(DI$4>=$F$12,1,0)*(DI$4<=Control!$C$8) -> 1 | DJ5: =IF(DJ$4>=$F$12,1,0)*(DJ$4<=Control!$C$8) -> 1 | DK5: =IF(DK$4>=$F$12,1,0)*(DK$4<=Control!$C$8) -> 1 | DL5: =IF(DL$4>=$F$12,1,0)*(DL$4<=Control!$C$8) -> 1 | DM5: =IF(DM$4>=$F$12,1,0)*(DM$4<=Control!$C$8) -> 1 | DN5: =IF(DN$4>=$F$12,1,0)*(DN$4<=Control!$C$8) -> 1 | DO5: =IF(DO$4>=$F$12,1,0)*(DO$4<=Control!$C$8) -> 1 | DP5: =IF(DP$4>=$F$12,1,0)*(DP$4<=Control!$C$8) -> 1 | DQ5: =IF(DQ$4>=$F$12,1,0)*(DQ$4<=Control!$C$8) -> 1 | DR5: =IF(DR$4>=$F$12,1,0)*(DR$4<=Control!$C$8) -> 1 | DS5: =IF(DS$4>=$F$12,1,0)*(DS$4<=Control!$C$8) -> 1 | DT5: =IF(DT$4>=$F$12,1,0)*(DT$4<=Control!$C$8) -> 1 | DU5: =IF(DU$4>=$F$12,1,0)*(DU$4<=Control!$C$8) -> 1 | DV5: =IF(DV$4>=$F$12,1,0)*(DV$4<=Control!$C$8) -> 1 | DW5: =IF(DW$4>=$F$12,1,0)*(DW$4<=Control!$C$8) -> 1 | DX5: =IF(DX$4>=$F$12,1,0)*(DX$4<=Control!$C$8) -> 1 | DY5: =IF(DY$4>=$F$12,1,0)*(DY$4<=Control!$C$8) -> 1 | DZ5: =IF(DZ$4>=$F$12,1,0)*(DZ$4<=Control!$C$8) -> 1 | EA5: =IF(EA$4>=$F$12,1,0)*(EA$4<=Control!$C$8) -> 1 | EB5: =IF(EB$4>=$F$12,1,0)*(EB$4<=Control!$C$8) -> 1 | EC5: =IF(EC$4>=$F$12,1,0)*(EC$4<=Control!$C$8) -> 1 | ED5: =IF(ED$4>=$F$12,1,0)*(ED$4<=Control!$C$8) -> 1 | EE5: =IF(EE$4>=$F$12,1,0)*(EE$4<=Control!$C$8) -> 1 | EF5: =IF(EF$4>=$F$12,1,0)*(EF$4<=Control!$C$8) -> 1 | EG5: =IF(EG$4>=$F$12,1,0)*(EG$4<=Control!$C$8) -> 1 | EH5: =IF(EH$4>=$F$12,1,0)*(EH$4<=Control!$C$8) -> 1 | EI5: =IF(EI$4>=$F$12,1,0)*(EI$4<=Control!$C$8) -> 1 | EJ5: =IF(EJ$4>=$F$12,1,0)*(EJ$4<=Control!$C$8) -> 1 | EK5: =IF(EK$4>=$F$12,1,0)*(EK$4<=Control!$C$8) -> 1 | EL5: =IF(EL$4>=$F$12,1,0)*(EL$4<=Control!$C$8) -> 1 | EM5: =IF(EM$4>=$F$12,1,0)*(EM$4<=Control!$C$8) -> 0 | EN5: =IF(EN$4>=$F$12,1,0)*(EN$4<=Control!$C$8) -> 0 | EO5: =IF(EO$4>=$F$12,1,0)*(EO$4<=Control!$C$8) -> 0 | EP5: =IF(EP$4>=$F$12,1,0)*(EP$4<=Control!$C$8) -> 0 | EQ5: =IF(EQ$4>=$F$12,1,0)*(EQ$4<=Control!$C$8) -> 0 | ER5: =IF(ER$4>=$F$12,1,0)*(ER$4<=Control!$C$8) -> 0 | ES5: =IF(ES$4>=$F$12,1,0)*(ES$4<=Control!$C$8) -> 0 | ET5: =IF(ET$4>=$F$12,1,0)*(ET$4<=Control!$C$8) -> 0 | EU5: =IF(EU$4>=$F$12,1,0)*(EU$4<=Control!$C$8) -> 0 | EV5: =IF(EV$4>=$F$12,1,0)*(EV$4<=Control!$C$8) -> 0 | EW5: =IF(EW$4>=$F$12,1,0)*(EW$4<=Control!$C$8) -> 0 | EX5: =IF(EX$4>=$F$12,1,0)*(EX$4<=Control!$C$8) -> 0 | EY5: =IF(EY$4>=$F$12,1,0)*(EY$4<=Control!$C$8) -> 0
D6: Discount Factor
D9: RATE BASE
D11: Regulatory Asset
D12: Regulatory Asset, Beginning Balance | F12: =Control!$C$7 -> 2017-01-01 | K12: =J15 -> 0 | L12: =K15 -> 0 | M12: 0 | N12: 0 | O12: 0 | P12: 0 | Q12: 0 | R12: 0 | S12: 0 | T12: 0 | U12: 0 | V12: 0 | W12: 0 | X12: 0 | Y12: 0 | Z12: 0 | AA12: 0 | AB12: 0 | AC12: 0 | AD12: 0 | AE12: 0 | AF12: 0 | AG12: 0 | AH12: 0 | AI12: 0 | AJ12: 447319.4444 | AK12: 443138.8889 | AL12: 438958.3333 | AM12: 434777.7778 | AN12: 430597.2222 | AO12: 426416.6667 | AP12: 422236.1111 | AQ12: 418055.5556 | AR12: 413875 | AS12: 409694.4444 | AT12: 405513.8889 | AU12: 401333.3333 | AV12: 397152.7778 | AW12: 392972.2222 | AX12: 388791.6667 | AY12: 384611.1111 | AZ12: 380430.5556 | BA12: 376250 | BB12: 372069.4444 | BC12: 367888.8889 | BD12: 363708.3333 | BE12: 359527.7778 | BF12: 355347.2222 | BG12: 351166.6667 | BH12: 346986.1111 | BI12: 342805.5556 | BJ12: 338625 | BK12: 334444.4444 | BL12: 330263.8889 | BM12: 326083.3333 | BN12: 321902.7778 | BO12: 317722.2222 | BP12: 313541.6667 | BQ12: 309361.1111 | BR12: 305180.5556 | BS12: 301000 | BT12: 296819.4444 | BU12: 292638.8889 | BV12: 288458.3333 | BW12: 284277.7778 | BX12: =BW15 -> 280097.2222 | BY12: 275916.6667 | BZ12: 271736.1111 | CA12: 267555.5556 | CB12: 263375 | CC12: 259194.4444 | CD12: 255013.8889 | CE12: 250833.3333 | CF12: 246652.7778 | CG12: 242472.2222 | CH12: 238291.6667 | CI12: 234111.1111 | CJ12: 229930.5556 | CK12: 225750 | CL12: 221569.4444 | CM12: 217388.8889 | CN12: 213208.3333 | CO12: 209027.7778 | CP12: 204847.2222 | CQ12: 200666.6667 | CR12: 196486.1111 | CS12: 192305.5556 | CT12: 188125 | CU12: 183944.4444 | CV12: 179763.8889 | CW12: 175583.3333 | CX12: 171402.7778 | CY12: 167222.2222 | CZ12: 163041.6667 | DA12: 158861.1111 | DB12: 154680.5556 | DC12: 150500 | DD12: 146319.4444 | DE12: 142138.8889 | DF12: 137958.3333 | DG12: 133777.7778 | DH12: 129597.2222 | DI12: 125416.6667 | DJ12: 121236.1111 | DK12: 117055.5556 | DL12: 112875 | DM12: 108694.4444 | DN12: 104513.8889 | DO12: 100333.3333 | DP12: 96152.77778 | DQ12: 91972.22222 | DR12: 87791.66667 | DS12: 83611.11111 | DT12: 79430.55556 | DU12: 75250 | DV12: 71069.44444 | DW12: 66888.88889 | DX12: 62708.33333 | DY12: 58527.77778 | DZ12: 54347.22222 | EA12: 50166.66667 | EB12: 45986.11111 | EC12: 41805.55556 | ED12: 37625 | EE12: 33444.44444 | EF12: 29263.88889 | EG12: 25083.33333 | EH12: 20902.77778 | EI12: 16722.22222 | EJ12: =EI15 -> 12541.66667 | EK12: 8361.111111 | EL12: 4180.555556 | EM12: -8.185452316e-12 | EN12: -8.185452316e-12 | EO12: -8.185452316e-12 | EP12: -8.185452316e-12 | EQ12: -8.185452316e-12 | ER12: -8.185452316e-12 | ES12: -8.185452316e-12 | ET12: -8.185452316e-12 | EU12: -8.185452316e-12 | EV12: -8.185452316e-12 | EW12: -8.185452316e-12 | EX12: -8.185452316e-12 | EY12: -8.185452316e-12
D13: Capital Additions | F13: =Control!$I$21+$I$94-F21-F60 -> 451500 | I13: =SUM(K13:EY13) -> 451500 | K13: =IF(EOMONTH($F12,0)=EOMONTH(K$4,0),$F13,0) -> 0 | L13: 0 | M13: 0 | N13: 0 | O13: 0 | P13: 0 | Q13: 0 | R13: 0 | S13: 0 | T13: 0 | U13: 0 | V13: 0 | W13: 0 | X13: 0 | Y13: 0 | Z13: 0 | AA13: 0 | AB13: 0 | AC13: 0 | AD13: 0 | AE13: 0 | AF13: 0 | AG13: 0 | AH13: 0 | AI13: 451500 | AJ13: 0 | AK13: 0 | AL13: 0 | AM13: 0 | AN13: 0 | AO13: 0 | AP13: 0 | AQ13: =IF(EOMONTH($F12,0)=EOMONTH(AQ$4,0),$F13,0) -> 0 | AR13: 0 | AS13: 0 | AT13: 0 | AU13: 0 | AV13: 0 | AW13: 0 | AX13: 0 | AY13: 0 | AZ13: 0 | BA13: 0 | BB13: 0 | BC13: 0 | BD13: 0 | BE13: 0 | BF13: 0 | BG13: 0 | BH13: 0 | BI13: 0 | BJ13: 0 | BK13: 0 | BL13: 0 | BM13: 0 | BN13: 0 | BO13: 0 | BP13: 0 | BQ13: 0 | BR13: 0 | BS13: 0 | BT13: 0 | BU13: 0 | BV13: 0 | BW13: =IF(EOMONTH($F12,0)=EOMONTH(BW$4,0),$F13,0) -> 0 | BX13: 0 | BY13: 0 | BZ13: 0 | CA13: 0 | CB13: 0 | CC13: 0 | CD13: 0 | CE13: 0 | CF13: 0 | CG13: 0 | CH13: 0 | CI13: 0 | CJ13: 0 | CK13: 0 | CL13: 0 | CM13: 0 | CN13: 0 | CO13: 0 | CP13: 0 | CQ13: 0 | CR13: 0 | CS13: 0 | CT13: 0 | CU13: 0 | CV13: 0 | CW13: 0 | CX13: 0 | CY13: 0 | CZ13: 0 | DA13: 0 | DB13: 0 | DC13: =IF(EOMONTH($F12,0)=EOMONTH(DC$4,0),$F13,0) -> 0 | DD13: 0 | DE13: 0 | DF13: 0 | DG13: 0 | DH13: 0 | DI13: 0 | DJ13: 0 | DK13: 0 | DL13: 0 | DM13: 0 | DN13: 0 | DO13: 0 | DP13: 0 | DQ13: 0 | DR13: 0 | DS13: 0 | DT13: 0 | DU13: 0 | DV13: 0 | DW13: 0 | DX13: 0 | DY13: 0 | DZ13: 0 | EA13: 0 | EB13: 0 | EC13: 0 | ED13: 0 | EE13: 0 | EF13: 0 | EG13: 0 | EH13: 0 | EI13: =IF(EOMONTH($F12,0)=EOMONTH(EI$4,0),$F13,0) -> 0 | EJ13: 0 | EK13: 0 | EL13: 0 | EM13: 0 | EN13: 0 | EO13: 0 | EP13: 0 | EQ13: 0 | ER13: 0 | ES13: 0 | ET13: 0 | EU13: 0 | EV13: 0 | EW13: 0 | EX13: 0 | EY13: 0
D14: Amortization | F14: =Control!$C$10 -> 108 | G14: mo. | I14: =SUM(K14:EY14) -> -451500 | K14: =MAX(-SUM($J13:K13)/$F14,-SUM($J13:K13)-SUM($J14:J14)) -> 0 | L14: =MAX(-SUM($J13:L13)/$F14,-SUM($J13:L13)-SUM($J14:K14)) -> 0 | M14: =MAX(-SUM($J13:M13)/$F14,-SUM($J13:M13)-SUM($J14:L14)) -> 0 | N14: =MAX(-SUM($J13:N13)/$F14,-SUM($J13:N13)-SUM($J14:M14)) -> 0 | O14: =MAX(-SUM($J13:O13)/$F14,-SUM($J13:O13)-SUM($J14:N14)) -> 0 | P14: =MAX(-SUM($J13:P13)/$F14,-SUM($J13:P13)-SUM($J14:O14)) -> 0 | Q14: =MAX(-SUM($J13:Q13)/$F14,-SUM($J13:Q13)-SUM($J14:P14)) -> 0 | R14: =MAX(-SUM($J13:R13)/$F14,-SUM($J13:R13)-SUM($J14:Q14)) -> 0 | S14: =MAX(-SUM($J13:S13)/$F14,-SUM($J13:S13)-SUM($J14:R14)) -> 0 | T14: =MAX(-SUM($J13:T13)/$F14,-SUM($J13:T13)-SUM($J14:S14)) -> 0 | U14: =MAX(-SUM($J13:U13)/$F14,-SUM($J13:U13)-SUM($J14:T14)) -> 0 | V14: =MAX(-SUM($J13:V13)/$F14,-SUM($J13:V13)-SUM($J14:U14)) -> 0 | W14: =MAX(-SUM($J13:W13)/$F14,-SUM($J13:W13)-SUM($J14:V14)) -> 0 | X14: =MAX(-SUM($J13:X13)/$F14,-SUM($J13:X13)-SUM($J14:W14)) -> 0 | Y14: =MAX(-SUM($J13:Y13)/$F14,-SUM($J13:Y13)-SUM($J14:X14)) -> 0 | Z14: =MAX(-SUM($J13:Z13)/$F14,-SUM($J13:Z13)-SUM($J14:Y14)) -> 0 | AA14: =MAX(-SUM($J13:AA13)/$F14,-SUM($J13:AA13)-SUM($J14:Z14)) -> 0 | AB14: =MAX(-SUM($J13:AB13)/$F14,-SUM($J13:AB13)-SUM($J14:AA14)) -> 0 | AC14: =MAX(-SUM($J13:AC13)/$F14,-SUM($J13:AC13)-SUM($J14:AB14)) -> 0 | AD14: =MAX(-SUM($J13:AD13)/$F14,-SUM($J13:AD13)-SUM($J14:AC14)) -> 0 | AE14: =MAX(-SUM($J13:AE13)/$F14,-SUM($J13:AE13)-SUM($J14:AD14)) -> 0 | AF14: =MAX(-SUM($J13:AF13)/$F14,-SUM($J13:AF13)-SUM($J14:AE14)) -> 0 | AG14: =MAX(-SUM($J13:AG13)/$F14,-SUM($J13:AG13)-SUM($J14:AF14)) -> 0 | AH14: =MAX(-SUM($J13:AH13)/$F14,-SUM($J13:AH13)-SUM($J14:AG14)) -> 0 | AI14: =MAX(-SUM($J13:AI13)/$F14,-SUM($J13:AI13)-SUM($J14:AH14)) -> -4180.555556 | AJ14: =MAX(-SUM($J13:AJ13)/$F14,-SUM($J13:AJ13)-SUM($J14:AI14)) -> -4180.555556 | AK14: =MAX(-SUM($J13:AK13)/$F14,-SUM($J13:AK13)-SUM($J14:AJ14)) -> -4180.555556 | AL14: =MAX(-SUM($J13:AL13)/$F14,-SUM($J13:AL13)-SUM($J14:AK14)) -> -4180.555556 | AM14: =MAX(-SUM($J13:AM13)/$F14,-SUM($J13:AM13)-SUM($J14:AL14)) -> -4180.555556 | AN14: =MAX(-SUM($J13:AN13)/$F14,-SUM($J13:AN13)-SUM($J14:AM14)) -> -4180.555556 | AO14: =MAX(-SUM($J13:AO13)/$F14,-SUM($J13:AO13)-SUM($J14:AN14)) -> -4180.555556 | AP14: =MAX(-SUM($J13:AP13)/$F14,-SUM($J13:AP13)-SUM($J14:AO14)) -> -4180.555556 | AQ14: =MAX(-SUM($J13:AQ13)/$F14,-SUM($J13:AQ13)-SUM($J14:AP14)) -> -4180.555556 | AR14: =MAX(-SUM($J13:AR13)/$F14,-SUM($J13:AR13)-SUM($J14:AQ14)) -> -4180.555556 | AS14: =MAX(-SUM($J13:AS13)/$F14,-SUM($J13:AS13)-SUM($J14:AR14)) -> -4180.555556 | AT14: =MAX(-SUM($J13:AT13)/$F14,-SUM($J13:AT13)-SUM($J14:AS14)) -> -4180.555556 | AU14: =MAX(-SUM($J13:AU13)/$F14,-SUM($J13:AU13)-SUM($J14:AT14)) -> -4180.555556 | AV14: =MAX(-SUM($J13:AV13)/$F14,-SUM($J13:AV13)-SUM($J14:AU14)) -> -4180.555556 | AW14: =MAX(-SUM($J13:AW13)/$F14,-SUM($J13:AW13)-SUM($J14:AV14)) -> -4180.555556 | AX14: =MAX(-SUM($J13:AX13)/$F14,-SUM($J13:AX13)-SUM($J14:AW14)) -> -4180.555556 | AY14: =MAX(-SUM($J13:AY13)/$F14,-SUM($J13:AY13)-SUM($J14:AX14)) -> -4180.555556 | AZ14: =MAX(-SUM($J13:AZ13)/$F14,-SUM($J13:AZ13)-SUM($J14:AY14)) -> -4180.555556 | BA14: =MAX(-SUM($J13:BA13)/$F14,-SUM($J13:BA13)-SUM($J14:AZ14)) -> -4180.555556 | BB14: =MAX(-SUM($J13:BB13)/$F14,-SUM($J13:BB13)-SUM($J14:BA14)) -> -4180.555556 | BC14: =MAX(-SUM($J13:BC13)/$F14,-SUM($J13:BC13)-SUM($J14:BB14)) -> -4180.555556 | BD14: =MAX(-SUM($J13:BD13)/$F14,-SUM($J13:BD13)-SUM($J14:BC14)) -> -4180.555556 | BE14: =MAX(-SUM($J13:BE13)/$F14,-SUM($J13:BE13)-SUM($J14:BD14)) -> -4180.555556 | BF14: =MAX(-SUM($J13:BF13)/$F14,-SUM($J13:BF13)-SUM($J14:BE14)) -> -4180.555556 | BG14: =MAX(-SUM($J13:BG13)/$F14,-SUM($J13:BG13)-SUM($J14:BF14)) -> -4180.555556 | BH14: =MAX(-SUM($J13:BH13)/$F14,-SUM($J13:BH13)-SUM($J14:BG14)) -> -4180.555556 | BI14: =MAX(-SUM($J13:BI13)/$F14,-SUM($J13:BI13)-SUM($J14:BH14)) -> -4180.555556 | BJ14: =MAX(-SUM($J13:BJ13)/$F14,-SUM($J13:BJ13)-SUM($J14:BI14)) -> -4180.555556 | BK14: =MAX(-SUM($J13:BK13)/$F14,-SUM($J13:BK13)-SUM($J14:BJ14)) -> -4180.555556 | BL14: =MAX(-SUM($J13:BL13)/$F14,-SUM($J13:BL13)-SUM($J14:BK14)) -> -4180.555556 | BM14: =MAX(-SUM($J13:BM13)/$F14,-SUM($J13:BM13)-SUM($J14:BL14)) -> -4180.555556 | BN14: =MAX(-SUM($J13:BN13)/$F14,-SUM($J13:BN13)-SUM($J14:BM14)) -> -4180.555556 | BO14: =MAX(-SUM($J13:BO13)/$F14,-SUM($J13:BO13)-SUM($J14:BN14)) -> -4180.555556 | BP14: =MAX(-SUM($J13:BP13)/$F14,-SUM($J13:BP13)-SUM($J14:BO14)) -> -4180.555556 | BQ14: =MAX(-SUM($J13:BQ13)/$F14,-SUM($J13:BQ13)-SUM($J14:BP14)) -> -4180.555556 | BR14: =MAX(-SUM($J13:BR13)/$F14,-SUM($J13:BR13)-SUM($J14:BQ14)) -> -4180.555556 | BS14: =MAX(-SUM($J13:BS13)/$F14,-SUM($J13:BS13)-SUM($J14:BR14)) -> -4180.555556 | BT14: =MAX(-SUM($J13:BT13)/$F14,-SUM($J13:BT13)-SUM($J14:BS14)) -> -4180.555556 | BU14: =MAX(-SUM($J13:BU13)/$F14,-SUM($J13:BU13)-SUM($J14:BT14)) -> -4180.555556 | BV14: =MAX(-SUM($J13:BV13)/$F14,-SUM($J13:BV13)-SUM($J14:BU14)) -> -4180.555556 | BW14: =MAX(-SUM($J13:BW13)/$F14,-SUM($J13:BW13)-SUM($J14:BV14)) -> -4180.555556 | BX14: =MAX(-SUM($J13:BX13)/$F14,-SUM($J13:BX13)-SUM($J14:BW14)) -> -4180.555556 | BY14: =MAX(-SUM($J13:BY13)/$F14,-SUM($J13:BY13)-SUM($J14:BX14)) -> -4180.555556 | BZ14: =MAX(-SUM($J13:BZ13)/$F14,-SUM($J13:BZ13)-SUM($J14:BY14)) -> -4180.555556 | CA14: =MAX(-SUM($J13:CA13)/$F14,-SUM($J13:CA13)-SUM($J14:BZ14)) -> -4180.555556 | CB14: =MAX(-SUM($J13:CB13)/$F14,-SUM($J13:CB13)-SUM($J14:CA14)) -> -4180.555556 | CC14: =MAX(-SUM($J13:CC13)/$F14,-SUM($J13:CC13)-SUM($J14:CB14)) -> -4180.555556 | CD14: =MAX(-SUM($J13:CD13)/$F14,-SUM($J13:CD13)-SUM($J14:CC14)) -> -4180.555556 | CE14: =MAX(-SUM($J13:CE13)/$F14,-SUM($J13:CE13)-SUM($J14:CD14)) -> -4180.555556 | CF14: =MAX(-SUM($J13:CF13)/$F14,-SUM($J13:CF13)-SUM($J14:CE14)) -> -4180.555556 | CG14: =MAX(-SUM($J13:CG13)/$F14,-SUM($J13:CG13)-SUM($J14:CF14)) -> -4180.555556 | CH14: =MAX(-SUM($J13:CH13)/$F14,-SUM($J13:CH13)-SUM($J14:CG14)) -> -4180.555556 | CI14: =MAX(-SUM($J13:CI13)/$F14,-SUM($J13:CI13)-SUM($J14:CH14)) -> -4180.555556 | CJ14: =MAX(-SUM($J13:CJ13)/$F14,-SUM($J13:CJ13)-SUM($J14:CI14)) -> -4180.555556 | CK14: =MAX(-SUM($J13:CK13)/$F14,-SUM($J13:CK13)-SUM($J14:CJ14)) -> -4180.555556 | CL14: =MAX(-SUM($J13:CL13)/$F14,-SUM($J13:CL13)-SUM($J14:CK14)) -> -4180.555556 | CM14: =MAX(-SUM($J13:CM13)/$F14,-SUM($J13:CM13)-SUM($J14:CL14)) -> -4180.555556 | CN14: =MAX(-SUM($J13:CN13)/$F14,-SUM($J13:CN13)-SUM($J14:CM14)) -> -4180.555556 | CO14: =MAX(-SUM($J13:CO13)/$F14,-SUM($J13:CO13)-SUM($J14:CN14)) -> -4180.555556 | CP14: =MAX(-SUM($J13:CP13)/$F14,-SUM($J13:CP13)-SUM($J14:CO14)) -> -4180.555556 | CQ14: =MAX(-SUM($J13:CQ13)/$F14,-SUM($J13:CQ13)-SUM($J14:CP14)) -> -4180.555556 | CR14: =MAX(-SUM($J13:CR13)/$F14,-SUM($J13:CR13)-SUM($J14:CQ14)) -> -4180.555556 | CS14: =MAX(-SUM($J13:CS13)/$F14,-SUM($J13:CS13)-SUM($J14:CR14)) -> -4180.555556 | CT14: =MAX(-SUM($J13:CT13)/$F14,-SUM($J13:CT13)-SUM($J14:CS14)) -> -4180.555556 | CU14: =MAX(-SUM($J13:CU13)/$F14,-SUM($J13:CU13)-SUM($J14:CT14)) -> -4180.555556 | CV14: =MAX(-SUM($J13:CV13)/$F14,-SUM($J13:CV13)-SUM($J14:CU14)) -> -4180.555556 | CW14: =MAX(-SUM($J13:CW13)/$F14,-SUM($J13:CW13)-SUM($J14:CV14)) -> -4180.555556 | CX14: =MAX(-SUM($J13:CX13)/$F14,-SUM($J13:CX13)-SUM($J14:CW14)) -> -4180.555556 | CY14: =MAX(-SUM($J13:CY13)/$F14,-SUM($J13:CY13)-SUM($J14:CX14)) -> -4180.555556 | CZ14: =MAX(-SUM($J13:CZ13)/$F14,-SUM($J13:CZ13)-SUM($J14:CY14)) -> -4180.555556 | DA14: =MAX(-SUM($J13:DA13)/$F14,-SUM($J13:DA13)-SUM($J14:CZ14)) -> -4180.555556 | DB14: =MAX(-SUM($J13:DB13)/$F14,-SUM($J13:DB13)-SUM($J14:DA14)) -> -4180.555556 | DC14: =MAX(-SUM($J13:DC13)/$F14,-SUM($J13:DC13)-SUM($J14:DB14)) -> -4180.555556 | DD14: =MAX(-SUM($J13:DD13)/$F14,-SUM($J13:DD13)-SUM($J14:DC14)) -> -4180.555556 | DE14: =MAX(-SUM($J13:DE13)/$F14,-SUM($J13:DE13)-SUM($J14:DD14)) -> -4180.555556 | DF14: =MAX(-SUM($J13:DF13)/$F14,-SUM($J13:DF13)-SUM($J14:DE14)) -> -4180.555556 | DG14: =MAX(-SUM($J13:DG13)/$F14,-SUM($J13:DG13)-SUM($J14:DF14)) -> -4180.555556 | DH14: =MAX(-SUM($J13:DH13)/$F14,-SUM($J13:DH13)-SUM($J14:DG14)) -> -4180.555556 | DI14: =MAX(-SUM($J13:DI13)/$F14,-SUM($J13:DI13)-SUM($J14:DH14)) -> -4180.555556 | DJ14: =MAX(-SUM($J13:DJ13)/$F14,-SUM($J13:DJ13)-SUM($J14:DI14)) -> -4180.555556 | DK14: =MAX(-SUM($J13:DK13)/$F14,-SUM($J13:DK13)-SUM($J14:DJ14)) -> -4180.555556 | DL14: =MAX(-SUM($J13:DL13)/$F14,-SUM($J13:DL13)-SUM($J14:DK14)) -> -4180.555556 | DM14: =MAX(-SUM($J13:DM13)/$F14,-SUM($J13:DM13)-SUM($J14:DL14)) -> -4180.555556 | DN14: =MAX(-SUM($J13:DN13)/$F14,-SUM($J13:DN13)-SUM($J14:DM14)) -> -4180.555556 | DO14: =MAX(-SUM($J13:DO13)/$F14,-SUM($J13:DO13)-SUM($J14:DN14)) -> -4180.555556 | DP14: =MAX(-SUM($J13:DP13)/$F14,-SUM($J13:DP13)-SUM($J14:DO14)) -> -4180.555556 | DQ14: =MAX(-SUM($J13:DQ13)/$F14,-SUM($J13:DQ13)-SUM($J14:DP14)) -> -4180.555556 | DR14: =MAX(-SUM($J13:DR13)/$F14,-SUM($J13:DR13)-SUM($J14:DQ14)) -> -4180.555556 | DS14: =MAX(-SUM($J13:DS13)/$F14,-SUM($J13:DS13)-SUM($J14:DR14)) -> -4180.555556 | DT14: =MAX(-SUM($J13:DT13)/$F14,-SUM($J13:DT13)-SUM($J14:DS14)) -> -4180.555556 | DU14: =MAX(-SUM($J13:DU13)/$F14,-SUM($J13:DU13)-SUM($J14:DT14)) -> -4180.555556 | DV14: =MAX(-SUM($J13:DV13)/$F14,-SUM($J13:DV13)-SUM($J14:DU14)) -> -4180.555556 | DW14: =MAX(-SUM($J13:DW13)/$F14,-SUM($J13:DW13)-SUM($J14:DV14)) -> -4180.555556 | DX14: =MAX(-SUM($J13:DX13)/$F14,-SUM($J13:DX13)-SUM($J14:DW14)) -> -4180.555556 | DY14: =MAX(-SUM($J13:DY13)/$F14,-SUM($J13:DY13)-SUM($J14:DX14)) -> -4180.555556 | DZ14: =MAX(-SUM($J13:DZ13)/$F14,-SUM($J13:DZ13)-SUM($J14:DY14)) -> -4180.555556 | EA14: =MAX(-SUM($J13:EA13)/$F14,-SUM($J13:EA13)-SUM($J14:DZ14)) -> -4180.555556 | EB14: =MAX(-SUM($J13:EB13)/$F14,-SUM($J13:EB13)-SUM($J14:EA14)) -> -4180.555556 | EC14: =MAX(-SUM($J13:EC13)/$F14,-SUM($J13:EC13)-SUM($J14:EB14)) -> -4180.555556 | ED14: =MAX(-SUM($J13:ED13)/$F14,-SUM($J13:ED13)-SUM($J14:EC14)) -> -4180.555556 | EE14: =MAX(-SUM($J13:EE13)/$F14,-SUM($J13:EE13)-SUM($J14:ED14)) -> -4180.555556 | EF14: =MAX(-SUM($J13:EF13)/$F14,-SUM($J13:EF13)-SUM($J14:EE14)) -> -4180.555556 | EG14: =MAX(-SUM($J13:EG13)/$F14,-SUM($J13:EG13)-SUM($J14:EF14)) -> -4180.555556 | EH14: =MAX(-SUM($J13:EH13)/$F14,-SUM($J13:EH13)-SUM($J14:EG14)) -> -4180.555556 | EI14: =MAX(-SUM($J13:EI13)/$F14,-SUM($J13:EI13)-SUM($J14:EH14)) -> -4180.555556 | EJ14: =MAX(-SUM($J13:EJ13)/$F14,-SUM($J13:EJ13)-SUM($J14:EI14)) -> -4180.555556 | EK14: =MAX(-SUM($J13:EK13)/$F14,-SUM($J13:EK13)-SUM($J14:EJ14)) -> -4180.555556 | EL14: =MAX(-SUM($J13:EL13)/$F14,-SUM($J13:EL13)-SUM($J14:EK14)) -> -4180.555556 | EM14: =MAX(-SUM($J13:EM13)/$F14,-SUM($J13:EM13)-SUM($J14:EL14)) -> 0 | EN14: =MAX(-SUM($J13:EN13)/$F14,-SUM($J13:EN13)-SUM($J14:EM14)) -> 0 | EO14: =MAX(-SUM($J13:EO13)/$F14,-SUM($J13:EO13)-SUM($J14:EN14)) -> 0 | EP14: =MAX(-SUM($J13:EP13)/$F14,-SUM($J13:EP13)-SUM($J14:EO14)) -> 0 | EQ14: =MAX(-SUM($J13:EQ13)/$F14,-SUM($J13:EQ13)-SUM($J14:EP14)) -> 0 | ER14: =MAX(-SUM($J13:ER13)/$F14,-SUM($J13:ER13)-SUM($J14:EQ14)) -> 0 | ES14: =MAX(-SUM($J13:ES13)/$F14,-SUM($J13:ES13)-SUM($J14:ER14)) -> 0 | ET14: =MAX(-SUM($J13:ET13)/$F14,-SUM($J13:ET13)-SUM($J14:ES14)) -> 0 | EU14: =MAX(-SUM($J13:EU13)/$F14,-SUM($J13:EU13)-SUM($J14:ET14)) -> 0 | EV14: =MAX(-SUM($J13:EV13)/$F14,-SUM($J13:EV13)-SUM($J14:EU14)) -> 0 | EW14: =MAX(-SUM($J13:EW13)/$F14,-SUM($J13:EW13)-SUM($J14:EV14)) -> 0 | EX14: =MAX(-SUM($J13:EX13)/$F14,-SUM($J13:EX13)-SUM($J14:EW14)) -> 0 | EY14: =MAX(-SUM($J13:EY13)/$F14,-SUM($J13:EY13)-SUM($J14:EX14)) -> 0
D15: Regulatory Asset, Ending Balance | I15: =SUM(I12:I14) -> 0 | K15: =SUM(K12:K14) -> 0 | L15: 0 | M15: 0 | N15: 0 | O15: 0 | P15: 0 | Q15: 0 | R15: 0 | S15: 0 | T15: 0 | U15: 0 | V15: 0 | W15: 0 | X15: 0 | Y15: 0 | Z15: 0 | AA15: 0 | AB15: 0 | AC15: 0 | AD15: 0 | AE15: 0 | AF15: 0 | AG15: 0 | AH15: 0 | AI15: 447319.4444 | AJ15: 443138.8889 | AK15: 438958.3333 | AL15: 434777.7778 | AM15: 430597.2222 | AN15: 426416.6667 | AO15: 422236.1111 | AP15: 418055.5556 | AQ15: =SUM(AQ12:AQ14) -> 413875 | AR15: 409694.4444 | AS15: 405513.8889 | AT15: 401333.3333 | AU15: 397152.7778 | AV15: 392972.2222 | AW15: 388791.6667 | AX15: 384611.1111 | AY15: 380430.5556 | AZ15: 376250 | BA15: 372069.4444 | BB15: 367888.8889 | BC15: 363708.3333 | BD15: 359527.7778 | BE15: 355347.2222 | BF15: 351166.6667 | BG15: 346986.1111 | BH15: 342805.5556 | BI15: 338625 | BJ15: 334444.4444 | BK15: 330263.8889 | BL15: 326083.3333 | BM15: 321902.7778 | BN15: 317722.2222 | BO15: 313541.6667 | BP15: 309361.1111 | BQ15: 305180.5556 | BR15: 301000 | BS15: 296819.4444 | BT15: 292638.8889 | BU15: 288458.3333 | BV15: 284277.7778 | BW15: =SUM(BW12:BW14) -> 280097.2222 | BX15: 275916.6667 | BY15: 271736.1111 | BZ15: 267555.5556 | CA15: 263375 | CB15: 259194.4444 | CC15: 255013.8889 | CD15: 250833.3333 | CE15: 246652.7778 | CF15: 242472.2222 | CG15: 238291.6667 | CH15: 234111.1111 | CI15: 229930.5556 | CJ15: 225750 | CK15: 221569.4444 | CL15: 217388.8889 | CM15: 213208.3333 | CN15: 209027.7778 | CO15: 204847.2222 | CP15: 200666.6667 | CQ15: 196486.1111 | CR15: 192305.5556 | CS15: 188125 | CT15: 183944.4444 | CU15: 179763.8889 | CV15: 175583.3333 | CW15: 171402.7778 | CX15: 167222.2222 | CY15: 163041.6667 | CZ15: 158861.1111 | DA15: 154680.5556 | DB15: 150500 | DC15: =SUM(DC12:DC14) -> 146319.4444 | DD15: 142138.8889 | DE15: 137958.3333 | DF15: 133777.7778 | DG15: 129597.2222 | DH15: 125416.6667 | DI15: 121236.1111 | DJ15: 117055.5556 | DK15: 112875 | DL15: 108694.4444 | DM15: 104513.8889 | DN15: 100333.3333 | DO15: 96152.77778 | DP15: 91972.22222 | DQ15: 87791.66667 | DR15: 83611.11111 | DS15: 79430.55556 | DT15: 75250 | DU15: 71069.44444 | DV15: 66888.88889 | DW15: 62708.33333 | DX15: 58527.77778 | DY15: 54347.22222 | DZ15: 50166.66667 | EA15: 45986.11111 | EB15: 41805.55556 | EC15: 37625 | ED15: 33444.44444 | EE15: 29263.88889 | EF15: 25083.33333 | EG15: 20902.77778 | EH15: 16722.22222 | EI15: =SUM(EI12:EI14) -> 12541.66667 | EJ15: 8361.111111 | EK15: 4180.555556 | EL15: -8.185452316e-12 | EM15: -8.185452316e-12 | EN15: -8.185452316e-12 | EO15: -8.185452316e-12 | EP15: -8.185452316e-12 | EQ15: -8.185452316e-12 | ER15: -8.185452316e-12 | ES15: -8.185452316e-12 | ET15: -8.185452316e-12 | EU15: -8.185452316e-12 | EV15: -8.185452316e-12 | EW15: -8.185452316e-12 | EX15: -8.185452316e-12 | EY15: -8.185452316e-12
D16: 13-month Rolling Average | F16: 13 | G16: mo. | L16: =SUM(OFFSET(L15,0,0,1,-MIN($F16,L$2)))/$F16 -> 0 | M16: =SUM(OFFSET(M15,0,0,1,-MIN($F16,M$2)))/$F16 -> 0 | N16: 0 | O16: 0 | P16: 0 | Q16: 0 | R16: 0 | S16: 0 | T16: 0 | U16: 0 | V16: 0 | W16: 0 | X16: 0 | Y16: 0 | Z16: 0 | AA16: 0 | AB16: 0 | AC16: 0 | AD16: 0 | AE16: 0 | AF16: 0 | AG16: 0 | AH16: 0 | AI16: 34409.18803 | AJ16: 68496.79487 | AK16: 102262.8205 | AL16: 135707.265 | AM16: 168830.1282 | AN16: 201631.4103 | AO16: 234111.1111 | AP16: 266269.2308 | AQ16: 298105.7692 | AR16: 329620.7265 | AS16: 360814.1026 | AT16: 391685.8974 | AU16: 422236.1111 | AV16: 418055.5556 | AW16: 413875 | AX16: 409694.4444 | AY16: 405513.8889 | AZ16: 401333.3333 | BA16: 397152.7778 | BB16: 392972.2222 | BC16: 388791.6667 | BD16: 384611.1111 | BE16: 380430.5556 | BF16: 376250 | BG16: 372069.4444 | BH16: 367888.8889 | BI16: 363708.3333 | BJ16: 359527.7778 | BK16: 355347.2222 | BL16: 351166.6667 | BM16: 346986.1111 | BN16: 342805.5556 | BO16: 338625 | BP16: 334444.4444 | BQ16: 330263.8889 | BR16: 326083.3333 | BS16: 321902.7778 | BT16: 317722.2222 | BU16: 313541.6667 | BV16: 309361.1111 | BW16: 305180.5556 | BX16: 301000 | BY16: =SUM(OFFSET(BY15,0,0,1,-MIN($F16,BY$2)))/$F16 -> 296819.4444 | BZ16: 292638.8889 | CA16: 288458.3333 | CB16: 284277.7778 | CC16: 280097.2222 | CD16: 275916.6667 | CE16: 271736.1111 | CF16: 267555.5556 | CG16: 263375 | CH16: 259194.4444 | CI16: 255013.8889 | CJ16: 250833.3333 | CK16: 246652.7778 | CL16: 242472.2222 | CM16: 238291.6667 | CN16: 234111.1111 | CO16: 229930.5556 | CP16: 225750 | CQ16: 221569.4444 | CR16: 217388.8889 | CS16: 213208.3333 | CT16: 209027.7778 | CU16: 204847.2222 | CV16: 200666.6667 | CW16: 196486.1111 | CX16: 192305.5556 | CY16: 188125 | CZ16: 183944.4444 | DA16: 179763.8889 | DB16: 175583.3333 | DC16: 171402.7778 | DD16: 167222.2222 | DE16: 163041.6667 | DF16: 158861.1111 | DG16: 154680.5556 | DH16: 150500 | DI16: 146319.4444 | DJ16: 142138.8889 | DK16: 137958.3333 | DL16: 133777.7778 | DM16: 129597.2222 | DN16: 125416.6667 | DO16: 121236.1111 | DP16: 117055.5556 | DQ16: 112875 | DR16: 108694.4444 | DS16: 104513.8889 | DT16: 100333.3333 | DU16: 96152.77778 | DV16: 91972.22222 | DW16: 87791.66667 | DX16: 83611.11111 | DY16: 79430.55556 | DZ16: 75250 | EA16: 71069.44444 | EB16: 66888.88889 | EC16: 62708.33333 | ED16: 58527.77778 | EE16: 54347.22222 | EF16: 50166.66667 | EG16: 45986.11111 | EH16: 41805.55556 | EI16: 37625 | EJ16: 33444.44444 | EK16: =SUM(OFFSET(EK15,0,0,1,-MIN($F16,EK$2)))/$F16 -> 29263.88889 | EL16: 25083.33333 | EM16: 21224.35897 | EN16: 17686.96581 | EO16: 14471.15385 | EP16: 11576.92308 | EQ16: 9004.273504 | ER16: 6753.205128 | ES16: 4823.717949 | ET16: 3215.811966 | EU16: 1929.487179 | EV16: 964.7435897 | EW16: 321.5811966 | EX16: -8.185452316e-12 | EY16: -8.185452316e-12
D19: Land
D20: Land, Beginning Balance | F20: =Control!$C$7 -> 2017-01-01 | K20: =J23 -> 0 | L20: 0 | M20: 0 | N20: 0 | O20: 0 | P20: 0 | Q20: 0 | R20: 0 | S20: 0 | T20: 0 | U20: 0 | V20: 0 | W20: 0 | X20: 0 | Y20: 0 | Z20: 0 | AA20: 0 | AB20: 0 | AC20: 0 | AD20: 0 | AE20: 0 | AF20: 0 | AG20: 0 | AH20: 0 | AI20: 0 | AJ20: 8500 | AK20: 8500 | AL20: 8500 | AM20: 8500 | AN20: 8500 | AO20: 8500 | AP20: 8500 | AQ20: =AP23 -> 8500 | AR20: 8500 | AS20: 8500 | AT20: 8500 | AU20: 8500 | AV20: 8500 | AW20: 8500 | AX20: 8500 | AY20: 8500 | AZ20: 8500 | BA20: 8500 | BB20: 8500 | BC20: 8500 | BD20: 8500 | BE20: 8500 | BF20: 8500 | BG20: 8500 | BH20: 8500 | BI20: 8500 | BJ20: 8500 | BK20: 8500 | BL20: 8500 | BM20: 8500 | BN20: 8500 | BO20: 8500 | BP20: 8500 | BQ20: 8500 | BR20: 8500 | BS20: 8500 | BT20: 8500 | BU20: 8500 | BV20: 8500 | BW20: =BV23 -> 8500 | BX20: 8500 | BY20: 8500 | BZ20: 8500 | CA20: 8500 | CB20: 8500 | CC20: 8500 | CD20: 8500 | CE20: 0 | CF20: 0 | CG20: 0 | CH20: 0 | CI20: 0 | CJ20: 0 | CK20: 0 | CL20: 0 | CM20: 0 | CN20: 0 | CO20: 0 | CP20: 0 | CQ20: 0 | CR20: 0 | CS20: 0 | CT20: 0 | CU20: 0 | CV20: 0 | CW20: 0 | CX20: 0 | CY20: 0 | CZ20: 0 | DA20: 0 | DB20: 0 | DC20: =DB23 -> 0 | DD20: 0 | DE20: 0 | DF20: 0 | DG20: 0 | DH20: 0 | DI20: 0 | DJ20: 0 | DK20: 0 | DL20: 0 | DM20: 0 | DN20: 0 | DO20: 0 | DP20: 0 | DQ20: 0 | DR20: 0 | DS20: 0 | DT20: 0 | DU20: 0 | DV20: 0 | DW20: 0 | DX20: 0 | DY20: 0 | DZ20: 0 | EA20: 0 | EB20: 0 | EC20: 0 | ED20: 0 | EE20: 0 | EF20: 0 | EG20: 0 | EH20: 0 | EI20: =EH23 -> 0 | EJ20: 0 | EK20: 0 | EL20: 0 | EM20: 0 | EN20: 0 | EO20: 0 | EP20: 0 | EQ20: 0 | ER20: 0 | ES20: 0 | ET20: 0 | EU20: 0 | EV20: 0 | EW20: 0 | EX20: 0 | EY20: 0
D21: Capital Additions | F21: =Control!$I$23 -> 8500 | I21: =SUM(K21:EY21) -> 8500 | K21: =IF(EOMONTH($F20,0)=EOMONTH(K$4,0),$F21,0) -> 0 | L21: =IF(EOMONTH($F20,0)=EOMONTH(L$4,0),$F21,0) -> 0 | M21: 0 | N21: 0 | O21: 0 | P21: 0 | Q21: 0 | R21: 0 | S21: 0 | T21: 0 | U21: 0 | V21: 0 | W21: 0 | X21: 0 | Y21: 0 | Z21: 0 | AA21: 0 | AB21: 0 | AC21: 0 | AD21: 0 | AE21: 0 | AF21: 0 | AG21: 0 | AH21: 0 | AI21: 8500 | AJ21: 0 | AK21: 0 | AL21: 0 | AM21: 0 | AN21: 0 | AO21: 0 | AP21: 0 | AQ21: 0 | AR21: 0 | AS21: 0 | AT21: 0 | AU21: 0 | AV21: 0 | AW21: 0 | AX21: 0 | AY21: 0 | AZ21: 0 | BA21: 0 | BB21: 0 | BC21: 0 | BD21: 0 | BE21: 0 | BF21: 0 | BG21: 0 | BH21: 0 | BI21: 0 | BJ21: 0 | BK21: 0 | BL21: 0 | BM21: 0 | BN21: 0 | BO21: 0 | BP21: 0 | BQ21: 0 | BR21: 0 | BS21: 0 | BT21: 0 | BU21: 0 | BV21: 0 | BW21: 0 | BX21: =IF(EOMONTH($F20,0)=EOMONTH(BX$4,0),$F21,0) -> 0 | BY21: 0 | BZ21: 0 | CA21: 0 | CB21: 0 | CC21: 0 | CD21: 0 | CE21: 0 | CF21: 0 | CG21: 0 | CH21: 0 | CI21: 0 | CJ21: 0 | CK21: 0 | CL21: 0 | CM21: 0 | CN21: 0 | CO21: 0 | CP21: 0 | CQ21: 0 | CR21: 0 | CS21: 0 | CT21: 0 | CU21: 0 | CV21: 0 | CW21: 0 | CX21: 0 | CY21: 0 | CZ21: 0 | DA21: 0 | DB21: 0 | DC21: 0 | DD21: 0 | DE21: 0 | DF21: 0 | DG21: 0 | DH21: 0 | DI21: 0 | DJ21: 0 | DK21: 0 | DL21: 0 | DM21: 0 | DN21: 0 | DO21: 0 | DP21: 0 | DQ21: 0 | DR21: 0 | DS21: 0 | DT21: 0 | DU21: 0 | DV21: 0 | DW21: 0 | DX21: 0 | DY21: 0 | DZ21: 0 | EA21: 0 | EB21: 0 | EC21: 0 | ED21: 0 | EE21: 0 | EF21: 0 | EG21: 0 | EH21: 0 | EI21: 0 | EJ21: =IF(EOMONTH($F20,0)=EOMONTH(EJ$4,0),$F21,0) -> 0 | EK21: 0 | EL21: 0 | EM21: 0 | EN21: 0 | EO21: 0 | EP21: 0 | EQ21: 0 | ER21: 0 | ES21: 0 | ET21: 0 | EU21: 0 | EV21: 0 | EW21: 0 | EX21: 0 | EY21: 0
D22: Sale of Land | F22: =Control!$C$9 -> 2020-12-31 | I22: =SUM(K22:EY22) -> -8500 | K22: =IF(K$4>=$F22,-SUM(K20:K21),0) -> 0 | L22: =IF(L$4>=$F22,-SUM(L20:L21),0) -> 0 | M22: 0 | N22: 0 | O22: 0 | P22: 0 | Q22: 0 | R22: 0 | S22: 0 | T22: 0 | U22: 0 | V22: 0 | W22: 0 | X22: 0 | Y22: 0 | Z22: 0 | AA22: 0 | AB22: 0 | AC22: 0 | AD22: 0 | AE22: 0 | AF22: 0 | AG22: 0 | AH22: 0 | AI22: 0 | AJ22: 0 | AK22: 0 | AL22: 0 | AM22: 0 | AN22: 0 | AO22: 0 | AP22: 0 | AQ22: 0 | AR22: 0 | AS22: 0 | AT22: 0 | AU22: 0 | AV22: 0 | AW22: 0 | AX22: 0 | AY22: 0 | AZ22: 0 | BA22: 0 | BB22: 0 | BC22: 0 | BD22: 0 | BE22: 0 | BF22: 0 | BG22: 0 | BH22: 0 | BI22: 0 | BJ22: 0 | BK22: 0 | BL22: 0 | BM22: 0 | BN22: 0 | BO22: 0 | BP22: 0 | BQ22: 0 | BR22: 0 | BS22: 0 | BT22: 0 | BU22: 0 | BV22: 0 | BW22: 0 | BX22: =IF(BX$4>=$F22,-SUM(BX20:BX21),0) -> 0 | BY22: 0 | BZ22: 0 | CA22: 0 | CB22: 0 | CC22: 0 | CD22: -8500 | CE22: 0 | CF22: 0 | CG22: 0 | CH22: 0 | CI22: 0 | CJ22: 0 | CK22: 0 | CL22: 0 | CM22: 0 | CN22: 0 | CO22: 0 | CP22: 0 | CQ22: 0 | CR22: 0 | CS22: 0 | CT22: 0 | CU22: 0 | CV22: 0 | CW22: 0 | CX22: 0 | CY22: 0 | CZ22: 0 | DA22: 0 | DB22: 0 | DC22: 0 | DD22: 0 | DE22: 0 | DF22: 0 | DG22: 0 | DH22: 0 | DI22: 0 | DJ22: 0 | DK22: 0 | DL22: 0 | DM22: 0 | DN22: 0 | DO22: 0 | DP22: 0 | DQ22: 0 | DR22: 0 | DS22: 0 | DT22: 0 | DU22: 0 | DV22: 0 | DW22: 0 | DX22: 0 | DY22: 0 | DZ22: 0 | EA22: 0 | EB22: 0 | EC22: 0 | ED22: 0 | EE22: 0 | EF22: 0 | EG22: 0 | EH22: 0 | EI22: 0 | EJ22: =IF(EJ$4>=$F22,-SUM(EJ20:EJ21),0) -> 0 | EK22: 0 | EL22: 0 | EM22: 0 | EN22: 0 | EO22: 0 | EP22: 0 | EQ22: 0 | ER22: 0 | ES22: 0 | ET22: 0 | EU22: 0 | EV22: 0 | EW22: 0 | EX22: 0 | EY22: 0
D23: Land, Ending Balance | I23: =SUM(I20:I22) -> 0 | K23: =SUM(K20:K22) -> 0 | L23: =SUM(L20:L22) -> 0 | M23: 0 | N23: 0 | O23: 0 | P23: 0 | Q23: 0 | R23: 0 | S23: 0 | T23: 0 | U23: 0 | V23: 0 | W23: 0 | X23: 0 | Y23: 0 | Z23: 0 | AA23: 0 | AB23: 0 | AC23: 0 | AD23: 0 | AE23: 0 | AF23: 0 | AG23: 0 | AH23: 0 | AI23: 8500 | AJ23: 8500 | AK23: 8500 | AL23: 8500 | AM23: 8500 | AN23: 8500 | AO23: 8500 | AP23: 8500 | AQ23: 8500 | AR23: 8500 | AS23: 8500 | AT23: 8500 | AU23: 8500 | AV23: 8500 | AW23: 8500 | AX23: 8500 | AY23: 8500 | AZ23: 8500 | BA23: 8500 | BB23: 8500 | BC23: 8500 | BD23: 8500 | BE23: 8500 | BF23: 8500 | BG23: 8500 | BH23: 8500 | BI23: 8500 | BJ23: 8500 | BK23: 8500 | BL23: 8500 | BM23: 8500 | BN23: 8500 | BO23: 8500 | BP23: 8500 | BQ23: 8500 | BR23: 8500 | BS23: 8500 | BT23: 8500 | BU23: 8500 | BV23: 8500 | BW23: 8500 | BX23: =SUM(BX20:BX22) -> 8500 | BY23: 8500 | BZ23: 8500 | CA23: 8500 | CB23: 8500 | CC23: 8500 | CD23: 0 | CE23: 0 | CF23: 0 | CG23: 0 | CH23: 0 | CI23: 0 | CJ23: 0 | CK23: 0 | CL23: 0 | CM23: 0 | CN23: 0 | CO23: 0 | CP23: 0 | CQ23: 0 | CR23: 0 | CS23: 0 | CT23: 0 | CU23: 0 | CV23: 0 | CW23: 0 | CX23: 0 | CY23: 0 | CZ23: 0 | DA23: 0 | DB23: 0 | DC23: 0 | DD23: 0 | DE23: 0 | DF23: 0 | DG23: 0 | DH23: 0 | DI23: 0 | DJ23: 0 | DK23: 0 | DL23: 0 | DM23: 0 | DN23: 0 | DO23: 0 | DP23: 0 | DQ23: 0 | DR23: 0 | DS23: 0 | DT23: 0 | DU23: 0 | DV23: 0 | DW23: 0 | DX23: 0 | DY23: 0 | DZ23: 0 | EA23: 0 | EB23: 0 | EC23: 0 | ED23: 0 | EE23: 0 | EF23: 0 | EG23: 0 | EH23: 0 | EI23: 0 | EJ23: =SUM(EJ20:EJ22) -> 0 | EK23: 0 | EL23: 0 | EM23: 0 | EN23: 0 | EO23: 0 | EP23: 0 | EQ23: 0 | ER23: 0 | ES23: 0 | ET23: 0 | EU23: 0 | EV23: 0 | EW23: 0 | EX23: 0 | EY23: 0
D24: 13-month Rolling Average | F24: 13 | G24: mo. | L24: =SUM(OFFSET(L23,0,0,1,-MIN($F24,L$2)))/$F24 -> 0 | M24: =SUM(OFFSET(M23,0,0,1,-MIN($F24,M$2)))/$F24 -> 0 | N24: 0 | O24: 0 | P24: 0 | Q24: 0 | R24: 0 | S24: 0 | T24: 0 | U24: 0 | V24: 0 | W24: 0 | X24: 0 | Y24: 0 | Z24: 0 | AA24: 0 | AB24: 0 | AC24: 0 | AD24: 0 | AE24: 0 | AF24: 0 | AG24: 0 | AH24: 0 | AI24: 653.8461538 | AJ24: 1307.692308 | AK24: 1961.538462 | AL24: 2615.384615 | AM24: 3269.230769 | AN24: 3923.076923 | AO24: 4576.923077 | AP24: 5230.769231 | AQ24: 5884.615385 | AR24: 6538.461538 | AS24: 7192.307692 | AT24: 7846.153846 | AU24: 8500 | AV24: 8500 | AW24: 8500 | AX24: 8500 | AY24: 8500 | AZ24: 8500 | BA24: 8500 | BB24: 8500 | BC24: 8500 | BD24: 8500 | BE24: 8500 | BF24: 8500 | BG24: 8500 | BH24: 8500 | BI24: 8500 | BJ24: 8500 | BK24: 8500 | BL24: 8500 | BM24: 8500 | BN24: 8500 | BO24: 8500 | BP24: 8500 | BQ24: 8500 | BR24: 8500 | BS24: 8500 | BT24: 8500 | BU24: 8500 | BV24: 8500 | BW24: 8500 | BX24: 8500 | BY24: =SUM(OFFSET(BY23,0,0,1,-MIN($F24,BY$2)))/$F24 -> 8500 | BZ24: 8500 | CA24: 8500 | CB24: 8500 | CC24: 8500 | CD24: 7846.153846 | CE24: 7192.307692 | CF24: 6538.461538 | CG24: 5884.615385 | CH24: 5230.769231 | CI24: 4576.923077 | CJ24: 3923.076923 | CK24: 3269.230769 | CL24: 2615.384615 | CM24: 1961.538462 | CN24: 1307.692308 | CO24: 653.8461538 | CP24: 0 | CQ24: 0 | CR24: 0 | CS24: 0 | CT24: 0 | CU24: 0 | CV24: 0 | CW24: 0 | CX24: 0 | CY24: 0 | CZ24: 0 | DA24: 0 | DB24: 0 | DC24: 0 | DD24: 0 | DE24: 0 | DF24: 0 | DG24: 0 | DH24: 0 | DI24: 0 | DJ24: 0 | DK24: 0 | DL24: 0 | DM24: 0 | DN24: 0 | DO24: 0 | DP24: 0 | DQ24: 0 | DR24: 0 | DS24: 0 | DT24: 0 | DU24: 0 | DV24: 0 | DW24: 0 | DX24: 0 | DY24: 0 | DZ24: 0 | EA24: 0 | EB24: 0 | EC24: 0 | ED24: 0 | EE24: 0 | EF24: 0 | EG24: 0 | EH24: 0 | EI24: 0 | EJ24: 0 | EK24: =SUM(OFFSET(EK23,0,0,1,-MIN($F24,EK$2)))/$F24 -> 0 | EL24: 0 | EM24: 0 | EN24: 0 | EO24: 0 | EP24: 0 | EQ24: 0 | ER24: 0 | ES24: 0 | ET24: 0 | EU24: 0 | EV24: 0 | EW24: 0 | EX24: 0 | EY24: 0
D27: Working Capital
D28: Working Capital, Beginning Balance | F28: =Control!$C$7 -> 2017-01-01 | K28: =J31 -> 0 | L28: 0 | M28: 0 | N28: 0 | O28: 0 | P28: 0 | Q28: 0 | R28: 0 | S28: 0 | T28: 0 | U28: 0 | V28: 0 | W28: 0 | X28: 0 | Y28: 0 | Z28: 0 | AA28: 0 | AB28: 0 | AC28: 0 | AD28: 0 | AE28: 0 | AF28: 0 | AG28: 0 | AH28: 0 | AI28: 0 | AJ28: 0 | AK28: 0 | AL28: 0 | AM28: 0 | AN28: 0 | AO28: 0 | AP28: 0 | AQ28: =AP31 -> 0 | AR28: 0 | AS28: 0 | AT28: 0 | AU28: 0 | AV28: 0 | AW28: 0 | AX28: 0 | AY28: 0 | AZ28: 0 | BA28: 0 | BB28: 0 | BC28: 0 | BD28: 0 | BE28: 0 | BF28: 0 | BG28: 0 | BH28: 0 | BI28: 0 | BJ28: 0 | BK28: 0 | BL28: 0 | BM28: 0 | BN28: 0 | BO28: 0 | BP28: 0 | BQ28: 0 | BR28: 0 | BS28: 0 | BT28: 0 | BU28: 0 | BV28: 0 | BW28: =BV31 -> 0 | BX28: 0 | BY28: 0 | BZ28: 0 | CA28: 0 | CB28: 0 | CC28: 0 | CD28: 0 | CE28: 0 | CF28: 0 | CG28: 0 | CH28: 0 | CI28: 0 | CJ28: 0 | CK28: 0 | CL28: 0 | CM28: 0 | CN28: 0 | CO28: 0 | CP28: 0 | CQ28: 0 | CR28: 0 | CS28: 0 | CT28: 0 | CU28: 0 | CV28: 0 | CW28: 0 | CX28: 0 | CY28: 0 | CZ28: 0 | DA28: 0 | DB28: 0 | DC28: =DB31 -> 0 | DD28: 0 | DE28: 0 | DF28: 0 | DG28: 0 | DH28: 0 | DI28: 0 | DJ28: 0 | DK28: 0 | DL28: 0 | DM28: 0 | DN28: 0 | DO28: 0 | DP28: 0 | DQ28: 0 | DR28: 0 | DS28: 0 | DT28: 0 | DU28: 0 | DV28: 0 | DW28: 0 | DX28: 0 | DY28: 0 | DZ28: 0 | EA28: 0 | EB28: 0 | EC28: 0 | ED28: 0 | EE28: 0 | EF28: 0 | EG28: 0 | EH28: 0 | EI28: =EH31 -> 0 | EJ28: 0 | EK28: 0 | EL28: 0 | EM28: 0 | EN28: 0 | EO28: 0 | EP28: 0 | EQ28: 0 | ER28: 0 | ES28: 0 | ET28: 0 | EU28: 0 | EV28: 0 | EW28: 0 | EX28: 0 | EY28: 0
D29: Capital Additions | F29: =Control!$I$24 -> 0 | I29: =SUM(K29:EY29) -> 0 | K29: =IF(EOMONTH($F28,0)=EOMONTH(K$4,0),$F29,0) -> 0 | L29: =IF(EOMONTH($F28,0)=EOMONTH(L$4,0),$F29,0) -> 0 | M29: 0 | N29: 0 | O29: 0 | P29: 0 | Q29: 0 | R29: 0 | S29: 0 | T29: 0 | U29: 0 | V29: 0 | W29: 0 | X29: 0 | Y29: 0 | Z29: 0 | AA29: 0 | AB29: 0 | AC29: 0 | AD29: 0 | AE29: 0 | AF29: 0 | AG29: 0 | AH29: 0 | AI29: 0 | AJ29: 0 | AK29: 0 | AL29: 0 | AM29: 0 | AN29: 0 | AO29: 0 | AP29: 0 | AQ29: 0 | AR29: 0 | AS29: 0 | AT29: 0 | AU29: 0 | AV29: 0 | AW29: 0 | AX29: 0 | AY29: 0 | AZ29: 0 | BA29: 0 | BB29: 0 | BC29: 0 | BD29: 0 | BE29: 0 | BF29: 0 | BG29: 0 | BH29: 0 | BI29: 0 | BJ29: 0 | BK29: 0 | BL29: 0 | BM29: 0 | BN29: 0 | BO29: 0 | BP29: 0 | BQ29: 0 | BR29: 0 | BS29: 0 | BT29: 0 | BU29: 0 | BV29: 0 | BW29: 0 | BX29: =IF(EOMONTH($F28,0)=EOMONTH(BX$4,0),$F29,0) -> 0 | BY29: 0 | BZ29: 0 | CA29: 0 | CB29: 0 | CC29: 0 | CD29: 0 | CE29: 0 | CF29: 0 | CG29: 0 | CH29: 0 | CI29: 0 | CJ29: 0 | CK29: 0 | CL29: 0 | CM29: 0 | CN29: 0 | CO29: 0 | CP29: 0 | CQ29: 0 | CR29: 0 | CS29: 0 | CT29: 0 | CU29: 0 | CV29: 0 | CW29: 0 | CX29: 0 | CY29: 0 | CZ29: 0 | DA29: 0 | DB29: 0 | DC29: 0 | DD29: 0 | DE29: 0 | DF29: 0 | DG29: 0 | DH29: 0 | DI29: 0 | DJ29: 0 | DK29: 0 | DL29: 0 | DM29: 0 | DN29: 0 | DO29: 0 | DP29: 0 | DQ29: 0 | DR29: 0 | DS29: 0 | DT29: 0 | DU29: 0 | DV29: 0 | DW29: 0 | DX29: 0 | DY29: 0 | DZ29: 0 | EA29: 0 | EB29: 0 | EC29: 0 | ED29: 0 | EE29: 0 | EF29: 0 | EG29: 0 | EH29: 0 | EI29: 0 | EJ29: =IF(EOMONTH($F28,0)=EOMONTH(EJ$4,0),$F29,0) -> 0 | EK29: 0 | EL29: 0 | EM29: 0 | EN29: 0 | EO29: 0 | EP29: 0 | EQ29: 0 | ER29: 0 | ES29: 0 | ET29: 0 | EU29: 0 | EV29: 0 | EW29: 0 | EX29: 0 | EY29: 0
D30: Change in Working Capital | F30: =Control!$C$9 -> 2020-12-31 | I30: =SUM(K30:EY30) -> 0 | K30: =IF(K4>=$F54,-SUM(K28:K29),0) -> 0 | L30: 0 | M30: 0 | N30: 0 | O30: 0 | P30: 0 | Q30: 0 | R30: 0 | S30: 0 | T30: 0 | U30: 0 | V30: 0 | W30: 0 | X30: 0 | Y30: 0 | Z30: 0 | AA30: 0 | AB30: 0 | AC30: 0 | AD30: 0 | AE30: 0 | AF30: 0 | AG30: 0 | AH30: 0 | AI30: 0 | AJ30: 0 | AK30: 0 | AL30: 0 | AM30: 0 | AN30: 0 | AO30: 0 | AP30: 0 | AQ30: =IF(AQ4>=$F54,-SUM(AQ28:AQ29),0) -> 0 | AR30: 0 | AS30: 0 | AT30: 0 | AU30: 0 | AV30: 0 | AW30: 0 | AX30: 0 | AY30: 0 | AZ30: 0 | BA30: 0 | BB30: 0 | BC30: 0 | BD30: 0 | BE30: 0 | BF30: 0 | BG30: 0 | BH30: 0 | BI30: 0 | BJ30: 0 | BK30: 0 | BL30: 0 | BM30: 0 | BN30: 0 | BO30: 0 | BP30: 0 | BQ30: 0 | BR30: 0 | BS30: 0 | BT30: 0 | BU30: 0 | BV30: 0 | BW30: =IF(BW4>=$F54,-SUM(BW28:BW29),0) -> 0 | BX30: 0 | BY30: 0 | BZ30: 0 | CA30: 0 | CB30: 0 | CC30: 0 | CD30: 0 | CE30: 0 | CF30: 0 | CG30: 0 | CH30: 0 | CI30: 0 | CJ30: 0 | CK30: 0 | CL30: 0 | CM30: 0 | CN30: 0 | CO30: 0 | CP30: 0 | CQ30: 0 | CR30: 0 | CS30: 0 | CT30: 0 | CU30: 0 | CV30: 0 | CW30: 0 | CX30: 0 | CY30: 0 | CZ30: 0 | DA30: 0 | DB30: 0 | DC30: =IF(DC4>=$F54,-SUM(DC28:DC29),0) -> 0 | DD30: 0 | DE30: 0 | DF30: 0 | DG30: 0 | DH30: 0 | DI30: 0 | DJ30: 0 | DK30: 0 | DL30: 0 | DM30: 0 | DN30: 0 | DO30: 0 | DP30: 0 | DQ30: 0 | DR30: 0 | DS30: 0 | DT30: 0 | DU30: 0 | DV30: 0 | DW30: 0 | DX30: 0 | DY30: 0 | DZ30: 0 | EA30: 0 | EB30: 0 | EC30: 0 | ED30: 0 | EE30: 0 | EF30: 0 | EG30: 0 | EH30: 0 | EI30: =IF(EI4>=$F54,-SUM(EI28:EI29),0) -> 0 | EJ30: 0 | EK30: 0 | EL30: 0 | EM30: 0 | EN30: 0 | EO30: 0 | EP30: 0 | EQ30: 0 | ER30: 0 | ES30: 0 | ET30: 0 | EU30: 0 | EV30: 0 | EW30: 0 | EX30: 0 | EY30: 0
D31: Working Capital, Ending Balance | I31: =SUM(I28:I30) -> 0 | K31: =SUM(K28:K30) -> 0 | L31: =SUM(L28:L30) -> 0 | M31: 0 | N31: 0 | O31: 0 | P31: 0 | Q31: 0 | R31: 0 | S31: 0 | T31: 0 | U31: 0 | V31: 0 | W31: 0 | X31: 0 | Y31: 0 | Z31: 0 | AA31: 0 | AB31: 0 | AC31: 0 | AD31: 0 | AE31: 0 | AF31: 0 | AG31: 0 | AH31: 0 | AI31: 0 | AJ31: 0 | AK31: 0 | AL31: 0 | AM31: 0 | AN31: 0 | AO31: 0 | AP31: 0 | AQ31: 0 | AR31: 0 | AS31: 0 | AT31: 0 | AU31: 0 | AV31: 0 | AW31: 0 | AX31: 0 | AY31: 0 | AZ31: 0 | BA31: 0 | BB31: 0 | BC31: 0 | BD31: 0 | BE31: 0 | BF31: 0 | BG31: 0 | BH31: 0 | BI31: 0 | BJ31: 0 | BK31: 0 | BL31: 0 | BM31: 0 | BN31: 0 | BO31: 0 | BP31: 0 | BQ31: 0 | BR31: 0 | BS31: 0 | BT31: 0 | BU31: 0 | BV31: 0 | BW31: 0 | BX31: =SUM(BX28:BX30) -> 0 | BY31: 0 | BZ31: 0 | CA31: 0 | CB31: 0 | CC31: 0 | CD31: 0 | CE31: 0 | CF31: 0 | CG31: 0 | CH31: 0 | CI31: 0 | CJ31: 0 | CK31: 0 | CL31: 0 | CM31: 0 | CN31: 0 | CO31: 0 | CP31: 0 | CQ31: 0 | CR31: 0 | CS31: 0 | CT31: 0 | CU31: 0 | CV31: 0 | CW31: 0 | CX31: 0 | CY31: 0 | CZ31: 0 | DA31: 0 | DB31: 0 | DC31: 0 | DD31: 0 | DE31: 0 | DF31: 0 | DG31: 0 | DH31: 0 | DI31: 0 | DJ31: 0 | DK31: 0 | DL31: 0 | DM31: 0 | DN31: 0 | DO31: 0 | DP31: 0 | DQ31: 0 | DR31: 0 | DS31: 0 | DT31: 0 | DU31: 0 | DV31: 0 | DW31: 0 | DX31: 0 | DY31: 0 | DZ31: 0 | EA31: 0 | EB31: 0 | EC31: 0 | ED31: 0 | EE31: 0 | EF31: 0 | EG31: 0 | EH31: 0 | EI31: 0 | EJ31: =SUM(EJ28:EJ30) -> 0 | EK31: 0 | EL31: 0 | EM31: 0 | EN31: 0 | EO31: 0 | EP31: 0 | EQ31: 0 | ER31: 0 | ES31: 0 | ET31: 0 | EU31: 0 | EV31: 0 | EW31: 0 | EX31: 0 | EY31: 0
D32: 13-month Rolling Average | F32: 13 | G32: mo. | L32: =SUM(OFFSET(L31,0,0,1,-MIN($F32,L$2)))/$F32 -> 0 | M32: =SUM(OFFSET(M31,0,0,1,-MIN($F32,M$2)))/$F32 -> 0 | N32: 0 | O32: 0 | P32: 0 | Q32: 0 | R32: 0 | S32: 0 | T32: 0 | U32: 0 | V32: 0 | W32: 0 | X32: 0 | Y32: 0 | Z32: 0 | AA32: 0 | AB32: 0 | AC32: 0 | AD32: 0 | AE32: 0 | AF32: 0 | AG32: 0 | AH32: 0 | AI32: 0 | AJ32: 0 | AK32: 0 | AL32: 0 | AM32: 0 | AN32: 0 | AO32: 0 | AP32: 0 | AQ32: 0 | AR32: 0 | AS32: 0 | AT32: 0 | AU32: 0 | AV32: 0 | AW32: 0 | AX32: 0 | AY32: 0 | AZ32: 0 | BA32: 0 | BB32: 0 | BC32: 0 | BD32: 0 | BE32: 0 | BF32: 0 | BG32: 0 | BH32: 0 | BI32: 0 | BJ32: 0 | BK32: 0 | BL32: 0 | BM32: 0 | BN32: 0 | BO32: 0 | BP32: 0 | BQ32: 0 | BR32: 0 | BS32: 0 | BT32: 0 | BU32: 0 | BV32: 0 | BW32: 0 | BX32: 0 | BY32: =SUM(OFFSET(BY31,0,0,1,-MIN($F32,BY$2)))/$F32 -> 0 | BZ32: 0 | CA32: 0 | CB32: 0 | CC32: 0 | CD32: 0 | CE32: 0 | CF32: 0 | CG32: 0 | CH32: 0 | CI32: 0 | CJ32: 0 | CK32: 0 | CL32: 0 | CM32: 0 | CN32: 0 | CO32: 0 | CP32: 0 | CQ32: 0 | CR32: 0 | CS32: 0 | CT32: 0 | CU32: 0 | CV32: 0 | CW32: 0 | CX32: 0 | CY32: 0 | CZ32: 0 | DA32: 0 | DB32: 0 | DC32: 0 | DD32: 0 | DE32: 0 | DF32: 0 | DG32: 0 | DH32: 0 | DI32: 0 | DJ32: 0 | DK32: 0 | DL32: 0 | DM32: 0 | DN32: 0 | DO32: 0 | DP32: 0 | DQ32: 0 | DR32: 0 | DS32: 0 | DT32: 0 | DU32: 0 | DV32: 0 | DW32: 0 | DX32: 0 | DY32: 0 | DZ32: 0 | EA32: 0 | EB32: 0 | EC32: 0 | ED32: 0 | EE32: 0 | EF32: 0 | EG32: 0 | EH32: 0 | EI32: 0 | EJ32: 0 | EK32: =SUM(OFFSET(EK31,0,0,1,-MIN($F32,EK$2)))/$F32 -> 0 | EL32: 0 | EM32: 0 | EN32: 0 | EO32: 0 | EP32: 0 | EQ32: 0 | ER32: 0 | ES32: 0 | ET32: 0 | EU32: 0 | EV32: 0 | EW32: 0 | EX32: 0 | EY32: 0
D35: Deferred Tax Asset/(Liability)
D36: Beginning Balance | K36: =J39 -> 0 | L36: 0 | M36: 0 | N36: 0 | O36: 0 | P36: 0 | Q36: 0 | R36: 0 | S36: 0 | T36: 0 | U36: 0 | V36: 0 | W36: 0 | X36: 0 | Y36: 0 | Z36: 0 | AA36: 0 | AB36: 0 | AC36: 0 | AD36: 0 | AE36: 0 | AF36: 0 | AG36: 0 | AH36: 0 | AI36: 0 | AJ36: 1047.08355 | AK36: 2094.167101 | AL36: 3141.250651 | AM36: 4188.334201 | AN36: 5235.417752 | AO36: 6282.501302 | AP36: 7329.584852 | AQ36: =AP39 -> 8376.668403 | AR36: 9423.751953 | AS36: 10470.8355 | AT36: 11517.91905 | AU36: 12565.0026 | AV36: 13118.63717 | AW36: 13672.27173 | AX36: 14225.90629 | AY36: 14779.54085 | AZ36: 15333.17541 | BA36: 15886.80997 | BB36: 16440.44453 | BC36: 16994.07909 | BD36: 17547.71366 | BE36: 18101.34822 | BF36: 18654.98278 | BG36: 19208.61734 | BH36: 19839.34886 | BI36: 20470.08038 | BJ36: 21100.8119 | BK36: 21731.54342 | BL36: 22362.27494 | BM36: 22993.00646 | BN36: 23623.73798 | BO36: 24254.4695 | BP36: 24885.20103 | BQ36: 25515.93255 | BR36: 26146.66407 | BS36: 26777.39559 | BT36: 27479.24976 | BU36: 28181.10394 | BV36: 28882.95812 | BW36: =BV39 -> 29584.8123 | BX36: 30286.66647 | BY36: 30988.52065 | BZ36: 31690.37483 | CA36: 32392.229 | CB36: 33094.08318 | CC36: 33795.93736 | CD36: 34497.79153 | CE36: -94830.20833 | CF36: -93249.70486 | CG36: -91669.20139 | CH36: -90088.69792 | CI36: -88508.19444 | CJ36: -86927.69097 | CK36: -85347.1875 | CL36: -83766.68403 | CM36: -82186.18056 | CN36: -80605.67708 | CO36: -79025.17361 | CP36: -77444.67014 | CQ36: -75864.16667 | CR36: -74283.66319 | CS36: -72703.15972 | CT36: -71122.65625 | CU36: -69542.15278 | CV36: -67961.64931 | CW36: -66381.14583 | CX36: -64800.64236 | CY36: -63220.13889 | CZ36: -61639.63542 | DA36: -60059.13194 | DB36: -58478.62847 | DC36: =DB39 -> -56898.125 | DD36: -55317.62153 | DE36: -53737.11806 | DF36: -52156.61458 | DG36: -50576.11111 | DH36: -48995.60764 | DI36: -47415.10417 | DJ36: -45834.60069 | DK36: -44254.09722 | DL36: -42673.59375 | DM36: -41093.09028 | DN36: -39512.58681 | DO36: -37932.08333 | DP36: -36351.57986 | DQ36: -34771.07639 | DR36: -33190.57292 | DS36: -31610.06944 | DT36: -30029.56597 | DU36: -28449.0625 | DV36: -26868.55903 | DW36: -25288.05556 | DX36: -23707.55208 | DY36: -22127.04861 | DZ36: -20546.54514 | EA36: -18966.04167 | EB36: -17385.53819 | EC36: -15805.03472 | ED36: -14224.53125 | EE36: -12644.02778 | EF36: -11063.52431 | EG36: -9483.020833 | EH36: -7902.517361 | EI36: =EH39 -> -6322.013889 | EJ36: -4741.510417 | EK36: -3161.006944 | EL36: -1580.503472 | EM36: -5.391029845e-10 | EN36: -5.4120801e-10 | EO36: -5.4120801e-10 | EP36: -5.4120801e-10 | EQ36: -5.4120801e-10 | ER36: -5.4120801e-10 | ES36: -5.4120801e-10 | ET36: -5.4120801e-10 | EU36: -5.4120801e-10 | EV36: -5.4120801e-10 | EW36: -5.4120801e-10 | EX36: -5.4120801e-10 | EY36: -5.4120801e-10
D37: Opening Balance | E37: =Control!$C$20 -> 0.38575 | I37: =SUM(K37:EY37) -> 0 | K37: =(K13-K80+K60)*-$E37 -> 0 | L37: =(L13-L80+L60)*-$E37 -> 0 | M37: 0 | N37: 0 | O37: 0 | P37: 0 | Q37: 0 | R37: 0 | S37: 0 | T37: 0 | U37: 0 | V37: 0 | W37: 0 | X37: 0 | Y37: 0 | Z37: 0 | AA37: 0 | AB37: 0 | AC37: 0 | AD37: 0 | AE37: 0 | AF37: 0 | AG37: 0 | AH37: 0 | AI37: 0 | AJ37: 0 | AK37: 0 | AL37: 0 | AM37: 0 | AN37: 0 | AO37: 0 | AP37: 0 | AQ37: 0 | AR37: 0 | AS37: 0 | AT37: 0 | AU37: 0 | AV37: 0 | AW37: 0 | AX37: 0 | AY37: 0 | AZ37: 0 | BA37: 0 | BB37: 0 | BC37: 0 | BD37: 0 | BE37: 0 | BF37: 0 | BG37: 0 | BH37: 0 | BI37: 0 | BJ37: 0 | BK37: 0 | BL37: 0 | BM37: 0 | BN37: 0 | BO37: 0 | BP37: 0 | BQ37: 0 | BR37: 0 | BS37: 0 | BT37: 0 | BU37: 0 | BV37: 0 | BW37: 0 | BX37: =(BX13-BX80+BX60)*-$E37 -> 0 | BY37: 0 | BZ37: 0 | CA37: 0 | CB37: 0 | CC37: 0 | CD37: 0 | CE37: 0 | CF37: 0 | CG37: 0 | CH37: 0 | CI37: 0 | CJ37: 0 | CK37: 0 | CL37: 0 | CM37: 0 | CN37: 0 | CO37: 0 | CP37: 0 | CQ37: 0 | CR37: 0 | CS37: 0 | CT37: 0 | CU37: 0 | CV37: 0 | CW37: 0 | CX37: 0 | CY37: 0 | CZ37: 0 | DA37: 0 | DB37: 0 | DC37: 0 | DD37: 0 | DE37: 0 | DF37: 0 | DG37: 0 | DH37: 0 | DI37: 0 | DJ37: 0 | DK37: 0 | DL37: 0 | DM37: 0 | DN37: 0 | DO37: 0 | DP37: 0 | DQ37: 0 | DR37: 0 | DS37: 0 | DT37: 0 | DU37: 0 | DV37: 0 | DW37: 0 | DX37: 0 | DY37: 0 | DZ37: 0 | EA37: 0 | EB37: 0 | EC37: 0 | ED37: 0 | EE37: 0 | EF37: 0 | EG37: 0 | EH37: 0 | EI37: 0 | EJ37: =(EJ13-EJ80+EJ60)*-$E37 -> 0 | EK37: 0 | EL37: 0 | EM37: 0 | EN37: 0 | EO37: 0 | EP37: 0 | EQ37: 0 | ER37: 0 | ES37: 0 | ET37: 0 | EU37: 0 | EV37: 0 | EW37: 0 | EX37: 0 | EY37: 0
D38: Amortization/Retirement | I38: =SUM(K38:EY38) -> -5.4120801e-10 | K38: =(K14-K81-K82+K61)*-$E37 -> 0 | L38: =(L14-L81-L82+L61)*-$E37 -> 0 | M38: 0 | N38: 0 | O38: 0 | P38: 0 | Q38: 0 | R38: 0 | S38: 0 | T38: 0 | U38: 0 | V38: 0 | W38: 0 | X38: 0 | Y38: 0 | Z38: 0 | AA38: 0 | AB38: 0 | AC38: 0 | AD38: 0 | AE38: 0 | AF38: 0 | AG38: 0 | AH38: 0 | AI38: 1047.08355 | AJ38: 1047.08355 | AK38: 1047.08355 | AL38: 1047.08355 | AM38: 1047.08355 | AN38: 1047.08355 | AO38: 1047.08355 | AP38: 1047.08355 | AQ38: 1047.08355 | AR38: 1047.08355 | AS38: 1047.08355 | AT38: 1047.08355 | AU38: 553.6345613 | AV38: 553.6345613 | AW38: 553.6345613 | AX38: 553.6345613 | AY38: 553.6345613 | AZ38: 553.6345613 | BA38: 553.6345613 | BB38: 553.6345613 | BC38: 553.6345613 | BD38: 553.6345613 | BE38: 553.6345613 | BF38: 553.6345613 | BG38: 630.7315207 | BH38: 630.7315207 | BI38: 630.7315207 | BJ38: 630.7315207 | BK38: 630.7315207 | BL38: 630.7315207 | BM38: 630.7315207 | BN38: 630.7315207 | BO38: 630.7315207 | BP38: 630.7315207 | BQ38: 630.7315207 | BR38: 630.7315207 | BS38: 701.8541769 | BT38: 701.8541769 | BU38: 701.8541769 | BV38: 701.8541769 | BW38: 701.8541769 | BX38: =(BX14-BX81-BX82+BX61)*-$E37 -> 701.8541769 | BY38: 701.8541769 | BZ38: 701.8541769 | CA38: 701.8541769 | CB38: 701.8541769 | CC38: 701.8541769 | CD38: -129327.9999 | CE38: 1580.503472 | CF38: 1580.503472 | CG38: 1580.503472 | CH38: 1580.503472 | CI38: 1580.503472 | CJ38: 1580.503472 | CK38: 1580.503472 | CL38: 1580.503472 | CM38: 1580.503472 | CN38: 1580.503472 | CO38: 1580.503472 | CP38: 1580.503472 | CQ38: 1580.503472 | CR38: 1580.503472 | CS38: 1580.503472 | CT38: 1580.503472 | CU38: 1580.503472 | CV38: 1580.503472 | CW38: 1580.503472 | CX38: 1580.503472 | CY38: 1580.503472 | CZ38: 1580.503472 | DA38: 1580.503472 | DB38: 1580.503472 | DC38: 1580.503472 | DD38: 1580.503472 | DE38: 1580.503472 | DF38: 1580.503472 | DG38: 1580.503472 | DH38: 1580.503472 | DI38: 1580.503472 | DJ38: 1580.503472 | DK38: 1580.503472 | DL38: 1580.503472 | DM38: 1580.503472 | DN38: 1580.503472 | DO38: 1580.503472 | DP38: 1580.503472 | DQ38: 1580.503472 | DR38: 1580.503472 | DS38: 1580.503472 | DT38: 1580.503472 | DU38: 1580.503472 | DV38: 1580.503472 | DW38: 1580.503472 | DX38: 1580.503472 | DY38: 1580.503472 | DZ38: 1580.503472 | EA38: 1580.503472 | EB38: 1580.503472 | EC38: 1580.503472 | ED38: 1580.503472 | EE38: 1580.503472 | EF38: 1580.503472 | EG38: 1580.503472 | EH38: 1580.503472 | EI38: 1580.503472 | EJ38: =(EJ14-EJ81-EJ82+EJ61)*-$E37 -> 1580.503472 | EK38: 1580.503472 | EL38: 1580.503472 | EM38: -2.105025487e-12 | EN38: 0 | EO38: 0 | EP38: 0 | EQ38: 0 | ER38: 0 | ES38: 0 | ET38: 0 | EU38: 0 | EV38: 0 | EW38: 0 | EX38: 0 | EY38: 0
D39: Ending Balance | I39: =SUM(I36:I38) -> -5.4120801e-10 | K39: =SUM(K36:K38) -> 0 | L39: =SUM(L36:L38) -> 0 | M39: 0 | N39: 0 | O39: 0 | P39: 0 | Q39: 0 | R39: 0 | S39: 0 | T39: 0 | U39: 0 | V39: 0 | W39: 0 | X39: 0 | Y39: 0 | Z39: 0 | AA39: 0 | AB39: 0 | AC39: 0 | AD39: 0 | AE39: 0 | AF39: 0 | AG39: 0 | AH39: 0 | AI39: 1047.08355 | AJ39: 2094.167101 | AK39: 3141.250651 | AL39: 4188.334201 | AM39: 5235.417752 | AN39: 6282.501302 | AO39: 7329.584852 | AP39: 8376.668403 | AQ39: 9423.751953 | AR39: 10470.8355 | AS39: 11517.91905 | AT39: 12565.0026 | AU39: 13118.63717 | AV39: 13672.27173 | AW39: 14225.90629 | AX39: 14779.54085 | AY39: 15333.17541 | AZ39: 15886.80997 | BA39: 16440.44453 | BB39: 16994.07909 | BC39: 17547.71366 | BD39: 18101.34822 | BE39: 18654.98278 | BF39: 19208.61734 | BG39: 19839.34886 | BH39: 20470.08038 | BI39: 21100.8119 | BJ39: 21731.54342 | BK39: 22362.27494 | BL39: 22993.00646 | BM39: 23623.73798 | BN39: 24254.4695 | BO39: 24885.20103 | BP39: 25515.93255 | BQ39: 26146.66407 | BR39: 26777.39559 | BS39: 27479.24976 | BT39: 28181.10394 | BU39: 28882.95812 | BV39: 29584.8123 | BW39: 30286.66647 | BX39: =SUM(BX36:BX38) -> 30988.52065 | BY39: 31690.37483 | BZ39: 32392.229 | CA39: 33094.08318 | CB39: 33795.93736 | CC39: 34497.79153 | CD39: -94830.20833 | CE39: -93249.70486 | CF39: -91669.20139 | CG39: -90088.69792 | CH39: -88508.19444 | CI39: -86927.69097 | CJ39: -85347.1875 | CK39: -83766.68403 | CL39: -82186.18056 | CM39: -80605.67708 | CN39: -79025.17361 | CO39: -77444.67014 | CP39: -75864.16667 | CQ39: -74283.66319 | CR39: -72703.15972 | CS39: -71122.65625 | CT39: -69542.15278 | CU39: -67961.64931 | CV39: -66381.14583 | CW39: -64800.64236 | CX39: -63220.13889 | CY39: -61639.63542 | CZ39: -60059.13194 | DA39: -58478.62847 | DB39: -56898.125 | DC39: -55317.62153 | DD39: -53737.11806 | DE39: -52156.61458 | DF39: -50576.11111 | DG39: -48995.60764 | DH39: -47415.10417 | DI39: -45834.60069 | DJ39: -44254.09722 | DK39: -42673.59375 | DL39: -41093.09028 | DM39: -39512.58681 | DN39: -37932.08333 | DO39: -36351.57986 | DP39: -34771.07639 | DQ39: -33190.57292 | DR39: -31610.06944 | DS39: -30029.56597 | DT39: -28449.0625 | DU39: -26868.55903 | DV39: -25288.05556 | DW39: -23707.55208 | DX39: -22127.04861 | DY39: -20546.54514 | DZ39: -18966.04167 | EA39: -17385.53819 | EB39: -15805.03472 | EC39: -14224.53125 | ED39: -12644.02778 | EE39: -11063.52431 | EF39: -9483.020833 | EG39: -7902.517361 | EH39: -6322.013889 | EI39: -4741.510417 | EJ39: =SUM(EJ36:EJ38) -> -3161.006944 | EK39: -1580.503472 | EL39: -5.391029845e-10 | EM39: -5.4120801e-10 | EN39: -5.4120801e-10 | EO39: -5.4120801e-10 | EP39: -5.4120801e-10 | EQ39: -5.4120801e-10 | ER39: -5.4120801e-10 | ES39: -5.4120801e-10 | ET39: -5.4120801e-10 | EU39: -5.4120801e-10 | EV39: -5.4120801e-10 | EW39: -5.4120801e-10 | EX39: -5.4120801e-10 | EY39: -5.4120801e-10
D40: 13-month Rolling Average | F40: 13 | G40: mo. | L40: =SUM(OFFSET(L39,0,0,1,-MIN($F40,L$2)))/$F40 -> 0 | M40: =SUM(OFFSET(M39,0,0,1,-MIN($F40,M$2)))/$F40 -> 0 | N40: 0 | O40: 0 | P40: 0 | Q40: 0 | R40: 0 | S40: 0 | T40: 0 | U40: 0 | V40: 0 | W40: 0 | X40: 0 | Y40: 0 | Z40: 0 | AA40: 0 | AB40: 0 | AC40: 0 | AD40: 0 | AE40: 0 | AF40: 0 | AG40: 0 | AH40: 0 | AI40: 80.54488849 | AJ40: 241.6346655 | AK40: 483.2693309 | AL40: 805.4488849 | AM40: 1208.173327 | AN40: 1691.442658 | AO40: 2255.256878 | AP40: 2899.615986 | AQ40: 3624.519982 | AR40: 4429.968867 | AS40: 5315.96264 | AT40: 6282.501302 | AU40: 7291.627238 | AV40: 8262.795559 | AW40: 9196.006266 | AX40: 10091.25936 | AY40: 10948.55484 | AZ40: 11767.8927 | BA40: 12549.27295 | BB40: 13292.69558 | BC40: 13998.1606 | BD40: 14665.66801 | BE40: 15295.2178 | BF40: 15886.80997 | BG40: 16446.37507 | BH40: 17011.8707 | BI40: 17583.29687 | BJ40: 18160.65357 | BK40: 18743.94081 | BL40: 19333.15858 | BM40: 19928.30689 | BN40: 20529.38573 | BO40: 21136.39511 | BP40: 21749.33503 | BQ40: 22368.20548 | BR40: 22993.00646 | BS40: 23629.20896 | BT40: 24270.88243 | BU40: 24918.02687 | BV40: 25570.64228 | BW40: 26228.72867 | BX40: 26892.28603 | BY40: =SUM(OFFSET(BY39,0,0,1,-MIN($F40,BY$2)))/$F40 -> 27561.31437 | BZ40: 28235.81368 | CA40: 28915.78396 | CB40: 29601.22522 | CC40: 30292.13745 | CD40: 20986.22418 | CE40: 11753.3703 | CF40: 2588.10483 | CG40: -6509.572236 | CH40: -15539.66089 | CI40: -24502.16115 | CJ40: -33397.07299 | CK40: -42224.39643 | CL40: -50984.13146 | CM40: -59676.27808 | CN40: -68300.83629 | CO40: -76857.8061 | CP40: -85347.1875 | CQ40: -83766.68403 | CR40: -82186.18056 | CS40: -80605.67708 | CT40: -79025.17361 | CU40: -77444.67014 | CV40: -75864.16667 | CW40: -74283.66319 | CX40: -72703.15972 | CY40: -71122.65625 | CZ40: -69542.15278 | DA40: -67961.64931 | DB40: -66381.14583 | DC40: -64800.64236 | DD40: -63220.13889 | DE40: -61639.63542 | DF40: -60059.13194 | DG40: -58478.62847 | DH40: -56898.125 | DI40: -55317.62153 | DJ40: -53737.11806 | DK40: -52156.61458 | DL40: -50576.11111 | DM40: -48995.60764 | DN40: -47415.10417 | DO40: -45834.60069 | DP40: -44254.09722 | DQ40: -42673.59375 | DR40: -41093.09028 | DS40: -39512.58681 | DT40: -37932.08333 | DU40: -36351.57986 | DV40: -34771.07639 | DW40: -33190.57292 | DX40: -31610.06944 | DY40: -30029.56597 | DZ40: -28449.0625 | EA40: -26868.55903 | EB40: -25288.05556 | EC40: -23707.55208 | ED40: -22127.04861 | EE40: -20546.54514 | EF40: -18966.04167 | EG40: -17385.53819 | EH40: -15805.03472 | EI40: -14224.53125 | EJ40: -12644.02778 | EK40: =SUM(OFFSET(EK39,0,0,1,-MIN($F40,EK$2)))/$F40 -> -11063.52431 | EL40: -9483.020833 | EM40: -8024.094551 | EN40: -6686.745459 | EO40: -5470.973558 | EP40: -4376.778846 | EQ40: -3404.161325 | ER40: -2553.120994 | ES40: -1823.657853 | ET40: -1215.771902 | EU40: -729.463141 | EV40: -364.7315705 | EW40: -121.5771902 | EX40: -5.410460849e-10 | EY40: -5.4120801e-10
D43: ARO Asset
D44: Beginning Balance | F44: =Control!$C$7 -> 2017-01-01 | K44: =J47 -> 0 | L44: 0 | M44: 0 | N44: 0 | O44: 0 | P44: 0 | Q44: 0 | R44: 0 | S44: 0 | T44: 0 | U44: 0 | V44: 0 | W44: 0 | X44: 0 | Y44: 0 | Z44: 0 | AA44: 0 | AB44: 0 | AC44: 0 | AD44: 0 | AE44: 0 | AF44: 0 | AG44: 0 | AH44: 0 | AI44: 0 | AJ44: 9732.916667 | AK44: 9525.833333 | AL44: 9318.75 | AM44: 9111.666667 | AN44: 8904.583333 | AO44: 8697.5 | AP44: 8490.416667 | AQ44: =AP47 -> 8283.333333 | AR44: 8076.25 | AS44: 7869.166667 | AT44: 7662.083333 | AU44: 7455 | AV44: 7247.916667 | AW44: 7040.833333 | AX44: 6833.75 | AY44: 6626.666667 | AZ44: 6419.583333 | BA44: 6212.5 | BB44: 6005.416667 | BC44: 5798.333333 | BD44: 5591.25 | BE44: 5384.166667 | BF44: 5177.083333 | BG44: 4970 | BH44: 4762.916667 | BI44: 4555.833333 | BJ44: 4348.75 | BK44: 4141.666667 | BL44: 3934.583333 | BM44: 3727.5 | BN44: 3520.416667 | BO44: 3313.333333 | BP44: 3106.25 | BQ44: 2899.166667 | BR44: 2692.083333 | BS44: 2485 | BT44: 2277.916667 | BU44: 2070.833333 | BV44: 1863.75 | BW44: =BV47 -> 1656.666667 | BX44: 1449.583333 | BY44: 1242.5 | BZ44: 1035.416667 | CA44: 828.3333333 | CB44: 621.25 | CC44: 414.1666667 | CD44: 207.0833333 | CE44: -2.557953849e-13 | CF44: -2.557953849e-13 | CG44: -2.557953849e-13 | CH44: -2.557953849e-13 | CI44: -2.557953849e-13 | CJ44: -2.557953849e-13 | CK44: -2.557953849e-13 | CL44: -2.557953849e-13 | CM44: -2.557953849e-13 | CN44: -2.557953849e-13 | CO44: -2.557953849e-13 | CP44: -2.557953849e-13 | CQ44: -2.557953849e-13 | CR44: -2.557953849e-13 | CS44: -2.557953849e-13 | CT44: -2.557953849e-13 | CU44: -2.557953849e-13 | CV44: -2.557953849e-13 | CW44: -2.557953849e-13 | CX44: -2.557953849e-13 | CY44: -2.557953849e-13 | CZ44: -2.557953849e-13 | DA44: -2.557953849e-13 | DB44: -2.557953849e-13 | DC44: =DB47 -> -2.557953849e-13 | DD44: -2.557953849e-13 | DE44: -2.557953849e-13 | DF44: -2.557953849e-13 | DG44: -2.557953849e-13 | DH44: -2.557953849e-13 | DI44: -2.557953849e-13 | DJ44: -2.557953849e-13 | DK44: -2.557953849e-13 | DL44: -2.557953849e-13 | DM44: -2.557953849e-13 | DN44: -2.557953849e-13 | DO44: -2.557953849e-13 | DP44: -2.557953849e-13 | DQ44: -2.557953849e-13 | DR44: -2.557953849e-13 | DS44: -2.557953849e-13 | DT44: -2.557953849e-13 | DU44: -2.557953849e-13 | DV44: -2.557953849e-13 | DW44: -2.557953849e-13 | DX44: -2.557953849e-13 | DY44: -2.557953849e-13 | DZ44: -2.557953849e-13 | EA44: -2.557953849e-13 | EB44: -2.557953849e-13 | EC44: -2.557953849e-13 | ED44: -2.557953849e-13 | EE44: -2.557953849e-13 | EF44: -2.557953849e-13 | EG44: -2.557953849e-13 | EH44: -2.557953849e-13 | EI44: =EH47 -> -2.557953849e-13 | EJ44: -2.557953849e-13 | EK44: -2.557953849e-13 | EL44: -2.557953849e-13 | EM44: -2.557953849e-13 | EN44: -2.557953849e-13 | EO44: -2.557953849e-13 | EP44: -2.557953849e-13 | EQ44: -2.557953849e-13 | ER44: -2.557953849e-13 | ES44: -2.557953849e-13 | ET44: -2.557953849e-13 | EU44: -2.557953849e-13 | EV44: -2.557953849e-13 | EW44: -2.557953849e-13 | EX44: -2.557953849e-13 | EY44: -2.557953849e-13
D45: Opening Balance | F45: =Control!$I$30*($D$2<>"PPA Buyout") -> 9940 | I45: =SUM(K45:EY45) -> 9940 | K45: =IF(EOMONTH($F44,0)=EOMONTH(K$4,0),$F45,0) -> 0 | L45: 0 | M45: 0 | N45: 0 | O45: 0 | P45: 0 | Q45: 0 | R45: 0 | S45: 0 | T45: 0 | U45: 0 | V45: 0 | W45: 0 | X45: 0 | Y45: 0 | Z45: 0 | AA45: 0 | AB45: 0 | AC45: 0 | AD45: 0 | AE45: 0 | AF45: 0 | AG45: 0 | AH45: 0 | AI45: 9940 | AJ45: 0 | AK45: 0 | AL45: 0 | AM45: 0 | AN45: 0 | AO45: 0 | AP45: 0 | AQ45: =IF(EOMONTH($F44,0)=EOMONTH(AQ$4,0),$F45,0) -> 0 | AR45: 0 | AS45: 0 | AT45: 0 | AU45: 0 | AV45: 0 | AW45: 0 | AX45: 0 | AY45: 0 | AZ45: 0 | BA45: 0 | BB45: 0 | BC45: 0 | BD45: 0 | BE45: 0 | BF45: 0 | BG45: 0 | BH45: 0 | BI45: 0 | BJ45: 0 | BK45: 0 | BL45: 0 | BM45: 0 | BN45: 0 | BO45: 0 | BP45: 0 | BQ45: 0 | BR45: 0 | BS45: 0 | BT45: 0 | BU45: 0 | BV45: 0 | BW45: =IF(EOMONTH($F44,0)=EOMONTH(BW$4,0),$F45,0) -> 0 | BX45: 0 | BY45: 0 | BZ45: 0 | CA45: 0 | CB45: 0 | CC45: 0 | CD45: 0 | CE45: 0 | CF45: 0 | CG45: 0 | CH45: 0 | CI45: 0 | CJ45: 0 | CK45: 0 | CL45: 0 | CM45: 0 | CN45: 0 | CO45: 0 | CP45: 0 | CQ45: 0 | CR45: 0 | CS45: 0 | CT45: 0 | CU45: 0 | CV45: 0 | CW45: 0 | CX45: 0 | CY45: 0 | CZ45: 0 | DA45: 0 | DB45: 0 | DC45: =IF(EOMONTH($F44,0)=EOMONTH(DC$4,0),$F45,0) -> 0 | DD45: 0 | DE45: 0 | DF45: 0 | DG45: 0 | DH45: 0 | DI45: 0 | DJ45: 0 | DK45: 0 | DL45: 0 | DM45: 0 | DN45: 0 | DO45: 0 | DP45: 0 | DQ45: 0 | DR45: 0 | DS45: 0 | DT45: 0 | DU45: 0 | DV45: 0 | DW45: 0 | DX45: 0 | DY45: 0 | DZ45: 0 | EA45: 0 | EB45: 0 | EC45: 0 | ED45: 0 | EE45: 0 | EF45: 0 | EG45: 0 | EH45: 0 | EI45: =IF(EOMONTH($F44,0)=EOMONTH(EI$4,0),$F45,0) -> 0 | EJ45: 0 | EK45: 0 | EL45: 0 | EM45: 0 | EN45: 0 | EO45: 0 | EP45: 0 | EQ45: 0 | ER45: 0 | ES45: 0 | ET45: 0 | EU45: 0 | EV45: 0 | EW45: 0 | EX45: 0 | EY45: 0
D46: ARO Amortization | F46: =MAX(Control!$C$12,1) -> 48 | G46: mo. | I46: =SUM(K46:EY46) -> -9940 | K46: =IFERROR(MAX(-SUM($J45:K45)/$F46,-SUM($J45:K45)-SUM($J46:J46)),0) -> 0 | L46: =IFERROR(MAX(-SUM($J45:L45)/$F46,-SUM($J45:L45)-SUM($J46:K46)),0) -> 0 | M46: =IFERROR(MAX(-SUM($J45:M45)/$F46,-SUM($J45:M45)-SUM($J46:L46)),0) -> 0 | N46: =IFERROR(MAX(-SUM($J45:N45)/$F46,-SUM($J45:N45)-SUM($J46:M46)),0) -> 0 | O46: =IFERROR(MAX(-SUM($J45:O45)/$F46,-SUM($J45:O45)-SUM($J46:N46)),0) -> 0 | P46: =IFERROR(MAX(-SUM($J45:P45)/$F46,-SUM($J45:P45)-SUM($J46:O46)),0) -> 0 | Q46: =IFERROR(MAX(-SUM($J45:Q45)/$F46,-SUM($J45:Q45)-SUM($J46:P46)),0) -> 0 | R46: =IFERROR(MAX(-SUM($J45:R45)/$F46,-SUM($J45:R45)-SUM($J46:Q46)),0) -> 0 | S46: =IFERROR(MAX(-SUM($J45:S45)/$F46,-SUM($J45:S45)-SUM($J46:R46)),0) -> 0 | T46: =IFERROR(MAX(-SUM($J45:T45)/$F46,-SUM($J45:T45)-SUM($J46:S46)),0) -> 0 | U46: =IFERROR(MAX(-SUM($J45:U45)/$F46,-SUM($J45:U45)-SUM($J46:T46)),0) -> 0 | V46: =IFERROR(MAX(-SUM($J45:V45)/$F46,-SUM($J45:V45)-SUM($J46:U46)),0) -> 0 | W46: =IFERROR(MAX(-SUM($J45:W45)/$F46,-SUM($J45:W45)-SUM($J46:V46)),0) -> 0 | X46: =IFERROR(MAX(-SUM($J45:X45)/$F46,-SUM($J45:X45)-SUM($J46:W46)),0) -> 0 | Y46: =IFERROR(MAX(-SUM($J45:Y45)/$F46,-SUM($J45:Y45)-SUM($J46:X46)),0) -> 0 | Z46: =IFERROR(MAX(-SUM($J45:Z45)/$F46,-SUM($J45:Z45)-SUM($J46:Y46)),0) -> 0 | AA46: =IFERROR(MAX(-SUM($J45:AA45)/$F46,-SUM($J45:AA45)-SUM($J46:Z46)),0) -> 0 | AB46: =IFERROR(MAX(-SUM($J45:AB45)/$F46,-SUM($J45:AB45)-SUM($J46:AA46)),0) -> 0 | AC46: =IFERROR(MAX(-SUM($J45:AC45)/$F46,-SUM($J45:AC45)-SUM($J46:AB46)),0) -> 0 | AD46: =IFERROR(MAX(-SUM($J45:AD45)/$F46,-SUM($J45:AD45)-SUM($J46:AC46)),0) -> 0 | AE46: =IFERROR(MAX(-SUM($J45:AE45)/$F46,-SUM($J45:AE45)-SUM($J46:AD46)),0) -> 0 | AF46: =IFERROR(MAX(-SUM($J45:AF45)/$F46,-SUM($J45:AF45)-SUM($J46:AE46)),0) -> 0 | AG46: =IFERROR(MAX(-SUM($J45:AG45)/$F46,-SUM($J45:AG45)-SUM($J46:AF46)),0) -> 0 | AH46: =IFERROR(MAX(-SUM($J45:AH45)/$F46,-SUM($J45:AH45)-SUM($J46:AG46)),0) -> 0 | AI46: =IFERROR(MAX(-SUM($J45:AI45)/$F46,-SUM($J45:AI45)-SUM($J46:AH46)),0) -> -207.0833333 | AJ46: =IFERROR(MAX(-SUM($J45:AJ45)/$F46,-SUM($J45:AJ45)-SUM($J46:AI46)),0) -> -207.0833333 | AK46: =IFERROR(MAX(-SUM($J45:AK45)/$F46,-SUM($J45:AK45)-SUM($J46:AJ46)),0) -> -207.0833333 | AL46: =IFERROR(MAX(-SUM($J45:AL45)/$F46,-SUM($J45:AL45)-SUM($J46:AK46)),0) -> -207.0833333 | AM46: =IFERROR(MAX(-SUM($J45:AM45)/$F46,-SUM($J45:AM45)-SUM($J46:AL46)),0) -> -207.0833333 | AN46: =IFERROR(MAX(-SUM($J45:AN45)/$F46,-SUM($J45:AN45)-SUM($J46:AM46)),0) -> -207.0833333 | AO46: =IFERROR(MAX(-SUM($J45:AO45)/$F46,-SUM($J45:AO45)-SUM($J46:AN46)),0) -> -207.0833333 | AP46: =IFERROR(MAX(-SUM($J45:AP45)/$F46,-SUM($J45:AP45)-SUM($J46:AO46)),0) -> -207.0833333 | AQ46: =IFERROR(MAX(-SUM($J45:AQ45)/$F46,-SUM($J45:AQ45)-SUM($J46:AP46)),0) -> -207.0833333 | AR46: =IFERROR(MAX(-SUM($J45:AR45)/$F46,-SUM($J45:AR45)-SUM($J46:AQ46)),0) -> -207.0833333 | AS46: =IFERROR(MAX(-SUM($J45:AS45)/$F46,-SUM($J45:AS45)-SUM($J46:AR46)),0) -> -207.0833333 | AT46: =IFERROR(MAX(-SUM($J45:AT45)/$F46,-SUM($J45:AT45)-SUM($J46:AS46)),0) -> -207.0833333 | AU46: =IFERROR(MAX(-SUM($J45:AU45)/$F46,-SUM($J45:AU45)-SUM($J46:AT46)),0) -> -207.0833333 | AV46: =IFERROR(MAX(-SUM($J45:AV45)/$F46,-SUM($J45:AV45)-SUM($J46:AU46)),0) -> -207.0833333 | AW46: =IFERROR(MAX(-SUM($J45:AW45)/$F46,-SUM($J45:AW45)-SUM($J46:AV46)),0) -> -207.0833333 | AX46: =IFERROR(MAX(-SUM($J45:AX45)/$F46,-SUM($J45:AX45)-SUM($J46:AW46)),0) -> -207.0833333 | AY46: =IFERROR(MAX(-SUM($J45:AY45)/$F46,-SUM($J45:AY45)-SUM($J46:AX46)),0) -> -207.0833333 | AZ46: =IFERROR(MAX(-SUM($J45:AZ45)/$F46,-SUM($J45:AZ45)-SUM($J46:AY46)),0) -> -207.0833333 | BA46: =IFERROR(MAX(-SUM($J45:BA45)/$F46,-SUM($J45:BA45)-SUM($J46:AZ46)),0) -> -207.0833333 | BB46: =IFERROR(MAX(-SUM($J45:BB45)/$F46,-SUM($J45:BB45)-SUM($J46:BA46)),0) -> -207.0833333 | BC46: =IFERROR(MAX(-SUM($J45:BC45)/$F46,-SUM($J45:BC45)-SUM($J46:BB46)),0) -> -207.0833333 | BD46: =IFERROR(MAX(-SUM($J45:BD45)/$F46,-SUM($J45:BD45)-SUM($J46:BC46)),0) -> -207.0833333 | BE46: =IFERROR(MAX(-SUM($J45:BE45)/$F46,-SUM($J45:BE45)-SUM($J46:BD46)),0) -> -207.0833333 | BF46: =IFERROR(MAX(-SUM($J45:BF45)/$F46,-SUM($J45:BF45)-SUM($J46:BE46)),0) -> -207.0833333 | BG46: =IFERROR(MAX(-SUM($J45:BG45)/$F46,-SUM($J45:BG45)-SUM($J46:BF46)),0) -> -207.0833333 | BH46: =IFERROR(MAX(-SUM($J45:BH45)/$F46,-SUM($J45:BH45)-SUM($J46:BG46)),0) -> -207.0833333 | BI46: =IFERROR(MAX(-SUM($J45:BI45)/$F46,-SUM($J45:BI45)-SUM($J46:BH46)),0) -> -207.0833333 | BJ46: =IFERROR(MAX(-SUM($J45:BJ45)/$F46,-SUM($J45:BJ45)-SUM($J46:BI46)),0) -> -207.0833333 | BK46: =IFERROR(MAX(-SUM($J45:BK45)/$F46,-SUM($J45:BK45)-SUM($J46:BJ46)),0) -> -207.0833333 | BL46: =IFERROR(MAX(-SUM($J45:BL45)/$F46,-SUM($J45:BL45)-SUM($J46:BK46)),0) -> -207.0833333 | BM46: =IFERROR(MAX(-SUM($J45:BM45)/$F46,-SUM($J45:BM45)-SUM($J46:BL46)),0) -> -207.0833333 | BN46: =IFERROR(MAX(-SUM($J45:BN45)/$F46,-SUM($J45:BN45)-SUM($J46:BM46)),0) -> -207.0833333 | BO46: =IFERROR(MAX(-SUM($J45:BO45)/$F46,-SUM($J45:BO45)-SUM($J46:BN46)),0) -> -207.0833333 | BP46: =IFERROR(MAX(-SUM($J45:BP45)/$F46,-SUM($J45:BP45)-SUM($J46:BO46)),0) -> -207.0833333 | BQ46: =IFERROR(MAX(-SUM($J45:BQ45)/$F46,-SUM($J45:BQ45)-SUM($J46:BP46)),0) -> -207.0833333 | BR46: =IFERROR(MAX(-SUM($J45:BR45)/$F46,-SUM($J45:BR45)-SUM($J46:BQ46)),0) -> -207.0833333 | BS46: =IFERROR(MAX(-SUM($J45:BS45)/$F46,-SUM($J45:BS45)-SUM($J46:BR46)),0) -> -207.0833333 | BT46: =IFERROR(MAX(-SUM($J45:BT45)/$F46,-SUM($J45:BT45)-SUM($J46:BS46)),0) -> -207.0833333 | BU46: =IFERROR(MAX(-SUM($J45:BU45)/$F46,-SUM($J45:BU45)-SUM($J46:BT46)),0) -> -207.0833333 | BV46: =IFERROR(MAX(-SUM($J45:BV45)/$F46,-SUM($J45:BV45)-SUM($J46:BU46)),0) -> -207.0833333 | BW46: =IFERROR(MAX(-SUM($J45:BW45)/$F46,-SUM($J45:BW45)-SUM($J46:BV46)),0) -> -207.0833333 | BX46: =IFERROR(MAX(-SUM($J45:BX45)/$F46,-SUM($J45:BX45)-SUM($J46:BW46)),0) -> -207.0833333 | BY46: =IFERROR(MAX(-SUM($J45:BY45)/$F46,-SUM($J45:BY45)-SUM($J46:BX46)),0) -> -207.0833333 | BZ46: =IFERROR(MAX(-SUM($J45:BZ45)/$F46,-SUM($J45:BZ45)-SUM($J46:BY46)),0) -> -207.0833333 | CA46: =IFERROR(MAX(-SUM($J45:CA45)/$F46,-SUM($J45:CA45)-SUM($J46:BZ46)),0) -> -207.0833333 | CB46: =IFERROR(MAX(-SUM($J45:CB45)/$F46,-SUM($J45:CB45)-SUM($J46:CA46)),0) -> -207.0833333 | CC46: =IFERROR(MAX(-SUM($J45:CC45)/$F46,-SUM($J45:CC45)-SUM($J46:CB46)),0) -> -207.0833333 | CD46: =IFERROR(MAX(-SUM($J45:CD45)/$F46,-SUM($J45:CD45)-SUM($J46:CC46)),0) -> -207.0833333 | CE46: =IFERROR(MAX(-SUM($J45:CE45)/$F46,-SUM($J45:CE45)-SUM($J46:CD46)),0) -> 0 | CF46: =IFERROR(MAX(-SUM($J45:CF45)/$F46,-SUM($J45:CF45)-SUM($J46:CE46)),0) -> 0 | CG46: =IFERROR(MAX(-SUM($J45:CG45)/$F46,-SUM($J45:CG45)-SUM($J46:CF46)),0) -> 0 | CH46: =IFERROR(MAX(-SUM($J45:CH45)/$F46,-SUM($J45:CH45)-SUM($J46:CG46)),0) -> 0 | CI46: =IFERROR(MAX(-SUM($J45:CI45)/$F46,-SUM($J45:CI45)-SUM($J46:CH46)),0) -> 0 | CJ46: =IFERROR(MAX(-SUM($J45:CJ45)/$F46,-SUM($J45:CJ45)-SUM($J46:CI46)),0) -> 0 | CK46: =IFERROR(MAX(-SUM($J45:CK45)/$F46,-SUM($J45:CK45)-SUM($J46:CJ46)),0) -> 0 | CL46: =IFERROR(MAX(-SUM($J45:CL45)/$F46,-SUM($J45:CL45)-SUM($J46:CK46)),0) -> 0 | CM46: =IFERROR(MAX(-SUM($J45:CM45)/$F46,-SUM($J45:CM45)-SUM($J46:CL46)),0) -> 0 | CN46: =IFERROR(MAX(-SUM($J45:CN45)/$F46,-SUM($J45:CN45)-SUM($J46:CM46)),0) -> 0 | CO46: =IFERROR(MAX(-SUM($J45:CO45)/$F46,-SUM($J45:CO45)-SUM($J46:CN46)),0) -> 0 | CP46: =IFERROR(MAX(-SUM($J45:CP45)/$F46,-SUM($J45:CP45)-SUM($J46:CO46)),0) -> 0 | CQ46: =IFERROR(MAX(-SUM($J45:CQ45)/$F46,-SUM($J45:CQ45)-SUM($J46:CP46)),0) -> 0 | CR46: =IFERROR(MAX(-SUM($J45:CR45)/$F46,-SUM($J45:CR45)-SUM($J46:CQ46)),0) -> 0 | CS46: =IFERROR(MAX(-SUM($J45:CS45)/$F46,-SUM($J45:CS45)-SUM($J46:CR46)),0) -> 0 | CT46: =IFERROR(MAX(-SUM($J45:CT45)/$F46,-SUM($J45:CT45)-SUM($J46:CS46)),0) -> 0 | CU46: =IFERROR(MAX(-SUM($J45:CU45)/$F46,-SUM($J45:CU45)-SUM($J46:CT46)),0) -> 0 | CV46: =IFERROR(MAX(-SUM($J45:CV45)/$F46,-SUM($J45:CV45)-SUM($J46:CU46)),0) -> 0 | CW46: =IFERROR(MAX(-SUM($J45:CW45)/$F46,-SUM($J45:CW45)-SUM($J46:CV46)),0) -> 0 | CX46: =IFERROR(MAX(-SUM($J45:CX45)/$F46,-SUM($J45:CX45)-SUM($J46:CW46)),0) -> 0 | CY46: =IFERROR(MAX(-SUM($J45:CY45)/$F46,-SUM($J45:CY45)-SUM($J46:CX46)),0) -> 0 | CZ46: =IFERROR(MAX(-SUM($J45:CZ45)/$F46,-SUM($J45:CZ45)-SUM($J46:CY46)),0) -> 0 | DA46: =IFERROR(MAX(-SUM($J45:DA45)/$F46,-SUM($J45:DA45)-SUM($J46:CZ46)),0) -> 0 | DB46: =IFERROR(MAX(-SUM($J45:DB45)/$F46,-SUM($J45:DB45)-SUM($J46:DA46)),0) -> 0 | DC46: =IFERROR(MAX(-SUM($J45:DC45)/$F46,-SUM($J45:DC45)-SUM($J46:DB46)),0) -> 0 | DD46: =IFERROR(MAX(-SUM($J45:DD45)/$F46,-SUM($J45:DD45)-SUM($J46:DC46)),0) -> 0 | DE46: =IFERROR(MAX(-SUM($J45:DE45)/$F46,-SUM($J45:DE45)-SUM($J46:DD46)),0) -> 0 | DF46: =IFERROR(MAX(-SUM($J45:DF45)/$F46,-SUM($J45:DF45)-SUM($J46:DE46)),0) -> 0 | DG46: =IFERROR(MAX(-SUM($J45:DG45)/$F46,-SUM($J45:DG45)-SUM($J46:DF46)),0) -> 0 | DH46: =IFERROR(MAX(-SUM($J45:DH45)/$F46,-SUM($J45:DH45)-SUM($J46:DG46)),0) -> 0 | DI46: =IFERROR(MAX(-SUM($J45:DI45)/$F46,-SUM($J45:DI45)-SUM($J46:DH46)),0) -> 0 | DJ46: =IFERROR(MAX(-SUM($J45:DJ45)/$F46,-SUM($J45:DJ45)-SUM($J46:DI46)),0) -> 0 | DK46: =IFERROR(MAX(-SUM($J45:DK45)/$F46,-SUM($J45:DK45)-SUM($J46:DJ46)),0) -> 0 | DL46: =IFERROR(MAX(-SUM($J45:DL45)/$F46,-SUM($J45:DL45)-SUM($J46:DK46)),0) -> 0 | DM46: =IFERROR(MAX(-SUM($J45:DM45)/$F46,-SUM($J45:DM45)-SUM($J46:DL46)),0) -> 0 | DN46: =IFERROR(MAX(-SUM($J45:DN45)/$F46,-SUM($J45:DN45)-SUM($J46:DM46)),0) -> 0 | DO46: =IFERROR(MAX(-SUM($J45:DO45)/$F46,-SUM($J45:DO45)-SUM($J46:DN46)),0) -> 0 | DP46: =IFERROR(MAX(-SUM($J45:DP45)/$F46,-SUM($J45:DP45)-SUM($J46:DO46)),0) -> 0 | DQ46: =IFERROR(MAX(-SUM($J45:DQ45)/$F46,-SUM($J45:DQ45)-SUM($J46:DP46)),0) -> 0 | DR46: =IFERROR(MAX(-SUM($J45:DR45)/$F46,-SUM($J45:DR45)-SUM($J46:DQ46)),0) -> 0 | DS46: =IFERROR(MAX(-SUM($J45:DS45)/$F46,-SUM($J45:DS45)-SUM($J46:DR46)),0) -> 0 | DT46: =IFERROR(MAX(-SUM($J45:DT45)/$F46,-SUM($J45:DT45)-SUM($J46:DS46)),0) -> 0 | DU46: =IFERROR(MAX(-SUM($J45:DU45)/$F46,-SUM($J45:DU45)-SUM($J46:DT46)),0) -> 0 | DV46: =IFERROR(MAX(-SUM($J45:DV45)/$F46,-SUM($J45:DV45)-SUM($J46:DU46)),0) -> 0 | DW46: =IFERROR(MAX(-SUM($J45:DW45)/$F46,-SUM($J45:DW45)-SUM($J46:DV46)),0) -> 0 | DX46: =IFERROR(MAX(-SUM($J45:DX45)/$F46,-SUM($J45:DX45)-SUM($J46:DW46)),0) -> 0 | DY46: =IFERROR(MAX(-SUM($J45:DY45)/$F46,-SUM($J45:DY45)-SUM($J46:DX46)),0) -> 0 | DZ46: =IFERROR(MAX(-SUM($J45:DZ45)/$F46,-SUM($J45:DZ45)-SUM($J46:DY46)),0) -> 0 | EA46: =IFERROR(MAX(-SUM($J45:EA45)/$F46,-SUM($J45:EA45)-SUM($J46:DZ46)),0) -> 0 | EB46: =IFERROR(MAX(-SUM($J45:EB45)/$F46,-SUM($J45:EB45)-SUM($J46:EA46)),0) -> 0 | EC46: =IFERROR(MAX(-SUM($J45:EC45)/$F46,-SUM($J45:EC45)-SUM($J46:EB46)),0) -> 0 | ED46: =IFERROR(MAX(-SUM($J45:ED45)/$F46,-SUM($J45:ED45)-SUM($J46:EC46)),0) -> 0 | EE46: =IFERROR(MAX(-SUM($J45:EE45)/$F46,-SUM($J45:EE45)-SUM($J46:ED46)),0) -> 0 | EF46: =IFERROR(MAX(-SUM($J45:EF45)/$F46,-SUM($J45:EF45)-SUM($J46:EE46)),0) -> 0 | EG46: =IFERROR(MAX(-SUM($J45:EG45)/$F46,-SUM($J45:EG45)-SUM($J46:EF46)),0) -> 0 | EH46: =IFERROR(MAX(-SUM($J45:EH45)/$F46,-SUM($J45:EH45)-SUM($J46:EG46)),0) -> 0 | EI46: =IFERROR(MAX(-SUM($J45:EI45)/$F46,-SUM($J45:EI45)-SUM($J46:EH46)),0) -> 0 | EJ46: =IFERROR(MAX(-SUM($J45:EJ45)/$F46,-SUM($J45:EJ45)-SUM($J46:EI46)),0) -> 0 | EK46: =IFERROR(MAX(-SUM($J45:EK45)/$F46,-SUM($J45:EK45)-SUM($J46:EJ46)),0) -> 0 | EL46: =IFERROR(MAX(-SUM($J45:EL45)/$F46,-SUM($J45:EL45)-SUM($J46:EK46)),0) -> 0 | EM46: =IFERROR(MAX(-SUM($J45:EM45)/$F46,-SUM($J45:EM45)-SUM($J46:EL46)),0) -> 0 | EN46: =IFERROR(MAX(-SUM($J45:EN45)/$F46,-SUM($J45:EN45)-SUM($J46:EM46)),0) -> 0 | EO46: =IFERROR(MAX(-SUM($J45:EO45)/$F46,-SUM($J45:EO45)-SUM($J46:EN46)),0) -> 0 | EP46: =IFERROR(MAX(-SUM($J45:EP45)/$F46,-SUM($J45:EP45)-SUM($J46:EO46)),0) -> 0 | EQ46: =IFERROR(MAX(-SUM($J45:EQ45)/$F46,-SUM($J45:EQ45)-SUM($J46:EP46)),0) -> 0 | ER46: =IFERROR(MAX(-SUM($J45:ER45)/$F46,-SUM($J45:ER45)-SUM($J46:EQ46)),0) -> 0 | ES46: =IFERROR(MAX(-SUM($J45:ES45)/$F46,-SUM($J45:ES45)-SUM($J46:ER46)),0) -> 0 | ET46: =IFERROR(MAX(-SUM($J45:ET45)/$F46,-SUM($J45:ET45)-SUM($J46:ES46)),0) -> 0 | EU46: =IFERROR(MAX(-SUM($J45:EU45)/$F46,-SUM($J45:EU45)-SUM($J46:ET46)),0) -> 0 | EV46: =IFERROR(MAX(-SUM($J45:EV45)/$F46,-SUM($J45:EV45)-SUM($J46:EU46)),0) -> 0 | EW46: =IFERROR(MAX(-SUM($J45:EW45)/$F46,-SUM($J45:EW45)-SUM($J46:EV46)),0) -> 0 | EX46: =IFERROR(MAX(-SUM($J45:EX45)/$F46,-SUM($J45:EX45)-SUM($J46:EW46)),0) -> 0 | EY46: =IFERROR(MAX(-SUM($J45:EY45)/$F46,-SUM($J45:EY45)-SUM($J46:EX46)),0) -> 0
D47: Ending Balance | I47: =SUM(I44:I46) -> 0 | K47: =SUM(K44:K46) -> 0 | L47: =SUM(L44:L46) -> 0 | M47: 0 | N47: 0 | O47: 0 | P47: 0 | Q47: 0 | R47: 0 | S47: 0 | T47: 0 | U47: 0 | V47: 0 | W47: 0 | X47: 0 | Y47: 0 | Z47: 0 | AA47: 0 | AB47: 0 | AC47: 0 | AD47: 0 | AE47: 0 | AF47: 0 | AG47: 0 | AH47: 0 | AI47: 9732.916667 | AJ47: 9525.833333 | AK47: 9318.75 | AL47: 9111.666667 | AM47: 8904.583333 | AN47: 8697.5 | AO47: 8490.416667 | AP47: 8283.333333 | AQ47: 8076.25 | AR47: 7869.166667 | AS47: 7662.083333 | AT47: 7455 | AU47: 7247.916667 | AV47: 7040.833333 | AW47: 6833.75 | AX47: 6626.666667 | AY47: 6419.583333 | AZ47: 6212.5 | BA47: 6005.416667 | BB47: 5798.333333 | BC47: 5591.25 | BD47: 5384.166667 | BE47: 5177.083333 | BF47: 4970 | BG47: 4762.916667 | BH47: 4555.833333 | BI47: 4348.75 | BJ47: 4141.666667 | BK47: 3934.583333 | BL47: 3727.5 | BM47: 3520.416667 | BN47: 3313.333333 | BO47: 3106.25 | BP47: 2899.166667 | BQ47: 2692.083333 | BR47: 2485 | BS47: 2277.916667 | BT47: 2070.833333 | BU47: 1863.75 | BV47: 1656.666667 | BW47: 1449.583333 | BX47: =SUM(BX44:BX46) -> 1242.5 | BY47: 1035.416667 | BZ47: 828.3333333 | CA47: 621.25 | CB47: 414.1666667 | CC47: 207.0833333 | CD47: -2.557953849e-13 | CE47: -2.557953849e-13 | CF47: -2.557953849e-13 | CG47: -2.557953849e-13 | CH47: -2.557953849e-13 | CI47: -2.557953849e-13 | CJ47: -2.557953849e-13 | CK47: -2.557953849e-13 | CL47: -2.557953849e-13 | CM47: -2.557953849e-13 | CN47: -2.557953849e-13 | CO47: -2.557953849e-13 | CP47: -2.557953849e-13 | CQ47: -2.557953849e-13 | CR47: -2.557953849e-13 | CS47: -2.557953849e-13 | CT47: -2.557953849e-13 | CU47: -2.557953849e-13 | CV47: -2.557953849e-13 | CW47: -2.557953849e-13 | CX47: -2.557953849e-13 | CY47: -2.557953849e-13 | CZ47: -2.557953849e-13 | DA47: -2.557953849e-13 | DB47: -2.557953849e-13 | DC47: -2.557953849e-13 | DD47: -2.557953849e-13 | DE47: -2.557953849e-13 | DF47: -2.557953849e-13 | DG47: -2.557953849e-13 | DH47: -2.557953849e-13 | DI47: -2.557953849e-13 | DJ47: -2.557953849e-13 | DK47: -2.557953849e-13 | DL47: -2.557953849e-13 | DM47: -2.557953849e-13 | DN47: -2.557953849e-13 | DO47: -2.557953849e-13 | DP47: -2.557953849e-13 | DQ47: -2.557953849e-13 | DR47: -2.557953849e-13 | DS47: -2.557953849e-13 | DT47: -2.557953849e-13 | DU47: -2.557953849e-13 | DV47: -2.557953849e-13 | DW47: -2.557953849e-13 | DX47: -2.557953849e-13 | DY47: -2.557953849e-13 | DZ47: -2.557953849e-13 | EA47: -2.557953849e-13 | EB47: -2.557953849e-13 | EC47: -2.557953849e-13 | ED47: -2.557953849e-13 | EE47: -2.557953849e-13 | EF47: -2.557953849e-13 | EG47: -2.557953849e-13 | EH47: -2.557953849e-13 | EI47: -2.557953849e-13 | EJ47: =SUM(EJ44:EJ46) -> -2.557953849e-13 | EK47: -2.557953849e-13 | EL47: -2.557953849e-13 | EM47: -2.557953849e-13 | EN47: -2.557953849e-13 | EO47: -2.557953849e-13 | EP47: -2.557953849e-13 | EQ47: -2.557953849e-13 | ER47: -2.557953849e-13 | ES47: -2.557953849e-13 | ET47: -2.557953849e-13 | EU47: -2.557953849e-13 | EV47: -2.557953849e-13 | EW47: -2.557953849e-13 | EX47: -2.557953849e-13 | EY47: -2.557953849e-13
D48: 13-month Rolling Average | F48: 13 | G48: mo. | L48: =SUM(OFFSET(L47,0,0,1,-MIN($F48,L$2)))/$F48 -> 0 | M48: 0 | N48: 0 | O48: 0 | P48: 0 | Q48: 0 | R48: 0 | S48: 0 | T48: 0 | U48: 0 | V48: 0 | W48: 0 | X48: 0 | Y48: 0 | Z48: 0 | AA48: 0 | AB48: 0 | AC48: 0 | AD48: 0 | AE48: 0 | AF48: 0 | AG48: 0 | AH48: 0 | AI48: 748.6858974 | AJ48: 1481.442308 | AK48: 2198.269231 | AL48: 2899.166667 | AM48: 3584.134615 | AN48: 4253.173077 | AO48: 4906.282051 | AP48: 5543.461538 | AQ48: 6164.711538 | AR48: =SUM(OFFSET(AR47,0,0,1,-MIN($F48,AR$2)))/$F48 -> 6770.032051 | AS48: 7359.423077 | AT48: 7932.884615 | AU48: 8490.416667 | AV48: 8283.333333 | AW48: 8076.25 | AX48: 7869.166667 | AY48: 7662.083333 | AZ48: 7455 | BA48: 7247.916667 | BB48: 7040.833333 | BC48: 6833.75 | BD48: 6626.666667 | BE48: 6419.583333 | BF48: 6212.5 | BG48: 6005.416667 | BH48: 5798.333333 | BI48: 5591.25 | BJ48: 5384.166667 | BK48: 5177.083333 | BL48: 4970 | BM48: 4762.916667 | BN48: 4555.833333 | BO48: 4348.75 | BP48: 4141.666667 | BQ48: 3934.583333 | BR48: 3727.5 | BS48: 3520.416667 | BT48: 3313.333333 | BU48: 3106.25 | BV48: 2899.166667 | BW48: 2692.083333 | BX48: =SUM(OFFSET(BX47,0,0,1,-MIN($F48,BX$2)))/$F48 -> 2485 | BY48: 2277.916667 | BZ48: 2070.833333 | CA48: 1863.75 | CB48: 1656.666667 | CC48: 1449.583333 | CD48: 1242.5 | CE48: 1051.346154 | CF48: 876.1217949 | CG48: 716.8269231 | CH48: 573.4615385 | CI48: 446.025641 | CJ48: 334.5192308 | CK48: 238.9423077 | CL48: 159.2948718 | CM48: 95.57692308 | CN48: 47.78846154 | CO48: 15.92948718 | CP48: -2.557953849e-13 | CQ48: -2.557953849e-13 | CR48: -2.557953849e-13 | CS48: -2.557953849e-13 | CT48: -2.557953849e-13 | CU48: -2.557953849e-13 | CV48: -2.557953849e-13 | CW48: -2.557953849e-13 | CX48: -2.557953849e-13 | CY48: -2.557953849e-13 | CZ48: -2.557953849e-13 | DA48: -2.557953849e-13 | DB48: -2.557953849e-13 | DC48: -2.557953849e-13 | DD48: =SUM(OFFSET(DD47,0,0,1,-MIN($F48,DD$2)))/$F48 -> -2.557953849e-13 | DE48: -2.557953849e-13 | DF48: -2.557953849e-13 | DG48: -2.557953849e-13 | DH48: -2.557953849e-13 | DI48: -2.557953849e-13 | DJ48: -2.557953849e-13 | DK48: -2.557953849e-13 | DL48: -2.557953849e-13 | DM48: -2.557953849e-13 | DN48: -2.557953849e-13 | DO48: -2.557953849e-13 | DP48: -2.557953849e-13 | DQ48: -2.557953849e-13 | DR48: -2.557953849e-13 | DS48: -2.557953849e-13 | DT48: -2.557953849e-13 | DU48: -2.557953849e-13 | DV48: -2.557953849e-13 | DW48: -2.557953849e-13 | DX48: -2.557953849e-13 | DY48: -2.557953849e-13 | DZ48: -2.557953849e-13 | EA48: -2.557953849e-13 | EB48: -2.557953849e-13 | EC48: -2.557953849e-13 | ED48: -2.557953849e-13 | EE48: -2.557953849e-13 | EF48: -2.557953849e-13 | EG48: -2.557953849e-13 | EH48: -2.557953849e-13 | EI48: -2.557953849e-13 | EJ48: =SUM(OFFSET(EJ47,0,0,1,-MIN($F48,EJ$2)))/$F48 -> -2.557953849e-13 | EK48: -2.557953849e-13 | EL48: -2.557953849e-13 | EM48: -2.557953849e-13 | EN48: -2.557953849e-13 | EO48: -2.557953849e-13 | EP48: -2.557953849e-13 | EQ48: -2.557953849e-13 | ER48: -2.557953849e-13 | ES48: -2.557953849e-13 | ET48: -2.557953849e-13 | EU48: -2.557953849e-13 | EV48: -2.557953849e-13 | EW48: -2.557953849e-13 | EX48: -2.557953849e-13 | EY48: -2.557953849e-13
D50: ARO Liability
D51: Beginning Balance | F51: =Control!$C$7 -> 2017-01-01 | K51: =J55 -> 0 | L51: 0 | M51: 0 | N51: 0 | O51: 0 | P51: 0 | Q51: 0 | R51: 0 | S51: 0 | T51: 0 | U51: 0 | V51: 0 | W51: 0 | X51: 0 | Y51: 0 | Z51: 0 | AA51: 0 | AB51: 0 | AC51: 0 | AD51: 0 | AE51: 0 | AF51: 0 | AG51: 0 | AH51: 0 | AI51: 0 | AJ51: -9956.566667 | AK51: -9973.160944 | AL51: -9989.782879 | AM51: -10006.43252 | AN51: -10023.10991 | AO51: -10039.81509 | AP51: -10056.54811 | AQ51: =AP55 -> -10073.30903 | AR51: -10090.09788 | AS51: -10106.91471 | AT51: -10123.75956 | AU51: -10140.6325 | AV51: -10157.53355 | AW51: -10174.46277 | AX51: -10191.42021 | AY51: -10208.40591 | AZ51: -10225.41992 | BA51: -10242.46229 | BB51: -10259.53306 | BC51: -10276.63228 | BD51: -10293.76 | BE51: -10310.91627 | BF51: -10328.10113 | BG51: -10345.31463 | BH51: -10362.55682 | BI51: -10379.82775 | BJ51: -10397.12746 | BK51: -10414.45601 | BL51: -10431.81343 | BM51: -10449.19979 | BN51: -10466.61512 | BO51: -10484.05948 | BP51: -10501.53291 | BQ51: -10519.03547 | BR51: -10536.56719 | BS51: -10554.12814 | BT51: -10571.71835 | BU51: -10589.33788 | BV51: -10606.98678 | BW51: =BV55 -> -10624.66509 | BX51: -10642.37287 | BY51: -10660.11015 | BZ51: -10677.877 | CA51: -10695.67347 | CB51: -10713.49959 | CC51: -10731.35542 | CD51: -10749.24101 | CE51: 0 | CF51: 0 | CG51: 0 | CH51: 0 | CI51: 0 | CJ51: 0 | CK51: 0 | CL51: 0 | CM51: 0 | CN51: 0 | CO51: 0 | CP51: 0 | CQ51: 0 | CR51: 0 | CS51: 0 | CT51: 0 | CU51: 0 | CV51: 0 | CW51: 0 | CX51: 0 | CY51: 0 | CZ51: 0 | DA51: 0 | DB51: 0 | DC51: =DB55 -> 0 | DD51: 0 | DE51: 0 | DF51: 0 | DG51: 0 | DH51: 0 | DI51: 0 | DJ51: 0 | DK51: 0 | DL51: 0 | DM51: 0 | DN51: 0 | DO51: 0 | DP51: 0 | DQ51: 0 | DR51: 0 | DS51: 0 | DT51: 0 | DU51: 0 | DV51: 0 | DW51: 0 | DX51: 0 | DY51: 0 | DZ51: 0 | EA51: 0 | EB51: 0 | EC51: 0 | ED51: 0 | EE51: 0 | EF51: 0 | EG51: 0 | EH51: 0 | EI51: =EH55 -> 0 | EJ51: 0 | EK51: 0 | EL51: 0 | EM51: 0 | EN51: 0 | EO51: 0 | EP51: 0 | EQ51: 0 | ER51: 0 | ES51: 0 | ET51: 0 | EU51: 0 | EV51: 0 | EW51: 0 | EX51: 0 | EY51: 0
D52: Opening Balance | F52: =-F45 -> -9940 | I52: =SUM(K52:EY52) -> -9940 | K52: =IF(EOMONTH($F51,0)=EOMONTH(K$4,0),$F52,0) -> 0 | L52: 0 | M52: 0 | N52: 0 | O52: 0 | P52: 0 | Q52: 0 | R52: 0 | S52: 0 | T52: 0 | U52: 0 | V52: 0 | W52: 0 | X52: 0 | Y52: 0 | Z52: 0 | AA52: 0 | AB52: 0 | AC52: 0 | AD52: 0 | AE52: 0 | AF52: 0 | AG52: 0 | AH52: 0 | AI52: -9940 | AJ52: 0 | AK52: 0 | AL52: 0 | AM52: 0 | AN52: 0 | AO52: 0 | AP52: 0 | AQ52: =IF(EOMONTH($F51,0)=EOMONTH(AQ$4,0),$F52,0) -> 0 | AR52: 0 | AS52: 0 | AT52: 0 | AU52: 0 | AV52: 0 | AW52: 0 | AX52: 0 | AY52: 0 | AZ52: 0 | BA52: 0 | BB52: 0 | BC52: 0 | BD52: 0 | BE52: 0 | BF52: 0 | BG52: 0 | BH52: 0 | BI52: 0 | BJ52: 0 | BK52: 0 | BL52: 0 | BM52: 0 | BN52: 0 | BO52: 0 | BP52: 0 | BQ52: 0 | BR52: 0 | BS52: 0 | BT52: 0 | BU52: 0 | BV52: 0 | BW52: =IF(EOMONTH($F51,0)=EOMONTH(BW$4,0),$F52,0) -> 0 | BX52: 0 | BY52: 0 | BZ52: 0 | CA52: 0 | CB52: 0 | CC52: 0 | CD52: 0 | CE52: 0 | CF52: 0 | CG52: 0 | CH52: 0 | CI52: 0 | CJ52: 0 | CK52: 0 | CL52: 0 | CM52: 0 | CN52: 0 | CO52: 0 | CP52: 0 | CQ52: 0 | CR52: 0 | CS52: 0 | CT52: 0 | CU52: 0 | CV52: 0 | CW52: 0 | CX52: 0 | CY52: 0 | CZ52: 0 | DA52: 0 | DB52: 0 | DC52: =IF(EOMONTH($F51,0)=EOMONTH(DC$4,0),$F52,0) -> 0 | DD52: 0 | DE52: 0 | DF52: 0 | DG52: 0 | DH52: 0 | DI52: 0 | DJ52: 0 | DK52: 0 | DL52: 0 | DM52: 0 | DN52: 0 | DO52: 0 | DP52: 0 | DQ52: 0 | DR52: 0 | DS52: 0 | DT52: 0 | DU52: 0 | DV52: 0 | DW52: 0 | DX52: 0 | DY52: 0 | DZ52: 0 | EA52: 0 | EB52: 0 | EC52: 0 | ED52: 0 | EE52: 0 | EF52: 0 | EG52: 0 | EH52: 0 | EI52: =IF(EOMONTH($F51,0)=EOMONTH(EI$4,0),$F52,0) -> 0 | EJ52: 0 | EK52: 0 | EL52: 0 | EM52: 0 | EN52: 0 | EO52: 0 | EP52: 0 | EQ52: 0 | ER52: 0 | ES52: 0 | ET52: 0 | EU52: 0 | EV52: 0 | EW52: 0 | EX52: 0 | EY52: 0
D53: ARO Accretion | F53: =Control!$I$31 -> 0.02 | I53: =SUM(K53:EY53) -> -827.156415 | K53: =SUM(K51:K52)*$F53/12 -> 0 | L53: 0 | M53: 0 | N53: 0 | O53: 0 | P53: 0 | Q53: 0 | R53: 0 | S53: 0 | T53: 0 | U53: 0 | V53: 0 | W53: 0 | X53: 0 | Y53: 0 | Z53: 0 | AA53: 0 | AB53: 0 | AC53: 0 | AD53: 0 | AE53: 0 | AF53: 0 | AG53: 0 | AH53: 0 | AI53: -16.56666667 | AJ53: =SUM(AJ51:AJ52)*$F53/12 -> -16.59427778 | AK53: =SUM(AK51:AK52)*$F53/12 -> -16.62193491 | AL53: -16.64963813 | AM53: -16.67738753 | AN53: -16.70518318 | AO53: -16.73302515 | AP53: -16.76091352 | AQ53: -16.78884838 | AR53: -16.81682979 | AS53: -16.84485784 | AT53: -16.8729326 | AU53: -16.90105416 | AV53: -16.92922258 | AW53: -16.95743795 | AX53: -16.98570035 | AY53: -17.01400985 | AZ53: -17.04236653 | BA53: -17.07077048 | BB53: -17.09922176 | BC53: -17.12772047 | BD53: -17.15626667 | BE53: -17.18486044 | BF53: -17.21350188 | BG53: -17.24219105 | BH53: -17.27092803 | BI53: -17.29971291 | BJ53: -17.32854577 | BK53: -17.35742668 | BL53: -17.38635572 | BM53: -17.41533298 | BN53: -17.44435854 | BO53: -17.47343247 | BP53: -17.50255485 | BQ53: -17.53172578 | BR53: -17.56094532 | BS53: -17.59021356 | BT53: -17.61953059 | BU53: -17.64889647 | BV53: -17.6783113 | BW53: -17.70777515 | BX53: -17.73728811 | BY53: -17.76685026 | BZ53: -17.79646167 | CA53: -17.82612244 | CB53: -17.85583265 | CC53: -17.88559237 | CD53: -17.91540169 | CE53: 0 | CF53: 0 | CG53: 0 | CH53: 0 | CI53: 0 | CJ53: 0 | CK53: 0 | CL53: 0 | CM53: 0 | CN53: 0 | CO53: 0 | CP53: 0 | CQ53: 0 | CR53: 0 | CS53: 0 | CT53: 0 | CU53: 0 | CV53: 0 | CW53: =SUM(CW51:CW52)*$F53/12 -> 0 | CX53: 0 | CY53: 0 | CZ53: 0 | DA53: 0 | DB53: 0 | DC53: 0 | DD53: 0 | DE53: 0 | DF53: 0 | DG53: 0 | DH53: 0 | DI53: 0 | DJ53: 0 | DK53: 0 | DL53: 0 | DM53: 0 | DN53: 0 | DO53: 0 | DP53: 0 | DQ53: 0 | DR53: 0 | DS53: 0 | DT53: 0 | DU53: 0 | DV53: 0 | DW53: 0 | DX53: 0 | DY53: 0 | DZ53: 0 | EA53: 0 | EB53: 0 | EC53: 0 | ED53: 0 | EE53: 0 | EF53: 0 | EG53: 0 | EH53: 0 | EI53: 0 | EJ53: 0 | EK53: 0 | EL53: 0 | EM53: 0 | EN53: 0 | EO53: 0 | EP53: 0 | EQ53: 0 | ER53: 0 | ES53: 0 | ET53: 0 | EU53: 0 | EV53: 0 | EW53: 0 | EX53: 0 | EY53: 0
D54: Retirement | F54: =Control!$C$9 -> 2020-12-31 | I54: =SUM(K54:EY54) -> 10767.15641 | K54: =IF(K$4>=$F54,-SUM(K51:K53),0) -> 0 | L54: 0 | M54: 0 | N54: 0 | O54: 0 | P54: 0 | Q54: 0 | R54: 0 | S54: 0 | T54: 0 | U54: 0 | V54: 0 | W54: 0 | X54: 0 | Y54: 0 | Z54: 0 | AA54: 0 | AB54: 0 | AC54: 0 | AD54: 0 | AE54: 0 | AF54: 0 | AG54: 0 | AH54: 0 | AI54: 0 | AJ54: 0 | AK54: 0 | AL54: 0 | AM54: 0 | AN54: 0 | AO54: 0 | AP54: 0 | AQ54: =IF(AQ$4>=$F54,-SUM(AQ51:AQ53),0) -> 0 | AR54: 0 | AS54: 0 | AT54: 0 | AU54: 0 | AV54: 0 | AW54: 0 | AX54: 0 | AY54: 0 | AZ54: 0 | BA54: 0 | BB54: 0 | BC54: 0 | BD54: 0 | BE54: 0 | BF54: 0 | BG54: 0 | BH54: 0 | BI54: 0 | BJ54: 0 | BK54: 0 | BL54: 0 | BM54: 0 | BN54: 0 | BO54: 0 | BP54: 0 | BQ54: 0 | BR54: 0 | BS54: 0 | BT54: 0 | BU54: 0 | BV54: 0 | BW54: =IF(BW$4>=$F54,-SUM(BW51:BW53),0) -> 0 | BX54: 0 | BY54: 0 | BZ54: 0 | CA54: 0 | CB54: 0 | CC54: 0 | CD54: 10767.15641 | CE54: 0 | CF54: 0 | CG54: 0 | CH54: 0 | CI54: 0 | CJ54: 0 | CK54: 0 | CL54: 0 | CM54: 0 | CN54: 0 | CO54: 0 | CP54: 0 | CQ54: 0 | CR54: 0 | CS54: 0 | CT54: 0 | CU54: 0 | CV54: 0 | CW54: 0 | CX54: 0 | CY54: 0 | CZ54: 0 | DA54: 0 | DB54: 0 | DC54: =IF(DC$4>=$F54,-SUM(DC51:DC53),0) -> 0 | DD54: 0 | DE54: 0 | DF54: 0 | DG54: 0 | DH54: 0 | DI54: 0 | DJ54: 0 | DK54: 0 | DL54: 0 | DM54: 0 | DN54: 0 | DO54: 0 | DP54: 0 | DQ54: 0 | DR54: 0 | DS54: 0 | DT54: 0 | DU54: 0 | DV54: 0 | DW54: 0 | DX54: 0 | DY54: 0 | DZ54: 0 | EA54: 0 | EB54: 0 | EC54: 0 | ED54: 0 | EE54: 0 | EF54: 0 | EG54: 0 | EH54: 0 | EI54: =IF(EI$4>=$F54,-SUM(EI51:EI53),0) -> 0 | EJ54: 0 | EK54: 0 | EL54: 0 | EM54: 0 | EN54: 0 | EO54: 0 | EP54: 0 | EQ54: 0 | ER54: 0 | ES54: 0 | ET54: 0 | EU54: 0 | EV54: 0 | EW54: 0 | EX54: 0 | EY54: 0
D55: Ending Balance | I55: =SUM(I51:I54) -> 0 | K55: =SUM(K51:K54) -> 0 | L55: =SUM(L51:L54) -> 0 | M55: 0 | N55: 0 | O55: 0 | P55: 0 | Q55: 0 | R55: 0 | S55: 0 | T55: 0 | U55: 0 | V55: 0 | W55: 0 | X55: 0 | Y55: 0 | Z55: 0 | AA55: 0 | AB55: 0 | AC55: 0 | AD55: 0 | AE55: 0 | AF55: 0 | AG55: 0 | AH55: 0 | AI55: -9956.566667 | AJ55: -9973.160944 | AK55: -9989.782879 | AL55: -10006.43252 | AM55: -10023.10991 | AN55: -10039.81509 | AO55: -10056.54811 | AP55: -10073.30903 | AQ55: -10090.09788 | AR55: -10106.91471 | AS55: -10123.75956 | AT55: -10140.6325 | AU55: -10157.53355 | AV55: -10174.46277 | AW55: -10191.42021 | AX55: -10208.40591 | AY55: -10225.41992 | AZ55: -10242.46229 | BA55: -10259.53306 | BB55: -10276.63228 | BC55: -10293.76 | BD55: -10310.91627 | BE55: -10328.10113 | BF55: -10345.31463 | BG55: -10362.55682 | BH55: -10379.82775 | BI55: -10397.12746 | BJ55: -10414.45601 | BK55: -10431.81343 | BL55: -10449.19979 | BM55: -10466.61512 | BN55: -10484.05948 | BO55: -10501.53291 | BP55: -10519.03547 | BQ55: -10536.56719 | BR55: -10554.12814 | BS55: -10571.71835 | BT55: -10589.33788 | BU55: -10606.98678 | BV55: -10624.66509 | BW55: -10642.37287 | BX55: =SUM(BX51:BX54) -> -10660.11015 | BY55: -10677.877 | BZ55: -10695.67347 | CA55: -10713.49959 | CB55: -10731.35542 | CC55: -10749.24101 | CD55: 0 | CE55: 0 | CF55: 0 | CG55: 0 | CH55: 0 | CI55: 0 | CJ55: 0 | CK55: 0 | CL55: 0 | CM55: 0 | CN55: 0 | CO55: 0 | CP55: 0 | CQ55: 0 | CR55: 0 | CS55: 0 | CT55: 0 | CU55: 0 | CV55: 0 | CW55: 0 | CX55: 0 | CY55: 0 | CZ55: 0 | DA55: 0 | DB55: 0 | DC55: 0 | DD55: 0 | DE55: 0 | DF55: 0 | DG55: 0 | DH55: 0 | DI55: 0 | DJ55: 0 | DK55: 0 | DL55: 0 | DM55: 0 | DN55: 0 | DO55: 0 | DP55: 0 | DQ55: 0 | DR55: 0 | DS55: 0 | DT55: 0 | DU55: 0 | DV55: 0 | DW55: 0 | DX55: 0 | DY55: 0 | DZ55: 0 | EA55: 0 | EB55: 0 | EC55: 0 | ED55: 0 | EE55: 0 | EF55: 0 | EG55: 0 | EH55: 0 | EI55: 0 | EJ55: =SUM(EJ51:EJ54) -> 0 | EK55: 0 | EL55: 0 | EM55: 0 | EN55: 0 | EO55: 0 | EP55: 0 | EQ55: 0 | ER55: 0 | ES55: 0 | ET55: 0 | EU55: 0 | EV55: 0 | EW55: 0 | EX55: 0 | EY55: 0
D56: 13-month Rolling Average | F56: 13 | G56: mo. | L56: =SUM(OFFSET(L55,0,0,1,-MIN($F56,L$2)))/$F56 -> 0 | M56: 0 | N56: 0 | O56: 0 | P56: 0 | Q56: 0 | R56: 0 | S56: 0 | T56: 0 | U56: 0 | V56: 0 | W56: 0 | X56: 0 | Y56: 0 | Z56: 0 | AA56: 0 | AB56: 0 | AC56: 0 | AD56: 0 | AE56: 0 | AF56: 0 | AG56: 0 | AH56: 0 | AI56: -765.8897436 | AJ56: -1533.05597 | AK56: -2301.500807 | AL56: -3071.226385 | AM56: -3842.234839 | AN56: -4614.528308 | AO56: -5388.108932 | AP56: -6162.978857 | AQ56: -6939.140232 | AR56: =SUM(OFFSET(AR55,0,0,1,-MIN($F56,AR$2)))/$F56 -> -7716.595209 | AS56: -8495.345945 | AT56: -9275.394598 | AU56: -10056.74333 | AV56: -10073.50457 | AW56: -10090.29375 | AX56: -10107.1109 | AY56: -10123.95609 | AZ56: -10140.82935 | BA56: -10157.73073 | BB56: -10174.66028 | BC56: -10191.61805 | BD56: -10208.60408 | BE56: -10225.61842 | BF56: -10242.66112 | BG56: -10259.73222 | BH56: -10276.83177 | BI56: -10293.95982 | BJ56: -10311.11642 | BK56: -10328.30162 | BL56: -10345.51545 | BM56: -10362.75798 | BN56: -10380.02924 | BO56: -10397.32929 | BP56: -10414.65817 | BQ56: -10432.01594 | BR56: -10449.40263 | BS56: -10466.8183 | BT56: -10484.263 | BU56: -10501.73677 | BV56: -10519.23967 | BW56: -10536.77173 | BX56: =SUM(OFFSET(BX55,0,0,1,-MIN($F56,BX$2)))/$F56 -> -10554.33302 | BY56: -10571.92357 | BZ56: -10589.54345 | CA56: -10607.19268 | CB56: -10624.87134 | CC56: -10642.57946 | CD56: -9832.074289 | CE56: -9020.218278 | CF56: -8207.009174 | CG56: -7392.444722 | CH56: -6576.522662 | CI56: -5759.240732 | CJ56: -4940.596665 | CK56: -4120.588192 | CL56: -3299.213038 | CM56: -2476.468925 | CN56: -1652.353572 | CO56: -826.8646933 | CP56: 0 | CQ56: 0 | CR56: 0 | CS56: 0 | CT56: 0 | CU56: 0 | CV56: 0 | CW56: 0 | CX56: 0 | CY56: 0 | CZ56: 0 | DA56: 0 | DB56: 0 | DC56: 0 | DD56: =SUM(OFFSET(DD55,0,0,1,-MIN($F56,DD$2)))/$F56 -> 0 | DE56: 0 | DF56: 0 | DG56: 0 | DH56: 0 | DI56: 0 | DJ56: 0 | DK56: 0 | DL56: 0 | DM56: 0 | DN56: 0 | DO56: 0 | DP56: 0 | DQ56: 0 | DR56: 0 | DS56: 0 | DT56: 0 | DU56: 0 | DV56: 0 | DW56: 0 | DX56: 0 | DY56: 0 | DZ56: 0 | EA56: 0 | EB56: 0 | EC56: 0 | ED56: 0 | EE56: 0 | EF56: 0 | EG56: 0 | EH56: 0 | EI56: 0 | EJ56: =SUM(OFFSET(EJ55,0,0,1,-MIN($F56,EJ$2)))/$F56 -> 0 | EK56: 0 | EL56: 0 | EM56: 0 | EN56: 0 | EO56: 0 | EP56: 0 | EQ56: 0 | ER56: 0 | ES56: 0 | ET56: 0 | EU56: 0 | EV56: 0 | EW56: 0 | EX56: 0 | EY56: 0
D58: Rail Car Lease Liability
D59: Beginning Balance | F59: =Control!$C$7 -> 2017-01-01 | K59: =J62 -> 0 | L59: =K62 -> 0 | M59: =L62 -> 0 | N59: =M62 -> 0 | O59: =N62 -> 0 | P59: =O62 -> 0 | Q59: =P62 -> 0 | R59: =Q62 -> 0 | S59: =R62 -> 0 | T59: =S62 -> 0 | U59: =T62 -> 0 | V59: =U62 -> 0 | W59: =V62 -> 0 | X59: =W62 -> 0 | Y59: =X62 -> 0 | Z59: =Y62 -> 0 | AA59: =Z62 -> 0 | AB59: =AA62 -> 0 | AC59: =AB62 -> 0 | AD59: =AC62 -> 0 | AE59: =AD62 -> 0 | AF59: =AE62 -> 0 | AG59: =AF62 -> 0 | AH59: =AG62 -> 0 | AI59: =AH62 -> 0 | AJ59: =AI62 -> -8916.666667 | AK59: =AJ62 -> -8833.333333 | AL59: =AK62 -> -8750 | AM59: =AL62 -> -8666.666667 | AN59: =AM62 -> -8583.333333 | AO59: =AN62 -> -8500 | AP59: =AO62 -> -8416.666667 | AQ59: =AP62 -> -8333.333333 | AR59: =AQ62 -> -8250 | AS59: =AR62 -> -8166.666667 | AT59: =AS62 -> -8083.333333 | AU59: =AT62 -> -8000 | AV59: =AU62 -> -7916.666667 | AW59: =AV62 -> -7833.333333 | AX59: =AW62 -> -7750 | AY59: =AX62 -> -7666.666667 | AZ59: =AY62 -> -7583.333333 | BA59: =AZ62 -> -7500 | BB59: =BA62 -> -7416.666667 | BC59: =BB62 -> -7333.333333 | BD59: =BC62 -> -7250 | BE59: =BD62 -> -7166.666667 | BF59: =BE62 -> -7083.333333 | BG59: =BF62 -> -7000 | BH59: =BG62 -> -6916.666667 | BI59: =BH62 -> -6833.333333 | BJ59: =BI62 -> -6750 | BK59: =BJ62 -> -6666.666667 | BL59: =BK62 -> -6583.333333 | BM59: =BL62 -> -6500 | BN59: =BM62 -> -6416.666667 | BO59: =BN62 -> -6333.333333 | BP59: =BO62 -> -6250 | BQ59: =BP62 -> -6166.666667 | BR59: =BQ62 -> -6083.333333 | BS59: =BR62 -> -6000 | BT59: =BS62 -> -5916.666667 | BU59: =BT62 -> -5833.333333 | BV59: =BU62 -> -5750 | BW59: =BV62 -> -5666.666667 | BX59: =BW62 -> -5583.333333 | BY59: =BX62 -> -5500 | BZ59: =BY62 -> -5416.666667 | CA59: =BZ62 -> -5333.333333 | CB59: =CA62 -> -5250 | CC59: =CB62 -> -5166.666667 | CD59: =CC62 -> -5083.333333 | CE59: =CD62 -> -5000 | CF59: =CE62 -> -4916.666667 | CG59: =CF62 -> -4833.333333 | CH59: =CG62 -> -4750 | CI59: =CH62 -> -4666.666667 | CJ59: =CI62 -> -4583.333333 | CK59: =CJ62 -> -4500 | CL59: =CK62 -> -4416.666667 | CM59: =CL62 -> -4333.333333 | CN59: =CM62 -> -4250 | CO59: =CN62 -> -4166.666667 | CP59: =CO62 -> -4083.333333 | CQ59: =CP62 -> -4000 | CR59: =CQ62 -> -3916.666667 | CS59: =CR62 -> -3833.333333 | CT59: =CS62 -> -3750 | CU59: =CT62 -> -3666.666667 | CV59: =CU62 -> -3583.333333 | CW59: =CV62 -> -3500 | CX59: =CW62 -> -3416.666667 | CY59: =CX62 -> -3333.333333 | CZ59: =CY62 -> -3250 | DA59: =CZ62 -> -3166.666667 | DB59: =DA62 -> -3083.333333 | DC59: =DB62 -> -3000 | DD59: =DC62 -> -2916.666667 | DE59: =DD62 -> -2833.333333 | DF59: =DE62 -> -2750 | DG59: =DF62 -> -2666.666667 | DH59: =DG62 -> -2583.333333 | DI59: =DH62 -> -2500 | DJ59: =DI62 -> -2416.666667 | DK59: =DJ62 -> -2333.333333 | DL59: =DK62 -> -2250 | DM59: =DL62 -> -2166.666667 | DN59: =DM62 -> -2083.333333 | DO59: =DN62 -> -2000 | DP59: =DO62 -> -1916.666667 | DQ59: =DP62 -> -1833.333333 | DR59: =DQ62 -> -1750 | DS59: =DR62 -> -1666.666667 | DT59: =DS62 -> -1583.333333 | DU59: =DT62 -> -1500 | DV59: =DU62 -> -1416.666667 | DW59: =DV62 -> -1333.333333 | DX59: =DW62 -> -1250 | DY59: =DX62 -> -1166.666667 | DZ59: =DY62 -> -1083.333333 | EA59: =DZ62 -> -1000 | EB59: =EA62 -> -916.6666667 | EC59: =EB62 -> -833.3333333 | ED59: =EC62 -> -750 | EE59: =ED62 -> -666.6666667 | EF59: =EE62 -> -583.3333333 | EG59: =EF62 -> -500 | EH59: =EG62 -> -416.6666667 | EI59: =EH62 -> -333.3333333 | EJ59: =EI62 -> -250 | EK59: =EJ62 -> -166.6666667 | EL59: =EK62 -> -83.33333333 | EM59: =EL62 -> -6.394884622e-12 | EN59: =EM62 -> -9.379164112e-13 | EO59: =EN62 -> -9.379164112e-13 | EP59: =EO62 -> -9.379164112e-13 | EQ59: =EP62 -> -9.379164112e-13 | ER59: =EQ62 -> -9.379164112e-13 | ES59: =ER62 -> -9.379164112e-13 | ET59: =ES62 -> -9.379164112e-13 | EU59: =ET62 -> -9.379164112e-13 | EV59: =EU62 -> -9.379164112e-13 | EW59: =EV62 -> -9.379164112e-13 | EX59: =EW62 -> -9.379164112e-13 | EY59: =EX62 -> -9.379164112e-13
D60: Opening Balance | F60: =-Control!$I$25 -> -9000 | I60: =SUM(K60:EY60) -> -9000 | K60: =IF(EOMONTH($F59,0)=EOMONTH(K$4,0),$F60,0) -> 0 | L60: 0 | M60: 0 | N60: 0 | O60: 0 | P60: 0 | Q60: 0 | R60: 0 | S60: 0 | T60: 0 | U60: 0 | V60: 0 | W60: 0 | X60: 0 | Y60: 0 | Z60: 0 | AA60: 0 | AB60: 0 | AC60: 0 | AD60: 0 | AE60: 0 | AF60: 0 | AG60: 0 | AH60: 0 | AI60: -9000 | AJ60: 0 | AK60: 0 | AL60: 0 | AM60: 0 | AN60: 0 | AO60: 0 | AP60: 0 | AQ60: 0 | AR60: 0 | AS60: 0 | AT60: 0 | AU60: 0 | AV60: 0 | AW60: 0 | AX60: 0 | AY60: 0 | AZ60: 0 | BA60: 0 | BB60: 0 | BC60: 0 | BD60: 0 | BE60: 0 | BF60: 0 | BG60: 0 | BH60: 0 | BI60: 0 | BJ60: 0 | BK60: 0 | BL60: 0 | BM60: 0 | BN60: 0 | BO60: 0 | BP60: 0 | BQ60: 0 | BR60: 0 | BS60: 0 | BT60: 0 | BU60: 0 | BV60: 0 | BW60: =IF(EOMONTH($F59,0)=EOMONTH(BW$4,0),$F60,0) -> 0 | BX60: 0 | BY60: 0 | BZ60: 0 | CA60: 0 | CB60: 0 | CC60: 0 | CD60: 0 | CE60: 0 | CF60: 0 | CG60: 0 | CH60: 0 | CI60: 0 | CJ60: 0 | CK60: 0 | CL60: 0 | CM60: 0 | CN60: 0 | CO60: 0 | CP60: 0 | CQ60: 0 | CR60: 0 | CS60: 0 | CT60: 0 | CU60: 0 | CV60: 0 | CW60: 0 | CX60: 0 | CY60: 0 | CZ60: 0 | DA60: 0 | DB60: 0 | DC60: 0 | DD60: 0 | DE60: 0 | DF60: 0 | DG60: 0 | DH60: 0 | DI60: 0 | DJ60: 0 | DK60: 0 | DL60: 0 | DM60: 0 | DN60: 0 | DO60: 0 | DP60: 0 | DQ60: 0 | DR60: 0 | DS60: 0 | DT60: 0 | DU60: 0 | DV60: 0 | DW60: 0 | DX60: 0 | DY60: 0 | DZ60: 0 | EA60: 0 | EB60: 0 | EC60: 0 | ED60: 0 | EE60: 0 | EF60: 0 | EG60: 0 | EH60: 0 | EI60: =IF(EOMONTH($F59,0)=EOMONTH(EI$4,0),$F60,0) -> 0 | EJ60: 0 | EK60: 0 | EL60: 0 | EM60: 0 | EN60: 0 | EO60: 0 | EP60: 0 | EQ60: 0 | ER60: 0 | ES60: 0 | ET60: 0 | EU60: 0 | EV60: 0 | EW60: 0 | EX60: 0 | EY60: 0
D61: Amortization | F61: =F14 -> 108 | I61: =SUM(K61:EY61) -> 9000 | K61: =MIN(-SUM($J60:K60)/$F61,-SUM($J60:K60)-SUM($J61:J61)) -> 0 | L61: =MIN(-SUM($J60:L60)/$F61,-SUM($J60:L60)-SUM($J61:K61)) -> 0 | M61: =MIN(-SUM($J60:M60)/$F61,-SUM($J60:M60)-SUM($J61:L61)) -> 0 | N61: =MIN(-SUM($J60:N60)/$F61,-SUM($J60:N60)-SUM($J61:M61)) -> 0 | O61: =MIN(-SUM($J60:O60)/$F61,-SUM($J60:O60)-SUM($J61:N61)) -> 0 | P61: =MIN(-SUM($J60:P60)/$F61,-SUM($J60:P60)-SUM($J61:O61)) -> 0 | Q61: =MIN(-SUM($J60:Q60)/$F61,-SUM($J60:Q60)-SUM($J61:P61)) -> 0 | R61: =MIN(-SUM($J60:R60)/$F61,-SUM($J60:R60)-SUM($J61:Q61)) -> 0 | S61: =MIN(-SUM($J60:S60)/$F61,-SUM($J60:S60)-SUM($J61:R61)) -> 0 | T61: =MIN(-SUM($J60:T60)/$F61,-SUM($J60:T60)-SUM($J61:S61)) -> 0 | U61: =MIN(-SUM($J60:U60)/$F61,-SUM($J60:U60)-SUM($J61:T61)) -> 0 | V61: =MIN(-SUM($J60:V60)/$F61,-SUM($J60:V60)-SUM($J61:U61)) -> 0 | W61: =MIN(-SUM($J60:W60)/$F61,-SUM($J60:W60)-SUM($J61:V61)) -> 0 | X61: =MIN(-SUM($J60:X60)/$F61,-SUM($J60:X60)-SUM($J61:W61)) -> 0 | Y61: =MIN(-SUM($J60:Y60)/$F61,-SUM($J60:Y60)-SUM($J61:X61)) -> 0 | Z61: =MIN(-SUM($J60:Z60)/$F61,-SUM($J60:Z60)-SUM($J61:Y61)) -> 0 | AA61: =MIN(-SUM($J60:AA60)/$F61,-SUM($J60:AA60)-SUM($J61:Z61)) -> 0 | AB61: =MIN(-SUM($J60:AB60)/$F61,-SUM($J60:AB60)-SUM($J61:AA61)) -> 0 | AC61: =MIN(-SUM($J60:AC60)/$F61,-SUM($J60:AC60)-SUM($J61:AB61)) -> 0 | AD61: =MIN(-SUM($J60:AD60)/$F61,-SUM($J60:AD60)-SUM($J61:AC61)) -> 0 | AE61: =MIN(-SUM($J60:AE60)/$F61,-SUM($J60:AE60)-SUM($J61:AD61)) -> 0 | AF61: =MIN(-SUM($J60:AF60)/$F61,-SUM($J60:AF60)-SUM($J61:AE61)) -> 0 | AG61: =MIN(-SUM($J60:AG60)/$F61,-SUM($J60:AG60)-SUM($J61:AF61)) -> 0 | AH61: =MIN(-SUM($J60:AH60)/$F61,-SUM($J60:AH60)-SUM($J61:AG61)) -> 0 | AI61: =MIN(-SUM($J60:AI60)/$F61,-SUM($J60:AI60)-SUM($J61:AH61)) -> 83.33333333 | AJ61: =MIN(-SUM($J60:AJ60)/$F61,-SUM($J60:AJ60)-SUM($J61:AI61)) -> 83.33333333 | AK61: =MIN(-SUM($J60:AK60)/$F61,-SUM($J60:AK60)-SUM($J61:AJ61)) -> 83.33333333 | AL61: =MIN(-SUM($J60:AL60)/$F61,-SUM($J60:AL60)-SUM($J61:AK61)) -> 83.33333333 | AM61: =MIN(-SUM($J60:AM60)/$F61,-SUM($J60:AM60)-SUM($J61:AL61)) -> 83.33333333 | AN61: =MIN(-SUM($J60:AN60)/$F61,-SUM($J60:AN60)-SUM($J61:AM61)) -> 83.33333333 | AO61: =MIN(-SUM($J60:AO60)/$F61,-SUM($J60:AO60)-SUM($J61:AN61)) -> 83.33333333 | AP61: =MIN(-SUM($J60:AP60)/$F61,-SUM($J60:AP60)-SUM($J61:AO61)) -> 83.33333333 | AQ61: =MIN(-SUM($J60:AQ60)/$F61,-SUM($J60:AQ60)-SUM($J61:AP61)) -> 83.33333333 | AR61: =MIN(-SUM($J60:AR60)/$F61,-SUM($J60:AR60)-SUM($J61:AQ61)) -> 83.33333333 | AS61: =MIN(-SUM($J60:AS60)/$F61,-SUM($J60:AS60)-SUM($J61:AR61)) -> 83.33333333 | AT61: =MIN(-SUM($J60:AT60)/$F61,-SUM($J60:AT60)-SUM($J61:AS61)) -> 83.33333333 | AU61: =MIN(-SUM($J60:AU60)/$F61,-SUM($J60:AU60)-SUM($J61:AT61)) -> 83.33333333 | AV61: =MIN(-SUM($J60:AV60)/$F61,-SUM($J60:AV60)-SUM($J61:AU61)) -> 83.33333333 | AW61: =MIN(-SUM($J60:AW60)/$F61,-SUM($J60:AW60)-SUM($J61:AV61)) -> 83.33333333 | AX61: =MIN(-SUM($J60:AX60)/$F61,-SUM($J60:AX60)-SUM($J61:AW61)) -> 83.33333333 | AY61: =MIN(-SUM($J60:AY60)/$F61,-SUM($J60:AY60)-SUM($J61:AX61)) -> 83.33333333 | AZ61: =MIN(-SUM($J60:AZ60)/$F61,-SUM($J60:AZ60)-SUM($J61:AY61)) -> 83.33333333 | BA61: =MIN(-SUM($J60:BA60)/$F61,-SUM($J60:BA60)-SUM($J61:AZ61)) -> 83.33333333 | BB61: =MIN(-SUM($J60:BB60)/$F61,-SUM($J60:BB60)-SUM($J61:BA61)) -> 83.33333333 | BC61: =MIN(-SUM($J60:BC60)/$F61,-SUM($J60:BC60)-SUM($J61:BB61)) -> 83.33333333 | BD61: =MIN(-SUM($J60:BD60)/$F61,-SUM($J60:BD60)-SUM($J61:BC61)) -> 83.33333333 | BE61: =MIN(-SUM($J60:BE60)/$F61,-SUM($J60:BE60)-SUM($J61:BD61)) -> 83.33333333 | BF61: =MIN(-SUM($J60:BF60)/$F61,-SUM($J60:BF60)-SUM($J61:BE61)) -> 83.33333333 | BG61: =MIN(-SUM($J60:BG60)/$F61,-SUM($J60:BG60)-SUM($J61:BF61)) -> 83.33333333 | BH61: =MIN(-SUM($J60:BH60)/$F61,-SUM($J60:BH60)-SUM($J61:BG61)) -> 83.33333333 | BI61: =MIN(-SUM($J60:BI60)/$F61,-SUM($J60:BI60)-SUM($J61:BH61)) -> 83.33333333 | BJ61: =MIN(-SUM($J60:BJ60)/$F61,-SUM($J60:BJ60)-SUM($J61:BI61)) -> 83.33333333 | BK61: =MIN(-SUM($J60:BK60)/$F61,-SUM($J60:BK60)-SUM($J61:BJ61)) -> 83.33333333 | BL61: =MIN(-SUM($J60:BL60)/$F61,-SUM($J60:BL60)-SUM($J61:BK61)) -> 83.33333333 | BM61: =MIN(-SUM($J60:BM60)/$F61,-SUM($J60:BM60)-SUM($J61:BL61)) -> 83.33333333 | BN61: =MIN(-SUM($J60:BN60)/$F61,-SUM($J60:BN60)-SUM($J61:BM61)) -> 83.33333333 | BO61: =MIN(-SUM($J60:BO60)/$F61,-SUM($J60:BO60)-SUM($J61:BN61)) -> 83.33333333 | BP61: =MIN(-SUM($J60:BP60)/$F61,-SUM($J60:BP60)-SUM($J61:BO61)) -> 83.33333333 | BQ61: =MIN(-SUM($J60:BQ60)/$F61,-SUM($J60:BQ60)-SUM($J61:BP61)) -> 83.33333333 | BR61: =MIN(-SUM($J60:BR60)/$F61,-SUM($J60:BR60)-SUM($J61:BQ61)) -> 83.33333333 | BS61: =MIN(-SUM($J60:BS60)/$F61,-SUM($J60:BS60)-SUM($J61:BR61)) -> 83.33333333 | BT61: =MIN(-SUM($J60:BT60)/$F61,-SUM($J60:BT60)-SUM($J61:BS61)) -> 83.33333333 | BU61: =MIN(-SUM($J60:BU60)/$F61,-SUM($J60:BU60)-SUM($J61:BT61)) -> 83.33333333 | BV61: =MIN(-SUM($J60:BV60)/$F61,-SUM($J60:BV60)-SUM($J61:BU61)) -> 83.33333333 | BW61: =MIN(-SUM($J60:BW60)/$F61,-SUM($J60:BW60)-SUM($J61:BV61)) -> 83.33333333 | BX61: =MIN(-SUM($J60:BX60)/$F61,-SUM($J60:BX60)-SUM($J61:BW61)) -> 83.33333333 | BY61: =MIN(-SUM($J60:BY60)/$F61,-SUM($J60:BY60)-SUM($J61:BX61)) -> 83.33333333 | BZ61: =MIN(-SUM($J60:BZ60)/$F61,-SUM($J60:BZ60)-SUM($J61:BY61)) -> 83.33333333 | CA61: =MIN(-SUM($J60:CA60)/$F61,-SUM($J60:CA60)-SUM($J61:BZ61)) -> 83.33333333 | CB61: =MIN(-SUM($J60:CB60)/$F61,-SUM($J60:CB60)-SUM($J61:CA61)) -> 83.33333333 | CC61: =MIN(-SUM($J60:CC60)/$F61,-SUM($J60:CC60)-SUM($J61:CB61)) -> 83.33333333 | CD61: =MIN(-SUM($J60:CD60)/$F61,-SUM($J60:CD60)-SUM($J61:CC61)) -> 83.33333333 | CE61: =MIN(-SUM($J60:CE60)/$F61,-SUM($J60:CE60)-SUM($J61:CD61)) -> 83.33333333 | CF61: =MIN(-SUM($J60:CF60)/$F61,-SUM($J60:CF60)-SUM($J61:CE61)) -> 83.33333333 | CG61: =MIN(-SUM($J60:CG60)/$F61,-SUM($J60:CG60)-SUM($J61:CF61)) -> 83.33333333 | CH61: =MIN(-SUM($J60:CH60)/$F61,-SUM($J60:CH60)-SUM($J61:CG61)) -> 83.33333333 | CI61: =MIN(-SUM($J60:CI60)/$F61,-SUM($J60:CI60)-SUM($J61:CH61)) -> 83.33333333 | CJ61: =MIN(-SUM($J60:CJ60)/$F61,-SUM($J60:CJ60)-SUM($J61:CI61)) -> 83.33333333 | CK61: =MIN(-SUM($J60:CK60)/$F61,-SUM($J60:CK60)-SUM($J61:CJ61)) -> 83.33333333 | CL61: =MIN(-SUM($J60:CL60)/$F61,-SUM($J60:CL60)-SUM($J61:CK61)) -> 83.33333333 | CM61: =MIN(-SUM($J60:CM60)/$F61,-SUM($J60:CM60)-SUM($J61:CL61)) -> 83.33333333 | CN61: =MIN(-SUM($J60:CN60)/$F61,-SUM($J60:CN60)-SUM($J61:CM61)) -> 83.33333333 | CO61: =MIN(-SUM($J60:CO60)/$F61,-SUM($J60:CO60)-SUM($J61:CN61)) -> 83.33333333 | CP61: =MIN(-SUM($J60:CP60)/$F61,-SUM($J60:CP60)-SUM($J61:CO61)) -> 83.33333333 | CQ61: =MIN(-SUM($J60:CQ60)/$F61,-SUM($J60:CQ60)-SUM($J61:CP61)) -> 83.33333333 | CR61: =MIN(-SUM($J60:CR60)/$F61,-SUM($J60:CR60)-SUM($J61:CQ61)) -> 83.33333333 | CS61: =MIN(-SUM($J60:CS60)/$F61,-SUM($J60:CS60)-SUM($J61:CR61)) -> 83.33333333 | CT61: =MIN(-SUM($J60:CT60)/$F61,-SUM($J60:CT60)-SUM($J61:CS61)) -> 83.33333333 | CU61: =MIN(-SUM($J60:CU60)/$F61,-SUM($J60:CU60)-SUM($J61:CT61)) -> 83.33333333 | CV61: =MIN(-SUM($J60:CV60)/$F61,-SUM($J60:CV60)-SUM($J61:CU61)) -> 83.33333333 | CW61: =MIN(-SUM($J60:CW60)/$F61,-SUM($J60:CW60)-SUM($J61:CV61)) -> 83.33333333 | CX61: =MIN(-SUM($J60:CX60)/$F61,-SUM($J60:CX60)-SUM($J61:CW61)) -> 83.33333333 | CY61: =MIN(-SUM($J60:CY60)/$F61,-SUM($J60:CY60)-SUM($J61:CX61)) -> 83.33333333 | CZ61: =MIN(-SUM($J60:CZ60)/$F61,-SUM($J60:CZ60)-SUM($J61:CY61)) -> 83.33333333 | DA61: =MIN(-SUM($J60:DA60)/$F61,-SUM($J60:DA60)-SUM($J61:CZ61)) -> 83.33333333 | DB61: =MIN(-SUM($J60:DB60)/$F61,-SUM($J60:DB60)-SUM($J61:DA61)) -> 83.33333333 | DC61: =MIN(-SUM($J60:DC60)/$F61,-SUM($J60:DC60)-SUM($J61:DB61)) -> 83.33333333 | DD61: =MIN(-SUM($J60:DD60)/$F61,-SUM($J60:DD60)-SUM($J61:DC61)) -> 83.33333333 | DE61: =MIN(-SUM($J60:DE60)/$F61,-SUM($J60:DE60)-SUM($J61:DD61)) -> 83.33333333 | DF61: =MIN(-SUM($J60:DF60)/$F61,-SUM($J60:DF60)-SUM($J61:DE61)) -> 83.33333333 | DG61: =MIN(-SUM($J60:DG60)/$F61,-SUM($J60:DG60)-SUM($J61:DF61)) -> 83.33333333 | DH61: =MIN(-SUM($J60:DH60)/$F61,-SUM($J60:DH60)-SUM($J61:DG61)) -> 83.33333333 | DI61: =MIN(-SUM($J60:DI60)/$F61,-SUM($J60:DI60)-SUM($J61:DH61)) -> 83.33333333 | DJ61: =MIN(-SUM($J60:DJ60)/$F61,-SUM($J60:DJ60)-SUM($J61:DI61)) -> 83.33333333 | DK61: =MIN(-SUM($J60:DK60)/$F61,-SUM($J60:DK60)-SUM($J61:DJ61)) -> 83.33333333 | DL61: =MIN(-SUM($J60:DL60)/$F61,-SUM($J60:DL60)-SUM($J61:DK61)) -> 83.33333333 | DM61: =MIN(-SUM($J60:DM60)/$F61,-SUM($J60:DM60)-SUM($J61:DL61)) -> 83.33333333 | DN61: =MIN(-SUM($J60:DN60)/$F61,-SUM($J60:DN60)-SUM($J61:DM61)) -> 83.33333333 | DO61: =MIN(-SUM($J60:DO60)/$F61,-SUM($J60:DO60)-SUM($J61:DN61)) -> 83.33333333 | DP61: =MIN(-SUM($J60:DP60)/$F61,-SUM($J60:DP60)-SUM($J61:DO61)) -> 83.33333333 | DQ61: =MIN(-SUM($J60:DQ60)/$F61,-SUM($J60:DQ60)-SUM($J61:DP61)) -> 83.33333333 | DR61: =MIN(-SUM($J60:DR60)/$F61,-SUM($J60:DR60)-SUM($J61:DQ61)) -> 83.33333333 | DS61: =MIN(-SUM($J60:DS60)/$F61,-SUM($J60:DS60)-SUM($J61:DR61)) -> 83.33333333 | DT61: =MIN(-SUM($J60:DT60)/$F61,-SUM($J60:DT60)-SUM($J61:DS61)) -> 83.33333333 | DU61: =MIN(-SUM($J60:DU60)/$F61,-SUM($J60:DU60)-SUM($J61:DT61)) -> 83.33333333 | DV61: =MIN(-SUM($J60:DV60)/$F61,-SUM($J60:DV60)-SUM($J61:DU61)) -> 83.33333333 | DW61: =MIN(-SUM($J60:DW60)/$F61,-SUM($J60:DW60)-SUM($J61:DV61)) -> 83.33333333 | DX61: =MIN(-SUM($J60:DX60)/$F61,-SUM($J60:DX60)-SUM($J61:DW61)) -> 83.33333333 | DY61: =MIN(-SUM($J60:DY60)/$F61,-SUM($J60:DY60)-SUM($J61:DX61)) -> 83.33333333 | DZ61: =MIN(-SUM($J60:DZ60)/$F61,-SUM($J60:DZ60)-SUM($J61:DY61)) -> 83.33333333 | EA61: =MIN(-SUM($J60:EA60)/$F61,-SUM($J60:EA60)-SUM($J61:DZ61)) -> 83.33333333 | EB61: =MIN(-SUM($J60:EB60)/$F61,-SUM($J60:EB60)-SUM($J61:EA61)) -> 83.33333333 | EC61: =MIN(-SUM($J60:EC60)/$F61,-SUM($J60:EC60)-SUM($J61:EB61)) -> 83.33333333 | ED61: =MIN(-SUM($J60:ED60)/$F61,-SUM($J60:ED60)-SUM($J61:EC61)) -> 83.33333333 | EE61: =MIN(-SUM($J60:EE60)/$F61,-SUM($J60:EE60)-SUM($J61:ED61)) -> 83.33333333 | EF61: =MIN(-SUM($J60:EF60)/$F61,-SUM($J60:EF60)-SUM($J61:EE61)) -> 83.33333333 | EG61: =MIN(-SUM($J60:EG60)/$F61,-SUM($J60:EG60)-SUM($J61:EF61)) -> 83.33333333 | EH61: =MIN(-SUM($J60:EH60)/$F61,-SUM($J60:EH60)-SUM($J61:EG61)) -> 83.33333333 | EI61: =MIN(-SUM($J60:EI60)/$F61,-SUM($J60:EI60)-SUM($J61:EH61)) -> 83.33333333 | EJ61: =MIN(-SUM($J60:EJ60)/$F61,-SUM($J60:EJ60)-SUM($J61:EI61)) -> 83.33333333 | EK61: =MIN(-SUM($J60:EK60)/$F61,-SUM($J60:EK60)-SUM($J61:EJ61)) -> 83.33333333 | EL61: =MIN(-SUM($J60:EL60)/$F61,-SUM($J60:EL60)-SUM($J61:EK61)) -> 83.33333333 | EM61: =MIN(-SUM($J60:EM60)/$F61,-SUM($J60:EM60)-SUM($J61:EL61)) -> 5.456968211e-12 | EN61: =MIN(-SUM($J60:EN60)/$F61,-SUM($J60:EN60)-SUM($J61:EM61)) -> 0 | EO61: =MIN(-SUM($J60:EO60)/$F61,-SUM($J60:EO60)-SUM($J61:EN61)) -> 0 | EP61: =MIN(-SUM($J60:EP60)/$F61,-SUM($J60:EP60)-SUM($J61:EO61)) -> 0 | EQ61: =MIN(-SUM($J60:EQ60)/$F61,-SUM($J60:EQ60)-SUM($J61:EP61)) -> 0 | ER61: =MIN(-SUM($J60:ER60)/$F61,-SUM($J60:ER60)-SUM($J61:EQ61)) -> 0 | ES61: =MIN(-SUM($J60:ES60)/$F61,-SUM($J60:ES60)-SUM($J61:ER61)) -> 0 | ET61: =MIN(-SUM($J60:ET60)/$F61,-SUM($J60:ET60)-SUM($J61:ES61)) -> 0 | EU61: =MIN(-SUM($J60:EU60)/$F61,-SUM($J60:EU60)-SUM($J61:ET61)) -> 0 | EV61: =MIN(-SUM($J60:EV60)/$F61,-SUM($J60:EV60)-SUM($J61:EU61)) -> 0 | EW61: =MIN(-SUM($J60:EW60)/$F61,-SUM($J60:EW60)-SUM($J61:EV61)) -> 0 | EX61: =MIN(-SUM($J60:EX60)/$F61,-SUM($J60:EX60)-SUM($J61:EW61)) -> 0 | EY61: =MIN(-SUM($J60:EY60)/$F61,-SUM($J60:EY60)-SUM($J61:EX61)) -> 0
D62: Ending Balance | I62: =SUM(I59:I61) -> 0 | K62: =SUM(K59:K61) -> 0 | L62: 0 | M62: 0 | N62: 0 | O62: 0 | P62: 0 | Q62: 0 | R62: 0 | S62: 0 | T62: 0 | U62: 0 | V62: 0 | W62: 0 | X62: 0 | Y62: 0 | Z62: 0 | AA62: 0 | AB62: 0 | AC62: 0 | AD62: 0 | AE62: 0 | AF62: 0 | AG62: 0 | AH62: 0 | AI62: -8916.666667 | AJ62: -8833.333333 | AK62: -8750 | AL62: -8666.666667 | AM62: -8583.333333 | AN62: -8500 | AO62: -8416.666667 | AP62: -8333.333333 | AQ62: =SUM(AQ59:AQ61) -> -8250 | AR62: -8166.666667 | AS62: -8083.333333 | AT62: -8000 | AU62: -7916.666667 | AV62: -7833.333333 | AW62: -7750 | AX62: -7666.666667 | AY62: -7583.333333 | AZ62: -7500 | BA62: -7416.666667 | BB62: -7333.333333 | BC62: -7250 | BD62: -7166.666667 | BE62: -7083.333333 | BF62: -7000 | BG62: -6916.666667 | BH62: -6833.333333 | BI62: -6750 | BJ62: -6666.666667 | BK62: -6583.333333 | BL62: -6500 | BM62: -6416.666667 | BN62: -6333.333333 | BO62: -6250 | BP62: -6166.666667 | BQ62: -6083.333333 | BR62: -6000 | BS62: -5916.666667 | BT62: -5833.333333 | BU62: -5750 | BV62: -5666.666667 | BW62: =SUM(BW59:BW61) -> -5583.333333 | BX62: -5500 | BY62: -5416.666667 | BZ62: -5333.333333 | CA62: -5250 | CB62: -5166.666667 | CC62: -5083.333333 | CD62: -5000 | CE62: -4916.666667 | CF62: -4833.333333 | CG62: -4750 | CH62: -4666.666667 | CI62: -4583.333333 | CJ62: -4500 | CK62: -4416.666667 | CL62: -4333.333333 | CM62: -4250 | CN62: -4166.666667 | CO62: -4083.333333 | CP62: -4000 | CQ62: -3916.666667 | CR62: -3833.333333 | CS62: -3750 | CT62: -3666.666667 | CU62: -3583.333333 | CV62: -3500 | CW62: -3416.666667 | CX62: -3333.333333 | CY62: -3250 | CZ62: -3166.666667 | DA62: -3083.333333 | DB62: -3000 | DC62: =SUM(DC59:DC61) -> -2916.666667 | DD62: -2833.333333 | DE62: -2750 | DF62: -2666.666667 | DG62: -2583.333333 | DH62: -2500 | DI62: -2416.666667 | DJ62: -2333.333333 | DK62: -2250 | DL62: -2166.666667 | DM62: -2083.333333 | DN62: -2000 | DO62: -1916.666667 | DP62: -1833.333333 | DQ62: -1750 | DR62: -1666.666667 | DS62: -1583.333333 | DT62: -1500 | DU62: -1416.666667 | DV62: -1333.333333 | DW62: -1250 | DX62: -1166.666667 | DY62: -1083.333333 | DZ62: -1000 | EA62: -916.6666667 | EB62: -833.3333333 | EC62: -750 | ED62: -666.6666667 | EE62: -583.3333333 | EF62: -500 | EG62: -416.6666667 | EH62: -333.3333333 | EI62: =SUM(EI59:EI61) -> -250 | EJ62: -166.6666667 | EK62: -83.33333333 | EL62: -6.394884622e-12 | EM62: -9.379164112e-13 | EN62: -9.379164112e-13 | EO62: -9.379164112e-13 | EP62: -9.379164112e-13 | EQ62: -9.379164112e-13 | ER62: -9.379164112e-13 | ES62: -9.379164112e-13 | ET62: -9.379164112e-13 | EU62: -9.379164112e-13 | EV62: -9.379164112e-13 | EW62: -9.379164112e-13 | EX62: -9.379164112e-13 | EY62: -9.379164112e-13
D63: 13-month Rolling Average | F63: 13 | G63: mo. | L63: =SUM(OFFSET(L62,0,0,1,-MIN($F63,L$2)))/$F63 -> 0 | M63: 0 | N63: 0 | O63: 0 | P63: 0 | Q63: 0 | R63: 0 | S63: 0 | T63: 0 | U63: 0 | V63: 0 | W63: 0 | X63: 0 | Y63: 0 | Z63: 0 | AA63: 0 | AB63: 0 | AC63: 0 | AD63: 0 | AE63: 0 | AF63: 0 | AG63: 0 | AH63: 0 | AI63: -685.8974359 | AJ63: -1365.384615 | AK63: -2038.461538 | AL63: -2705.128205 | AM63: -3365.384615 | AN63: -4019.230769 | AO63: -4666.666667 | AP63: -5307.692308 | AQ63: -5942.307692 | AR63: =SUM(OFFSET(AR62,0,0,1,-MIN($F63,AR$2)))/$F63 -> -6570.512821 | AS63: -7192.307692 | AT63: -7807.692308 | AU63: -8416.666667 | AV63: -8333.333333 | AW63: -8250 | AX63: -8166.666667 | AY63: -8083.333333 | AZ63: -8000 | BA63: -7916.666667 | BB63: -7833.333333 | BC63: -7750 | BD63: -7666.666667 | BE63: -7583.333333 | BF63: -7500 | BG63: -7416.666667 | BH63: -7333.333333 | BI63: -7250 | BJ63: -7166.666667 | BK63: -7083.333333 | BL63: -7000 | BM63: -6916.666667 | BN63: -6833.333333 | BO63: -6750 | BP63: -6666.666667 | BQ63: -6583.333333 | BR63: -6500 | BS63: -6416.666667 | BT63: -6333.333333 | BU63: -6250 | BV63: -6166.666667 | BW63: -6083.333333 | BX63: =SUM(OFFSET(BX62,0,0,1,-MIN($F63,BX$2)))/$F63 -> -6000 | BY63: -5916.666667 | BZ63: -5833.333333 | CA63: -5750 | CB63: -5666.666667 | CC63: -5583.333333 | CD63: -5500 | CE63: -5416.666667 | CF63: -5333.333333 | CG63: -5250 | CH63: -5166.666667 | CI63: -5083.333333 | CJ63: -5000 | CK63: -4916.666667 | CL63: -4833.333333 | CM63: -4750 | CN63: -4666.666667 | CO63: -4583.333333 | CP63: -4500 | CQ63: -4416.666667 | CR63: -4333.333333 | CS63: -4250 | CT63: -4166.666667 | CU63: -4083.333333 | CV63: -4000 | CW63: -3916.666667 | CX63: -3833.333333 | CY63: -3750 | CZ63: -3666.666667 | DA63: -3583.333333 | DB63: -3500 | DC63: -3416.666667 | DD63: -3333.333333 | DE63: -3250 | DF63: -3166.666667 | DG63: -3083.333333 | DH63: -3000 | DI63: -2916.666667 | DJ63: -2833.333333 | DK63: -2750 | DL63: -2666.666667 | DM63: -2583.333333 | DN63: -2500 | DO63: -2416.666667 | DP63: -2333.333333 | DQ63: -2250 | DR63: -2166.666667 | DS63: -2083.333333 | DT63: -2000 | DU63: -1916.666667 | DV63: -1833.333333 | DW63: -1750 | DX63: -1666.666667 | DY63: -1583.333333 | DZ63: -1500 | EA63: -1416.666667 | EB63: -1333.333333 | EC63: -1250 | ED63: -1166.666667 | EE63: -1083.333333 | EF63: -1000 | EG63: -916.6666667 | EH63: -833.3333333 | EI63: -750 | EJ63: =SUM(OFFSET(EJ62,0,0,1,-MIN($F63,EJ$2)))/$F63 -> -666.6666667 | EK63: -583.3333333 | EL63: -500 | EM63: -423.0769231 | EN63: -352.5641026 | EO63: -288.4615385 | EP63: -230.7692308 | EQ63: -179.4871795 | ER63: -134.6153846 | ES63: -96.15384615 | ET63: -64.1025641 | EU63: -38.46153846 | EV63: -19.23076923 | EW63: -6.41025641 | EX63: -1.357683197e-12 | EY63: -9.379164112e-13
D69: Rate Base, Ending Balance | I69: =I15+I31+I39+I47+I55 -> -5.4120801e-10 | K69: =K15+K23+K31+K39+K47+K55+K62 -> 0 | L69: =L15+L23+L31+L39+L47+L55+L62 -> 0 | M69: 0 | N69: 0 | O69: 0 | P69: 0 | Q69: 0 | R69: 0 | S69: 0 | T69: 0 | U69: 0 | V69: 0 | W69: 0 | X69: 0 | Y69: 0 | Z69: 0 | AA69: 0 | AB69: 0 | AC69: 0 | AD69: 0 | AE69: 0 | AF69: 0 | AG69: 0 | AH69: 0 | AI69: 447726.2113 | AJ69: 444452.395 | AK69: 441178.5511 | AL69: 437904.6795 | AM69: 434630.7801 | AN69: 431356.8529 | AO69: 428082.8979 | AP69: 424808.9149 | AQ69: 421534.9041 | AR69: 418260.8652 | AS69: 414986.7984 | AT69: 411712.7034 | AU69: 407945.1314 | AV69: 404177.5312 | AW69: 400409.9027 | AX69: 396642.246 | AY69: 392874.561 | AZ69: 389106.8477 | BA69: 385339.1059 | BB69: 381571.3357 | BC69: 377803.537 | BD69: 374035.7097 | BE69: 370267.8539 | BF69: 366499.9694 | BG69: 362809.1532 | BH69: 359118.3082 | BI69: 355427.4344 | BJ69: 351736.5319 | BK69: 348045.6004 | BL69: 344354.64 | BM69: 340663.6506 | BN69: 336972.6322 | BO69: 333281.5848 | BP69: 329590.5082 | BQ69: 325899.4024 | BR69: 322208.2674 | BS69: 318588.2259 | BT69: 314968.1549 | BU69: 311348.0547 | BV69: 307727.925 | BW69: 304107.7658 | BX69: =BX15+BX23+BX31+BX39+BX47+BX55+BX62 -> 300487.5772 | BY69: 296867.3589 | BZ69: 293247.1111 | CA69: 289626.8336 | CB69: 286006.5264 | CC69: 282386.1894 | CD69: 151003.125 | CE69: 148486.4062 | CF69: 145969.6875 | CG69: 143452.9687 | CH69: 140936.25 | CI69: 138419.5312 | CJ69: 135902.8125 | CK69: 133386.0937 | CL69: 130869.375 | CM69: 128352.6562 | CN69: 125835.9375 | CO69: 123319.2187 | CP69: 120802.5 | CQ69: 118285.7812 | CR69: 115769.0625 | CS69: 113252.3437 | CT69: 110735.625 | CU69: 108218.9062 | CV69: 105702.1875 | CW69: 103185.4687 | CX69: 100668.75 | CY69: 98152.03125 | CZ69: 95635.3125 | DA69: 93118.59375 | DB69: 90601.875 | DC69: 88085.15625 | DD69: 85568.4375 | DE69: 83051.71875 | DF69: 80535 | DG69: 78018.28125 | DH69: 75501.5625 | DI69: 72984.84375 | DJ69: 70468.125 | DK69: 67951.40625 | DL69: 65434.6875 | DM69: 62917.96875 | DN69: 60401.25 | DO69: 57884.53125 | DP69: 55367.8125 | DQ69: 52851.09375 | DR69: 50334.375 | DS69: 47817.65625 | DT69: 45300.9375 | DU69: 42784.21875 | DV69: 40267.5 | DW69: 37750.78125 | DX69: 35234.0625 | DY69: 32717.34375 | DZ69: 30200.625 | EA69: 27683.90625 | EB69: 25167.1875 | EC69: 22650.46875 | ED69: 20133.75 | EE69: 17617.03125 | EF69: 15100.3125 | EG69: 12583.59375 | EH69: 10066.875 | EI69: 7550.15625 | EJ69: =EJ15+EJ23+EJ31+EJ39+EJ47+EJ55+EJ62 -> 5033.4375 | EK69: 2516.71875 | EL69: -5.539391168e-10 | EM69: -5.505871741e-10 | EN69: -5.505871741e-10 | EO69: -5.505871741e-10 | EP69: -5.505871741e-10 | EQ69: -5.505871741e-10 | ER69: -5.505871741e-10 | ES69: -5.505871741e-10 | ET69: -5.505871741e-10 | EU69: -5.505871741e-10 | EV69: -5.505871741e-10 | EW69: -5.505871741e-10 | EX69: -5.505871741e-10 | EY69: -5.505871741e-10
D70: 13-month Rolling Average | F70: 13 | G70: mo. | L70: =SUM(OFFSET(L69,0,0,1,-MIN($F70,L$2)))/$F70 -> 0 | M70: =SUM(OFFSET(M69,0,0,1,-MIN($F70,M$2)))/$F70 -> 0 | N70: 0 | O70: 0 | P70: 0 | Q70: 0 | R70: 0 | S70: 0 | T70: 0 | U70: 0 | V70: 0 | W70: 0 | X70: 0 | Y70: 0 | Z70: 0 | AA70: 0 | AB70: 0 | AC70: 0 | AD70: 0 | AE70: 0 | AF70: 0 | AG70: 0 | AH70: 0 | AI70: 34440.47779 | AJ70: 68629.12357 | AK70: 102565.9352 | AL70: 136250.9105 | AM70: 169684.0475 | AN70: 202865.3438 | AO70: 235794.7975 | AP70: 268472.4064 | AQ70: 300898.1682 | AR70: 333072.0809 | AS70: 364994.1423 | AT70: 396664.3503 | AU70: 428044.745 | AV70: 424694.8465 | AW70: 421306.9625 | AX70: 417881.0929 | AY70: 414417.2376 | AZ70: 410915.3967 | BA70: 407375.57 | BB70: 403797.7575 | BC70: 400181.9592 | BD70: 396528.175 | BE70: 392836.4049 | BF70: 389106.6489 | BG70: 385344.8373 | BH70: 381588.9278 | BI70: 377838.9204 | BJ70: 374094.8149 | BK70: 370356.6114 | BL70: 366624.3098 | BM70: 362897.91 | BN70: 359177.412 | BO70: 355462.8158 | BP70: 351754.1213 | BQ70: 348051.3284 | BR70: 344354.4372 | BS70: 340668.9184 | BT70: 336988.8416 | BU70: 333314.2068 | BV70: 329645.0137 | BW70: 325981.2625 | BX70: 322322.953 | BY70: =SUM(OFFSET(BY69,0,0,1,-MIN($F70,BY$2)))/$F70 -> 318670.0852 | BZ70: 315022.6591 | CA70: 311380.6746 | CB70: 307744.1317 | CC70: 304113.0302 | CD70: 290659.4704 | CE70: 277296.2503 | CF70: 264017.9012 | CG70: 250824.4254 | CH70: 237715.825 | CI70: 224692.1024 | CJ70: 211753.2598 | CK70: 198899.2996 | CL70: 186130.2239 | CM70: 173446.035 | CN70: 160846.7353 | CO70: 148332.3271 | CP70: 135902.8125 | CQ70: 133386.0937 | CR70: 130869.375 | CS70: 128352.6562 | CT70: 125835.9375 | CU70: 123319.2187 | CV70: 120802.5 | CW70: 118285.7812 | CX70: 115769.0625 | CY70: 113252.3437 | CZ70: 110735.625 | DA70: 108218.9062 | DB70: 105702.1875 | DC70: 103185.4687 | DD70: 100668.75 | DE70: 98152.03125 | DF70: 95635.3125 | DG70: 93118.59375 | DH70: 90601.875 | DI70: 88085.15625 | DJ70: 85568.4375 | DK70: 83051.71875 | DL70: 80535 | DM70: 78018.28125 | DN70: 75501.5625 | DO70: 72984.84375 | DP70: 70468.125 | DQ70: 67951.40625 | DR70: 65434.6875 | DS70: 62917.96875 | DT70: 60401.25 | DU70: 57884.53125 | DV70: 55367.8125 | DW70: 52851.09375 | DX70: 50334.375 | DY70: 47817.65625 | DZ70: 45300.9375 | EA70: 42784.21875 | EB70: 40267.5 | EC70: 37750.78125 | ED70: 35234.0625 | EE70: 32717.34375 | EF70: 30200.625 | EG70: 27683.90625 | EH70: 25167.1875 | EI70: 22650.46875 | EJ70: 20133.75 | EK70: =SUM(OFFSET(EK69,0,0,1,-MIN($F70,EK$2)))/$F70 -> 17617.03125 | EL70: 15100.3125 | EM70: 12777.1875 | EN70: 10647.65625 | EO70: 8711.71875 | EP70: 6969.375 | EQ70: 5420.625 | ER70: 4065.46875 | ES70: 2903.90625 | ET70: 1935.9375 | EU70: 1161.5625 | EV70: 580.78125 | EW70: 193.59375 | EX70: -5.508450158e-10 | EY70: -5.505871741e-10
D73: Tax Basis
D75: MACRS | F75: =F79 -> 2017-01-01 | I75: =SUM(K75:EY75) -> 0.5352583333 | K75: =SUMIF(Control!$B$75:$B$95,K$3,Control!$C$75:$C$95)*IF(K$4<EOMONTH($F75,0),0,IF(K$3=YEAR($F$75),1/(13-MONTH($F75)),1/12)) -> 0 | L75: =SUMIF(Control!$B$75:$B$95,L$3,Control!$C$75:$C$95)*IF(L$4<EOMONTH($F75,0),0,IF(L$3=YEAR($F$75),1/(13-MONTH($F75)),1/12)) -> 0 | M75: =SUMIF(Control!$B$75:$B$95,M$3,Control!$C$75:$C$95)*IF(M$4<EOMONTH($F75,0),0,IF(M$3=YEAR($F$75),1/(13-MONTH($F75)),1/12)) -> 0 | N75: =SUMIF(Control!$B$75:$B$95,N$3,Control!$C$75:$C$95)*IF(N$4<EOMONTH($F75,0),0,IF(N$3=YEAR($F$75),1/(13-MONTH($F75)),1/12)) -> 0 | O75: =SUMIF(Control!$B$75:$B$95,O$3,Control!$C$75:$C$95)*IF(O$4<EOMONTH($F75,0),0,IF(O$3=YEAR($F$75),1/(13-MONTH($F75)),1/12)) -> 0 | P75: =SUMIF(Control!$B$75:$B$95,P$3,Control!$C$75:$C$95)*IF(P$4<EOMONTH($F75,0),0,IF(P$3=YEAR($F$75),1/(13-MONTH($F75)),1/12)) -> 0 | Q75: =SUMIF(Control!$B$75:$B$95,Q$3,Control!$C$75:$C$95)*IF(Q$4<EOMONTH($F75,0),0,IF(Q$3=YEAR($F$75),1/(13-MONTH($F75)),1/12)) -> 0 | R75: =SUMIF(Control!$B$75:$B$95,R$3,Control!$C$75:$C$95)*IF(R$4<EOMONTH($F75,0),0,IF(R$3=YEAR($F$75),1/(13-MONTH($F75)),1/12)) -> 0 | S75: =SUMIF(Control!$B$75:$B$95,S$3,Control!$C$75:$C$95)*IF(S$4<EOMONTH($F75,0),0,IF(S$3=YEAR($F$75),1/(13-MONTH($F75)),1/12)) -> 0 | T75: =SUMIF(Control!$B$75:$B$95,T$3,Control!$C$75:$C$95)*IF(T$4<EOMONTH($F75,0),0,IF(T$3=YEAR($F$75),1/(13-MONTH($F75)),1/12)) -> 0 | U75: =SUMIF(Control!$B$75:$B$95,U$3,Control!$C$75:$C$95)*IF(U$4<EOMONTH($F75,0),0,IF(U$3=YEAR($F$75),1/(13-MONTH($F75)),1/12)) -> 0 | V75: =SUMIF(Control!$B$75:$B$95,V$3,Control!$C$75:$C$95)*IF(V$4<EOMONTH($F75,0),0,IF(V$3=YEAR($F$75),1/(13-MONTH($F75)),1/12)) -> 0 | W75: =SUMIF(Control!$B$75:$B$95,W$3,Control!$C$75:$C$95)*IF(W$4<EOMONTH($F75,0),0,IF(W$3=YEAR($F$75),1/(13-MONTH($F75)),1/12)) -> 0 | X75: =SUMIF(Control!$B$75:$B$95,X$3,Control!$C$75:$C$95)*IF(X$4<EOMONTH($F75,0),0,IF(X$3=YEAR($F$75),1/(13-MONTH($F75)),1/12)) -> 0 | Y75: =SUMIF(Control!$B$75:$B$95,Y$3,Control!$C$75:$C$95)*IF(Y$4<EOMONTH($F75,0),0,IF(Y$3=YEAR($F$75),1/(13-MONTH($F75)),1/12)) -> 0 | Z75: =SUMIF(Control!$B$75:$B$95,Z$3,Control!$C$75:$C$95)*IF(Z$4<EOMONTH($F75,0),0,IF(Z$3=YEAR($F$75),1/(13-MONTH($F75)),1/12)) -> 0 | AA75: =SUMIF(Control!$B$75:$B$95,AA$3,Control!$C$75:$C$95)*IF(AA$4<EOMONTH($F75,0),0,IF(AA$3=YEAR($F$75),1/(13-MONTH($F75)),1/12)) -> 0 | AB75: =SUMIF(Control!$B$75:$B$95,AB$3,Control!$C$75:$C$95)*IF(AB$4<EOMONTH($F75,0),0,IF(AB$3=YEAR($F$75),1/(13-MONTH($F75)),1/12)) -> 0 | AC75: =SUMIF(Control!$B$75:$B$95,AC$3,Control!$C$75:$C$95)*IF(AC$4<EOMONTH($F75,0),0,IF(AC$3=YEAR($F$75),1/(13-MONTH($F75)),1/12)) -> 0 | AD75: =SUMIF(Control!$B$75:$B$95,AD$3,Control!$C$75:$C$95)*IF(AD$4<EOMONTH($F75,0),0,IF(AD$3=YEAR($F$75),1/(13-MONTH($F75)),1/12)) -> 0 | AE75: =SUMIF(Control!$B$75:$B$95,AE$3,Control!$C$75:$C$95)*IF(AE$4<EOMONTH($F75,0),0,IF(AE$3=YEAR($F$75),1/(13-MONTH($F75)),1/12)) -> 0 | AF75: =SUMIF(Control!$B$75:$B$95,AF$3,Control!$C$75:$C$95)*IF(AF$4<EOMONTH($F75,0),0,IF(AF$3=YEAR($F$75),1/(13-MONTH($F75)),1/12)) -> 0 | AG75: =SUMIF(Control!$B$75:$B$95,AG$3,Control!$C$75:$C$95)*IF(AG$4<EOMONTH($F75,0),0,IF(AG$3=YEAR($F$75),1/(13-MONTH($F75)),1/12)) -> 0 | AH75: =SUMIF(Control!$B$75:$B$95,AH$3,Control!$C$75:$C$95)*IF(AH$4<EOMONTH($F75,0),0,IF(AH$3=YEAR($F$75),1/(13-MONTH($F75)),1/12)) -> 0 | AI75: =SUMIF(Control!$B$75:$B$95,AI$3,Control!$C$75:$C$95)*IF(AI$4<EOMONTH($F75,0),0,IF(AI$3=YEAR($F$75),1/(13-MONTH($F75)),1/12)) -> 0.003125 | AJ75: =SUMIF(Control!$B$75:$B$95,AJ$3,Control!$C$75:$C$95)*IF(AJ$4<EOMONTH($F75,0),0,IF(AJ$3=YEAR($F$75),1/(13-MONTH($F75)),1/12)) -> 0.003125 | AK75: =SUMIF(Control!$B$75:$B$95,AK$3,Control!$C$75:$C$95)*IF(AK$4<EOMONTH($F75,0),0,IF(AK$3=YEAR($F$75),1/(13-MONTH($F75)),1/12)) -> 0.003125 | AL75: =SUMIF(Control!$B$75:$B$95,AL$3,Control!$C$75:$C$95)*IF(AL$4<EOMONTH($F75,0),0,IF(AL$3=YEAR($F$75),1/(13-MONTH($F75)),1/12)) -> 0.003125 | AM75: =SUMIF(Control!$B$75:$B$95,AM$3,Control!$C$75:$C$95)*IF(AM$4<EOMONTH($F75,0),0,IF(AM$3=YEAR($F$75),1/(13-MONTH($F75)),1/12)) -> 0.003125 | AN75: =SUMIF(Control!$B$75:$B$95,AN$3,Control!$C$75:$C$95)*IF(AN$4<EOMONTH($F75,0),0,IF(AN$3=YEAR($F$75),1/(13-MONTH($F75)),1/12)) -> 0.003125 | AO75: =SUMIF(Control!$B$75:$B$95,AO$3,Control!$C$75:$C$95)*IF(AO$4<EOMONTH($F75,0),0,IF(AO$3=YEAR($F$75),1/(13-MONTH($F75)),1/12)) -> 0.003125 | AP75: =SUMIF(Control!$B$75:$B$95,AP$3,Control!$C$75:$C$95)*IF(AP$4<EOMONTH($F75,0),0,IF(AP$3=YEAR($F$75),1/(13-MONTH($F75)),1/12)) -> 0.003125 | AQ75: =SUMIF(Control!$B$75:$B$95,AQ$3,Control!$C$75:$C$95)*IF(AQ$4<EOMONTH($F75,0),0,IF(AQ$3=YEAR($F$75),1/(13-MONTH($F75)),1/12)) -> 0.003125 | AR75: =SUMIF(Control!$B$75:$B$95,AR$3,Control!$C$75:$C$95)*IF(AR$4<EOMONTH($F75,0),0,IF(AR$3=YEAR($F$75),1/(13-MONTH($F75)),1/12)) -> 0.003125 | AS75: =SUMIF(Control!$B$75:$B$95,AS$3,Control!$C$75:$C$95)*IF(AS$4<EOMONTH($F75,0),0,IF(AS$3=YEAR($F$75),1/(13-MONTH($F75)),1/12)) -> 0.003125 | AT75: =SUMIF(Control!$B$75:$B$95,AT$3,Control!$C$75:$C$95)*IF(AT$4<EOMONTH($F75,0),0,IF(AT$3=YEAR($F$75),1/(13-MONTH($F75)),1/12)) -> 0.003125 | AU75: =SUMIF(Control!$B$75:$B$95,AU$3,Control!$C$75:$C$95)*IF(AU$4<EOMONTH($F75,0),0,IF(AU$3=YEAR($F$75),1/(13-MONTH($F75)),1/12)) -> 0.006015833333 | AV75: =SUMIF(Control!$B$75:$B$95,AV$3,Control!$C$75:$C$95)*IF(AV$4<EOMONTH($F75,0),0,IF(AV$3=YEAR($F$75),1/(13-MONTH($F75)),1/12)) -> 0.006015833333 | AW75: =SUMIF(Control!$B$75:$B$95,AW$3,Control!$C$75:$C$95)*IF(AW$4<EOMONTH($F75,0),0,IF(AW$3=YEAR($F$75),1/(13-MONTH($F75)),1/12)) -> 0.006015833333 | AX75: =SUMIF(Control!$B$75:$B$95,AX$3,Control!$C$75:$C$95)*IF(AX$4<EOMONTH($F75,0),0,IF(AX$3=YEAR($F$75),1/(13-MONTH($F75)),1/12)) -> 0.006015833333 | AY75: =SUMIF(Control!$B$75:$B$95,AY$3,Control!$C$75:$C$95)*IF(AY$4<EOMONTH($F75,0),0,IF(AY$3=YEAR($F$75),1/(13-MONTH($F75)),1/12)) -> 0.006015833333 | AZ75: =SUMIF(Control!$B$75:$B$95,AZ$3,Control!$C$75:$C$95)*IF(AZ$4<EOMONTH($F75,0),0,IF(AZ$3=YEAR($F$75),1/(13-MONTH($F75)),1/12)) -> 0.006015833333 | BA75: =SUMIF(Control!$B$75:$B$95,BA$3,Control!$C$75:$C$95)*IF(BA$4<EOMONTH($F75,0),0,IF(BA$3=YEAR($F$75),1/(13-MONTH($F75)),1/12)) -> 0.006015833333 | BB75: =SUMIF(Control!$B$75:$B$95,BB$3,Control!$C$75:$C$95)*IF(BB$4<EOMONTH($F75,0),0,IF(BB$3=YEAR($F$75),1/(13-MONTH($F75)),1/12)) -> 0.006015833333 | BC75: =SUMIF(Control!$B$75:$B$95,BC$3,Control!$C$75:$C$95)*IF(BC$4<EOMONTH($F75,0),0,IF(BC$3=YEAR($F$75),1/(13-MONTH($F75)),1/12)) -> 0.006015833333 | BD75: =SUMIF(Control!$B$75:$B$95,BD$3,Control!$C$75:$C$95)*IF(BD$4<EOMONTH($F75,0),0,IF(BD$3=YEAR($F$75),1/(13-MONTH($F75)),1/12)) -> 0.006015833333 | BE75: =SUMIF(Control!$B$75:$B$95,BE$3,Control!$C$75:$C$95)*IF(BE$4<EOMONTH($F75,0),0,IF(BE$3=YEAR($F$75),1/(13-MONTH($F75)),1/12)) -> 0.006015833333 | BF75: =SUMIF(Control!$B$75:$B$95,BF$3,Control!$C$75:$C$95)*IF(BF$4<EOMONTH($F75,0),0,IF(BF$3=YEAR($F$75),1/(13-MONTH($F75)),1/12)) -> 0.006015833333 | BG75: =SUMIF(Control!$B$75:$B$95,BG$3,Control!$C$75:$C$95)*IF(BG$4<EOMONTH($F75,0),0,IF(BG$3=YEAR($F$75),1/(13-MONTH($F75)),1/12)) -> 0.005564166667 | BH75: =SUMIF(Control!$B$75:$B$95,BH$3,Control!$C$75:$C$95)*IF(BH$4<EOMONTH($F75,0),0,IF(BH$3=YEAR($F$75),1/(13-MONTH($F75)),1/12)) -> 0.005564166667 | BI75: =SUMIF(Control!$B$75:$B$95,BI$3,Control!$C$75:$C$95)*IF(BI$4<EOMONTH($F75,0),0,IF(BI$3=YEAR($F$75),1/(13-MONTH($F75)),1/12)) -> 0.005564166667 | BJ75: =SUMIF(Control!$B$75:$B$95,BJ$3,Control!$C$75:$C$95)*IF(BJ$4<EOMONTH($F75,0),0,IF(BJ$3=YEAR($F$75),1/(13-MONTH($F75)),1/12)) -> 0.005564166667 | BK75: =SUMIF(Control!$B$75:$B$95,BK$3,Control!$C$75:$C$95)*IF(BK$4<EOMONTH($F75,0),0,IF(BK$3=YEAR($F$75),1/(13-MONTH($F75)),1/12)) -> 0.005564166667 | BL75: =SUMIF(Control!$B$75:$B$95,BL$3,Control!$C$75:$C$95)*IF(BL$4<EOMONTH($F75,0),0,IF(BL$3=YEAR($F$75),1/(13-MONTH($F75)),1/12)) -> 0.005564166667 | BM75: =SUMIF(Control!$B$75:$B$95,BM$3,Control!$C$75:$C$95)*IF(BM$4<EOMONTH($F75,0),0,IF(BM$3=YEAR($F$75),1/(13-MONTH($F75)),1/12)) -> 0.005564166667 | BN75: =SUMIF(Control!$B$75:$B$95,BN$3,Control!$C$75:$C$95)*IF(BN$4<EOMONTH($F75,0),0,IF(BN$3=YEAR($F$75),1/(13-MONTH($F75)),1/12)) -> 0.005564166667 | BO75: =SUMIF(Control!$B$75:$B$95,BO$3,Control!$C$75:$C$95)*IF(BO$4<EOMONTH($F75,0),0,IF(BO$3=YEAR($F$75),1/(13-MONTH($F75)),1/12)) -> 0.005564166667 | BP75: =SUMIF(Control!$B$75:$B$95,BP$3,Control!$C$75:$C$95)*IF(BP$4<EOMONTH($F75,0),0,IF(BP$3=YEAR($F$75),1/(13-MONTH($F75)),1/12)) -> 0.005564166667 | BQ75: =SUMIF(Control!$B$75:$B$95,BQ$3,Control!$C$75:$C$95)*IF(BQ$4<EOMONTH($F75,0),0,IF(BQ$3=YEAR($F$75),1/(13-MONTH($F75)),1/12)) -> 0.005564166667 | BR75: =SUMIF(Control!$B$75:$B$95,BR$3,Control!$C$75:$C$95)*IF(BR$4<EOMONTH($F75,0),0,IF(BR$3=YEAR($F$75),1/(13-MONTH($F75)),1/12)) -> 0.005564166667 | BS75: =SUMIF(Control!$B$75:$B$95,BS$3,Control!$C$75:$C$95)*IF(BS$4<EOMONTH($F75,0),0,IF(BS$3=YEAR($F$75),1/(13-MONTH($F75)),1/12)) -> 0.0051475 | BT75: =SUMIF(Control!$B$75:$B$95,BT$3,Control!$C$75:$C$95)*IF(BT$4<EOMONTH($F75,0),0,IF(BT$3=YEAR($F$75),1/(13-MONTH($F75)),1/12)) -> 0.0051475 | BU75: =SUMIF(Control!$B$75:$B$95,BU$3,Control!$C$75:$C$95)*IF(BU$4<EOMONTH($F75,0),0,IF(BU$3=YEAR($F$75),1/(13-MONTH($F75)),1/12)) -> 0.0051475 | BV75: =SUMIF(Control!$B$75:$B$95,BV$3,Control!$C$75:$C$95)*IF(BV$4<EOMONTH($F75,0),0,IF(BV$3=YEAR($F$75),1/(13-MONTH($F75)),1/12)) -> 0.0051475 | BW75: =SUMIF(Control!$B$75:$B$95,BW$3,Control!$C$75:$C$95)*IF(BW$4<EOMONTH($F75,0),0,IF(BW$3=YEAR($F$75),1/(13-MONTH($F75)),1/12)) -> 0.0051475 | BX75: =SUMIF(Control!$B$75:$B$95,BX$3,Control!$C$75:$C$95)*IF(BX$4<EOMONTH($F75,0),0,IF(BX$3=YEAR($F$75),1/(13-MONTH($F75)),1/12)) -> 0.0051475 | BY75: =SUMIF(Control!$B$75:$B$95,BY$3,Control!$C$75:$C$95)*IF(BY$4<EOMONTH($F75,0),0,IF(BY$3=YEAR($F$75),1/(13-MONTH($F75)),1/12)) -> 0.0051475 | BZ75: =SUMIF(Control!$B$75:$B$95,BZ$3,Control!$C$75:$C$95)*IF(BZ$4<EOMONTH($F75,0),0,IF(BZ$3=YEAR($F$75),1/(13-MONTH($F75)),1/12)) -> 0.0051475 | CA75: =SUMIF(Control!$B$75:$B$95,CA$3,Control!$C$75:$C$95)*IF(CA$4<EOMONTH($F75,0),0,IF(CA$3=YEAR($F$75),1/(13-MONTH($F75)),1/12)) -> 0.0051475 | CB75: =SUMIF(Control!$B$75:$B$95,CB$3,Control!$C$75:$C$95)*IF(CB$4<EOMONTH($F75,0),0,IF(CB$3=YEAR($F$75),1/(13-MONTH($F75)),1/12)) -> 0.0051475 | CC75: =SUMIF(Control!$B$75:$B$95,CC$3,Control!$C$75:$C$95)*IF(CC$4<EOMONTH($F75,0),0,IF(CC$3=YEAR($F$75),1/(13-MONTH($F75)),1/12)) -> 0.0051475 | CD75: =SUMIF(Control!$B$75:$B$95,CD$3,Control!$C$75:$C$95)*IF(CD$4<EOMONTH($F75,0),0,IF(CD$3=YEAR($F$75),1/(13-MONTH($F75)),1/12)) -> 0.0051475 | CE75: =SUMIF(Control!$B$75:$B$95,CE$3,Control!$C$75:$C$95)*IF(CE$4<EOMONTH($F75,0),0,IF(CE$3=YEAR($F$75),1/(13-MONTH($F75)),1/12)) -> 0.004760833333 | CF75: =SUMIF(Control!$B$75:$B$95,CF$3,Control!$C$75:$C$95)*IF(CF$4<EOMONTH($F75,0),0,IF(CF$3=YEAR($F$75),1/(13-MONTH($F75)),1/12)) -> 0.004760833333 | CG75: =SUMIF(Control!$B$75:$B$95,CG$3,Control!$C$75:$C$95)*IF(CG$4<EOMONTH($F75,0),0,IF(CG$3=YEAR($F$75),1/(13-MONTH($F75)),1/12)) -> 0.004760833333 | CH75: =SUMIF(Control!$B$75:$B$95,CH$3,Control!$C$75:$C$95)*IF(CH$4<EOMONTH($F75,0),0,IF(CH$3=YEAR($F$75),1/(13-MONTH($F75)),1/12)) -> 0.004760833333 | CI75: =SUMIF(Control!$B$75:$B$95,CI$3,Control!$C$75:$C$95)*IF(CI$4<EOMONTH($F75,0),0,IF(CI$3=YEAR($F$75),1/(13-MONTH($F75)),1/12)) -> 0.004760833333 | CJ75: =SUMIF(Control!$B$75:$B$95,CJ$3,Control!$C$75:$C$95)*IF(CJ$4<EOMONTH($F75,0),0,IF(CJ$3=YEAR($F$75),1/(13-MONTH($F75)),1/12)) -> 0.004760833333 | CK75: =SUMIF(Control!$B$75:$B$95,CK$3,Control!$C$75:$C$95)*IF(CK$4<EOMONTH($F75,0),0,IF(CK$3=YEAR($F$75),1/(13-MONTH($F75)),1/12)) -> 0.004760833333 | CL75: =SUMIF(Control!$B$75:$B$95,CL$3,Control!$C$75:$C$95)*IF(CL$4<EOMONTH($F75,0),0,IF(CL$3=YEAR($F$75),1/(13-MONTH($F75)),1/12)) -> 0.004760833333 | CM75: =SUMIF(Control!$B$75:$B$95,CM$3,Control!$C$75:$C$95)*IF(CM$4<EOMONTH($F75,0),0,IF(CM$3=YEAR($F$75),1/(13-MONTH($F75)),1/12)) -> 0.004760833333 | CN75: =SUMIF(Control!$B$75:$B$95,CN$3,Control!$C$75:$C$95)*IF(CN$4<EOMONTH($F75,0),0,IF(CN$3=YEAR($F$75),1/(13-MONTH($F75)),1/12)) -> 0.004760833333 | CO75: =SUMIF(Control!$B$75:$B$95,CO$3,Control!$C$75:$C$95)*IF(CO$4<EOMONTH($F75,0),0,IF(CO$3=YEAR($F$75),1/(13-MONTH($F75)),1/12)) -> 0.004760833333 | CP75: =SUMIF(Control!$B$75:$B$95,CP$3,Control!$C$75:$C$95)*IF(CP$4<EOMONTH($F75,0),0,IF(CP$3=YEAR($F$75),1/(13-MONTH($F75)),1/12)) -> 0.004760833333 | CQ75: =SUMIF(Control!$B$75:$B$95,CQ$3,Control!$C$75:$C$95)*IF(CQ$4<EOMONTH($F75,0),0,IF(CQ$3=YEAR($F$75),1/(13-MONTH($F75)),1/12)) -> 0.004404166667 | CR75: =SUMIF(Control!$B$75:$B$95,CR$3,Control!$C$75:$C$95)*IF(CR$4<EOMONTH($F75,0),0,IF(CR$3=YEAR($F$75),1/(13-MONTH($F75)),1/12)) -> 0.004404166667 | CS75: =SUMIF(Control!$B$75:$B$95,CS$3,Control!$C$75:$C$95)*IF(CS$4<EOMONTH($F75,0),0,IF(CS$3=YEAR($F$75),1/(13-MONTH($F75)),1/12)) -> 0.004404166667 | CT75: =SUMIF(Control!$B$75:$B$95,CT$3,Control!$C$75:$C$95)*IF(CT$4<EOMONTH($F75,0),0,IF(CT$3=YEAR($F$75),1/(13-MONTH($F75)),1/12)) -> 0.004404166667 | CU75: =SUMIF(Control!$B$75:$B$95,CU$3,Control!$C$75:$C$95)*IF(CU$4<EOMONTH($F75,0),0,IF(CU$3=YEAR($F$75),1/(13-MONTH($F75)),1/12)) -> 0.004404166667 | CV75: =SUMIF(Control!$B$75:$B$95,CV$3,Control!$C$75:$C$95)*IF(CV$4<EOMONTH($F75,0),0,IF(CV$3=YEAR($F$75),1/(13-MONTH($F75)),1/12)) -> 0.004404166667 | CW75: =SUMIF(Control!$B$75:$B$95,CW$3,Control!$C$75:$C$95)*IF(CW$4<EOMONTH($F75,0),0,IF(CW$3=YEAR($F$75),1/(13-MONTH($F75)),1/12)) -> 0.004404166667 | CX75: =SUMIF(Control!$B$75:$B$95,CX$3,Control!$C$75:$C$95)*IF(CX$4<EOMONTH($F75,0),0,IF(CX$3=YEAR($F$75),1/(13-MONTH($F75)),1/12)) -> 0.004404166667 | CY75: =SUMIF(Control!$B$75:$B$95,CY$3,Control!$C$75:$C$95)*IF(CY$4<EOMONTH($F75,0),0,IF(CY$3=YEAR($F$75),1/(13-MONTH($F75)),1/12)) -> 0.004404166667 | CZ75: =SUMIF(Control!$B$75:$B$95,CZ$3,Control!$C$75:$C$95)*IF(CZ$4<EOMONTH($F75,0),0,IF(CZ$3=YEAR($F$75),1/(13-MONTH($F75)),1/12)) -> 0.004404166667 | DA75: =SUMIF(Control!$B$75:$B$95,DA$3,Control!$C$75:$C$95)*IF(DA$4<EOMONTH($F75,0),0,IF(DA$3=YEAR($F$75),1/(13-MONTH($F75)),1/12)) -> 0.004404166667 | DB75: =SUMIF(Control!$B$75:$B$95,DB$3,Control!$C$75:$C$95)*IF(DB$4<EOMONTH($F75,0),0,IF(DB$3=YEAR($F$75),1/(13-MONTH($F75)),1/12)) -> 0.004404166667 | DC75: =SUMIF(Control!$B$75:$B$95,DC$3,Control!$C$75:$C$95)*IF(DC$4<EOMONTH($F75,0),0,IF(DC$3=YEAR($F$75),1/(13-MONTH($F75)),1/12)) -> 0.004073333333 | DD75: =SUMIF(Control!$B$75:$B$95,DD$3,Control!$C$75:$C$95)*IF(DD$4<EOMONTH($F75,0),0,IF(DD$3=YEAR($F$75),1/(13-MONTH($F75)),1/12)) -> 0.004073333333 | DE75: =SUMIF(Control!$B$75:$B$95,DE$3,Control!$C$75:$C$95)*IF(DE$4<EOMONTH($F75,0),0,IF(DE$3=YEAR($F$75),1/(13-MONTH($F75)),1/12)) -> 0.004073333333 | DF75: =SUMIF(Control!$B$75:$B$95,DF$3,Control!$C$75:$C$95)*IF(DF$4<EOMONTH($F75,0),0,IF(DF$3=YEAR($F$75),1/(13-MONTH($F75)),1/12)) -> 0.004073333333 | DG75: =SUMIF(Control!$B$75:$B$95,DG$3,Control!$C$75:$C$95)*IF(DG$4<EOMONTH($F75,0),0,IF(DG$3=YEAR($F$75),1/(13-MONTH($F75)),1/12)) -> 0.004073333333 | DH75: =SUMIF(Control!$B$75:$B$95,DH$3,Control!$C$75:$C$95)*IF(DH$4<EOMONTH($F75,0),0,IF(DH$3=YEAR($F$75),1/(13-MONTH($F75)),1/12)) -> 0.004073333333 | DI75: =SUMIF(Control!$B$75:$B$95,DI$3,Control!$C$75:$C$95)*IF(DI$4<EOMONTH($F75,0),0,IF(DI$3=YEAR($F$75),1/(13-MONTH($F75)),1/12)) -> 0.004073333333 | DJ75: =SUMIF(Control!$B$75:$B$95,DJ$3,Control!$C$75:$C$95)*IF(DJ$4<EOMONTH($F75,0),0,IF(DJ$3=YEAR($F$75),1/(13-MONTH($F75)),1/12)) -> 0.004073333333 | DK75: =SUMIF(Control!$B$75:$B$95,DK$3,Control!$C$75:$C$95)*IF(DK$4<EOMONTH($F75,0),0,IF(DK$3=YEAR($F$75),1/(13-MONTH($F75)),1/12)) -> 0.004073333333 | DL75: =SUMIF(Control!$B$75:$B$95,DL$3,Control!$C$75:$C$95)*IF(DL$4<EOMONTH($F75,0),0,IF(DL$3=YEAR($F$75),1/(13-MONTH($F75)),1/12)) -> 0.004073333333 | DM75: =SUMIF(Control!$B$75:$B$95,DM$3,Control!$C$75:$C$95)*IF(DM$4<EOMONTH($F75,0),0,IF(DM$3=YEAR($F$75),1/(13-MONTH($F75)),1/12)) -> 0.004073333333 | DN75: =SUMIF(Control!$B$75:$B$95,DN$3,Control!$C$75:$C$95)*IF(DN$4<EOMONTH($F75,0),0,IF(DN$3=YEAR($F$75),1/(13-MONTH($F75)),1/12)) -> 0.004073333333 | DO75: =SUMIF(Control!$B$75:$B$95,DO$3,Control!$C$75:$C$95)*IF(DO$4<EOMONTH($F75,0),0,IF(DO$3=YEAR($F$75),1/(13-MONTH($F75)),1/12)) -> 0.003768333333 | DP75: =SUMIF(Control!$B$75:$B$95,DP$3,Control!$C$75:$C$95)*IF(DP$4<EOMONTH($F75,0),0,IF(DP$3=YEAR($F$75),1/(13-MONTH($F75)),1/12)) -> 0.003768333333 | DQ75: =SUMIF(Control!$B$75:$B$95,DQ$3,Control!$C$75:$C$95)*IF(DQ$4<EOMONTH($F75,0),0,IF(DQ$3=YEAR($F$75),1/(13-MONTH($F75)),1/12)) -> 0.003768333333 | DR75: =SUMIF(Control!$B$75:$B$95,DR$3,Control!$C$75:$C$95)*IF(DR$4<EOMONTH($F75,0),0,IF(DR$3=YEAR($F$75),1/(13-MONTH($F75)),1/12)) -> 0.003768333333 | DS75: =SUMIF(Control!$B$75:$B$95,DS$3,Control!$C$75:$C$95)*IF(DS$4<EOMONTH($F75,0),0,IF(DS$3=YEAR($F$75),1/(13-MONTH($F75)),1/12)) -> 0.003768333333 | DT75: =SUMIF(Control!$B$75:$B$95,DT$3,Control!$C$75:$C$95)*IF(DT$4<EOMONTH($F75,0),0,IF(DT$3=YEAR($F$75),1/(13-MONTH($F75)),1/12)) -> 0.003768333333 | DU75: =SUMIF(Control!$B$75:$B$95,DU$3,Control!$C$75:$C$95)*IF(DU$4<EOMONTH($F75,0),0,IF(DU$3=YEAR($F$75),1/(13-MONTH($F75)),1/12)) -> 0.003768333333 | DV75: =SUMIF(Control!$B$75:$B$95,DV$3,Control!$C$75:$C$95)*IF(DV$4<EOMONTH($F75,0),0,IF(DV$3=YEAR($F$75),1/(13-MONTH($F75)),1/12)) -> 0.003768333333 | DW75: =SUMIF(Control!$B$75:$B$95,DW$3,Control!$C$75:$C$95)*IF(DW$4<EOMONTH($F75,0),0,IF(DW$3=YEAR($F$75),1/(13-MONTH($F75)),1/12)) -> 0.003768333333 | DX75: =SUMIF(Control!$B$75:$B$95,DX$3,Control!$C$75:$C$95)*IF(DX$4<EOMONTH($F75,0),0,IF(DX$3=YEAR($F$75),1/(13-MONTH($F75)),1/12)) -> 0.003768333333 | DY75: =SUMIF(Control!$B$75:$B$95,DY$3,Control!$C$75:$C$95)*IF(DY$4<EOMONTH($F75,0),0,IF(DY$3=YEAR($F$75),1/(13-MONTH($F75)),1/12)) -> 0.003768333333 | DZ75: =SUMIF(Control!$B$75:$B$95,DZ$3,Control!$C$75:$C$95)*IF(DZ$4<EOMONTH($F75,0),0,IF(DZ$3=YEAR($F$75),1/(13-MONTH($F75)),1/12)) -> 0.003768333333 | EA75: =SUMIF(Control!$B$75:$B$95,EA$3,Control!$C$75:$C$95)*IF(EA$4<EOMONTH($F75,0),0,IF(EA$3=YEAR($F$75),1/(13-MONTH($F75)),1/12)) -> 0.003718333333 | EB75: =SUMIF(Control!$B$75:$B$95,EB$3,Control!$C$75:$C$95)*IF(EB$4<EOMONTH($F75,0),0,IF(EB$3=YEAR($F$75),1/(13-MONTH($F75)),1/12)) -> 0.003718333333 | EC75: =SUMIF(Control!$B$75:$B$95,EC$3,Control!$C$75:$C$95)*IF(EC$4<EOMONTH($F75,0),0,IF(EC$3=YEAR($F$75),1/(13-MONTH($F75)),1/12)) -> 0.003718333333 | ED75: =SUMIF(Control!$B$75:$B$95,ED$3,Control!$C$75:$C$95)*IF(ED$4<EOMONTH($F75,0),0,IF(ED$3=YEAR($F$75),1/(13-MONTH($F75)),1/12)) -> 0.003718333333 | EE75: =SUMIF(Control!$B$75:$B$95,EE$3,Control!$C$75:$C$95)*IF(EE$4<EOMONTH($F75,0),0,IF(EE$3=YEAR($F$75),1/(13-MONTH($F75)),1/12)) -> 0.003718333333 | EF75: =SUMIF(Control!$B$75:$B$95,EF$3,Control!$C$75:$C$95)*IF(EF$4<EOMONTH($F75,0),0,IF(EF$3=YEAR($F$75),1/(13-MONTH($F75)),1/12)) -> 0.003718333333 | EG75: =SUMIF(Control!$B$75:$B$95,EG$3,Control!$C$75:$C$95)*IF(EG$4<EOMONTH($F75,0),0,IF(EG$3=YEAR($F$75),1/(13-MONTH($F75)),1/12)) -> 0.003718333333 | EH75: =SUMIF(Control!$B$75:$B$95,EH$3,Control!$C$75:$C$95)*IF(EH$4<EOMONTH($F75,0),0,IF(EH$3=YEAR($F$75),1/(13-MONTH($F75)),1/12)) -> 0.003718333333 | EI75: =SUMIF(Control!$B$75:$B$95,EI$3,Control!$C$75:$C$95)*IF(EI$4<EOMONTH($F75,0),0,IF(EI$3=YEAR($F$75),1/(13-MONTH($F75)),1/12)) -> 0.003718333333 | EJ75: =SUMIF(Control!$B$75:$B$95,EJ$3,Control!$C$75:$C$95)*IF(EJ$4<EOMONTH($F75,0),0,IF(EJ$3=YEAR($F$75),1/(13-MONTH($F75)),1/12)) -> 0.003718333333 | EK75: =SUMIF(Control!$B$75:$B$95,EK$3,Control!$C$75:$C$95)*IF(EK$4<EOMONTH($F75,0),0,IF(EK$3=YEAR($F$75),1/(13-MONTH($F75)),1/12)) -> 0.003718333333 | EL75: =SUMIF(Control!$B$75:$B$95,EL$3,Control!$C$75:$C$95)*IF(EL$4<EOMONTH($F75,0),0,IF(EL$3=YEAR($F$75),1/(13-MONTH($F75)),1/12)) -> 0.003718333333 | EM75: =SUMIF(Control!$B$75:$B$95,EM$3,Control!$C$75:$C$95)*IF(EM$4<EOMONTH($F75,0),0,IF(EM$3=YEAR($F$75),1/(13-MONTH($F75)),1/12)) -> 0.0037175 | EN75: =SUMIF(Control!$B$75:$B$95,EN$3,Control!$C$75:$C$95)*IF(EN$4<EOMONTH($F75,0),0,IF(EN$3=YEAR($F$75),1/(13-MONTH($F75)),1/12)) -> 0.0037175 | EO75: =SUMIF(Control!$B$75:$B$95,EO$3,Control!$C$75:$C$95)*IF(EO$4<EOMONTH($F75,0),0,IF(EO$3=YEAR($F$75),1/(13-MONTH($F75)),1/12)) -> 0.0037175 | EP75: =SUMIF(Control!$B$75:$B$95,EP$3,Control!$C$75:$C$95)*IF(EP$4<EOMONTH($F75,0),0,IF(EP$3=YEAR($F$75),1/(13-MONTH($F75)),1/12)) -> 0.0037175 | EQ75: =SUMIF(Control!$B$75:$B$95,EQ$3,Control!$C$75:$C$95)*IF(EQ$4<EOMONTH($F75,0),0,IF(EQ$3=YEAR($F$75),1/(13-MONTH($F75)),1/12)) -> 0.0037175 | ER75: =SUMIF(Control!$B$75:$B$95,ER$3,Control!$C$75:$C$95)*IF(ER$4<EOMONTH($F75,0),0,IF(ER$3=YEAR($F$75),1/(13-MONTH($F75)),1/12)) -> 0.0037175 | ES75: =SUMIF(Control!$B$75:$B$95,ES$3,Control!$C$75:$C$95)*IF(ES$4<EOMONTH($F75,0),0,IF(ES$3=YEAR($F$75),1/(13-MONTH($F75)),1/12)) -> 0.0037175 | ET75: =SUMIF(Control!$B$75:$B$95,ET$3,Control!$C$75:$C$95)*IF(ET$4<EOMONTH($F75,0),0,IF(ET$3=YEAR($F$75),1/(13-MONTH($F75)),1/12)) -> 0.0037175 | EU75: =SUMIF(Control!$B$75:$B$95,EU$3,Control!$C$75:$C$95)*IF(EU$4<EOMONTH($F75,0),0,IF(EU$3=YEAR($F$75),1/(13-MONTH($F75)),1/12)) -> 0.0037175 | EV75: =SUMIF(Control!$B$75:$B$95,EV$3,Control!$C$75:$C$95)*IF(EV$4<EOMONTH($F75,0),0,IF(EV$3=YEAR($F$75),1/(13-MONTH($F75)),1/12)) -> 0.0037175 | EW75: =SUMIF(Control!$B$75:$B$95,EW$3,Control!$C$75:$C$95)*IF(EW$4<EOMONTH($F75,0),0,IF(EW$3=YEAR($F$75),1/(13-MONTH($F75)),1/12)) -> 0.0037175 | EX75: =SUMIF(Control!$B$75:$B$95,EX$3,Control!$C$75:$C$95)*IF(EX$4<EOMONTH($F75,0),0,IF(EX$3=YEAR($F$75),1/(13-MONTH($F75)),1/12)) -> 0.0037175 | EY75: =SUMIF(Control!$B$75:$B$95,EY$3,Control!$C$75:$C$95)*IF(EY$4<EOMONTH($F75,0),0,IF(EY$3=YEAR($F$75),1/(13-MONTH($F75)),1/12)) -> 0.003718333333
D78: Tax Basis of Plant
D79: Beginning Balance | F79: =Control!$C$7 -> 2017-01-01 | K79: =J83 -> 0 | L79: 0 | M79: 0 | N79: 0 | O79: 0 | P79: 0 | Q79: 0 | R79: 0 | S79: 0 | T79: 0 | U79: 0 | V79: 0 | W79: 0 | X79: 0 | Y79: 0 | Z79: 0 | AA79: 0 | AB79: 0 | AC79: 0 | AD79: 0 | AE79: 0 | AF79: 0 | AG79: 0 | AH79: 0 | AI79: 0 | AJ79: 441117.1875 | AK79: 439734.375 | AL79: 438351.5625 | AM79: 436968.75 | AN79: 435585.9375 | AO79: 434203.125 | AP79: 432820.3125 | AQ79: =AP83 -> 431437.5 | AR79: 430054.6875 | AS79: 428671.875 | AT79: 427289.0625 | AU79: 425906.25 | AV79: 423244.2438 | AW79: 420582.2375 | AX79: 417920.2313 | AY79: 415258.225 | AZ79: 412596.2188 | BA79: 409934.2125 | BB79: 407272.2063 | BC79: 404610.2 | BD79: 401948.1938 | BE79: 399286.1875 | BF79: 396624.1813 | BG79: 393962.175 | BH79: 391500.0313 | BI79: 389037.8875 | BJ79: 386575.7438 | BK79: 384113.6 | BL79: 381651.4563 | BM79: 379189.3125 | BN79: 376727.1688 | BO79: 374265.025 | BP79: 371802.8813 | BQ79: 369340.7375 | BR79: 366878.5938 | BS79: 364416.45 | BT79: 362138.6813 | BU79: 359860.9125 | BV79: 357583.1438 | BW79: =BV83 -> 355305.375 | BX79: 353027.6063 | BY79: 350749.8375 | BZ79: 348472.0688 | CA79: 346194.3 | CB79: 343916.5313 | CC79: 341638.7625 | CD79: 339360.9938 | CE79: 0 | CF79: 0 | CG79: 0 | CH79: 0 | CI79: 0 | CJ79: 0 | CK79: 0 | CL79: 0 | CM79: 0 | CN79: 0 | CO79: 0 | CP79: 0 | CQ79: 0 | CR79: 0 | CS79: 0 | CT79: 0 | CU79: 0 | CV79: 0 | CW79: 0 | CX79: 0 | CY79: 0 | CZ79: 0 | DA79: 0 | DB79: 0 | DC79: =DB83 -> 0 | DD79: 0 | DE79: 0 | DF79: 0 | DG79: 0 | DH79: 0 | DI79: 0 | DJ79: 0 | DK79: 0 | DL79: 0 | DM79: 0 | DN79: 0 | DO79: 0 | DP79: 0 | DQ79: 0 | DR79: 0 | DS79: 0 | DT79: 0 | DU79: 0 | DV79: 0 | DW79: 0 | DX79: 0 | DY79: 0 | DZ79: 0 | EA79: 0 | EB79: 0 | EC79: 0 | ED79: 0 | EE79: 0 | EF79: 0 | EG79: 0 | EH79: 0 | EI79: =EH83 -> 0 | EJ79: 0 | EK79: 0 | EL79: 0 | EM79: 0 | EN79: 0 | EO79: 0 | EP79: 0 | EQ79: 0 | ER79: 0 | ES79: 0 | ET79: 0 | EU79: 0 | EV79: 0 | EW79: 0 | EX79: 0 | EY79: 0
D80: Opening Balance | F80: =CarryoverTaxBasis!D18/1000*($D$2="Equity No Step-up")+F13*($D$2<>"Equity No Step-up")+F60 -> 442500 | I80: =SUM(K80:EY80) -> 442500 | K80: =IF(EOMONTH($F79,0)=EOMONTH(K$4,0),$F80,0) -> 0 | L80: 0 | M80: 0 | N80: 0 | O80: 0 | P80: 0 | Q80: 0 | R80: 0 | S80: 0 | T80: 0 | U80: 0 | V80: 0 | W80: 0 | X80: 0 | Y80: 0 | Z80: 0 | AA80: 0 | AB80: 0 | AC80: 0 | AD80: 0 | AE80: 0 | AF80: 0 | AG80: 0 | AH80: 0 | AI80: 442500 | AJ80: 0 | AK80: 0 | AL80: 0 | AM80: 0 | AN80: 0 | AO80: 0 | AP80: 0 | AQ80: 0 | AR80: 0 | AS80: 0 | AT80: 0 | AU80: 0 | AV80: 0 | AW80: 0 | AX80: 0 | AY80: 0 | AZ80: 0 | BA80: 0 | BB80: 0 | BC80: 0 | BD80: 0 | BE80: 0 | BF80: 0 | BG80: 0 | BH80: 0 | BI80: 0 | BJ80: 0 | BK80: 0 | BL80: 0 | BM80: 0 | BN80: 0 | BO80: 0 | BP80: 0 | BQ80: 0 | BR80: 0 | BS80: 0 | BT80: 0 | BU80: 0 | BV80: 0 | BW80: =IF(EOMONTH($F79,0)=EOMONTH(BW$4,0),$F80,0) -> 0 | BX80: 0 | BY80: 0 | BZ80: 0 | CA80: 0 | CB80: 0 | CC80: 0 | CD80: 0 | CE80: 0 | CF80: 0 | CG80: 0 | CH80: 0 | CI80: 0 | CJ80: 0 | CK80: 0 | CL80: 0 | CM80: 0 | CN80: 0 | CO80: 0 | CP80: 0 | CQ80: 0 | CR80: 0 | CS80: 0 | CT80: 0 | CU80: 0 | CV80: 0 | CW80: 0 | CX80: 0 | CY80: 0 | CZ80: 0 | DA80: 0 | DB80: 0 | DC80: 0 | DD80: 0 | DE80: 0 | DF80: 0 | DG80: 0 | DH80: 0 | DI80: 0 | DJ80: 0 | DK80: 0 | DL80: 0 | DM80: 0 | DN80: 0 | DO80: 0 | DP80: 0 | DQ80: 0 | DR80: 0 | DS80: 0 | DT80: 0 | DU80: 0 | DV80: 0 | DW80: 0 | DX80: 0 | DY80: 0 | DZ80: 0 | EA80: 0 | EB80: 0 | EC80: 0 | ED80: 0 | EE80: 0 | EF80: 0 | EG80: 0 | EH80: 0 | EI80: =IF(EOMONTH($F79,0)=EOMONTH(EI$4,0),$F80,0) -> 0 | EJ80: 0 | EK80: 0 | EL80: 0 | EM80: 0 | EN80: 0 | EO80: 0 | EP80: 0 | EQ80: 0 | ER80: 0 | ES80: 0 | ET80: 0 | EU80: 0 | EV80: 0 | EW80: 0 | EX80: 0 | EY80: 0
D81: Retirement | F81: =IF($D$2="PPA Buyout",$F$79,Control!$C$9) -> 2020-12-31 | I81: =SUM(K81:EY81) -> -339360.9938 | K81: =IF(K$4>=EOMONTH($F81,0),-SUM(K79:K80),0) -> 0 | L81: =IF(L$4>=EOMONTH($F81,0),-SUM(L79:L80),0) -> 0 | M81: 0 | N81: 0 | O81: 0 | P81: 0 | Q81: 0 | R81: 0 | S81: 0 | T81: 0 | U81: 0 | V81: 0 | W81: 0 | X81: 0 | Y81: 0 | Z81: 0 | AA81: 0 | AB81: 0 | AC81: 0 | AD81: 0 | AE81: 0 | AF81: 0 | AG81: 0 | AH81: 0 | AI81: 0 | AJ81: 0 | AK81: 0 | AL81: 0 | AM81: 0 | AN81: 0 | AO81: 0 | AP81: 0 | AQ81: 0 | AR81: 0 | AS81: 0 | AT81: 0 | AU81: 0 | AV81: 0 | AW81: 0 | AX81: 0 | AY81: 0 | AZ81: 0 | BA81: 0 | BB81: 0 | BC81: 0 | BD81: 0 | BE81: 0 | BF81: 0 | BG81: 0 | BH81: 0 | BI81: 0 | BJ81: 0 | BK81: 0 | BL81: 0 | BM81: 0 | BN81: 0 | BO81: 0 | BP81: 0 | BQ81: 0 | BR81: 0 | BS81: 0 | BT81: 0 | BU81: 0 | BV81: 0 | BW81: 0 | BX81: =IF(BX$4>=EOMONTH($F81,0),-SUM(BX79:BX80),0) -> 0 | BY81: 0 | BZ81: 0 | CA81: 0 | CB81: 0 | CC81: 0 | CD81: -339360.9938 | CE81: 0 | CF81: 0 | CG81: 0 | CH81: 0 | CI81: 0 | CJ81: 0 | CK81: 0 | CL81: 0 | CM81: 0 | CN81: 0 | CO81: 0 | CP81: 0 | CQ81: 0 | CR81: 0 | CS81: 0 | CT81: 0 | CU81: 0 | CV81: 0 | CW81: 0 | CX81: 0 | CY81: 0 | CZ81: 0 | DA81: 0 | DB81: 0 | DC81: 0 | DD81: 0 | DE81: 0 | DF81: 0 | DG81: 0 | DH81: 0 | DI81: 0 | DJ81: 0 | DK81: 0 | DL81: 0 | DM81: 0 | DN81: 0 | DO81: 0 | DP81: 0 | DQ81: 0 | DR81: 0 | DS81: 0 | DT81: 0 | DU81: 0 | DV81: 0 | DW81: 0 | DX81: 0 | DY81: 0 | DZ81: 0 | EA81: 0 | EB81: 0 | EC81: 0 | ED81: 0 | EE81: 0 | EF81: 0 | EG81: 0 | EH81: 0 | EI81: 0 | EJ81: =IF(EJ$4>=EOMONTH($F81,0),-SUM(EJ79:EJ80),0) -> 0 | EK81: 0 | EL81: 0 | EM81: 0 | EN81: 0 | EO81: 0 | EP81: 0 | EQ81: 0 | ER81: 0 | ES81: 0 | ET81: 0 | EU81: 0 | EV81: 0 | EW81: 0 | EX81: 0 | EY81: 0
D82: Depreciation | I82: =SUM(K82:EY82) -> -103139.0063 | K82: =-MIN($F80*K$75,SUM(K79:K81)) -> 0 | L82: =-MIN($F80*L$75,SUM(L79:L81)) -> 0 | M82: 0 | N82: 0 | O82: 0 | P82: 0 | Q82: 0 | R82: 0 | S82: 0 | T82: 0 | U82: 0 | V82: 0 | W82: 0 | X82: 0 | Y82: 0 | Z82: 0 | AA82: 0 | AB82: 0 | AC82: 0 | AD82: 0 | AE82: 0 | AF82: 0 | AG82: 0 | AH82: 0 | AI82: -1382.8125 | AJ82: -1382.8125 | AK82: -1382.8125 | AL82: -1382.8125 | AM82: -1382.8125 | AN82: -1382.8125 | AO82: -1382.8125 | AP82: -1382.8125 | AQ82: -1382.8125 | AR82: -1382.8125 | AS82: -1382.8125 | AT82: -1382.8125 | AU82: -2662.00625 | AV82: -2662.00625 | AW82: -2662.00625 | AX82: -2662.00625 | AY82: -2662.00625 | AZ82: -2662.00625 | BA82: -2662.00625 | BB82: -2662.00625 | BC82: -2662.00625 | BD82: -2662.00625 | BE82: -2662.00625 | BF82: -2662.00625 | BG82: -2462.14375 | BH82: -2462.14375 | BI82: -2462.14375 | BJ82: -2462.14375 | BK82: -2462.14375 | BL82: -2462.14375 | BM82: -2462.14375 | BN82: -2462.14375 | BO82: -2462.14375 | BP82: -2462.14375 | BQ82: -2462.14375 | BR82: -2462.14375 | BS82: -2277.76875 | BT82: -2277.76875 | BU82: -2277.76875 | BV82: -2277.76875 | BW82: -2277.76875 | BX82: =-MIN($F80*BX$75,SUM(BX79:BX81)) -> -2277.76875 | BY82: -2277.76875 | BZ82: -2277.76875 | CA82: -2277.76875 | CB82: -2277.76875 | CC82: -2277.76875 | CD82: 0 | CE82: 0 | CF82: 0 | CG82: 0 | CH82: 0 | CI82: 0 | CJ82: 0 | CK82: 0 | CL82: 0 | CM82: 0 | CN82: 0 | CO82: 0 | CP82: 0 | CQ82: 0 | CR82: 0 | CS82: 0 | CT82: 0 | CU82: 0 | CV82: 0 | CW82: 0 | CX82: 0 | CY82: 0 | CZ82: 0 | DA82: 0 | DB82: 0 | DC82: 0 | DD82: 0 | DE82: 0 | DF82: 0 | DG82: 0 | DH82: 0 | DI82: 0 | DJ82: 0 | DK82: 0 | DL82: 0 | DM82: 0 | DN82: 0 | DO82: 0 | DP82: 0 | DQ82: 0 | DR82: 0 | DS82: 0 | DT82: 0 | DU82: 0 | DV82: 0 | DW82: 0 | DX82: 0 | DY82: 0 | DZ82: 0 | EA82: 0 | EB82: 0 | EC82: 0 | ED82: 0 | EE82: 0 | EF82: 0 | EG82: 0 | EH82: 0 | EI82: 0 | EJ82: =-MIN($F80*EJ$75,SUM(EJ79:EJ81)) -> 0 | EK82: 0 | EL82: 0 | EM82: 0 | EN82: 0 | EO82: 0 | EP82: 0 | EQ82: 0 | ER82: 0 | ES82: 0 | ET82: 0 | EU82: 0 | EV82: 0 | EW82: 0 | EX82: 0 | EY82: 0
D83: Ending Balance | I83: =SUM(I79:I82) -> -5.966285244e-10 | K83: =SUM(K79:K82) -> 0 | L83: 0 | M83: 0 | N83: 0 | O83: 0 | P83: 0 | Q83: 0 | R83: 0 | S83: 0 | T83: 0 | U83: 0 | V83: 0 | W83: 0 | X83: 0 | Y83: 0 | Z83: 0 | AA83: 0 | AB83: 0 | AC83: 0 | AD83: 0 | AE83: 0 | AF83: 0 | AG83: 0 | AH83: 0 | AI83: 441117.1875 | AJ83: 439734.375 | AK83: 438351.5625 | AL83: 436968.75 | AM83: 435585.9375 | AN83: 434203.125 | AO83: 432820.3125 | AP83: 431437.5 | AQ83: =SUM(AQ79:AQ82) -> 430054.6875 | AR83: 428671.875 | AS83: 427289.0625 | AT83: 425906.25 | AU83: 423244.2438 | AV83: 420582.2375 | AW83: 417920.2313 | AX83: 415258.225 | AY83: 412596.2188 | AZ83: 409934.2125 | BA83: 407272.2063 | BB83: 404610.2 | BC83: 401948.1938 | BD83: 399286.1875 | BE83: 396624.1813 | BF83: 393962.175 | BG83: 391500.0313 | BH83: 389037.8875 | BI83: 386575.7438 | BJ83: 384113.6 | BK83: 381651.4563 | BL83: 379189.3125 | BM83: 376727.1688 | BN83: 374265.025 | BO83: 371802.8813 | BP83: 369340.7375 | BQ83: 366878.5938 | BR83: 364416.45 | BS83: 362138.6813 | BT83: 359860.9125 | BU83: 357583.1438 | BV83: 355305.375 | BW83: =SUM(BW79:BW82) -> 353027.6063 | BX83: 350749.8375 | BY83: 348472.0688 | BZ83: 346194.3 | CA83: 343916.5313 | CB83: 341638.7625 | CC83: 339360.9938 | CD83: 0 | CE83: 0 | CF83: 0 | CG83: 0 | CH83: 0 | CI83: 0 | CJ83: 0 | CK83: 0 | CL83: 0 | CM83: 0 | CN83: 0 | CO83: 0 | CP83: 0 | CQ83: 0 | CR83: 0 | CS83: 0 | CT83: 0 | CU83: 0 | CV83: 0 | CW83: 0 | CX83: 0 | CY83: 0 | CZ83: 0 | DA83: 0 | DB83: 0 | DC83: =SUM(DC79:DC82) -> 0 | DD83: 0 | DE83: 0 | DF83: 0 | DG83: 0 | DH83: 0 | DI83: 0 | DJ83: 0 | DK83: 0 | DL83: 0 | DM83: 0 | DN83: 0 | DO83: 0 | DP83: 0 | DQ83: 0 | DR83: 0 | DS83: 0 | DT83: 0 | DU83: 0 | DV83: 0 | DW83: 0 | DX83: 0 | DY83: 0 | DZ83: 0 | EA83: 0 | EB83: 0 | EC83: 0 | ED83: 0 | EE83: 0 | EF83: 0 | EG83: 0 | EH83: 0 | EI83: =SUM(EI79:EI82) -> 0 | EJ83: 0 | EK83: 0 | EL83: 0 | EM83: 0 | EN83: 0 | EO83: 0 | EP83: 0 | EQ83: 0 | ER83: 0 | ES83: 0 | ET83: 0 | EU83: 0 | EV83: 0 | EW83: 0 | EX83: 0 | EY83: 0
D84: 13-month Rolling Average | F84: 13 | G84: mo. | L84: =SUM(OFFSET(L83,0,0,1,-MIN($F84,L$2)))/$F84 -> 0 | M84: =SUM(OFFSET(M83,0,0,1,-MIN($F84,M$2)))/$F84 -> 0 | N84: 0 | O84: 0 | P84: 0 | Q84: 0 | R84: 0 | S84: 0 | T84: 0 | U84: 0 | V84: 0 | W84: 0 | X84: 0 | Y84: 0 | Z84: 0 | AA84: 0 | AB84: 0 | AC84: 0 | AD84: 0 | AE84: 0 | AF84: 0 | AG84: 0 | AH84: 0 | AI84: 33932.09135 | AJ84: 67757.8125 | AK84: 101477.1635 | AL84: 135090.1442 | AM84: 168596.7548 | AN84: 201996.9952 | AO84: 235290.8654 | AP84: 268478.3654 | AQ84: 301559.4952 | AR84: 334534.2548 | AS84: 367402.6442 | AT84: 400164.6635 | AU84: 432721.913 | AV84: 431142.3014 | AW84: 429464.2904 | AX84: 427687.8798 | AY84: 425813.0697 | AZ84: 423839.8601 | BA84: 421768.251 | BB84: 419598.2423 | BC84: 417329.8341 | BD84: 414963.0264 | BE84: 412497.8192 | BF84: 409934.2125 | BG84: 407287.5803 | BH84: 404656.3221 | BI84: 402040.438 | BJ84: 399439.9279 | BK84: 396854.7918 | BL84: 394285.0298 | BM84: 391730.6418 | BN84: 389191.6279 | BO84: 386667.988 | BP84: 384159.7221 | BQ84: 381666.8303 | BR84: 379189.3125 | BS84: 376741.3514 | BT84: 374307.5731 | BU84: 371887.9774 | BV84: 369482.5644 | BW84: 367091.3341 | BX84: 364714.2865 | BY84: =SUM(OFFSET(BY83,0,0,1,-MIN($F84,BY$2)))/$F84 -> 362351.4216 | BZ84: 360002.7394 | CA84: 357668.2399 | CB84: 355347.9231 | CC84: 353041.7889 | CD84: 324820.3587 | CE84: 296788.324 | CF84: 268931.5024 | CG84: 241249.8938 | CH84: 213743.4981 | CI84: 186412.3154 | CJ84: 159256.3457 | CK84: 132275.5889 | CL84: 105470.0452 | CM84: 78839.71442 | CN84: 52384.59663 | CO84: 26104.69183 | CP84: 0 | CQ84: 0 | CR84: 0 | CS84: 0 | CT84: 0 | CU84: 0 | CV84: 0 | CW84: 0 | CX84: 0 | CY84: 0 | CZ84: 0 | DA84: 0 | DB84: 0 | DC84: 0 | DD84: 0 | DE84: 0 | DF84: 0 | DG84: 0 | DH84: 0 | DI84: 0 | DJ84: 0 | DK84: 0 | DL84: 0 | DM84: 0 | DN84: 0 | DO84: 0 | DP84: 0 | DQ84: 0 | DR84: 0 | DS84: 0 | DT84: 0 | DU84: 0 | DV84: 0 | DW84: 0 | DX84: 0 | DY84: 0 | DZ84: 0 | EA84: 0 | EB84: 0 | EC84: 0 | ED84: 0 | EE84: 0 | EF84: 0 | EG84: 0 | EH84: 0 | EI84: 0 | EJ84: 0 | EK84: =SUM(OFFSET(EK83,0,0,1,-MIN($F84,EK$2)))/$F84 -> 0 | EL84: 0 | EM84: 0 | EN84: 0 | EO84: 0 | EP84: 0 | EQ84: 0 | ER84: 0 | ES84: 0 | ET84: 0 | EU84: 0 | EV84: 0 | EW84: 0 | EX84: 0 | EY84: 0
D89: Acquired Debt
D90: Assume Debt? | E90: =IF(AND($D$2<>"PPA Buyout",Control!$C$16=TRUE),TRUE,FALSE) -> TRUE
D92: Bonds
D93: Beginning Balance | F93: =Control!$C$7 -> 2017-01-01 | K93: =J96 -> 0 | L93: 0 | M93: 0 | N93: 0 | O93: 0 | P93: 0 | Q93: 0 | R93: 0 | S93: 0 | T93: 0 | U93: 0 | V93: 0 | W93: 0 | X93: 0 | Y93: 0 | Z93: 0 | AA93: 0 | AB93: 0 | AC93: 0 | AD93: 0 | AE93: 0 | AF93: 0 | AG93: 0 | AH93: 0 | AI93: 0 | AJ93: 217761.7988 | AK93: 217761.7988 | AL93: 217761.7988 | AM93: 217761.7988 | AN93: 217761.7988 | AO93: 207371.0483 | AP93: 207371.0483 | AQ93: =AP96 -> 207371.0483 | AR93: 207371.0483 | AS93: 207371.0483 | AT93: 207371.0483 | AU93: 197208.4459 | AV93: 197208.4459 | AW93: 197208.4459 | AX93: 197208.4459 | AY93: 197208.4459 | AZ93: 197208.4459 | BA93: 185084.3391 | BB93: 185084.3391 | BC93: 185084.3391 | BD93: 185084.3391 | BE93: 185084.3391 | BF93: 185084.3391 | BG93: 173273.6547 | BH93: 173273.6547 | BI93: 173273.6547 | BJ93: 173273.6547 | BK93: 173273.6547 | BL93: 173273.6547 | BM93: 160987.3116 | BN93: 160987.3116 | BO93: 160987.3116 | BP93: 160987.3116 | BQ93: 160987.3116 | BR93: 160987.3116 | BS93: 149051.0476 | BT93: 149051.0476 | BU93: 149051.0476 | BV93: 149051.0476 | BW93: =BV96 -> 149051.0476 | BX93: 149051.0476 | BY93: 140229.7417 | BZ93: 140229.7417 | CA93: 140229.7417 | CB93: 140229.7417 | CC93: 140229.7417 | CD93: 140229.7417 | CE93: 0 | CF93: 0 | CG93: 0 | CH93: 0 | CI93: 0 | CJ93: 0 | CK93: 0 | CL93: 0 | CM93: 0 | CN93: 0 | CO93: 0 | CP93: 0 | CQ93: 0 | CR93: 0 | CS93: 0 | CT93: 0 | CU93: 0 | CV93: 0 | CW93: 0 | CX93: 0 | CY93: 0 | CZ93: 0 | DA93: 0 | DB93: 0 | DC93: =DB96 -> 0 | DD93: 0 | DE93: 0 | DF93: 0 | DG93: 0 | DH93: 0 | DI93: 0 | DJ93: 0 | DK93: 0 | DL93: 0 | DM93: 0 | DN93: 0 | DO93: 0 | DP93: 0 | DQ93: 0 | DR93: 0 | DS93: 0 | DT93: 0 | DU93: 0 | DV93: 0 | DW93: 0 | DX93: 0 | DY93: 0 | DZ93: 0 | EA93: 0 | EB93: 0 | EC93: 0 | ED93: 0 | EE93: 0 | EF93: 0 | EG93: 0 | EH93: 0 | EI93: =EH96 -> 0 | EJ93: 0 | EK93: 0 | EL93: 0 | EM93: 0 | EN93: 0 | EO93: 0 | EP93: 0 | EQ93: 0 | ER93: 0 | ES93: 0 | ET93: 0 | EU93: 0 | EV93: 0 | EW93: 0 | EX93: 0 | EY93: 0
D94: Opening Balance | F94: =Control!I19 -> 217761.7988 | I94: =SUM(K94:EY94) -> 217761.7988 | K94: =IF(EOMONTH($F93,0)=EOMONTH(K$4,0),$F94,0)*($E$90=TRUE) -> 0 | L94: 0 | M94: 0 | N94: 0 | O94: 0 | P94: 0 | Q94: 0 | R94: 0 | S94: 0 | T94: 0 | U94: 0 | V94: 0 | W94: 0 | X94: 0 | Y94: 0 | Z94: 0 | AA94: 0 | AB94: 0 | AC94: 0 | AD94: 0 | AE94: 0 | AF94: 0 | AG94: 0 | AH94: 0 | AI94: 217761.7988 | AJ94: 0 | AK94: 0 | AL94: 0 | AM94: 0 | AN94: 0 | AO94: 0 | AP94: 0 | AQ94: =IF(EOMONTH($F93,0)=EOMONTH(AQ$4,0),$F94,0)*($E$90=TRUE) -> 0 | AR94: 0 | AS94: 0 | AT94: 0 | AU94: 0 | AV94: 0 | AW94: 0 | AX94: 0 | AY94: 0 | AZ94: 0 | BA94: 0 | BB94: 0 | BC94: 0 | BD94: 0 | BE94: 0 | BF94: 0 | BG94: 0 | BH94: 0 | BI94: 0 | BJ94: 0 | BK94: 0 | BL94: 0 | BM94: 0 | BN94: 0 | BO94: 0 | BP94: 0 | BQ94: 0 | BR94: 0 | BS94: 0 | BT94: 0 | BU94: 0 | BV94: 0 | BW94: =IF(EOMONTH($F93,0)=EOMONTH(BW$4,0),$F94,0)*($E$90=TRUE) -> 0 | BX94: 0 | BY94: 0 | BZ94: 0 | CA94: 0 | CB94: 0 | CC94: 0 | CD94: 0 | CE94: 0 | CF94: 0 | CG94: 0 | CH94: 0 | CI94: 0 | CJ94: 0 | CK94: 0 | CL94: 0 | CM94: 0 | CN94: 0 | CO94: 0 | CP94: 0 | CQ94: 0 | CR94: 0 | CS94: 0 | CT94: 0 | CU94: 0 | CV94: 0 | CW94: 0 | CX94: 0 | CY94: 0 | CZ94: 0 | DA94: 0 | DB94: 0 | DC94: =IF(EOMONTH($F93,0)=EOMONTH(DC$4,0),$F94,0)*($E$90=TRUE) -> 0 | DD94: 0 | DE94: 0 | DF94: 0 | DG94: 0 | DH94: 0 | DI94: 0 | DJ94: 0 | DK94: 0 | DL94: 0 | DM94: 0 | DN94: 0 | DO94: 0 | DP94: 0 | DQ94: 0 | DR94: 0 | DS94: 0 | DT94: 0 | DU94: 0 | DV94: 0 | DW94: 0 | DX94: 0 | DY94: 0 | DZ94: 0 | EA94: 0 | EB94: 0 | EC94: 0 | ED94: 0 | EE94: 0 | EF94: 0 | EG94: 0 | EH94: 0 | EI94: =IF(EOMONTH($F93,0)=EOMONTH(EI$4,0),$F94,0)*($E$90=TRUE) -> 0 | EJ94: 0 | EK94: 0 | EL94: 0 | EM94: 0 | EN94: 0 | EO94: 0 | EP94: 0 | EQ94: 0 | ER94: 0 | ES94: 0 | ET94: 0 | EU94: 0 | EV94: 0 | EW94: 0 | EX94: 0 | EY94: 0
D95: Amortization/Retirement | F95: =Control!$C$9 -> 2020-12-31 | I95: =SUM(K95:EY95) -> -217761.7988 | K95: =IF(K$4>=$F95,-SUM(K93:K94),IF(K4>$F$93,SUMIF('LTD Schedule'!$I$4:$AE$4,MonthlyBalances!K$4,'LTD Schedule'!$I$171:$AE$171),0))*($E$90=TRUE) -> 0 | L95: =IF(L$4>=$F95,-SUM(L93:L94),IF(L4>$F$93,SUMIF('LTD Schedule'!$I$4:$AE$4,MonthlyBalances!L$4,'LTD Schedule'!$I$171:$AE$171),0))*($E$90=TRUE) -> 0 | M95: =IF(M$4>=$F95,-SUM(M93:M94),IF(M4>$F$93,SUMIF('LTD Schedule'!$I$4:$AE$4,MonthlyBalances!M$4,'LTD Schedule'!$I$171:$AE$171),0))*($E$90=TRUE) -> 0 | N95: =IF(N$4>=$F95,-SUM(N93:N94),IF(N4>$F$93,SUMIF('LTD Schedule'!$I$4:$AE$4,MonthlyBalances!N$4,'LTD Schedule'!$I$171:$AE$171),0))*($E$90=TRUE) -> 0 | O95: =IF(O$4>=$F95,-SUM(O93:O94),IF(O4>$F$93,SUMIF('LTD Schedule'!$I$4:$AE$4,MonthlyBalances!O$4,'LTD Schedule'!$I$171:$AE$171),0))*($E$90=TRUE) -> 0 | P95: =IF(P$4>=$F95,-SUM(P93:P94),IF(P4>$F$93,SUMIF('LTD Schedule'!$I$4:$AE$4,MonthlyBalances!P$4,'LTD Schedule'!$I$171:$AE$171),0))*($E$90=TRUE) -> 0 | Q95: =IF(Q$4>=$F95,-SUM(Q93:Q94),IF(Q4>$F$93,SUMIF('LTD Schedule'!$I$4:$AE$4,MonthlyBalances!Q$4,'LTD Schedule'!$I$171:$AE$171),0))*($E$90=TRUE) -> 0 | R95: =IF(R$4>=$F95,-SUM(R93:R94),IF(R4>$F$93,SUMIF('LTD Schedule'!$I$4:$AE$4,MonthlyBalances!R$4,'LTD Schedule'!$I$171:$AE$171),0))*($E$90=TRUE) -> 0 | S95: =IF(S$4>=$F95,-SUM(S93:S94),IF(S4>$F$93,SUMIF('LTD Schedule'!$I$4:$AE$4,MonthlyBalances!S$4,'LTD Schedule'!$I$171:$AE$171),0))*($E$90=TRUE) -> 0 | T95: =IF(T$4>=$F95,-SUM(T93:T94),IF(T4>$F$93,SUMIF('LTD Schedule'!$I$4:$AE$4,MonthlyBalances!T$4,'LTD Schedule'!$I$171:$AE$171),0))*($E$90=TRUE) -> 0 | U95: =IF(U$4>=$F95,-SUM(U93:U94),IF(U4>$F$93,SUMIF('LTD Schedule'!$I$4:$AE$4,MonthlyBalances!U$4,'LTD Schedule'!$I$171:$AE$171),0))*($E$90=TRUE) -> 0 | V95: =IF(V$4>=$F95,-SUM(V93:V94),IF(V4>$F$93,SUMIF('LTD Schedule'!$I$4:$AE$4,MonthlyBalances!V$4,'LTD Schedule'!$I$171:$AE$171),0))*($E$90=TRUE) -> 0 | W95: =IF(W$4>=$F95,-SUM(W93:W94),IF(W4>$F$93,SUMIF('LTD Schedule'!$I$4:$AE$4,MonthlyBalances!W$4,'LTD Schedule'!$I$171:$AE$171),0))*($E$90=TRUE) -> 0 | X95: =IF(X$4>=$F95,-SUM(X93:X94),IF(X4>$F$93,SUMIF('LTD Schedule'!$I$4:$AE$4,MonthlyBalances!X$4,'LTD Schedule'!$I$171:$AE$171),0))*($E$90=TRUE) -> 0 | Y95: =IF(Y$4>=$F95,-SUM(Y93:Y94),IF(Y4>$F$93,SUMIF('LTD Schedule'!$I$4:$AE$4,MonthlyBalances!Y$4,'LTD Schedule'!$I$171:$AE$171),0))*($E$90=TRUE) -> 0 | Z95: =IF(Z$4>=$F95,-SUM(Z93:Z94),IF(Z4>$F$93,SUMIF('LTD Schedule'!$I$4:$AE$4,MonthlyBalances!Z$4,'LTD Schedule'!$I$171:$AE$171),0))*($E$90=TRUE) -> 0 | AA95: =IF(AA$4>=$F95,-SUM(AA93:AA94),IF(AA4>$F$93,SUMIF('LTD Schedule'!$I$4:$AE$4,MonthlyBalances!AA$4,'LTD Schedule'!$I$171:$AE$171),0))*($E$90=TRUE) -> 0 | AB95: =IF(AB$4>=$F95,-SUM(AB93:AB94),IF(AB4>$F$93,SUMIF('LTD Schedule'!$I$4:$AE$4,MonthlyBalances!AB$4,'LTD Schedule'!$I$171:$AE$171),0))*($E$90=TRUE) -> 0 | AC95: =IF(AC$4>=$F95,-SUM(AC93:AC94),IF(AC4>$F$93,SUMIF('LTD Schedule'!$I$4:$AE$4,MonthlyBalances!AC$4,'LTD Schedule'!$I$171:$AE$171),0))*($E$90=TRUE) -> 0 | AD95: =IF(AD$4>=$F95,-SUM(AD93:AD94),IF(AD4>$F$93,SUMIF('LTD Schedule'!$I$4:$AE$4,MonthlyBalances!AD$4,'LTD Schedule'!$I$171:$AE$171),0))*($E$90=TRUE) -> 0 | AE95: =IF(AE$4>=$F95,-SUM(AE93:AE94),IF(AE4>$F$93,SUMIF('LTD Schedule'!$I$4:$AE$4,MonthlyBalances!AE$4,'LTD Schedule'!$I$171:$AE$171),0))*($E$90=TRUE) -> 0 | AF95: =IF(AF$4>=$F95,-SUM(AF93:AF94),IF(AF4>$F$93,SUMIF('LTD Schedule'!$I$4:$AE$4,MonthlyBalances!AF$4,'LTD Schedule'!$I$171:$AE$171),0))*($E$90=TRUE) -> 0 | AG95: =IF(AG$4>=$F95,-SUM(AG93:AG94),IF(AG4>$F$93,SUMIF('LTD Schedule'!$I$4:$AE$4,MonthlyBalances!AG$4,'LTD Schedule'!$I$171:$AE$171),0))*($E$90=TRUE) -> 0 | AH95: =IF(AH$4>=$F95,-SUM(AH93:AH94),IF(AH4>$F$93,SUMIF('LTD Schedule'!$I$4:$AE$4,MonthlyBalances!AH$4,'LTD Schedule'!$I$171:$AE$171),0))*($E$90=TRUE) -> 0 | AI95: =IF(AI$4>=$F95,-SUM(AI93:AI94),IF(AI4>$F$93,SUMIF('LTD Schedule'!$I$4:$AE$4,MonthlyBalances!AI$4,'LTD Schedule'!$I$171:$AE$171),0))*($E$90=TRUE) -> 0 | AJ95: =IF(AJ$4>=$F95,-SUM(AJ93:AJ94),IF(AJ4>$F$93,SUMIF('LTD Schedule'!$I$4:$AE$4,MonthlyBalances!AJ$4,'LTD Schedule'!$I$171:$AE$171),0))*($E$90=TRUE) -> 0 | AK95: =IF(AK$4>=$F95,-SUM(AK93:AK94),IF(AK4>$F$93,SUMIF('LTD Schedule'!$I$4:$AE$4,MonthlyBalances!AK$4,'LTD Schedule'!$I$171:$AE$171),0))*($E$90=TRUE) -> 0 | AL95: =IF(AL$4>=$F95,-SUM(AL93:AL94),IF(AL4>$F$93,SUMIF('LTD Schedule'!$I$4:$AE$4,MonthlyBalances!AL$4,'LTD Schedule'!$I$171:$AE$171),0))*($E$90=TRUE) -> 0 | AM95: =IF(AM$4>=$F95,-SUM(AM93:AM94),IF(AM4>$F$93,SUMIF('LTD Schedule'!$I$4:$AE$4,MonthlyBalances!AM$4,'LTD Schedule'!$I$171:$AE$171),0))*($E$90=TRUE) -> 0 | AN95: =IF(AN$4>=$F95,-SUM(AN93:AN94),IF(AN4>$F$93,SUMIF('LTD Schedule'!$I$4:$AE$4,MonthlyBalances!AN$4,'LTD Schedule'!$I$171:$AE$171),0))*($E$90=TRUE) -> -10390.75051 | AO95: =IF(AO$4>=$F95,-SUM(AO93:AO94),IF(AO4>$F$93,SUMIF('LTD Schedule'!$I$4:$AE$4,MonthlyBalances!AO$4,'LTD Schedule'!$I$171:$AE$171),0))*($E$90=TRUE) -> 0 | AP95: =IF(AP$4>=$F95,-SUM(AP93:AP94),IF(AP4>$F$93,SUMIF('LTD Schedule'!$I$4:$AE$4,MonthlyBalances!AP$4,'LTD Schedule'!$I$171:$AE$171),0))*($E$90=TRUE) -> 0 | AQ95: =IF(AQ$4>=$F95,-SUM(AQ93:AQ94),IF(AQ4>$F$93,SUMIF('LTD Schedule'!$I$4:$AE$4,MonthlyBalances!AQ$4,'LTD Schedule'!$I$171:$AE$171),0))*($E$90=TRUE) -> 0 | AR95: =IF(AR$4>=$F95,-SUM(AR93:AR94),IF(AR4>$F$93,SUMIF('LTD Schedule'!$I$4:$AE$4,MonthlyBalances!AR$4,'LTD Schedule'!$I$171:$AE$171),0))*($E$90=TRUE) -> 0 | AS95: =IF(AS$4>=$F95,-SUM(AS93:AS94),IF(AS4>$F$93,SUMIF('LTD Schedule'!$I$4:$AE$4,MonthlyBalances!AS$4,'LTD Schedule'!$I$171:$AE$171),0))*($E$90=TRUE) -> 0 | AT95: =IF(AT$4>=$F95,-SUM(AT93:AT94),IF(AT4>$F$93,SUMIF('LTD Schedule'!$I$4:$AE$4,MonthlyBalances!AT$4,'LTD Schedule'!$I$171:$AE$171),0))*($E$90=TRUE) -> -10162.60244 | AU95: =IF(AU$4>=$F95,-SUM(AU93:AU94),IF(AU4>$F$93,SUMIF('LTD Schedule'!$I$4:$AE$4,MonthlyBalances!AU$4,'LTD Schedule'!$I$171:$AE$171),0))*($E$90=TRUE) -> 0 | AV95: =IF(AV$4>=$F95,-SUM(AV93:AV94),IF(AV4>$F$93,SUMIF('LTD Schedule'!$I$4:$AE$4,MonthlyBalances!AV$4,'LTD Schedule'!$I$171:$AE$171),0))*($E$90=TRUE) -> 0 | AW95: =IF(AW$4>=$F95,-SUM(AW93:AW94),IF(AW4>$F$93,SUMIF('LTD Schedule'!$I$4:$AE$4,MonthlyBalances!AW$4,'LTD Schedule'!$I$171:$AE$171),0))*($E$90=TRUE) -> 0 | AX95: =IF(AX$4>=$F95,-SUM(AX93:AX94),IF(AX4>$F$93,SUMIF('LTD Schedule'!$I$4:$AE$4,MonthlyBalances!AX$4,'LTD Schedule'!$I$171:$AE$171),0))*($E$90=TRUE) -> 0 | AY95: =IF(AY$4>=$F95,-SUM(AY93:AY94),IF(AY4>$F$93,SUMIF('LTD Schedule'!$I$4:$AE$4,MonthlyBalances!AY$4,'LTD Schedule'!$I$171:$AE$171),0))*($E$90=TRUE) -> 0 | AZ95: =IF(AZ$4>=$F95,-SUM(AZ93:AZ94),IF(AZ4>$F$93,SUMIF('LTD Schedule'!$I$4:$AE$4,MonthlyBalances!AZ$4,'LTD Schedule'!$I$171:$AE$171),0))*($E$90=TRUE) -> -12124.10678 | BA95: =IF(BA$4>=$F95,-SUM(BA93:BA94),IF(BA4>$F$93,SUMIF('LTD Schedule'!$I$4:$AE$4,MonthlyBalances!BA$4,'LTD Schedule'!$I$171:$AE$171),0))*($E$90=TRUE) -> 0 | BB95: =IF(BB$4>=$F95,-SUM(BB93:BB94),IF(BB4>$F$93,SUMIF('LTD Schedule'!$I$4:$AE$4,MonthlyBalances!BB$4,'LTD Schedule'!$I$171:$AE$171),0))*($E$90=TRUE) -> 0 | BC95: =IF(BC$4>=$F95,-SUM(BC93:BC94),IF(BC4>$F$93,SUMIF('LTD Schedule'!$I$4:$AE$4,MonthlyBalances!BC$4,'LTD Schedule'!$I$171:$AE$171),0))*($E$90=TRUE) -> 0 | BD95: =IF(BD$4>=$F95,-SUM(BD93:BD94),IF(BD4>$F$93,SUMIF('LTD Schedule'!$I$4:$AE$4,MonthlyBalances!BD$4,'LTD Schedule'!$I$171:$AE$171),0))*($E$90=TRUE) -> 0 | BE95: =IF(BE$4>=$F95,-SUM(BE93:BE94),IF(BE4>$F$93,SUMIF('LTD Schedule'!$I$4:$AE$4,MonthlyBalances!BE$4,'LTD Schedule'!$I$171:$AE$171),0))*($E$90=TRUE) -> 0 | BF95: =IF(BF$4>=$F95,-SUM(BF93:BF94),IF(BF4>$F$93,SUMIF('LTD Schedule'!$I$4:$AE$4,MonthlyBalances!BF$4,'LTD Schedule'!$I$171:$AE$171),0))*($E$90=TRUE) -> -11810.68438 | BG95: =IF(BG$4>=$F95,-SUM(BG93:BG94),IF(BG4>$F$93,SUMIF('LTD Schedule'!$I$4:$AE$4,MonthlyBalances!BG$4,'LTD Schedule'!$I$171:$AE$171),0))*($E$90=TRUE) -> 0 | BH95: =IF(BH$4>=$F95,-SUM(BH93:BH94),IF(BH4>$F$93,SUMIF('LTD Schedule'!$I$4:$AE$4,MonthlyBalances!BH$4,'LTD Schedule'!$I$171:$AE$171),0))*($E$90=TRUE) -> 0 | BI95: =IF(BI$4>=$F95,-SUM(BI93:BI94),IF(BI4>$F$93,SUMIF('LTD Schedule'!$I$4:$AE$4,MonthlyBalances!BI$4,'LTD Schedule'!$I$171:$AE$171),0))*($E$90=TRUE) -> 0 | BJ95: =IF(BJ$4>=$F95,-SUM(BJ93:BJ94),IF(BJ4>$F$93,SUMIF('LTD Schedule'!$I$4:$AE$4,MonthlyBalances!BJ$4,'LTD Schedule'!$I$171:$AE$171),0))*($E$90=TRUE) -> 0 | BK95: =IF(BK$4>=$F95,-SUM(BK93:BK94),IF(BK4>$F$93,SUMIF('LTD Schedule'!$I$4:$AE$4,MonthlyBalances!BK$4,'LTD Schedule'!$I$171:$AE$171),0))*($E$90=TRUE) -> 0 | BL95: =IF(BL$4>=$F95,-SUM(BL93:BL94),IF(BL4>$F$93,SUMIF('LTD Schedule'!$I$4:$AE$4,MonthlyBalances!BL$4,'LTD Schedule'!$I$171:$AE$171),0))*($E$90=TRUE) -> -12286.3431 | BM95: =IF(BM$4>=$F95,-SUM(BM93:BM94),IF(BM4>$F$93,SUMIF('LTD Schedule'!$I$4:$AE$4,MonthlyBalances!BM$4,'LTD Schedule'!$I$171:$AE$171),0))*($E$90=TRUE) -> 0 | BN95: =IF(BN$4>=$F95,-SUM(BN93:BN94),IF(BN4>$F$93,SUMIF('LTD Schedule'!$I$4:$AE$4,MonthlyBalances!BN$4,'LTD Schedule'!$I$171:$AE$171),0))*($E$90=TRUE) -> 0 | BO95: =IF(BO$4>=$F95,-SUM(BO93:BO94),IF(BO4>$F$93,SUMIF('LTD Schedule'!$I$4:$AE$4,MonthlyBalances!BO$4,'LTD Schedule'!$I$171:$AE$171),0))*($E$90=TRUE) -> 0 | BP95: =IF(BP$4>=$F95,-SUM(BP93:BP94),IF(BP4>$F$93,SUMIF('LTD Schedule'!$I$4:$AE$4,MonthlyBalances!BP$4,'LTD Schedule'!$I$171:$AE$171),0))*($E$90=TRUE) -> 0 | BQ95: =IF(BQ$4>=$F95,-SUM(BQ93:BQ94),IF(BQ4>$F$93,SUMIF('LTD Schedule'!$I$4:$AE$4,MonthlyBalances!BQ$4,'LTD Schedule'!$I$171:$AE$171),0))*($E$90=TRUE) -> 0 | BR95: =IF(BR$4>=$F95,-SUM(BR93:BR94),IF(BR4>$F$93,SUMIF('LTD Schedule'!$I$4:$AE$4,MonthlyBalances!BR$4,'LTD Schedule'!$I$171:$AE$171),0))*($E$90=TRUE) -> -11936.26402 | BS95: =IF(BS$4>=$F95,-SUM(BS93:BS94),IF(BS4>$F$93,SUMIF('LTD Schedule'!$I$4:$AE$4,MonthlyBalances!BS$4,'LTD Schedule'!$I$171:$AE$171),0))*($E$90=TRUE) -> 0 | BT95: =IF(BT$4>=$F95,-SUM(BT93:BT94),IF(BT4>$F$93,SUMIF('LTD Schedule'!$I$4:$AE$4,MonthlyBalances!BT$4,'LTD Schedule'!$I$171:$AE$171),0))*($E$90=TRUE) -> 0 | BU95: =IF(BU$4>=$F95,-SUM(BU93:BU94),IF(BU4>$F$93,SUMIF('LTD Schedule'!$I$4:$AE$4,MonthlyBalances!BU$4,'LTD Schedule'!$I$171:$AE$171),0))*($E$90=TRUE) -> 0 | BV95: =IF(BV$4>=$F95,-SUM(BV93:BV94),IF(BV4>$F$93,SUMIF('LTD Schedule'!$I$4:$AE$4,MonthlyBalances!BV$4,'LTD Schedule'!$I$171:$AE$171),0))*($E$90=TRUE) -> 0 | BW95: =IF(BW$4>=$F95,-SUM(BW93:BW94),IF(BW4>$F$93,SUMIF('LTD Schedule'!$I$4:$AE$4,MonthlyBalances!BW$4,'LTD Schedule'!$I$171:$AE$171),0))*($E$90=TRUE) -> 0 | BX95: =IF(BX$4>=$F95,-SUM(BX93:BX94),IF(BX4>$F$93,SUMIF('LTD Schedule'!$I$4:$AE$4,MonthlyBalances!BX$4,'LTD Schedule'!$I$171:$AE$171),0))*($E$90=TRUE) -> -8821.30591 | BY95: =IF(BY$4>=$F95,-SUM(BY93:BY94),IF(BY4>$F$93,SUMIF('LTD Schedule'!$I$4:$AE$4,MonthlyBalances!BY$4,'LTD Schedule'!$I$171:$AE$171),0))*($E$90=TRUE) -> 0 | BZ95: =IF(BZ$4>=$F95,-SUM(BZ93:BZ94),IF(BZ4>$F$93,SUMIF('LTD Schedule'!$I$4:$AE$4,MonthlyBalances!BZ$4,'LTD Schedule'!$I$171:$AE$171),0))*($E$90=TRUE) -> 0 | CA95: =IF(CA$4>=$F95,-SUM(CA93:CA94),IF(CA4>$F$93,SUMIF('LTD Schedule'!$I$4:$AE$4,MonthlyBalances!CA$4,'LTD Schedule'!$I$171:$AE$171),0))*($E$90=TRUE) -> 0 | CB95: =IF(CB$4>=$F95,-SUM(CB93:CB94),IF(CB4>$F$93,SUMIF('LTD Schedule'!$I$4:$AE$4,MonthlyBalances!CB$4,'LTD Schedule'!$I$171:$AE$171),0))*($E$90=TRUE) -> 0 | CC95: =IF(CC$4>=$F95,-SUM(CC93:CC94),IF(CC4>$F$93,SUMIF('LTD Schedule'!$I$4:$AE$4,MonthlyBalances!CC$4,'LTD Schedule'!$I$171:$AE$171),0))*($E$90=TRUE) -> 0 | CD95: =IF(CD$4>=$F95,-SUM(CD93:CD94),IF(CD4>$F$93,SUMIF('LTD Schedule'!$I$4:$AE$4,MonthlyBalances!CD$4,'LTD Schedule'!$I$171:$AE$171),0))*($E$90=TRUE) -> -140229.7417 | CE95: =IF(CE$4>=$F95,-SUM(CE93:CE94),IF(CE4>$F$93,SUMIF('LTD Schedule'!$I$4:$AE$4,MonthlyBalances!CE$4,'LTD Schedule'!$I$171:$AE$171),0))*($E$90=TRUE) -> 0 | CF95: =IF(CF$4>=$F95,-SUM(CF93:CF94),IF(CF4>$F$93,SUMIF('LTD Schedule'!$I$4:$AE$4,MonthlyBalances!CF$4,'LTD Schedule'!$I$171:$AE$171),0))*($E$90=TRUE) -> 0 | CG95: =IF(CG$4>=$F95,-SUM(CG93:CG94),IF(CG4>$F$93,SUMIF('LTD Schedule'!$I$4:$AE$4,MonthlyBalances!CG$4,'LTD Schedule'!$I$171:$AE$171),0))*($E$90=TRUE) -> 0 | CH95: =IF(CH$4>=$F95,-SUM(CH93:CH94),IF(CH4>$F$93,SUMIF('LTD Schedule'!$I$4:$AE$4,MonthlyBalances!CH$4,'LTD Schedule'!$I$171:$AE$171),0))*($E$90=TRUE) -> 0 | CI95: =IF(CI$4>=$F95,-SUM(CI93:CI94),IF(CI4>$F$93,SUMIF('LTD Schedule'!$I$4:$AE$4,MonthlyBalances!CI$4,'LTD Schedule'!$I$171:$AE$171),0))*($E$90=TRUE) -> 0 | CJ95: =IF(CJ$4>=$F95,-SUM(CJ93:CJ94),IF(CJ4>$F$93,SUMIF('LTD Schedule'!$I$4:$AE$4,MonthlyBalances!CJ$4,'LTD Schedule'!$I$171:$AE$171),0))*($E$90=TRUE) -> 0 | CK95: =IF(CK$4>=$F95,-SUM(CK93:CK94),IF(CK4>$F$93,SUMIF('LTD Schedule'!$I$4:$AE$4,MonthlyBalances!CK$4,'LTD Schedule'!$I$171:$AE$171),0))*($E$90=TRUE) -> 0 | CL95: =IF(CL$4>=$F95,-SUM(CL93:CL94),IF(CL4>$F$93,SUMIF('LTD Schedule'!$I$4:$AE$4,MonthlyBalances!CL$4,'LTD Schedule'!$I$171:$AE$171),0))*($E$90=TRUE) -> 0 | CM95: =IF(CM$4>=$F95,-SUM(CM93:CM94),IF(CM4>$F$93,SUMIF('LTD Schedule'!$I$4:$AE$4,MonthlyBalances!CM$4,'LTD Schedule'!$I$171:$AE$171),0))*($E$90=TRUE) -> 0 | CN95: =IF(CN$4>=$F95,-SUM(CN93:CN94),IF(CN4>$F$93,SUMIF('LTD Schedule'!$I$4:$AE$4,MonthlyBalances!CN$4,'LTD Schedule'!$I$171:$AE$171),0))*($E$90=TRUE) -> 0 | CO95: =IF(CO$4>=$F95,-SUM(CO93:CO94),IF(CO4>$F$93,SUMIF('LTD Schedule'!$I$4:$AE$4,MonthlyBalances!CO$4,'LTD Schedule'!$I$171:$AE$171),0))*($E$90=TRUE) -> 0 | CP95: =IF(CP$4>=$F95,-SUM(CP93:CP94),IF(CP4>$F$93,SUMIF('LTD Schedule'!$I$4:$AE$4,MonthlyBalances!CP$4,'LTD Schedule'!$I$171:$AE$171),0))*($E$90=TRUE) -> 0 | CQ95: =IF(CQ$4>=$F95,-SUM(CQ93:CQ94),IF(CQ4>$F$93,SUMIF('LTD Schedule'!$I$4:$AE$4,MonthlyBalances!CQ$4,'LTD Schedule'!$I$171:$AE$171),0))*($E$90=TRUE) -> 0 | CR95: =IF(CR$4>=$F95,-SUM(CR93:CR94),IF(CR4>$F$93,SUMIF('LTD Schedule'!$I$4:$AE$4,MonthlyBalances!CR$4,'LTD Schedule'!$I$171:$AE$171),0))*($E$90=TRUE) -> 0 | CS95: =IF(CS$4>=$F95,-SUM(CS93:CS94),IF(CS4>$F$93,SUMIF('LTD Schedule'!$I$4:$AE$4,MonthlyBalances!CS$4,'LTD Schedule'!$I$171:$AE$171),0))*($E$90=TRUE) -> 0 | CT95: =IF(CT$4>=$F95,-SUM(CT93:CT94),IF(CT4>$F$93,SUMIF('LTD Schedule'!$I$4:$AE$4,MonthlyBalances!CT$4,'LTD Schedule'!$I$171:$AE$171),0))*($E$90=TRUE) -> 0 | CU95: =IF(CU$4>=$F95,-SUM(CU93:CU94),IF(CU4>$F$93,SUMIF('LTD Schedule'!$I$4:$AE$4,MonthlyBalances!CU$4,'LTD Schedule'!$I$171:$AE$171),0))*($E$90=TRUE) -> 0 | CV95: =IF(CV$4>=$F95,-SUM(CV93:CV94),IF(CV4>$F$93,SUMIF('LTD Schedule'!$I$4:$AE$4,MonthlyBalances!CV$4,'LTD Schedule'!$I$171:$AE$171),0))*($E$90=TRUE) -> 0 | CW95: =IF(CW$4>=$F95,-SUM(CW93:CW94),IF(CW4>$F$93,SUMIF('LTD Schedule'!$I$4:$AE$4,MonthlyBalances!CW$4,'LTD Schedule'!$I$171:$AE$171),0))*($E$90=TRUE) -> 0 | CX95: =IF(CX$4>=$F95,-SUM(CX93:CX94),IF(CX4>$F$93,SUMIF('LTD Schedule'!$I$4:$AE$4,MonthlyBalances!CX$4,'LTD Schedule'!$I$171:$AE$171),0))*($E$90=TRUE) -> 0 | CY95: =IF(CY$4>=$F95,-SUM(CY93:CY94),IF(CY4>$F$93,SUMIF('LTD Schedule'!$I$4:$AE$4,MonthlyBalances!CY$4,'LTD Schedule'!$I$171:$AE$171),0))*($E$90=TRUE) -> 0 | CZ95: =IF(CZ$4>=$F95,-SUM(CZ93:CZ94),IF(CZ4>$F$93,SUMIF('LTD Schedule'!$I$4:$AE$4,MonthlyBalances!CZ$4,'LTD Schedule'!$I$171:$AE$171),0))*($E$90=TRUE) -> 0 | DA95: =IF(DA$4>=$F95,-SUM(DA93:DA94),IF(DA4>$F$93,SUMIF('LTD Schedule'!$I$4:$AE$4,MonthlyBalances!DA$4,'LTD Schedule'!$I$171:$AE$171),0))*($E$90=TRUE) -> 0 | DB95: =IF(DB$4>=$F95,-SUM(DB93:DB94),IF(DB4>$F$93,SUMIF('LTD Schedule'!$I$4:$AE$4,MonthlyBalances!DB$4,'LTD Schedule'!$I$171:$AE$171),0))*($E$90=TRUE) -> 0 | DC95: =IF(DC$4>=$F95,-SUM(DC93:DC94),IF(DC4>$F$93,SUMIF('LTD Schedule'!$I$4:$AE$4,MonthlyBalances!DC$4,'LTD Schedule'!$I$171:$AE$171),0))*($E$90=TRUE) -> 0 | DD95: =IF(DD$4>=$F95,-SUM(DD93:DD94),IF(DD4>$F$93,SUMIF('LTD Schedule'!$I$4:$AE$4,MonthlyBalances!DD$4,'LTD Schedule'!$I$171:$AE$171),0))*($E$90=TRUE) -> 0 | DE95: =IF(DE$4>=$F95,-SUM(DE93:DE94),IF(DE4>$F$93,SUMIF('LTD Schedule'!$I$4:$AE$4,MonthlyBalances!DE$4,'LTD Schedule'!$I$171:$AE$171),0))*($E$90=TRUE) -> 0 | DF95: =IF(DF$4>=$F95,-SUM(DF93:DF94),IF(DF4>$F$93,SUMIF('LTD Schedule'!$I$4:$AE$4,MonthlyBalances!DF$4,'LTD Schedule'!$I$171:$AE$171),0))*($E$90=TRUE) -> 0 | DG95: =IF(DG$4>=$F95,-SUM(DG93:DG94),IF(DG4>$F$93,SUMIF('LTD Schedule'!$I$4:$AE$4,MonthlyBalances!DG$4,'LTD Schedule'!$I$171:$AE$171),0))*($E$90=TRUE) -> 0 | DH95: =IF(DH$4>=$F95,-SUM(DH93:DH94),IF(DH4>$F$93,SUMIF('LTD Schedule'!$I$4:$AE$4,MonthlyBalances!DH$4,'LTD Schedule'!$I$171:$AE$171),0))*($E$90=TRUE) -> 0 | DI95: =IF(DI$4>=$F95,-SUM(DI93:DI94),IF(DI4>$F$93,SUMIF('LTD Schedule'!$I$4:$AE$4,MonthlyBalances!DI$4,'LTD Schedule'!$I$171:$AE$171),0))*($E$90=TRUE) -> 0 | DJ95: =IF(DJ$4>=$F95,-SUM(DJ93:DJ94),IF(DJ4>$F$93,SUMIF('LTD Schedule'!$I$4:$AE$4,MonthlyBalances!DJ$4,'LTD Schedule'!$I$171:$AE$171),0))*($E$90=TRUE) -> 0 | DK95: =IF(DK$4>=$F95,-SUM(DK93:DK94),IF(DK4>$F$93,SUMIF('LTD Schedule'!$I$4:$AE$4,MonthlyBalances!DK$4,'LTD Schedule'!$I$171:$AE$171),0))*($E$90=TRUE) -> 0 | DL95: =IF(DL$4>=$F95,-SUM(DL93:DL94),IF(DL4>$F$93,SUMIF('LTD Schedule'!$I$4:$AE$4,MonthlyBalances!DL$4,'LTD Schedule'!$I$171:$AE$171),0))*($E$90=TRUE) -> 0 | DM95: =IF(DM$4>=$F95,-SUM(DM93:DM94),IF(DM4>$F$93,SUMIF('LTD Schedule'!$I$4:$AE$4,MonthlyBalances!DM$4,'LTD Schedule'!$I$171:$AE$171),0))*($E$90=TRUE) -> 0 | DN95: =IF(DN$4>=$F95,-SUM(DN93:DN94),IF(DN4>$F$93,SUMIF('LTD Schedule'!$I$4:$AE$4,MonthlyBalances!DN$4,'LTD Schedule'!$I$171:$AE$171),0))*($E$90=TRUE) -> 0 | DO95: =IF(DO$4>=$F95,-SUM(DO93:DO94),IF(DO4>$F$93,SUMIF('LTD Schedule'!$I$4:$AE$4,MonthlyBalances!DO$4,'LTD Schedule'!$I$171:$AE$171),0))*($E$90=TRUE) -> 0 | DP95: =IF(DP$4>=$F95,-SUM(DP93:DP94),IF(DP4>$F$93,SUMIF('LTD Schedule'!$I$4:$AE$4,MonthlyBalances!DP$4,'LTD Schedule'!$I$171:$AE$171),0))*($E$90=TRUE) -> 0 | DQ95: =IF(DQ$4>=$F95,-SUM(DQ93:DQ94),IF(DQ4>$F$93,SUMIF('LTD Schedule'!$I$4:$AE$4,MonthlyBalances!DQ$4,'LTD Schedule'!$I$171:$AE$171),0))*($E$90=TRUE) -> 0 | DR95: =IF(DR$4>=$F95,-SUM(DR93:DR94),IF(DR4>$F$93,SUMIF('LTD Schedule'!$I$4:$AE$4,MonthlyBalances!DR$4,'LTD Schedule'!$I$171:$AE$171),0))*($E$90=TRUE) -> 0 | DS95: =IF(DS$4>=$F95,-SUM(DS93:DS94),IF(DS4>$F$93,SUMIF('LTD Schedule'!$I$4:$AE$4,MonthlyBalances!DS$4,'LTD Schedule'!$I$171:$AE$171),0))*($E$90=TRUE) -> 0 | DT95: =IF(DT$4>=$F95,-SUM(DT93:DT94),IF(DT4>$F$93,SUMIF('LTD Schedule'!$I$4:$AE$4,MonthlyBalances!DT$4,'LTD Schedule'!$I$171:$AE$171),0))*($E$90=TRUE) -> 0 | DU95: =IF(DU$4>=$F95,-SUM(DU93:DU94),IF(DU4>$F$93,SUMIF('LTD Schedule'!$I$4:$AE$4,MonthlyBalances!DU$4,'LTD Schedule'!$I$171:$AE$171),0))*($E$90=TRUE) -> 0 | DV95: =IF(DV$4>=$F95,-SUM(DV93:DV94),IF(DV4>$F$93,SUMIF('LTD Schedule'!$I$4:$AE$4,MonthlyBalances!DV$4,'LTD Schedule'!$I$171:$AE$171),0))*($E$90=TRUE) -> 0 | DW95: =IF(DW$4>=$F95,-SUM(DW93:DW94),IF(DW4>$F$93,SUMIF('LTD Schedule'!$I$4:$AE$4,MonthlyBalances!DW$4,'LTD Schedule'!$I$171:$AE$171),0))*($E$90=TRUE) -> 0 | DX95: =IF(DX$4>=$F95,-SUM(DX93:DX94),IF(DX4>$F$93,SUMIF('LTD Schedule'!$I$4:$AE$4,MonthlyBalances!DX$4,'LTD Schedule'!$I$171:$AE$171),0))*($E$90=TRUE) -> 0 | DY95: =IF(DY$4>=$F95,-SUM(DY93:DY94),IF(DY4>$F$93,SUMIF('LTD Schedule'!$I$4:$AE$4,MonthlyBalances!DY$4,'LTD Schedule'!$I$171:$AE$171),0))*($E$90=TRUE) -> 0 | DZ95: =IF(DZ$4>=$F95,-SUM(DZ93:DZ94),IF(DZ4>$F$93,SUMIF('LTD Schedule'!$I$4:$AE$4,MonthlyBalances!DZ$4,'LTD Schedule'!$I$171:$AE$171),0))*($E$90=TRUE) -> 0 | EA95: =IF(EA$4>=$F95,-SUM(EA93:EA94),IF(EA4>$F$93,SUMIF('LTD Schedule'!$I$4:$AE$4,MonthlyBalances!EA$4,'LTD Schedule'!$I$171:$AE$171),0))*($E$90=TRUE) -> 0 | EB95: =IF(EB$4>=$F95,-SUM(EB93:EB94),IF(EB4>$F$93,SUMIF('LTD Schedule'!$I$4:$AE$4,MonthlyBalances!EB$4,'LTD Schedule'!$I$171:$AE$171),0))*($E$90=TRUE) -> 0 | EC95: =IF(EC$4>=$F95,-SUM(EC93:EC94),IF(EC4>$F$93,SUMIF('LTD Schedule'!$I$4:$AE$4,MonthlyBalances!EC$4,'LTD Schedule'!$I$171:$AE$171),0))*($E$90=TRUE) -> 0 | ED95: =IF(ED$4>=$F95,-SUM(ED93:ED94),IF(ED4>$F$93,SUMIF('LTD Schedule'!$I$4:$AE$4,MonthlyBalances!ED$4,'LTD Schedule'!$I$171:$AE$171),0))*($E$90=TRUE) -> 0 | EE95: =IF(EE$4>=$F95,-SUM(EE93:EE94),IF(EE4>$F$93,SUMIF('LTD Schedule'!$I$4:$AE$4,MonthlyBalances!EE$4,'LTD Schedule'!$I$171:$AE$171),0))*($E$90=TRUE) -> 0 | EF95: =IF(EF$4>=$F95,-SUM(EF93:EF94),IF(EF4>$F$93,SUMIF('LTD Schedule'!$I$4:$AE$4,MonthlyBalances!EF$4,'LTD Schedule'!$I$171:$AE$171),0))*($E$90=TRUE) -> 0 | EG95: =IF(EG$4>=$F95,-SUM(EG93:EG94),IF(EG4>$F$93,SUMIF('LTD Schedule'!$I$4:$AE$4,MonthlyBalances!EG$4,'LTD Schedule'!$I$171:$AE$171),0))*($E$90=TRUE) -> 0 | EH95: =IF(EH$4>=$F95,-SUM(EH93:EH94),IF(EH4>$F$93,SUMIF('LTD Schedule'!$I$4:$AE$4,MonthlyBalances!EH$4,'LTD Schedule'!$I$171:$AE$171),0))*($E$90=TRUE) -> 0 | EI95: =IF(EI$4>=$F95,-SUM(EI93:EI94),IF(EI4>$F$93,SUMIF('LTD Schedule'!$I$4:$AE$4,MonthlyBalances!EI$4,'LTD Schedule'!$I$171:$AE$171),0))*($E$90=TRUE) -> 0 | EJ95: =IF(EJ$4>=$F95,-SUM(EJ93:EJ94),IF(EJ4>$F$93,SUMIF('LTD Schedule'!$I$4:$AE$4,MonthlyBalances!EJ$4,'LTD Schedule'!$I$171:$AE$171),0))*($E$90=TRUE) -> 0 | EK95: =IF(EK$4>=$F95,-SUM(EK93:EK94),IF(EK4>$F$93,SUMIF('LTD Schedule'!$I$4:$AE$4,MonthlyBalances!EK$4,'LTD Schedule'!$I$171:$AE$171),0))*($E$90=TRUE) -> 0 | EL95: =IF(EL$4>=$F95,-SUM(EL93:EL94),IF(EL4>$F$93,SUMIF('LTD Schedule'!$I$4:$AE$4,MonthlyBalances!EL$4,'LTD Schedule'!$I$171:$AE$171),0))*($E$90=TRUE) -> 0 | EM95: =IF(EM$4>=$F95,-SUM(EM93:EM94),IF(EM4>$F$93,SUMIF('LTD Schedule'!$I$4:$AE$4,MonthlyBalances!EM$4,'LTD Schedule'!$I$171:$AE$171),0))*($E$90=TRUE) -> 0 | EN95: =IF(EN$4>=$F95,-SUM(EN93:EN94),IF(EN4>$F$93,SUMIF('LTD Schedule'!$I$4:$AE$4,MonthlyBalances!EN$4,'LTD Schedule'!$I$171:$AE$171),0))*($E$90=TRUE) -> 0 | EO95: =IF(EO$4>=$F95,-SUM(EO93:EO94),IF(EO4>$F$93,SUMIF('LTD Schedule'!$I$4:$AE$4,MonthlyBalances!EO$4,'LTD Schedule'!$I$171:$AE$171),0))*($E$90=TRUE) -> 0 | EP95: =IF(EP$4>=$F95,-SUM(EP93:EP94),IF(EP4>$F$93,SUMIF('LTD Schedule'!$I$4:$AE$4,MonthlyBalances!EP$4,'LTD Schedule'!$I$171:$AE$171),0))*($E$90=TRUE) -> 0 | EQ95: =IF(EQ$4>=$F95,-SUM(EQ93:EQ94),IF(EQ4>$F$93,SUMIF('LTD Schedule'!$I$4:$AE$4,MonthlyBalances!EQ$4,'LTD Schedule'!$I$171:$AE$171),0))*($E$90=TRUE) -> 0 | ER95: =IF(ER$4>=$F95,-SUM(ER93:ER94),IF(ER4>$F$93,SUMIF('LTD Schedule'!$I$4:$AE$4,MonthlyBalances!ER$4,'LTD Schedule'!$I$171:$AE$171),0))*($E$90=TRUE) -> 0 | ES95: =IF(ES$4>=$F95,-SUM(ES93:ES94),IF(ES4>$F$93,SUMIF('LTD Schedule'!$I$4:$AE$4,MonthlyBalances!ES$4,'LTD Schedule'!$I$171:$AE$171),0))*($E$90=TRUE) -> 0 | ET95: =IF(ET$4>=$F95,-SUM(ET93:ET94),IF(ET4>$F$93,SUMIF('LTD Schedule'!$I$4:$AE$4,MonthlyBalances!ET$4,'LTD Schedule'!$I$171:$AE$171),0))*($E$90=TRUE) -> 0 | EU95: =IF(EU$4>=$F95,-SUM(EU93:EU94),IF(EU4>$F$93,SUMIF('LTD Schedule'!$I$4:$AE$4,MonthlyBalances!EU$4,'LTD Schedule'!$I$171:$AE$171),0))*($E$90=TRUE) -> 0 | EV95: =IF(EV$4>=$F95,-SUM(EV93:EV94),IF(EV4>$F$93,SUMIF('LTD Schedule'!$I$4:$AE$4,MonthlyBalances!EV$4,'LTD Schedule'!$I$171:$AE$171),0))*($E$90=TRUE) -> 0 | EW95: =IF(EW$4>=$F95,-SUM(EW93:EW94),IF(EW4>$F$93,SUMIF('LTD Schedule'!$I$4:$AE$4,MonthlyBalances!EW$4,'LTD Schedule'!$I$171:$AE$171),0))*($E$90=TRUE) -> 0 | EX95: =IF(EX$4>=$F95,-SUM(EX93:EX94),IF(EX4>$F$93,SUMIF('LTD Schedule'!$I$4:$AE$4,MonthlyBalances!EX$4,'LTD Schedule'!$I$171:$AE$171),0))*($E$90=TRUE) -> 0 | EY95: =IF(EY$4>=$F95,-SUM(EY93:EY94),IF(EY4>$F$93,SUMIF('LTD Schedule'!$I$4:$AE$4,MonthlyBalances!EY$4,'LTD Schedule'!$I$171:$AE$171),0))*($E$90=TRUE) -> 0
D96: Ending Balance | I96: =SUM(I93:I95) -> 0 | K96: =SUM(K93:K95) -> 0 | L96: =SUM(L93:L95) -> 0 | M96: 0 | N96: 0 | O96: 0 | P96: 0 | Q96: 0 | R96: 0 | S96: 0 | T96: 0 | U96: 0 | V96: 0 | W96: 0 | X96: 0 | Y96: 0 | Z96: 0 | AA96: 0 | AB96: 0 | AC96: 0 | AD96: 0 | AE96: 0 | AF96: 0 | AG96: 0 | AH96: 0 | AI96: 217761.7988 | AJ96: 217761.7988 | AK96: 217761.7988 | AL96: 217761.7988 | AM96: 217761.7988 | AN96: 207371.0483 | AO96: 207371.0483 | AP96: 207371.0483 | AQ96: 207371.0483 | AR96: 207371.0483 | AS96: 207371.0483 | AT96: 197208.4459 | AU96: 197208.4459 | AV96: 197208.4459 | AW96: 197208.4459 | AX96: 197208.4459 | AY96: 197208.4459 | AZ96: 185084.3391 | BA96: 185084.3391 | BB96: 185084.3391 | BC96: 185084.3391 | BD96: 185084.3391 | BE96: 185084.3391 | BF96: 173273.6547 | BG96: 173273.6547 | BH96: 173273.6547 | BI96: 173273.6547 | BJ96: 173273.6547 | BK96: 173273.6547 | BL96: 160987.3116 | BM96: 160987.3116 | BN96: 160987.3116 | BO96: 160987.3116 | BP96: 160987.3116 | BQ96: 160987.3116 | BR96: 149051.0476 | BS96: 149051.0476 | BT96: 149051.0476 | BU96: 149051.0476 | BV96: 149051.0476 | BW96: 149051.0476 | BX96: =SUM(BX93:BX95) -> 140229.7417 | BY96: 140229.7417 | BZ96: 140229.7417 | CA96: 140229.7417 | CB96: 140229.7417 | CC96: 140229.7417 | CD96: 0 | CE96: 0 | CF96: 0 | CG96: 0 | CH96: 0 | CI96: 0 | CJ96: 0 | CK96: 0 | CL96: 0 | CM96: 0 | CN96: 0 | CO96: 0 | CP96: 0 | CQ96: 0 | CR96: 0 | CS96: 0 | CT96: 0 | CU96: 0 | CV96: 0 | CW96: 0 | CX96: 0 | CY96: 0 | CZ96: 0 | DA96: 0 | DB96: 0 | DC96: 0 | DD96: 0 | DE96: 0 | DF96: 0 | DG96: 0 | DH96: 0 | DI96: 0 | DJ96: 0 | DK96: 0 | DL96: 0 | DM96: 0 | DN96: 0 | DO96: 0 | DP96: 0 | DQ96: 0 | DR96: 0 | DS96: 0 | DT96: 0 | DU96: 0 | DV96: 0 | DW96: 0 | DX96: 0 | DY96: 0 | DZ96: 0 | EA96: 0 | EB96: 0 | EC96: 0 | ED96: 0 | EE96: 0 | EF96: 0 | EG96: 0 | EH96: 0 | EI96: 0 | EJ96: =SUM(EJ93:EJ95) -> 0 | EK96: 0 | EL96: 0 | EM96: 0 | EN96: 0 | EO96: 0 | EP96: 0 | EQ96: 0 | ER96: 0 | ES96: 0 | ET96: 0 | EU96: 0 | EV96: 0 | EW96: 0 | EX96: 0 | EY96: 0
D97: 13-month Rolling Average | F97: 13 | G97: mo. | L97: =SUM(OFFSET(L96,0,0,1,-MIN($F97,L$2)))/$F97 -> 0 | M97: =SUM(OFFSET(M96,0,0,1,-MIN($F97,M$2)))/$F97 -> 0 | N97: 0 | O97: 0 | P97: 0 | Q97: 0 | R97: 0 | S97: 0 | T97: 0 | U97: 0 | V97: 0 | W97: 0 | X97: 0 | Y97: 0 | Z97: 0 | AA97: 0 | AB97: 0 | AC97: 0 | AD97: 0 | AE97: 0 | AF97: 0 | AG97: 0 | AH97: 0 | AI97: 16750.9076 | AJ97: 33501.8152 | AK97: 50252.7228 | AL97: 67003.6304 | AM97: 83754.538 | AN97: 99706.1571 | AO97: 115657.7762 | AP97: 131609.3953 | AQ97: 147561.0144 | AR97: 163512.6335 | AS97: 179464.2526 | AT97: 194634.133 | AU97: 209804.0135 | AV97: 208222.9863 | AW97: 206641.9592 | AX97: 205060.932 | AY97: 203479.9049 | AZ97: 200966.2541 | BA97: 199251.8919 | BB97: 197537.5297 | BC97: 195823.1674 | BD97: 194108.8052 | BE97: 192394.4429 | BF97: 189771.5665 | BG97: 187930.4287 | BH97: 186089.2909 | BI97: 184248.1531 | BJ97: 182407.0154 | BK97: 180565.8776 | BL97: 177779.6365 | BM97: 175926.019 | BN97: 174072.4015 | BO97: 172218.784 | BP97: 170365.1665 | BQ97: 168511.549 | BR97: 165739.7573 | BS97: 163876.4799 | BT97: 162013.2024 | BU97: 160149.9249 | BV97: 158286.6475 | BW97: 156423.37 | BX97: 153881.5305 | BY97: =SUM(OFFSET(BY96,0,0,1,-MIN($F97,BY$2)))/$F97 -> 152284.7944 | BZ97: 150688.0582 | CA97: 149091.3221 | CB97: 147494.5859 | CC97: 145897.8498 | CD97: 133514.2104 | CE97: 122048.7452 | CF97: 110583.28 | CG97: 99117.81483 | CH97: 87652.34963 | CI97: 76186.88443 | CJ97: 64721.41923 | CK97: 53934.51603 | CL97: 43147.61282 | CM97: 32360.70962 | CN97: 21573.80641 | CO97: 10786.90321 | CP97: 0 | CQ97: 0 | CR97: 0 | CS97: 0 | CT97: 0 | CU97: 0 | CV97: 0 | CW97: 0 | CX97: 0 | CY97: 0 | CZ97: 0 | DA97: 0 | DB97: 0 | DC97: 0 | DD97: 0 | DE97: 0 | DF97: 0 | DG97: 0 | DH97: 0 | DI97: 0 | DJ97: 0 | DK97: 0 | DL97: 0 | DM97: 0 | DN97: 0 | DO97: 0 | DP97: 0 | DQ97: 0 | DR97: 0 | DS97: 0 | DT97: 0 | DU97: 0 | DV97: 0 | DW97: 0 | DX97: 0 | DY97: 0 | DZ97: 0 | EA97: 0 | EB97: 0 | EC97: 0 | ED97: 0 | EE97: 0 | EF97: 0 | EG97: 0 | EH97: 0 | EI97: 0 | EJ97: 0 | EK97: =SUM(OFFSET(EK96,0,0,1,-MIN($F97,EK$2)))/$F97 -> 0 | EL97: 0 | EM97: 0 | EN97: 0 | EO97: 0 | EP97: 0 | EQ97: 0 | ER97: 0 | ES97: 0 | ET97: 0 | EU97: 0 | EV97: 0 | EW97: 0 | EX97: 0 | EY97: 0
